Workbook

Sheet Balancen Scenarie 2030 (3)
A1: Energiforsyning og -forbrug i kommunen
A2: Scenarie 2030 | B2: I alt | C2: Kul og Koks | D2: Råolie | E2: Orimulsion | F2: Olieprodukter total | G2: Petrokoks | H2: Fuelolie og Spildolie | I2: Gas-/dieselolie | J2: Petroleum | K2: Benzin og LVN | L2: JP1 og JP4 | M2: LPG | N2: Raffinaderi-gas | O2: Ikke-kategoriseret olieprodukter | P2: Naturgas | Q2: Affald ikke-bionedbrydeligt | R2: Biomasse total | S2: Affald bionedbrydeligt | T2: Halm | U2: Træflis | V2: Træpiller | W2: Træ Øvrigt | X2: Ikke-kategoriseret biomasse | Y2: Biogas | Z2: Bionaturgas | AA2: Biobrændsler og e-brændsler total | AB2: Biodiesel | AC2: Bioethanol | AD2: Bioolie | AE2: Brint | AF2: E-brændsler | AG2: Ikke-kategoriseret biobrændsler | AH2: Solenergi | AI2: Omgivelsesvarme + geotermi | AJ2: Vindenergi | AK2: Anden VE | AL2: Samlet elektricitet | AM2: El til varmepumpe | AN2: El til paneler | AO2: El til proces | AP2: El til andet | AQ2: Fjernvarme | AR2: Bygas | AS2: CO2 Scope 1 [ton CO2e] | AT2: CO2 Scope 2 [ton CO2e] | AU2: CO2 Scope 3 (Kun el og fjernvarme) [ton CO2e]
A3: Indgang for brændsler (bio, kul mv.) | B3: ='Balancen Scenarie 2030'!B3-'Balancen BAU 2030'!B3 -> 17696.77078 | C3: ='Balancen Scenarie 2030'!C3-'Balancen BAU 2030'!C3 -> 0 | D3: ='Balancen Scenarie 2030'!D3-'Balancen BAU 2030'!D3 -> 0 | E3: ='Balancen Scenarie 2030'!E3-'Balancen BAU 2030'!E3 -> 0 | F3: ='Balancen Scenarie 2030'!F3-'Balancen BAU 2030'!F3 -> 0 | G3: ='Balancen Scenarie 2030'!G3-'Balancen BAU 2030'!G3 -> 0 | H3: ='Balancen Scenarie 2030'!H3-'Balancen BAU 2030'!H3 -> 0 | I3: ='Balancen Scenarie 2030'!I3-'Balancen BAU 2030'!I3 -> 0 | J3: ='Balancen Scenarie 2030'!J3-'Balancen BAU 2030'!J3 -> 0 | K3: ='Balancen Scenarie 2030'!K3-'Balancen BAU 2030'!K3 -> 0 | L3: ='Balancen Scenarie 2030'!L3-'Balancen BAU 2030'!L3 -> 0 | M3: ='Balancen Scenarie 2030'!M3-'Balancen BAU 2030'!M3 -> 0 | N3: ='Balancen Scenarie 2030'!N3-'Balancen BAU 2030'!N3 -> 0 | O3: ='Balancen Scenarie 2030'!O3-'Balancen BAU 2030'!O3 -> 0 | P3: ='Balancen Scenarie 2030'!P3-'Balancen BAU 2030'!P3 -> 18173.10222 | Q3: ='Balancen Scenarie 2030'!Q3-'Balancen BAU 2030'!Q3 -> 0 | R3: ='Balancen Scenarie 2030'!R3-'Balancen BAU 2030'!R3 -> -741.0406112 | S3: ='Balancen Scenarie 2030'!S3-'Balancen BAU 2030'!S3 -> 7895.222563 | T3: ='Balancen Scenarie 2030'!T3-'Balancen BAU 2030'!T3 -> 0 | U3: ='Balancen Scenarie 2030'!U3-'Balancen BAU 2030'!U3 -> 0 | V3: ='Balancen Scenarie 2030'!V3-'Balancen BAU 2030'!V3 -> 0 | W3: ='Balancen Scenarie 2030'!W3-'Balancen BAU 2030'!W3 -> 0 | X3: ='Balancen Scenarie 2030'!X3-'Balancen BAU 2030'!X3 -> -8636.263174 | Y3: ='Balancen Scenarie 2030'!Y3-'Balancen BAU 2030'!Y3 -> 10026.79319 | Z3: ='Balancen Scenarie 2030'!Z3-'Balancen BAU 2030'!Z3 -> -9762.08402 | AA3: ='Balancen Scenarie 2030'!AA3-'Balancen BAU 2030'!AA3 -> 0 | AB3: ='Balancen Scenarie 2030'!AB3-'Balancen BAU 2030'!AB3 -> 0 | AC3: ='Balancen Scenarie 2030'!AC3-'Balancen BAU 2030'!AC3 -> 0 | AD3: ='Balancen Scenarie 2030'!AD3-'Balancen BAU 2030'!AD3 -> 0 | AE3: ='Balancen Scenarie 2030'!AE3-'Balancen BAU 2030'!AE3 -> 0 | AF3: ='Balancen Scenarie 2030'!AF3-'Balancen BAU 2030'!AF3 -> 0 | AG3: ='Balancen Scenarie 2030'!AG3-'Balancen BAU 2030'!AG3 -> 0 | AH3: ='Balancen Scenarie 2030'!AH3-'Balancen BAU 2030'!AH3 -> 0 | AI3: ='Balancen Scenarie 2030'!AI3-'Balancen BAU 2030'!AI3 -> 0 | AJ3: ='Balancen Scenarie 2030'!AJ3-'Balancen BAU 2030'!AJ3 -> 0 | AK3: ='Balancen Scenarie 2030'!AK3-'Balancen BAU 2030'!AK3 -> 0 | AL3: ='Balancen Scenarie 2030'!AL3-'Balancen BAU 2030'!AL3 -> 0 | AM3: ='Balancen Scenarie 2030'!AM3-'Balancen BAU 2030'!AM3 -> 0 | AN3: ='Balancen Scenarie 2030'!AN3-'Balancen BAU 2030'!AN3 -> 0 | AO3: ='Balancen Scenarie 2030'!AO3-'Balancen BAU 2030'!AO3 -> 0 | AP3: ='Balancen Scenarie 2030'!AP3-'Balancen BAU 2030'!AP3 -> 0 | AQ3: ='Balancen Scenarie 2030'!AQ3-'Balancen BAU 2030'!AQ3 -> 0 | AR3: ='Balancen Scenarie 2030'!AR3-'Balancen BAU 2030'!AR3 -> 0 | AS3: ='Balancen Scenarie 2030'!AS3-'Balancen BAU 2030'!AS3 -> 0 | AT3: ='Balancen Scenarie 2030'!AT3-'Balancen BAU 2030'!AT3 -> 0 | AU3: ='Balancen Scenarie 2030'!AU3-'Balancen BAU 2030'!AU3 -> 0
A4: Statistisk difference | B4: ='Balancen Scenarie 2030'!B4-'Balancen BAU 2030'!B4 -> 18188 | C4: ='Balancen Scenarie 2030'!C4-'Balancen BAU 2030'!C4 -> 0 | D4: ='Balancen Scenarie 2030'!D4-'Balancen BAU 2030'!D4 -> 0 | E4: ='Balancen Scenarie 2030'!E4-'Balancen BAU 2030'!E4 -> 0 | F4: ='Balancen Scenarie 2030'!F4-'Balancen BAU 2030'!F4 -> 0 | G4: ='Balancen Scenarie 2030'!G4-'Balancen BAU 2030'!G4 -> 0 | H4: ='Balancen Scenarie 2030'!H4-'Balancen BAU 2030'!H4 -> 0 | I4: ='Balancen Scenarie 2030'!I4-'Balancen BAU 2030'!I4 -> 0 | J4: ='Balancen Scenarie 2030'!J4-'Balancen BAU 2030'!J4 -> 0 | K4: ='Balancen Scenarie 2030'!K4-'Balancen BAU 2030'!K4 -> 0 | L4: ='Balancen Scenarie 2030'!L4-'Balancen BAU 2030'!L4 -> 0 | M4: ='Balancen Scenarie 2030'!M4-'Balancen BAU 2030'!M4 -> 0 | N4: ='Balancen Scenarie 2030'!N4-'Balancen BAU 2030'!N4 -> 0 | O4: ='Balancen Scenarie 2030'!O4-'Balancen BAU 2030'!O4 -> 0 | P4: ='Balancen Scenarie 2030'!P4-'Balancen BAU 2030'!P4 -> 18188 | Q4: ='Balancen Scenarie 2030'!Q4-'Balancen BAU 2030'!Q4 -> 9.094947018e-13 | R4: ='Balancen Scenarie 2030'!R4-'Balancen BAU 2030'!R4 -> 0 | S4: ='Balancen Scenarie 2030'!S4-'Balancen BAU 2030'!S4 -> 0 | T4: ='Balancen Scenarie 2030'!T4-'Balancen BAU 2030'!T4 -> 0 | U4: ='Balancen Scenarie 2030'!U4-'Balancen BAU 2030'!U4 -> 0 | V4: ='Balancen Scenarie 2030'!V4-'Balancen BAU 2030'!V4 -> 0 | W4: ='Balancen Scenarie 2030'!W4-'Balancen BAU 2030'!W4 -> 0 | X4: ='Balancen Scenarie 2030'!X4-'Balancen BAU 2030'!X4 -> 0 | Y4: ='Balancen Scenarie 2030'!Y4-'Balancen BAU 2030'!Y4 -> 0 | Z4: ='Balancen Scenarie 2030'!Z4-'Balancen BAU 2030'!Z4 -> 0 | AA4: ='Balancen Scenarie 2030'!AA4-'Balancen BAU 2030'!AA4 -> 0 | AB4: ='Balancen Scenarie 2030'!AB4-'Balancen BAU 2030'!AB4 -> 0 | AC4: ='Balancen Scenarie 2030'!AC4-'Balancen BAU 2030'!AC4 -> 0 | AD4: ='Balancen Scenarie 2030'!AD4-'Balancen BAU 2030'!AD4 -> 0 | AE4: ='Balancen Scenarie 2030'!AE4-'Balancen BAU 2030'!AE4 -> 0 | AF4: ='Balancen Scenarie 2030'!AF4-'Balancen BAU 2030'!AF4 -> 0 | AG4: ='Balancen Scenarie 2030'!AG4-'Balancen BAU 2030'!AG4 -> 0 | AH4: ='Balancen Scenarie 2030'!AH4-'Balancen BAU 2030'!AH4 -> 0 | AI4: ='Balancen Scenarie 2030'!AI4-'Balancen BAU 2030'!AI4 -> 0 | AJ4: ='Balancen Scenarie 2030'!AJ4-'Balancen BAU 2030'!AJ4 -> 0 | AK4: ='Balancen Scenarie 2030'!AK4-'Balancen BAU 2030'!AK4 -> 0 | AL4: ='Balancen Scenarie 2030'!AL4-'Balancen BAU 2030'!AL4 -> 0 | AM4: ='Balancen Scenarie 2030'!AM4-'Balancen BAU 2030'!AM4 -> 0 | AN4: ='Balancen Scenarie 2030'!AN4-'Balancen BAU 2030'!AN4 -> 0 | AO4: ='Balancen Scenarie 2030'!AO4-'Balancen BAU 2030'!AO4 -> 0 | AP4: ='Balancen Scenarie 2030'!AP4-'Balancen BAU 2030'!AP4 -> 0 | AQ4: ='Balancen Scenarie 2030'!AQ4-'Balancen BAU 2030'!AQ4 -> 0 | AR4: ='Balancen Scenarie 2030'!AR4-'Balancen BAU 2030'!AR4 -> 0 | AS4: ='Balancen Scenarie 2030'!AS4-'Balancen BAU 2030'!AS4 -> 0 | AT4: ='Balancen Scenarie 2030'!AT4-'Balancen BAU 2030'!AT4 -> 0 | AU4: ='Balancen Scenarie 2030'!AU4-'Balancen BAU 2030'!AU4 -> 0
A5: Egenudvinding | B5: ='Balancen Scenarie 2030'!B5-'Balancen BAU 2030'!B5 -> 0 | C5: ='Balancen Scenarie 2030'!C5-'Balancen BAU 2030'!C5 -> 0 | D5: ='Balancen Scenarie 2030'!D5-'Balancen BAU 2030'!D5 -> 0 | E5: ='Balancen Scenarie 2030'!E5-'Balancen BAU 2030'!E5 -> 0 | F5: ='Balancen Scenarie 2030'!F5-'Balancen BAU 2030'!F5 -> 0 | G5: ='Balancen Scenarie 2030'!G5-'Balancen BAU 2030'!G5 -> 0 | H5: ='Balancen Scenarie 2030'!H5-'Balancen BAU 2030'!H5 -> 0 | I5: ='Balancen Scenarie 2030'!I5-'Balancen BAU 2030'!I5 -> 0 | J5: ='Balancen Scenarie 2030'!J5-'Balancen BAU 2030'!J5 -> 0 | K5: ='Balancen Scenarie 2030'!K5-'Balancen BAU 2030'!K5 -> 0 | L5: ='Balancen Scenarie 2030'!L5-'Balancen BAU 2030'!L5 -> 0 | M5: ='Balancen Scenarie 2030'!M5-'Balancen BAU 2030'!M5 -> 0 | N5: ='Balancen Scenarie 2030'!N5-'Balancen BAU 2030'!N5 -> 0 | O5: ='Balancen Scenarie 2030'!O5-'Balancen BAU 2030'!O5 -> 0 | P5: ='Balancen Scenarie 2030'!P5-'Balancen BAU 2030'!P5 -> 0 | Q5: ='Balancen Scenarie 2030'!Q5-'Balancen BAU 2030'!Q5 -> 0 | R5: ='Balancen Scenarie 2030'!R5-'Balancen BAU 2030'!R5 -> 0 | S5: ='Balancen Scenarie 2030'!S5-'Balancen BAU 2030'!S5 -> 0 | T5: ='Balancen Scenarie 2030'!T5-'Balancen BAU 2030'!T5 -> 0 | U5: ='Balancen Scenarie 2030'!U5-'Balancen BAU 2030'!U5 -> 0 | V5: ='Balancen Scenarie 2030'!V5-'Balancen BAU 2030'!V5 -> 0 | W5: ='Balancen Scenarie 2030'!W5-'Balancen BAU 2030'!W5 -> 0 | X5: ='Balancen Scenarie 2030'!X5-'Balancen BAU 2030'!X5 -> 0 | Y5: ='Balancen Scenarie 2030'!Y5-'Balancen BAU 2030'!Y5 -> 0 | Z5: ='Balancen Scenarie 2030'!Z5-'Balancen BAU 2030'!Z5 -> 0 | AA5: ='Balancen Scenarie 2030'!AA5-'Balancen BAU 2030'!AA5 -> 0 | AB5: ='Balancen Scenarie 2030'!AB5-'Balancen BAU 2030'!AB5 -> 0 | AC5: ='Balancen Scenarie 2030'!AC5-'Balancen BAU 2030'!AC5 -> 0 | AD5: ='Balancen Scenarie 2030'!AD5-'Balancen BAU 2030'!AD5 -> 0 | AE5: ='Balancen Scenarie 2030'!AE5-'Balancen BAU 2030'!AE5 -> 0 | AF5: ='Balancen Scenarie 2030'!AF5-'Balancen BAU 2030'!AF5 -> 0 | AG5: ='Balancen Scenarie 2030'!AG5-'Balancen BAU 2030'!AG5 -> 0 | AH5: ='Balancen Scenarie 2030'!AH5-'Balancen BAU 2030'!AH5 -> 0 | AI5: ='Balancen Scenarie 2030'!AI5-'Balancen BAU 2030'!AI5 -> 0 | AJ5: ='Balancen Scenarie 2030'!AJ5-'Balancen BAU 2030'!AJ5 -> 0 | AK5: ='Balancen Scenarie 2030'!AK5-'Balancen BAU 2030'!AK5 -> 0 | AL5: ='Balancen Scenarie 2030'!AL5-'Balancen BAU 2030'!AL5 -> 0 | AM5: ='Balancen Scenarie 2030'!AM5-'Balancen BAU 2030'!AM5 -> 0 | AN5: ='Balancen Scenarie 2030'!AN5-'Balancen BAU 2030'!AN5 -> 0 | AO5: ='Balancen Scenarie 2030'!AO5-'Balancen BAU 2030'!AO5 -> 0 | AP5: ='Balancen Scenarie 2030'!AP5-'Balancen BAU 2030'!AP5 -> 0 | AQ5: ='Balancen Scenarie 2030'!AQ5-'Balancen BAU 2030'!AQ5 -> 0 | AR5: ='Balancen Scenarie 2030'!AR5-'Balancen BAU 2030'!AR5 -> 0 | AS5: ='Balancen Scenarie 2030'!AS5-'Balancen BAU 2030'!AS5 -> 0 | AT5: ='Balancen Scenarie 2030'!AT5-'Balancen BAU 2030'!AT5 -> 0 | AU5: ='Balancen Scenarie 2030'!AU5-'Balancen BAU 2030'!AU5 -> 0
A6: Import/eksport | B6: ='Balancen Scenarie 2030'!B6-'Balancen BAU 2030'!B6 -> -491.2292248 | C6: ='Balancen Scenarie 2030'!C6-'Balancen BAU 2030'!C6 -> 0 | D6: ='Balancen Scenarie 2030'!D6-'Balancen BAU 2030'!D6 -> 0 | E6: ='Balancen Scenarie 2030'!E6-'Balancen BAU 2030'!E6 -> 0 | F6: ='Balancen Scenarie 2030'!F6-'Balancen BAU 2030'!F6 -> 0 | G6: ='Balancen Scenarie 2030'!G6-'Balancen BAU 2030'!G6 -> 0 | H6: ='Balancen Scenarie 2030'!H6-'Balancen BAU 2030'!H6 -> 0 | I6: ='Balancen Scenarie 2030'!I6-'Balancen BAU 2030'!I6 -> 0 | J6: ='Balancen Scenarie 2030'!J6-'Balancen BAU 2030'!J6 -> 0 | K6: ='Balancen Scenarie 2030'!K6-'Balancen BAU 2030'!K6 -> 0 | L6: ='Balancen Scenarie 2030'!L6-'Balancen BAU 2030'!L6 -> 0 | M6: ='Balancen Scenarie 2030'!M6-'Balancen BAU 2030'!M6 -> 0 | N6: ='Balancen Scenarie 2030'!N6-'Balancen BAU 2030'!N6 -> 0 | O6: ='Balancen Scenarie 2030'!O6-'Balancen BAU 2030'!O6 -> 0 | P6: ='Balancen Scenarie 2030'!P6-'Balancen BAU 2030'!P6 -> -14.89778202 | Q6: ='Balancen Scenarie 2030'!Q6-'Balancen BAU 2030'!Q6 -> 0 | R6: ='Balancen Scenarie 2030'!R6-'Balancen BAU 2030'!R6 -> -741.0406112 | S6: ='Balancen Scenarie 2030'!S6-'Balancen BAU 2030'!S6 -> 7895.222563 | T6: ='Balancen Scenarie 2030'!T6-'Balancen BAU 2030'!T6 -> 0 | U6: ='Balancen Scenarie 2030'!U6-'Balancen BAU 2030'!U6 -> 0 | V6: ='Balancen Scenarie 2030'!V6-'Balancen BAU 2030'!V6 -> 0 | W6: ='Balancen Scenarie 2030'!W6-'Balancen BAU 2030'!W6 -> 0 | X6: ='Balancen Scenarie 2030'!X6-'Balancen BAU 2030'!X6 -> -8636.263174 | Y6: ='Balancen Scenarie 2030'!Y6-'Balancen BAU 2030'!Y6 -> 10026.79319 | Z6: ='Balancen Scenarie 2030'!Z6-'Balancen BAU 2030'!Z6 -> -9762.08402 | AA6: ='Balancen Scenarie 2030'!AA6-'Balancen BAU 2030'!AA6 -> 0 | AB6: ='Balancen Scenarie 2030'!AB6-'Balancen BAU 2030'!AB6 -> 0 | AC6: ='Balancen Scenarie 2030'!AC6-'Balancen BAU 2030'!AC6 -> 0 | AD6: ='Balancen Scenarie 2030'!AD6-'Balancen BAU 2030'!AD6 -> 0 | AE6: ='Balancen Scenarie 2030'!AE6-'Balancen BAU 2030'!AE6 -> 0 | AF6: ='Balancen Scenarie 2030'!AF6-'Balancen BAU 2030'!AF6 -> 0 | AG6: ='Balancen Scenarie 2030'!AG6-'Balancen BAU 2030'!AG6 -> 0 | AH6: ='Balancen Scenarie 2030'!AH6-'Balancen BAU 2030'!AH6 -> 0 | AI6: ='Balancen Scenarie 2030'!AI6-'Balancen BAU 2030'!AI6 -> 0 | AJ6: ='Balancen Scenarie 2030'!AJ6-'Balancen BAU 2030'!AJ6 -> 0 | AK6: ='Balancen Scenarie 2030'!AK6-'Balancen BAU 2030'!AK6 -> 0 | AL6: ='Balancen Scenarie 2030'!AL6-'Balancen BAU 2030'!AL6 -> 0 | AM6: ='Balancen Scenarie 2030'!AM6-'Balancen BAU 2030'!AM6 -> 0 | AN6: ='Balancen Scenarie 2030'!AN6-'Balancen BAU 2030'!AN6 -> 0 | AO6: ='Balancen Scenarie 2030'!AO6-'Balancen BAU 2030'!AO6 -> 0 | AP6: ='Balancen Scenarie 2030'!AP6-'Balancen BAU 2030'!AP6 -> 0 | AQ6: ='Balancen Scenarie 2030'!AQ6-'Balancen BAU 2030'!AQ6 -> 0 | AR6: ='Balancen Scenarie 2030'!AR6-'Balancen BAU 2030'!AR6 -> 0 | AS6: ='Balancen Scenarie 2030'!AS6-'Balancen BAU 2030'!AS6 -> 0 | AT6: ='Balancen Scenarie 2030'!AT6-'Balancen BAU 2030'!AT6 -> 0 | AU6: ='Balancen Scenarie 2030'!AU6-'Balancen BAU 2030'!AU6 -> 0
A7: Indgang nettilsluttet VE | B7: ='Balancen Scenarie 2030'!B7-'Balancen BAU 2030'!B7 -> 92.90096945 | C7: ='Balancen Scenarie 2030'!C7-'Balancen BAU 2030'!C7 -> 0 | D7: ='Balancen Scenarie 2030'!D7-'Balancen BAU 2030'!D7 -> 0 | E7: ='Balancen Scenarie 2030'!E7-'Balancen BAU 2030'!E7 -> 0 | F7: ='Balancen Scenarie 2030'!F7-'Balancen BAU 2030'!F7 -> 0 | G7: ='Balancen Scenarie 2030'!G7-'Balancen BAU 2030'!G7 -> 0 | H7: ='Balancen Scenarie 2030'!H7-'Balancen BAU 2030'!H7 -> 0 | I7: ='Balancen Scenarie 2030'!I7-'Balancen BAU 2030'!I7 -> 0 | J7: ='Balancen Scenarie 2030'!J7-'Balancen BAU 2030'!J7 -> 0 | K7: ='Balancen Scenarie 2030'!K7-'Balancen BAU 2030'!K7 -> 0 | L7: ='Balancen Scenarie 2030'!L7-'Balancen BAU 2030'!L7 -> 0 | M7: ='Balancen Scenarie 2030'!M7-'Balancen BAU 2030'!M7 -> 0 | N7: ='Balancen Scenarie 2030'!N7-'Balancen BAU 2030'!N7 -> 0 | O7: ='Balancen Scenarie 2030'!O7-'Balancen BAU 2030'!O7 -> 0 | P7: ='Balancen Scenarie 2030'!P7-'Balancen BAU 2030'!P7 -> 0 | Q7: ='Balancen Scenarie 2030'!Q7-'Balancen BAU 2030'!Q7 -> 0 | R7: ='Balancen Scenarie 2030'!R7-'Balancen BAU 2030'!R7 -> 0 | S7: ='Balancen Scenarie 2030'!S7-'Balancen BAU 2030'!S7 -> 0 | T7: ='Balancen Scenarie 2030'!T7-'Balancen BAU 2030'!T7 -> 0 | U7: ='Balancen Scenarie 2030'!U7-'Balancen BAU 2030'!U7 -> 0 | V7: ='Balancen Scenarie 2030'!V7-'Balancen BAU 2030'!V7 -> 0 | W7: ='Balancen Scenarie 2030'!W7-'Balancen BAU 2030'!W7 -> 0 | X7: ='Balancen Scenarie 2030'!X7-'Balancen BAU 2030'!X7 -> 0 | Y7: ='Balancen Scenarie 2030'!Y7-'Balancen BAU 2030'!Y7 -> 0 | Z7: ='Balancen Scenarie 2030'!Z7-'Balancen BAU 2030'!Z7 -> 0 | AA7: ='Balancen Scenarie 2030'!AA7-'Balancen BAU 2030'!AA7 -> 0 | AB7: ='Balancen Scenarie 2030'!AB7-'Balancen BAU 2030'!AB7 -> 0 | AC7: ='Balancen Scenarie 2030'!AC7-'Balancen BAU 2030'!AC7 -> 0 | AD7: ='Balancen Scenarie 2030'!AD7-'Balancen BAU 2030'!AD7 -> 0 | AE7: ='Balancen Scenarie 2030'!AE7-'Balancen BAU 2030'!AE7 -> 0 | AF7: ='Balancen Scenarie 2030'!AF7-'Balancen BAU 2030'!AF7 -> 0 | AG7: ='Balancen Scenarie 2030'!AG7-'Balancen BAU 2030'!AG7 -> 0 | AH7: ='Balancen Scenarie 2030'!AH7-'Balancen BAU 2030'!AH7 -> -0.07495548985 | AI7: ='Balancen Scenarie 2030'!AI7-'Balancen BAU 2030'!AI7 -> 97.75592494 | AJ7: ='Balancen Scenarie 2030'!AJ7-'Balancen BAU 2030'!AJ7 -> -4.8 | AK7: ='Balancen Scenarie 2030'!AK7-'Balancen BAU 2030'!AK7 -> 0.02 | AL7: ='Balancen Scenarie 2030'!AL7-'Balancen BAU 2030'!AL7 -> 0 | AM7: ='Balancen Scenarie 2030'!AM7-'Balancen BAU 2030'!AM7 -> 0 | AN7: ='Balancen Scenarie 2030'!AN7-'Balancen BAU 2030'!AN7 -> 0 | AO7: ='Balancen Scenarie 2030'!AO7-'Balancen BAU 2030'!AO7 -> 0 | AP7: ='Balancen Scenarie 2030'!AP7-'Balancen BAU 2030'!AP7 -> 0 | AQ7: ='Balancen Scenarie 2030'!AQ7-'Balancen BAU 2030'!AQ7 -> 0 | AR7: ='Balancen Scenarie 2030'!AR7-'Balancen BAU 2030'!AR7 -> 0 | AS7: ='Balancen Scenarie 2030'!AS7-'Balancen BAU 2030'!AS7 -> 0 | AT7: ='Balancen Scenarie 2030'!AT7-'Balancen BAU 2030'!AT7 -> 0 | AU7: ='Balancen Scenarie 2030'!AU7-'Balancen BAU 2030'!AU7 -> 0
A8: Konvertering til el, varme og olieprodukter | B8: ='Balancen Scenarie 2030'!B8-'Balancen BAU 2030'!B8 -> 222994.8462 | C8: ='Balancen Scenarie 2030'!C8-'Balancen BAU 2030'!C8 -> 0 | D8: ='Balancen Scenarie 2030'!D8-'Balancen BAU 2030'!D8 -> 0 | E8: ='Balancen Scenarie 2030'!E8-'Balancen BAU 2030'!E8 -> 0 | F8: ='Balancen Scenarie 2030'!F8-'Balancen BAU 2030'!F8 -> 210329.9176 | G8: ='Balancen Scenarie 2030'!G8-'Balancen BAU 2030'!G8 -> 0 | H8: ='Balancen Scenarie 2030'!H8-'Balancen BAU 2030'!H8 -> 1500 | I8: ='Balancen Scenarie 2030'!I8-'Balancen BAU 2030'!I8 -> 84538.33105 | J8: ='Balancen Scenarie 2030'!J8-'Balancen BAU 2030'!J8 -> 0 | K8: ='Balancen Scenarie 2030'!K8-'Balancen BAU 2030'!K8 -> 46189.98757 | L8: ='Balancen Scenarie 2030'!L8-'Balancen BAU 2030'!L8 -> 45973.23 | M8: ='Balancen Scenarie 2030'!M8-'Balancen BAU 2030'!M8 -> 0 | N8: ='Balancen Scenarie 2030'!N8-'Balancen BAU 2030'!N8 -> 0 | O8: ='Balancen Scenarie 2030'!O8-'Balancen BAU 2030'!O8 -> 32128.36897 | P8: ='Balancen Scenarie 2030'!P8-'Balancen BAU 2030'!P8 -> 14.89778202 | Q8: ='Balancen Scenarie 2030'!Q8-'Balancen BAU 2030'!Q8 -> 0 | R8: ='Balancen Scenarie 2030'!R8-'Balancen BAU 2030'!R8 -> 741.0406112 | S8: ='Balancen Scenarie 2030'!S8-'Balancen BAU 2030'!S8 -> -7895.222563 | T8: ='Balancen Scenarie 2030'!T8-'Balancen BAU 2030'!T8 -> 0 | U8: ='Balancen Scenarie 2030'!U8-'Balancen BAU 2030'!U8 -> 0 | V8: ='Balancen Scenarie 2030'!V8-'Balancen BAU 2030'!V8 -> 0 | W8: ='Balancen Scenarie 2030'!W8-'Balancen BAU 2030'!W8 -> 0 | X8: ='Balancen Scenarie 2030'!X8-'Balancen BAU 2030'!X8 -> 8636.263174 | Y8: ='Balancen Scenarie 2030'!Y8-'Balancen BAU 2030'!Y8 -> -10026.79319 | Z8: ='Balancen Scenarie 2030'!Z8-'Balancen BAU 2030'!Z8 -> 9762.08402 | AA8: ='Balancen Scenarie 2030'!AA8-'Balancen BAU 2030'!AA8 -> 11936.42986 | AB8: ='Balancen Scenarie 2030'!AB8-'Balancen BAU 2030'!AB8 -> 10875.2985 | AC8: ='Balancen Scenarie 2030'!AC8-'Balancen BAU 2030'!AC8 -> 0 | AD8: ='Balancen Scenarie 2030'!AD8-'Balancen BAU 2030'!AD8 -> 0 | AE8: ='Balancen Scenarie 2030'!AE8-'Balancen BAU 2030'!AE8 -> 0 | AF8: ='Balancen Scenarie 2030'!AF8-'Balancen BAU 2030'!AF8 -> 0 | AG8: ='Balancen Scenarie 2030'!AG8-'Balancen BAU 2030'!AG8 -> 1061.131361 | AH8: ='Balancen Scenarie 2030'!AH8-'Balancen BAU 2030'!AH8 -> 0.07495548985 | AI8: ='Balancen Scenarie 2030'!AI8-'Balancen BAU 2030'!AI8 -> -97.75592494 | AJ8: ='Balancen Scenarie 2030'!AJ8-'Balancen BAU 2030'!AJ8 -> 4.8 | AK8: ='Balancen Scenarie 2030'!AK8-'Balancen BAU 2030'!AK8 -> -0.02 | AL8: ='Balancen Scenarie 2030'!AL8-'Balancen BAU 2030'!AL8 -> -210.0197569 | AM8: ='Balancen Scenarie 2030'!AM8-'Balancen BAU 2030'!AM8 -> -12565.94499 | AN8: ='Balancen Scenarie 2030'!AN8-'Balancen BAU 2030'!AN8 -> 0 | AO8: ='Balancen Scenarie 2030'!AO8-'Balancen BAU 2030'!AO8 -> 0 | AP8: ='Balancen Scenarie 2030'!AP8-'Balancen BAU 2030'!AP8 -> 12412.29604 | AQ8: ='Balancen Scenarie 2030'!AQ8-'Balancen BAU 2030'!AQ8 -> -23.91900645 | AR8: ='Balancen Scenarie 2030'!AR8-'Balancen BAU 2030'!AR8 -> 564.1092916 | AS8: ='Balancen Scenarie 2030'!AS8-'Balancen BAU 2030'!AS8 -> -993.637809 | AT8: ='Balancen Scenarie 2030'!AT8-'Balancen BAU 2030'!AT8 -> -304.946283 | AU8: ='Balancen Scenarie 2030'!AU8-'Balancen BAU 2030'!AU8 -> 0
A9: Statistisk difference | B9: ='Balancen Scenarie 2030'!B9-'Balancen BAU 2030'!B9 -> 0 | C9: ='Balancen Scenarie 2030'!C9-'Balancen BAU 2030'!C9 -> 0 | D9: ='Balancen Scenarie 2030'!D9-'Balancen BAU 2030'!D9 -> 0 | E9: ='Balancen Scenarie 2030'!E9-'Balancen BAU 2030'!E9 -> 0 | F9: ='Balancen Scenarie 2030'!F9-'Balancen BAU 2030'!F9 -> 0 | G9: ='Balancen Scenarie 2030'!G9-'Balancen BAU 2030'!G9 -> 0 | H9: ='Balancen Scenarie 2030'!H9-'Balancen BAU 2030'!H9 -> 0 | I9: ='Balancen Scenarie 2030'!I9-'Balancen BAU 2030'!I9 -> 0 | J9: ='Balancen Scenarie 2030'!J9-'Balancen BAU 2030'!J9 -> 0 | K9: ='Balancen Scenarie 2030'!K9-'Balancen BAU 2030'!K9 -> 0 | L9: ='Balancen Scenarie 2030'!L9-'Balancen BAU 2030'!L9 -> 0 | M9: ='Balancen Scenarie 2030'!M9-'Balancen BAU 2030'!M9 -> 0 | N9: ='Balancen Scenarie 2030'!N9-'Balancen BAU 2030'!N9 -> 0 | O9: ='Balancen Scenarie 2030'!O9-'Balancen BAU 2030'!O9 -> 0 | P9: ='Balancen Scenarie 2030'!P9-'Balancen BAU 2030'!P9 -> 0 | Q9: ='Balancen Scenarie 2030'!Q9-'Balancen BAU 2030'!Q9 -> 0 | R9: ='Balancen Scenarie 2030'!R9-'Balancen BAU 2030'!R9 -> 0 | S9: ='Balancen Scenarie 2030'!S9-'Balancen BAU 2030'!S9 -> 0 | T9: ='Balancen Scenarie 2030'!T9-'Balancen BAU 2030'!T9 -> 0 | U9: ='Balancen Scenarie 2030'!U9-'Balancen BAU 2030'!U9 -> 0 | V9: ='Balancen Scenarie 2030'!V9-'Balancen BAU 2030'!V9 -> 0 | W9: ='Balancen Scenarie 2030'!W9-'Balancen BAU 2030'!W9 -> 0 | X9: ='Balancen Scenarie 2030'!X9-'Balancen BAU 2030'!X9 -> 0 | Y9: ='Balancen Scenarie 2030'!Y9-'Balancen BAU 2030'!Y9 -> 0 | Z9: ='Balancen Scenarie 2030'!Z9-'Balancen BAU 2030'!Z9 -> 0 | AA9: ='Balancen Scenarie 2030'!AA9-'Balancen BAU 2030'!AA9 -> 0 | AB9: ='Balancen Scenarie 2030'!AB9-'Balancen BAU 2030'!AB9 -> 0 | AC9: ='Balancen Scenarie 2030'!AC9-'Balancen BAU 2030'!AC9 -> 0 | AD9: ='Balancen Scenarie 2030'!AD9-'Balancen BAU 2030'!AD9 -> 0 | AE9: ='Balancen Scenarie 2030'!AE9-'Balancen BAU 2030'!AE9 -> 0 | AF9: ='Balancen Scenarie 2030'!AF9-'Balancen BAU 2030'!AF9 -> 0 | AG9: ='Balancen Scenarie 2030'!AG9-'Balancen BAU 2030'!AG9 -> 0 | AH9: ='Balancen Scenarie 2030'!AH9-'Balancen BAU 2030'!AH9 -> 0 | AI9: ='Balancen Scenarie 2030'!AI9-'Balancen BAU 2030'!AI9 -> 0 | AJ9: ='Balancen Scenarie 2030'!AJ9-'Balancen BAU 2030'!AJ9 -> 0 | AK9: ='Balancen Scenarie 2030'!AK9-'Balancen BAU 2030'!AK9 -> 0 | AL9: ='Balancen Scenarie 2030'!AL9-'Balancen BAU 2030'!AL9 -> 0 | AM9: ='Balancen Scenarie 2030'!AM9-'Balancen BAU 2030'!AM9 -> 0 | AN9: ='Balancen Scenarie 2030'!AN9-'Balancen BAU 2030'!AN9 -> 0 | AO9: ='Balancen Scenarie 2030'!AO9-'Balancen BAU 2030'!AO9 -> 0 | AP9: ='Balancen Scenarie 2030'!AP9-'Balancen BAU 2030'!AP9 -> 0 | AQ9: ='Balancen Scenarie 2030'!AQ9-'Balancen BAU 2030'!AQ9 -> 0 | AR9: ='Balancen Scenarie 2030'!AR9-'Balancen BAU 2030'!AR9 -> 0 | AS9: ='Balancen Scenarie 2030'!AS9-'Balancen BAU 2030'!AS9 -> 0 | AT9: ='Balancen Scenarie 2030'!AT9-'Balancen BAU 2030'!AT9 -> 0 | AU9: ='Balancen Scenarie 2030'!AU9-'Balancen BAU 2030'!AU9 -> 0
A10: Netto import/lager | B10: ='Balancen Scenarie 2030'!B10-'Balancen BAU 2030'!B10 -> -179604.8455 | C10: ='Balancen Scenarie 2030'!C10-'Balancen BAU 2030'!C10 -> 0 | D10: ='Balancen Scenarie 2030'!D10-'Balancen BAU 2030'!D10 -> 0 | E10: ='Balancen Scenarie 2030'!E10-'Balancen BAU 2030'!E10 -> 0 | F10: ='Balancen Scenarie 2030'!F10-'Balancen BAU 2030'!F10 -> 370.0044048 | G10: ='Balancen Scenarie 2030'!G10-'Balancen BAU 2030'!G10 -> 0 | H10: ='Balancen Scenarie 2030'!H10-'Balancen BAU 2030'!H10 -> 0 | I10: ='Balancen Scenarie 2030'!I10-'Balancen BAU 2030'!I10 -> 57.56539974 | J10: ='Balancen Scenarie 2030'!J10-'Balancen BAU 2030'!J10 -> 0 | K10: ='Balancen Scenarie 2030'!K10-'Balancen BAU 2030'!K10 -> 314.6861434 | L10: ='Balancen Scenarie 2030'!L10-'Balancen BAU 2030'!L10 -> 0 | M10: ='Balancen Scenarie 2030'!M10-'Balancen BAU 2030'!M10 -> 0 | N10: ='Balancen Scenarie 2030'!N10-'Balancen BAU 2030'!N10 -> 0 | O10: ='Balancen Scenarie 2030'!O10-'Balancen BAU 2030'!O10 -> -2.247138347 | P10: ='Balancen Scenarie 2030'!P10-'Balancen BAU 2030'!P10 -> 0 | Q10: ='Balancen Scenarie 2030'!Q10-'Balancen BAU 2030'!Q10 -> 0 | R10: ='Balancen Scenarie 2030'!R10-'Balancen BAU 2030'!R10 -> -127029.606 | S10: ='Balancen Scenarie 2030'!S10-'Balancen BAU 2030'!S10 -> 0 | T10: ='Balancen Scenarie 2030'!T10-'Balancen BAU 2030'!T10 -> 0 | U10: ='Balancen Scenarie 2030'!U10-'Balancen BAU 2030'!U10 -> 0 | V10: ='Balancen Scenarie 2030'!V10-'Balancen BAU 2030'!V10 -> 0 | W10: ='Balancen Scenarie 2030'!W10-'Balancen BAU 2030'!W10 -> 0 | X10: ='Balancen Scenarie 2030'!X10-'Balancen BAU 2030'!X10 -> -127029.606 | Y10: ='Balancen Scenarie 2030'!Y10-'Balancen BAU 2030'!Y10 -> -20102.28919 | Z10: ='Balancen Scenarie 2030'!Z10-'Balancen BAU 2030'!Z10 -> -30038.06844 | AA10: ='Balancen Scenarie 2030'!AA10-'Balancen BAU 2030'!AA10 -> -3312.624775 | AB10: ='Balancen Scenarie 2030'!AB10-'Balancen BAU 2030'!AB10 -> 7.842242863 | AC10: ='Balancen Scenarie 2030'!AC10-'Balancen BAU 2030'!AC10 -> -3301.491338 | AD10: ='Balancen Scenarie 2030'!AD10-'Balancen BAU 2030'!AD10 -> 0 | AE10: ='Balancen Scenarie 2030'!AE10-'Balancen BAU 2030'!AE10 -> 283.9550872 | AF10: ='Balancen Scenarie 2030'!AF10-'Balancen BAU 2030'!AF10 -> 0 | AG10: ='Balancen Scenarie 2030'!AG10-'Balancen BAU 2030'!AG10 -> -302.9307673 | AH10: ='Balancen Scenarie 2030'!AH10-'Balancen BAU 2030'!AH10 -> 0 | AI10: ='Balancen Scenarie 2030'!AI10-'Balancen BAU 2030'!AI10 -> 0 | AJ10: ='Balancen Scenarie 2030'!AJ10-'Balancen BAU 2030'!AJ10 -> 0 | AK10: ='Balancen Scenarie 2030'!AK10-'Balancen BAU 2030'!AK10 -> 0 | AL10: ='Balancen Scenarie 2030'!AL10-'Balancen BAU 2030'!AL10 -> 723.8535968 | AM10: ='Balancen Scenarie 2030'!AM10-'Balancen BAU 2030'!AM10 -> 0 | AN10: ='Balancen Scenarie 2030'!AN10-'Balancen BAU 2030'!AN10 -> 0 | AO10: ='Balancen Scenarie 2030'!AO10-'Balancen BAU 2030'!AO10 -> 0 | AP10: ='Balancen Scenarie 2030'!AP10-'Balancen BAU 2030'!AP10 -> 0 | AQ10: ='Balancen Scenarie 2030'!AQ10-'Balancen BAU 2030'!AQ10 -> 23.91900645 | AR10: ='Balancen Scenarie 2030'!AR10-'Balancen BAU 2030'!AR10 -> 0 | AS10: ='Balancen Scenarie 2030'!AS10-'Balancen BAU 2030'!AS10 -> 0 | AT10: ='Balancen Scenarie 2030'!AT10-'Balancen BAU 2030'!AT10 -> 0 | AU10: ='Balancen Scenarie 2030'!AU10-'Balancen BAU 2030'!AU10 -> 0
A11: Kombineret el og varmeproduktion | B11: ='Balancen Scenarie 2030'!B11-'Balancen BAU 2030'!B11 -> 79360.97507 | C11: ='Balancen Scenarie 2030'!C11-'Balancen BAU 2030'!C11 -> 0 | D11: ='Balancen Scenarie 2030'!D11-'Balancen BAU 2030'!D11 -> 0 | E11: ='Balancen Scenarie 2030'!E11-'Balancen BAU 2030'!E11 -> 0 | F11: ='Balancen Scenarie 2030'!F11-'Balancen BAU 2030'!F11 -> 2.127644247 | G11: ='Balancen Scenarie 2030'!G11-'Balancen BAU 2030'!G11 -> 0 | H11: ='Balancen Scenarie 2030'!H11-'Balancen BAU 2030'!H11 -> 0 | I11: ='Balancen Scenarie 2030'!I11-'Balancen BAU 2030'!I11 -> 0 | J11: ='Balancen Scenarie 2030'!J11-'Balancen BAU 2030'!J11 -> 0 | K11: ='Balancen Scenarie 2030'!K11-'Balancen BAU 2030'!K11 -> 0 | L11: ='Balancen Scenarie 2030'!L11-'Balancen BAU 2030'!L11 -> 0 | M11: ='Balancen Scenarie 2030'!M11-'Balancen BAU 2030'!M11 -> 0 | N11: ='Balancen Scenarie 2030'!N11-'Balancen BAU 2030'!N11 -> 0 | O11: ='Balancen Scenarie 2030'!O11-'Balancen BAU 2030'!O11 -> 2.127644247 | P11: ='Balancen Scenarie 2030'!P11-'Balancen BAU 2030'!P11 -> 1.006592879 | Q11: ='Balancen Scenarie 2030'!Q11-'Balancen BAU 2030'!Q11 -> 0 | R11: ='Balancen Scenarie 2030'!R11-'Balancen BAU 2030'!R11 -> 66.61591024 | S11: ='Balancen Scenarie 2030'!S11-'Balancen BAU 2030'!S11 -> -7751.777916 | T11: ='Balancen Scenarie 2030'!T11-'Balancen BAU 2030'!T11 -> 0 | U11: ='Balancen Scenarie 2030'!U11-'Balancen BAU 2030'!U11 -> 0 | V11: ='Balancen Scenarie 2030'!V11-'Balancen BAU 2030'!V11 -> 0 | W11: ='Balancen Scenarie 2030'!W11-'Balancen BAU 2030'!W11 -> 0 | X11: ='Balancen Scenarie 2030'!X11-'Balancen BAU 2030'!X11 -> 7818.393826 | Y11: ='Balancen Scenarie 2030'!Y11-'Balancen BAU 2030'!Y11 -> 8.375794094 | Z11: ='Balancen Scenarie 2030'!Z11-'Balancen BAU 2030'!Z11 -> 2.553387037 | AA11: ='Balancen Scenarie 2030'!AA11-'Balancen BAU 2030'!AA11 -> 0 | AB11: ='Balancen Scenarie 2030'!AB11-'Balancen BAU 2030'!AB11 -> 0 | AC11: ='Balancen Scenarie 2030'!AC11-'Balancen BAU 2030'!AC11 -> 0 | AD11: ='Balancen Scenarie 2030'!AD11-'Balancen BAU 2030'!AD11 -> 0 | AE11: ='Balancen Scenarie 2030'!AE11-'Balancen BAU 2030'!AE11 -> 0 | AF11: ='Balancen Scenarie 2030'!AF11-'Balancen BAU 2030'!AF11 -> 0 | AG11: ='Balancen Scenarie 2030'!AG11-'Balancen BAU 2030'!AG11 -> 0 | AH11: ='Balancen Scenarie 2030'!AH11-'Balancen BAU 2030'!AH11 -> 0 | AI11: ='Balancen Scenarie 2030'!AI11-'Balancen BAU 2030'!AI11 -> 0 | AJ11: ='Balancen Scenarie 2030'!AJ11-'Balancen BAU 2030'!AJ11 -> 0 | AK11: ='Balancen Scenarie 2030'!AK11-'Balancen BAU 2030'!AK11 -> 0 | AL11: ='Balancen Scenarie 2030'!AL11-'Balancen BAU 2030'!AL11 -> -222.0971278 | AM11: ='Balancen Scenarie 2030'!AM11-'Balancen BAU 2030'!AM11 -> 0 | AN11: ='Balancen Scenarie 2030'!AN11-'Balancen BAU 2030'!AN11 -> 0 | AO11: ='Balancen Scenarie 2030'!AO11-'Balancen BAU 2030'!AO11 -> 0 | AP11: ='Balancen Scenarie 2030'!AP11-'Balancen BAU 2030'!AP11 -> -222.0971278 | AQ11: ='Balancen Scenarie 2030'!AQ11-'Balancen BAU 2030'!AQ11 -> -1.103919812 | AR11: ='Balancen Scenarie 2030'!AR11-'Balancen BAU 2030'!AR11 -> 0 | AS11: ='Balancen Scenarie 2030'!AS11-'Balancen BAU 2030'!AS11 -> -213.5444753 | AT11: ='Balancen Scenarie 2030'!AT11-'Balancen BAU 2030'!AT11 -> 0 | AU11: ='Balancen Scenarie 2030'!AU11-'Balancen BAU 2030'!AU11 -> 0
A12: Fjernvarmekedler | B12: ='Balancen Scenarie 2030'!B12-'Balancen BAU 2030'!B12 -> 24825.44355 | C12: ='Balancen Scenarie 2030'!C12-'Balancen BAU 2030'!C12 -> 0 | D12: ='Balancen Scenarie 2030'!D12-'Balancen BAU 2030'!D12 -> 0 | E12: ='Balancen Scenarie 2030'!E12-'Balancen BAU 2030'!E12 -> 0 | F12: ='Balancen Scenarie 2030'!F12-'Balancen BAU 2030'!F12 -> 0.1194941001 | G12: ='Balancen Scenarie 2030'!G12-'Balancen BAU 2030'!G12 -> 0 | H12: ='Balancen Scenarie 2030'!H12-'Balancen BAU 2030'!H12 -> 0 | I12: ='Balancen Scenarie 2030'!I12-'Balancen BAU 2030'!I12 -> 0 | J12: ='Balancen Scenarie 2030'!J12-'Balancen BAU 2030'!J12 -> 0 | K12: ='Balancen Scenarie 2030'!K12-'Balancen BAU 2030'!K12 -> 0 | L12: ='Balancen Scenarie 2030'!L12-'Balancen BAU 2030'!L12 -> 0 | M12: ='Balancen Scenarie 2030'!M12-'Balancen BAU 2030'!M12 -> 0 | N12: ='Balancen Scenarie 2030'!N12-'Balancen BAU 2030'!N12 -> 0 | O12: ='Balancen Scenarie 2030'!O12-'Balancen BAU 2030'!O12 -> 0.1194941001 | P12: ='Balancen Scenarie 2030'!P12-'Balancen BAU 2030'!P12 -> 13.89118914 | Q12: ='Balancen Scenarie 2030'!Q12-'Balancen BAU 2030'!Q12 -> 0 | R12: ='Balancen Scenarie 2030'!R12-'Balancen BAU 2030'!R12 -> 674.424701 | S12: ='Balancen Scenarie 2030'!S12-'Balancen BAU 2030'!S12 -> -143.4446471 | T12: ='Balancen Scenarie 2030'!T12-'Balancen BAU 2030'!T12 -> 0 | U12: ='Balancen Scenarie 2030'!U12-'Balancen BAU 2030'!U12 -> 0 | V12: ='Balancen Scenarie 2030'!V12-'Balancen BAU 2030'!V12 -> 0 | W12: ='Balancen Scenarie 2030'!W12-'Balancen BAU 2030'!W12 -> 0 | X12: ='Balancen Scenarie 2030'!X12-'Balancen BAU 2030'!X12 -> 817.8693481 | Y12: ='Balancen Scenarie 2030'!Y12-'Balancen BAU 2030'!Y12 -> 0.2091146752 | Z12: ='Balancen Scenarie 2030'!Z12-'Balancen BAU 2030'!Z12 -> 35.28063305 | AA12: ='Balancen Scenarie 2030'!AA12-'Balancen BAU 2030'!AA12 -> 2.180767327 | AB12: ='Balancen Scenarie 2030'!AB12-'Balancen BAU 2030'!AB12 -> 0 | AC12: ='Balancen Scenarie 2030'!AC12-'Balancen BAU 2030'!AC12 -> 0 | AD12: ='Balancen Scenarie 2030'!AD12-'Balancen BAU 2030'!AD12 -> 0 | AE12: ='Balancen Scenarie 2030'!AE12-'Balancen BAU 2030'!AE12 -> 0 | AF12: ='Balancen Scenarie 2030'!AF12-'Balancen BAU 2030'!AF12 -> 0 | AG12: ='Balancen Scenarie 2030'!AG12-'Balancen BAU 2030'!AG12 -> 2.180767327 | AH12: ='Balancen Scenarie 2030'!AH12-'Balancen BAU 2030'!AH12 -> 0 | AI12: ='Balancen Scenarie 2030'!AI12-'Balancen BAU 2030'!AI12 -> 0 | AJ12: ='Balancen Scenarie 2030'!AJ12-'Balancen BAU 2030'!AJ12 -> 0 | AK12: ='Balancen Scenarie 2030'!AK12-'Balancen BAU 2030'!AK12 -> 0 | AL12: ='Balancen Scenarie 2030'!AL12-'Balancen BAU 2030'!AL12 -> 0 | AM12: ='Balancen Scenarie 2030'!AM12-'Balancen BAU 2030'!AM12 -> 0 | AN12: ='Balancen Scenarie 2030'!AN12-'Balancen BAU 2030'!AN12 -> 0 | AO12: ='Balancen Scenarie 2030'!AO12-'Balancen BAU 2030'!AO12 -> 0 | AP12: ='Balancen Scenarie 2030'!AP12-'Balancen BAU 2030'!AP12 -> 0 | AQ12: ='Balancen Scenarie 2030'!AQ12-'Balancen BAU 2030'!AQ12 -> -0.4964823144 | AR12: ='Balancen Scenarie 2030'!AR12-'Balancen BAU 2030'!AR12 -> 0 | AS12: ='Balancen Scenarie 2030'!AS12-'Balancen BAU 2030'!AS12 -> -780.0933337 | AT12: ='Balancen Scenarie 2030'!AT12-'Balancen BAU 2030'!AT12 -> 0 | AU12: ='Balancen Scenarie 2030'!AU12-'Balancen BAU 2030'!AU12 -> 0
A13: Anden varmeproduktion | B13: ='Balancen Scenarie 2030'!B13-'Balancen BAU 2030'!B13 -> 34919.30892 | C13: ='Balancen Scenarie 2030'!C13-'Balancen BAU 2030'!C13 -> 0 | D13: ='Balancen Scenarie 2030'!D13-'Balancen BAU 2030'!D13 -> 0 | E13: ='Balancen Scenarie 2030'!E13-'Balancen BAU 2030'!E13 -> 0 | F13: ='Balancen Scenarie 2030'!F13-'Balancen BAU 2030'!F13 -> 0 | G13: ='Balancen Scenarie 2030'!G13-'Balancen BAU 2030'!G13 -> 0 | H13: ='Balancen Scenarie 2030'!H13-'Balancen BAU 2030'!H13 -> 0 | I13: ='Balancen Scenarie 2030'!I13-'Balancen BAU 2030'!I13 -> 0 | J13: ='Balancen Scenarie 2030'!J13-'Balancen BAU 2030'!J13 -> 0 | K13: ='Balancen Scenarie 2030'!K13-'Balancen BAU 2030'!K13 -> 0 | L13: ='Balancen Scenarie 2030'!L13-'Balancen BAU 2030'!L13 -> 0 | M13: ='Balancen Scenarie 2030'!M13-'Balancen BAU 2030'!M13 -> 0 | N13: ='Balancen Scenarie 2030'!N13-'Balancen BAU 2030'!N13 -> 0 | O13: ='Balancen Scenarie 2030'!O13-'Balancen BAU 2030'!O13 -> 0 | P13: ='Balancen Scenarie 2030'!P13-'Balancen BAU 2030'!P13 -> 0 | Q13: ='Balancen Scenarie 2030'!Q13-'Balancen BAU 2030'!Q13 -> 0 | R13: ='Balancen Scenarie 2030'!R13-'Balancen BAU 2030'!R13 -> 0 | S13: ='Balancen Scenarie 2030'!S13-'Balancen BAU 2030'!S13 -> 0 | T13: ='Balancen Scenarie 2030'!T13-'Balancen BAU 2030'!T13 -> 0 | U13: ='Balancen Scenarie 2030'!U13-'Balancen BAU 2030'!U13 -> 0 | V13: ='Balancen Scenarie 2030'!V13-'Balancen BAU 2030'!V13 -> 0 | W13: ='Balancen Scenarie 2030'!W13-'Balancen BAU 2030'!W13 -> 0 | X13: ='Balancen Scenarie 2030'!X13-'Balancen BAU 2030'!X13 -> 0 | Y13: ='Balancen Scenarie 2030'!Y13-'Balancen BAU 2030'!Y13 -> 0 | Z13: ='Balancen Scenarie 2030'!Z13-'Balancen BAU 2030'!Z13 -> 0 | AA13: ='Balancen Scenarie 2030'!AA13-'Balancen BAU 2030'!AA13 -> 0 | AB13: ='Balancen Scenarie 2030'!AB13-'Balancen BAU 2030'!AB13 -> 0 | AC13: ='Balancen Scenarie 2030'!AC13-'Balancen BAU 2030'!AC13 -> 0 | AD13: ='Balancen Scenarie 2030'!AD13-'Balancen BAU 2030'!AD13 -> 0 | AE13: ='Balancen Scenarie 2030'!AE13-'Balancen BAU 2030'!AE13 -> 0 | AF13: ='Balancen Scenarie 2030'!AF13-'Balancen BAU 2030'!AF13 -> 0 | AG13: ='Balancen Scenarie 2030'!AG13-'Balancen BAU 2030'!AG13 -> 0 | AH13: ='Balancen Scenarie 2030'!AH13-'Balancen BAU 2030'!AH13 -> 0.07495548985 | AI13: ='Balancen Scenarie 2030'!AI13-'Balancen BAU 2030'!AI13 -> -97.75592494 | AJ13: ='Balancen Scenarie 2030'!AJ13-'Balancen BAU 2030'!AJ13 -> 0 | AK13: ='Balancen Scenarie 2030'!AK13-'Balancen BAU 2030'!AK13 -> 0 | AL13: ='Balancen Scenarie 2030'!AL13-'Balancen BAU 2030'!AL13 -> 98.67110716 | AM13: ='Balancen Scenarie 2030'!AM13-'Balancen BAU 2030'!AM13 -> -12565.94499 | AN13: ='Balancen Scenarie 2030'!AN13-'Balancen BAU 2030'!AN13 -> 0 | AO13: ='Balancen Scenarie 2030'!AO13-'Balancen BAU 2030'!AO13 -> 0 | AP13: ='Balancen Scenarie 2030'!AP13-'Balancen BAU 2030'!AP13 -> 12664.6161 | AQ13: ='Balancen Scenarie 2030'!AQ13-'Balancen BAU 2030'!AQ13 -> -0.9901377107 | AR13: ='Balancen Scenarie 2030'!AR13-'Balancen BAU 2030'!AR13 -> 0 | AS13: ='Balancen Scenarie 2030'!AS13-'Balancen BAU 2030'!AS13 -> 0 | AT13: ='Balancen Scenarie 2030'!AT13-'Balancen BAU 2030'!AT13 -> -364.9694982 | AU13: ='Balancen Scenarie 2030'!AU13-'Balancen BAU 2030'!AU13 -> 0
A14: Vindmøller | B14: ='Balancen Scenarie 2030'!B14-'Balancen BAU 2030'!B14 -> 130503 | C14: ='Balancen Scenarie 2030'!C14-'Balancen BAU 2030'!C14 -> 0 | D14: ='Balancen Scenarie 2030'!D14-'Balancen BAU 2030'!D14 -> 0 | E14: ='Balancen Scenarie 2030'!E14-'Balancen BAU 2030'!E14 -> 0 | F14: ='Balancen Scenarie 2030'!F14-'Balancen BAU 2030'!F14 -> 0 | G14: ='Balancen Scenarie 2030'!G14-'Balancen BAU 2030'!G14 -> 0 | H14: ='Balancen Scenarie 2030'!H14-'Balancen BAU 2030'!H14 -> 0 | I14: ='Balancen Scenarie 2030'!I14-'Balancen BAU 2030'!I14 -> 0 | J14: ='Balancen Scenarie 2030'!J14-'Balancen BAU 2030'!J14 -> 0 | K14: ='Balancen Scenarie 2030'!K14-'Balancen BAU 2030'!K14 -> 0 | L14: ='Balancen Scenarie 2030'!L14-'Balancen BAU 2030'!L14 -> 0 | M14: ='Balancen Scenarie 2030'!M14-'Balancen BAU 2030'!M14 -> 0 | N14: ='Balancen Scenarie 2030'!N14-'Balancen BAU 2030'!N14 -> 0 | O14: ='Balancen Scenarie 2030'!O14-'Balancen BAU 2030'!O14 -> 0 | P14: ='Balancen Scenarie 2030'!P14-'Balancen BAU 2030'!P14 -> 0 | Q14: ='Balancen Scenarie 2030'!Q14-'Balancen BAU 2030'!Q14 -> 0 | R14: ='Balancen Scenarie 2030'!R14-'Balancen BAU 2030'!R14 -> 0 | S14: ='Balancen Scenarie 2030'!S14-'Balancen BAU 2030'!S14 -> 0 | T14: ='Balancen Scenarie 2030'!T14-'Balancen BAU 2030'!T14 -> 0 | U14: ='Balancen Scenarie 2030'!U14-'Balancen BAU 2030'!U14 -> 0 | V14: ='Balancen Scenarie 2030'!V14-'Balancen BAU 2030'!V14 -> 0 | W14: ='Balancen Scenarie 2030'!W14-'Balancen BAU 2030'!W14 -> 0 | X14: ='Balancen Scenarie 2030'!X14-'Balancen BAU 2030'!X14 -> 0 | Y14: ='Balancen Scenarie 2030'!Y14-'Balancen BAU 2030'!Y14 -> 0 | Z14: ='Balancen Scenarie 2030'!Z14-'Balancen BAU 2030'!Z14 -> 0 | AA14: ='Balancen Scenarie 2030'!AA14-'Balancen BAU 2030'!AA14 -> 0 | AB14: ='Balancen Scenarie 2030'!AB14-'Balancen BAU 2030'!AB14 -> 0 | AC14: ='Balancen Scenarie 2030'!AC14-'Balancen BAU 2030'!AC14 -> 0 | AD14: ='Balancen Scenarie 2030'!AD14-'Balancen BAU 2030'!AD14 -> 0 | AE14: ='Balancen Scenarie 2030'!AE14-'Balancen BAU 2030'!AE14 -> 0 | AF14: ='Balancen Scenarie 2030'!AF14-'Balancen BAU 2030'!AF14 -> 0 | AG14: ='Balancen Scenarie 2030'!AG14-'Balancen BAU 2030'!AG14 -> 0 | AH14: ='Balancen Scenarie 2030'!AH14-'Balancen BAU 2030'!AH14 -> 0 | AI14: ='Balancen Scenarie 2030'!AI14-'Balancen BAU 2030'!AI14 -> 0 | AJ14: ='Balancen Scenarie 2030'!AJ14-'Balancen BAU 2030'!AJ14 -> 4.8 | AK14: ='Balancen Scenarie 2030'!AK14-'Balancen BAU 2030'!AK14 -> 0 | AL14: ='Balancen Scenarie 2030'!AL14-'Balancen BAU 2030'!AL14 -> -4.8 | AM14: ='Balancen Scenarie 2030'!AM14-'Balancen BAU 2030'!AM14 -> 0 | AN14: ='Balancen Scenarie 2030'!AN14-'Balancen BAU 2030'!AN14 -> 0 | AO14: ='Balancen Scenarie 2030'!AO14-'Balancen BAU 2030'!AO14 -> 0 | AP14: ='Balancen Scenarie 2030'!AP14-'Balancen BAU 2030'!AP14 -> -4.8 | AQ14: ='Balancen Scenarie 2030'!AQ14-'Balancen BAU 2030'!AQ14 -> 0 | AR14: ='Balancen Scenarie 2030'!AR14-'Balancen BAU 2030'!AR14 -> 0 | AS14: ='Balancen Scenarie 2030'!AS14-'Balancen BAU 2030'!AS14 -> 0 | AT14: ='Balancen Scenarie 2030'!AT14-'Balancen BAU 2030'!AT14 -> 0 | AU14: ='Balancen Scenarie 2030'!AU14-'Balancen BAU 2030'!AU14 -> 0
A15: Kystvindmøller | B15: ='Balancen Scenarie 2030'!B15-'Balancen BAU 2030'!B15 -> 0 | C15: ='Balancen Scenarie 2030'!C15-'Balancen BAU 2030'!C15 -> 0 | D15: ='Balancen Scenarie 2030'!D15-'Balancen BAU 2030'!D15 -> 0 | E15: ='Balancen Scenarie 2030'!E15-'Balancen BAU 2030'!E15 -> 0 | F15: ='Balancen Scenarie 2030'!F15-'Balancen BAU 2030'!F15 -> 0 | G15: ='Balancen Scenarie 2030'!G15-'Balancen BAU 2030'!G15 -> 0 | H15: ='Balancen Scenarie 2030'!H15-'Balancen BAU 2030'!H15 -> 0 | I15: ='Balancen Scenarie 2030'!I15-'Balancen BAU 2030'!I15 -> 0 | J15: ='Balancen Scenarie 2030'!J15-'Balancen BAU 2030'!J15 -> 0 | K15: ='Balancen Scenarie 2030'!K15-'Balancen BAU 2030'!K15 -> 0 | L15: ='Balancen Scenarie 2030'!L15-'Balancen BAU 2030'!L15 -> 0 | M15: ='Balancen Scenarie 2030'!M15-'Balancen BAU 2030'!M15 -> 0 | N15: ='Balancen Scenarie 2030'!N15-'Balancen BAU 2030'!N15 -> 0 | O15: ='Balancen Scenarie 2030'!O15-'Balancen BAU 2030'!O15 -> 0 | P15: ='Balancen Scenarie 2030'!P15-'Balancen BAU 2030'!P15 -> 0 | Q15: ='Balancen Scenarie 2030'!Q15-'Balancen BAU 2030'!Q15 -> 0 | R15: ='Balancen Scenarie 2030'!R15-'Balancen BAU 2030'!R15 -> 0 | S15: ='Balancen Scenarie 2030'!S15-'Balancen BAU 2030'!S15 -> 0 | T15: ='Balancen Scenarie 2030'!T15-'Balancen BAU 2030'!T15 -> 0 | U15: ='Balancen Scenarie 2030'!U15-'Balancen BAU 2030'!U15 -> 0 | V15: ='Balancen Scenarie 2030'!V15-'Balancen BAU 2030'!V15 -> 0 | W15: ='Balancen Scenarie 2030'!W15-'Balancen BAU 2030'!W15 -> 0 | X15: ='Balancen Scenarie 2030'!X15-'Balancen BAU 2030'!X15 -> 0 | Y15: ='Balancen Scenarie 2030'!Y15-'Balancen BAU 2030'!Y15 -> 0 | Z15: ='Balancen Scenarie 2030'!Z15-'Balancen BAU 2030'!Z15 -> 0 | AA15: ='Balancen Scenarie 2030'!AA15-'Balancen BAU 2030'!AA15 -> 0 | AB15: ='Balancen Scenarie 2030'!AB15-'Balancen BAU 2030'!AB15 -> 0 | AC15: ='Balancen Scenarie 2030'!AC15-'Balancen BAU 2030'!AC15 -> 0 | AD15: ='Balancen Scenarie 2030'!AD15-'Balancen BAU 2030'!AD15 -> 0 | AE15: ='Balancen Scenarie 2030'!AE15-'Balancen BAU 2030'!AE15 -> 0 | AF15: ='Balancen Scenarie 2030'!AF15-'Balancen BAU 2030'!AF15 -> 0 | AG15: ='Balancen Scenarie 2030'!AG15-'Balancen BAU 2030'!AG15 -> 0 | AH15: ='Balancen Scenarie 2030'!AH15-'Balancen BAU 2030'!AH15 -> 0 | AI15: ='Balancen Scenarie 2030'!AI15-'Balancen BAU 2030'!AI15 -> 0 | AJ15: ='Balancen Scenarie 2030'!AJ15-'Balancen BAU 2030'!AJ15 -> 0 | AK15: ='Balancen Scenarie 2030'!AK15-'Balancen BAU 2030'!AK15 -> 0 | AL15: ='Balancen Scenarie 2030'!AL15-'Balancen BAU 2030'!AL15 -> 0 | AM15: ='Balancen Scenarie 2030'!AM15-'Balancen BAU 2030'!AM15 -> 0 | AN15: ='Balancen Scenarie 2030'!AN15-'Balancen BAU 2030'!AN15 -> 0 | AO15: ='Balancen Scenarie 2030'!AO15-'Balancen BAU 2030'!AO15 -> 0 | AP15: ='Balancen Scenarie 2030'!AP15-'Balancen BAU 2030'!AP15 -> 0 | AQ15: ='Balancen Scenarie 2030'!AQ15-'Balancen BAU 2030'!AQ15 -> 0 | AR15: ='Balancen Scenarie 2030'!AR15-'Balancen BAU 2030'!AR15 -> 0 | AS15: ='Balancen Scenarie 2030'!AS15-'Balancen BAU 2030'!AS15 -> 0 | AT15: ='Balancen Scenarie 2030'!AT15-'Balancen BAU 2030'!AT15 -> 0 | AU15: ='Balancen Scenarie 2030'!AU15-'Balancen BAU 2030'!AU15 -> 0
A16: Landvindmøller | B16: ='Balancen Scenarie 2030'!B16-'Balancen BAU 2030'!B16 -> 0 | C16: ='Balancen Scenarie 2030'!C16-'Balancen BAU 2030'!C16 -> 0 | D16: ='Balancen Scenarie 2030'!D16-'Balancen BAU 2030'!D16 -> 0 | E16: ='Balancen Scenarie 2030'!E16-'Balancen BAU 2030'!E16 -> 0 | F16: ='Balancen Scenarie 2030'!F16-'Balancen BAU 2030'!F16 -> 0 | G16: ='Balancen Scenarie 2030'!G16-'Balancen BAU 2030'!G16 -> 0 | H16: ='Balancen Scenarie 2030'!H16-'Balancen BAU 2030'!H16 -> 0 | I16: ='Balancen Scenarie 2030'!I16-'Balancen BAU 2030'!I16 -> 0 | J16: ='Balancen Scenarie 2030'!J16-'Balancen BAU 2030'!J16 -> 0 | K16: ='Balancen Scenarie 2030'!K16-'Balancen BAU 2030'!K16 -> 0 | L16: ='Balancen Scenarie 2030'!L16-'Balancen BAU 2030'!L16 -> 0 | M16: ='Balancen Scenarie 2030'!M16-'Balancen BAU 2030'!M16 -> 0 | N16: ='Balancen Scenarie 2030'!N16-'Balancen BAU 2030'!N16 -> 0 | O16: ='Balancen Scenarie 2030'!O16-'Balancen BAU 2030'!O16 -> 0 | P16: ='Balancen Scenarie 2030'!P16-'Balancen BAU 2030'!P16 -> 0 | Q16: ='Balancen Scenarie 2030'!Q16-'Balancen BAU 2030'!Q16 -> 0 | R16: ='Balancen Scenarie 2030'!R16-'Balancen BAU 2030'!R16 -> 0 | S16: ='Balancen Scenarie 2030'!S16-'Balancen BAU 2030'!S16 -> 0 | T16: ='Balancen Scenarie 2030'!T16-'Balancen BAU 2030'!T16 -> 0 | U16: ='Balancen Scenarie 2030'!U16-'Balancen BAU 2030'!U16 -> 0 | V16: ='Balancen Scenarie 2030'!V16-'Balancen BAU 2030'!V16 -> 0 | W16: ='Balancen Scenarie 2030'!W16-'Balancen BAU 2030'!W16 -> 0 | X16: ='Balancen Scenarie 2030'!X16-'Balancen BAU 2030'!X16 -> 0 | Y16: ='Balancen Scenarie 2030'!Y16-'Balancen BAU 2030'!Y16 -> 0 | Z16: ='Balancen Scenarie 2030'!Z16-'Balancen BAU 2030'!Z16 -> 0 | AA16: ='Balancen Scenarie 2030'!AA16-'Balancen BAU 2030'!AA16 -> 0 | AB16: ='Balancen Scenarie 2030'!AB16-'Balancen BAU 2030'!AB16 -> 0 | AC16: ='Balancen Scenarie 2030'!AC16-'Balancen BAU 2030'!AC16 -> 0 | AD16: ='Balancen Scenarie 2030'!AD16-'Balancen BAU 2030'!AD16 -> 0 | AE16: ='Balancen Scenarie 2030'!AE16-'Balancen BAU 2030'!AE16 -> 0 | AF16: ='Balancen Scenarie 2030'!AF16-'Balancen BAU 2030'!AF16 -> 0 | AG16: ='Balancen Scenarie 2030'!AG16-'Balancen BAU 2030'!AG16 -> 0 | AH16: ='Balancen Scenarie 2030'!AH16-'Balancen BAU 2030'!AH16 -> 0 | AI16: ='Balancen Scenarie 2030'!AI16-'Balancen BAU 2030'!AI16 -> 0 | AJ16: ='Balancen Scenarie 2030'!AJ16-'Balancen BAU 2030'!AJ16 -> 0 | AK16: ='Balancen Scenarie 2030'!AK16-'Balancen BAU 2030'!AK16 -> 0 | AL16: ='Balancen Scenarie 2030'!AL16-'Balancen BAU 2030'!AL16 -> 0 | AM16: ='Balancen Scenarie 2030'!AM16-'Balancen BAU 2030'!AM16 -> 0 | AN16: ='Balancen Scenarie 2030'!AN16-'Balancen BAU 2030'!AN16 -> 0 | AO16: ='Balancen Scenarie 2030'!AO16-'Balancen BAU 2030'!AO16 -> 0 | AP16: ='Balancen Scenarie 2030'!AP16-'Balancen BAU 2030'!AP16 -> 0 | AQ16: ='Balancen Scenarie 2030'!AQ16-'Balancen BAU 2030'!AQ16 -> 0 | AR16: ='Balancen Scenarie 2030'!AR16-'Balancen BAU 2030'!AR16 -> 0 | AS16: ='Balancen Scenarie 2030'!AS16-'Balancen BAU 2030'!AS16 -> 0 | AT16: ='Balancen Scenarie 2030'!AT16-'Balancen BAU 2030'!AT16 -> 0 | AU16: ='Balancen Scenarie 2030'!AU16-'Balancen BAU 2030'!AU16 -> 0
A17: Ikke-kategoriseret vindmøller | B17: ='Balancen Scenarie 2030'!B17-'Balancen BAU 2030'!B17 -> 130503 | C17: ='Balancen Scenarie 2030'!C17-'Balancen BAU 2030'!C17 -> 0 | D17: ='Balancen Scenarie 2030'!D17-'Balancen BAU 2030'!D17 -> 0 | E17: ='Balancen Scenarie 2030'!E17-'Balancen BAU 2030'!E17 -> 0 | F17: ='Balancen Scenarie 2030'!F17-'Balancen BAU 2030'!F17 -> 0 | G17: ='Balancen Scenarie 2030'!G17-'Balancen BAU 2030'!G17 -> 0 | H17: ='Balancen Scenarie 2030'!H17-'Balancen BAU 2030'!H17 -> 0 | I17: ='Balancen Scenarie 2030'!I17-'Balancen BAU 2030'!I17 -> 0 | J17: ='Balancen Scenarie 2030'!J17-'Balancen BAU 2030'!J17 -> 0 | K17: ='Balancen Scenarie 2030'!K17-'Balancen BAU 2030'!K17 -> 0 | L17: ='Balancen Scenarie 2030'!L17-'Balancen BAU 2030'!L17 -> 0 | M17: ='Balancen Scenarie 2030'!M17-'Balancen BAU 2030'!M17 -> 0 | N17: ='Balancen Scenarie 2030'!N17-'Balancen BAU 2030'!N17 -> 0 | O17: ='Balancen Scenarie 2030'!O17-'Balancen BAU 2030'!O17 -> 0 | P17: ='Balancen Scenarie 2030'!P17-'Balancen BAU 2030'!P17 -> 0 | Q17: ='Balancen Scenarie 2030'!Q17-'Balancen BAU 2030'!Q17 -> 0 | R17: ='Balancen Scenarie 2030'!R17-'Balancen BAU 2030'!R17 -> 0 | S17: ='Balancen Scenarie 2030'!S17-'Balancen BAU 2030'!S17 -> 0 | T17: ='Balancen Scenarie 2030'!T17-'Balancen BAU 2030'!T17 -> 0 | U17: ='Balancen Scenarie 2030'!U17-'Balancen BAU 2030'!U17 -> 0 | V17: ='Balancen Scenarie 2030'!V17-'Balancen BAU 2030'!V17 -> 0 | W17: ='Balancen Scenarie 2030'!W17-'Balancen BAU 2030'!W17 -> 0 | X17: ='Balancen Scenarie 2030'!X17-'Balancen BAU 2030'!X17 -> 0 | Y17: ='Balancen Scenarie 2030'!Y17-'Balancen BAU 2030'!Y17 -> 0 | Z17: ='Balancen Scenarie 2030'!Z17-'Balancen BAU 2030'!Z17 -> 0 | AA17: ='Balancen Scenarie 2030'!AA17-'Balancen BAU 2030'!AA17 -> 0 | AB17: ='Balancen Scenarie 2030'!AB17-'Balancen BAU 2030'!AB17 -> 0 | AC17: ='Balancen Scenarie 2030'!AC17-'Balancen BAU 2030'!AC17 -> 0 | AD17: ='Balancen Scenarie 2030'!AD17-'Balancen BAU 2030'!AD17 -> 0 | AE17: ='Balancen Scenarie 2030'!AE17-'Balancen BAU 2030'!AE17 -> 0 | AF17: ='Balancen Scenarie 2030'!AF17-'Balancen BAU 2030'!AF17 -> 0 | AG17: ='Balancen Scenarie 2030'!AG17-'Balancen BAU 2030'!AG17 -> 0 | AH17: ='Balancen Scenarie 2030'!AH17-'Balancen BAU 2030'!AH17 -> 0 | AI17: ='Balancen Scenarie 2030'!AI17-'Balancen BAU 2030'!AI17 -> 0 | AJ17: ='Balancen Scenarie 2030'!AJ17-'Balancen BAU 2030'!AJ17 -> 4.8 | AK17: ='Balancen Scenarie 2030'!AK17-'Balancen BAU 2030'!AK17 -> 0 | AL17: ='Balancen Scenarie 2030'!AL17-'Balancen BAU 2030'!AL17 -> -4.8 | AM17: ='Balancen Scenarie 2030'!AM17-'Balancen BAU 2030'!AM17 -> 0 | AN17: ='Balancen Scenarie 2030'!AN17-'Balancen BAU 2030'!AN17 -> 0 | AO17: ='Balancen Scenarie 2030'!AO17-'Balancen BAU 2030'!AO17 -> 0 | AP17: ='Balancen Scenarie 2030'!AP17-'Balancen BAU 2030'!AP17 -> -4.8 | AQ17: ='Balancen Scenarie 2030'!AQ17-'Balancen BAU 2030'!AQ17 -> 0 | AR17: ='Balancen Scenarie 2030'!AR17-'Balancen BAU 2030'!AR17 -> 0 | AS17: ='Balancen Scenarie 2030'!AS17-'Balancen BAU 2030'!AS17 -> 0 | AT17: ='Balancen Scenarie 2030'!AT17-'Balancen BAU 2030'!AT17 -> 0 | AU17: ='Balancen Scenarie 2030'!AU17-'Balancen BAU 2030'!AU17 -> 0
A18: Solceller | B18: ='Balancen Scenarie 2030'!B18-'Balancen BAU 2030'!B18 -> 39709 | C18: ='Balancen Scenarie 2030'!C18-'Balancen BAU 2030'!C18 -> 0 | D18: ='Balancen Scenarie 2030'!D18-'Balancen BAU 2030'!D18 -> 0 | E18: ='Balancen Scenarie 2030'!E18-'Balancen BAU 2030'!E18 -> 0 | F18: ='Balancen Scenarie 2030'!F18-'Balancen BAU 2030'!F18 -> 0 | G18: ='Balancen Scenarie 2030'!G18-'Balancen BAU 2030'!G18 -> 0 | H18: ='Balancen Scenarie 2030'!H18-'Balancen BAU 2030'!H18 -> 0 | I18: ='Balancen Scenarie 2030'!I18-'Balancen BAU 2030'!I18 -> 0 | J18: ='Balancen Scenarie 2030'!J18-'Balancen BAU 2030'!J18 -> 0 | K18: ='Balancen Scenarie 2030'!K18-'Balancen BAU 2030'!K18 -> 0 | L18: ='Balancen Scenarie 2030'!L18-'Balancen BAU 2030'!L18 -> 0 | M18: ='Balancen Scenarie 2030'!M18-'Balancen BAU 2030'!M18 -> 0 | N18: ='Balancen Scenarie 2030'!N18-'Balancen BAU 2030'!N18 -> 0 | O18: ='Balancen Scenarie 2030'!O18-'Balancen BAU 2030'!O18 -> 0 | P18: ='Balancen Scenarie 2030'!P18-'Balancen BAU 2030'!P18 -> 0 | Q18: ='Balancen Scenarie 2030'!Q18-'Balancen BAU 2030'!Q18 -> 0 | R18: ='Balancen Scenarie 2030'!R18-'Balancen BAU 2030'!R18 -> 0 | S18: ='Balancen Scenarie 2030'!S18-'Balancen BAU 2030'!S18 -> 0 | T18: ='Balancen Scenarie 2030'!T18-'Balancen BAU 2030'!T18 -> 0 | U18: ='Balancen Scenarie 2030'!U18-'Balancen BAU 2030'!U18 -> 0 | V18: ='Balancen Scenarie 2030'!V18-'Balancen BAU 2030'!V18 -> 0 | W18: ='Balancen Scenarie 2030'!W18-'Balancen BAU 2030'!W18 -> 0 | X18: ='Balancen Scenarie 2030'!X18-'Balancen BAU 2030'!X18 -> 0 | Y18: ='Balancen Scenarie 2030'!Y18-'Balancen BAU 2030'!Y18 -> 0 | Z18: ='Balancen Scenarie 2030'!Z18-'Balancen BAU 2030'!Z18 -> 0 | AA18: ='Balancen Scenarie 2030'!AA18-'Balancen BAU 2030'!AA18 -> 0 | AB18: ='Balancen Scenarie 2030'!AB18-'Balancen BAU 2030'!AB18 -> 0 | AC18: ='Balancen Scenarie 2030'!AC18-'Balancen BAU 2030'!AC18 -> 0 | AD18: ='Balancen Scenarie 2030'!AD18-'Balancen BAU 2030'!AD18 -> 0 | AE18: ='Balancen Scenarie 2030'!AE18-'Balancen BAU 2030'!AE18 -> 0 | AF18: ='Balancen Scenarie 2030'!AF18-'Balancen BAU 2030'!AF18 -> 0 | AG18: ='Balancen Scenarie 2030'!AG18-'Balancen BAU 2030'!AG18 -> 0 | AH18: ='Balancen Scenarie 2030'!AH18-'Balancen BAU 2030'!AH18 -> 0 | AI18: ='Balancen Scenarie 2030'!AI18-'Balancen BAU 2030'!AI18 -> 0 | AJ18: ='Balancen Scenarie 2030'!AJ18-'Balancen BAU 2030'!AJ18 -> 0 | AK18: ='Balancen Scenarie 2030'!AK18-'Balancen BAU 2030'!AK18 -> 0 | AL18: ='Balancen Scenarie 2030'!AL18-'Balancen BAU 2030'!AL18 -> 0 | AM18: ='Balancen Scenarie 2030'!AM18-'Balancen BAU 2030'!AM18 -> 0 | AN18: ='Balancen Scenarie 2030'!AN18-'Balancen BAU 2030'!AN18 -> 0 | AO18: ='Balancen Scenarie 2030'!AO18-'Balancen BAU 2030'!AO18 -> 0 | AP18: ='Balancen Scenarie 2030'!AP18-'Balancen BAU 2030'!AP18 -> 0 | AQ18: ='Balancen Scenarie 2030'!AQ18-'Balancen BAU 2030'!AQ18 -> 0 | AR18: ='Balancen Scenarie 2030'!AR18-'Balancen BAU 2030'!AR18 -> 0 | AS18: ='Balancen Scenarie 2030'!AS18-'Balancen BAU 2030'!AS18 -> 0 | AT18: ='Balancen Scenarie 2030'!AT18-'Balancen BAU 2030'!AT18 -> 0 | AU18: ='Balancen Scenarie 2030'!AU18-'Balancen BAU 2030'!AU18 -> 0
A19: Vandkraft | B19: ='Balancen Scenarie 2030'!B19-'Balancen BAU 2030'!B19 -> 61.98 | C19: ='Balancen Scenarie 2030'!C19-'Balancen BAU 2030'!C19 -> 0 | D19: ='Balancen Scenarie 2030'!D19-'Balancen BAU 2030'!D19 -> 0 | E19: ='Balancen Scenarie 2030'!E19-'Balancen BAU 2030'!E19 -> 0 | F19: ='Balancen Scenarie 2030'!F19-'Balancen BAU 2030'!F19 -> 0 | G19: ='Balancen Scenarie 2030'!G19-'Balancen BAU 2030'!G19 -> 0 | H19: ='Balancen Scenarie 2030'!H19-'Balancen BAU 2030'!H19 -> 0 | I19: ='Balancen Scenarie 2030'!I19-'Balancen BAU 2030'!I19 -> 0 | J19: ='Balancen Scenarie 2030'!J19-'Balancen BAU 2030'!J19 -> 0 | K19: ='Balancen Scenarie 2030'!K19-'Balancen BAU 2030'!K19 -> 0 | L19: ='Balancen Scenarie 2030'!L19-'Balancen BAU 2030'!L19 -> 0 | M19: ='Balancen Scenarie 2030'!M19-'Balancen BAU 2030'!M19 -> 0 | N19: ='Balancen Scenarie 2030'!N19-'Balancen BAU 2030'!N19 -> 0 | O19: ='Balancen Scenarie 2030'!O19-'Balancen BAU 2030'!O19 -> 0 | P19: ='Balancen Scenarie 2030'!P19-'Balancen BAU 2030'!P19 -> 0 | Q19: ='Balancen Scenarie 2030'!Q19-'Balancen BAU 2030'!Q19 -> 0 | R19: ='Balancen Scenarie 2030'!R19-'Balancen BAU 2030'!R19 -> 0 | S19: ='Balancen Scenarie 2030'!S19-'Balancen BAU 2030'!S19 -> 0 | T19: ='Balancen Scenarie 2030'!T19-'Balancen BAU 2030'!T19 -> 0 | U19: ='Balancen Scenarie 2030'!U19-'Balancen BAU 2030'!U19 -> 0 | V19: ='Balancen Scenarie 2030'!V19-'Balancen BAU 2030'!V19 -> 0 | W19: ='Balancen Scenarie 2030'!W19-'Balancen BAU 2030'!W19 -> 0 | X19: ='Balancen Scenarie 2030'!X19-'Balancen BAU 2030'!X19 -> 0 | Y19: ='Balancen Scenarie 2030'!Y19-'Balancen BAU 2030'!Y19 -> 0 | Z19: ='Balancen Scenarie 2030'!Z19-'Balancen BAU 2030'!Z19 -> 0 | AA19: ='Balancen Scenarie 2030'!AA19-'Balancen BAU 2030'!AA19 -> 0 | AB19: ='Balancen Scenarie 2030'!AB19-'Balancen BAU 2030'!AB19 -> 0 | AC19: ='Balancen Scenarie 2030'!AC19-'Balancen BAU 2030'!AC19 -> 0 | AD19: ='Balancen Scenarie 2030'!AD19-'Balancen BAU 2030'!AD19 -> 0 | AE19: ='Balancen Scenarie 2030'!AE19-'Balancen BAU 2030'!AE19 -> 0 | AF19: ='Balancen Scenarie 2030'!AF19-'Balancen BAU 2030'!AF19 -> 0 | AG19: ='Balancen Scenarie 2030'!AG19-'Balancen BAU 2030'!AG19 -> 0 | AH19: ='Balancen Scenarie 2030'!AH19-'Balancen BAU 2030'!AH19 -> 0 | AI19: ='Balancen Scenarie 2030'!AI19-'Balancen BAU 2030'!AI19 -> 0 | AJ19: ='Balancen Scenarie 2030'!AJ19-'Balancen BAU 2030'!AJ19 -> 0 | AK19: ='Balancen Scenarie 2030'!AK19-'Balancen BAU 2030'!AK19 -> -0.02 | AL19: ='Balancen Scenarie 2030'!AL19-'Balancen BAU 2030'!AL19 -> 0.02 | AM19: ='Balancen Scenarie 2030'!AM19-'Balancen BAU 2030'!AM19 -> 0 | AN19: ='Balancen Scenarie 2030'!AN19-'Balancen BAU 2030'!AN19 -> 0 | AO19: ='Balancen Scenarie 2030'!AO19-'Balancen BAU 2030'!AO19 -> 0 | AP19: ='Balancen Scenarie 2030'!AP19-'Balancen BAU 2030'!AP19 -> 0.02 | AQ19: ='Balancen Scenarie 2030'!AQ19-'Balancen BAU 2030'!AQ19 -> 0 | AR19: ='Balancen Scenarie 2030'!AR19-'Balancen BAU 2030'!AR19 -> 0 | AS19: ='Balancen Scenarie 2030'!AS19-'Balancen BAU 2030'!AS19 -> 0 | AT19: ='Balancen Scenarie 2030'!AT19-'Balancen BAU 2030'!AT19 -> 0 | AU19: ='Balancen Scenarie 2030'!AU19-'Balancen BAU 2030'!AU19 -> 0
A20: Raffinaderi (herunder PtX, bygas og biogasopgradering) | B20: ='Balancen Scenarie 2030'!B20-'Balancen BAU 2030'!B20 -> -363.0814608 | C20: ='Balancen Scenarie 2030'!C20-'Balancen BAU 2030'!C20 -> 0 | D20: ='Balancen Scenarie 2030'!D20-'Balancen BAU 2030'!D20 -> 0 | E20: ='Balancen Scenarie 2030'!E20-'Balancen BAU 2030'!E20 -> 0 | F20: ='Balancen Scenarie 2030'!F20-'Balancen BAU 2030'!F20 -> 0 | G20: ='Balancen Scenarie 2030'!G20-'Balancen BAU 2030'!G20 -> 0 | H20: ='Balancen Scenarie 2030'!H20-'Balancen BAU 2030'!H20 -> 0 | I20: ='Balancen Scenarie 2030'!I20-'Balancen BAU 2030'!I20 -> 0 | J20: ='Balancen Scenarie 2030'!J20-'Balancen BAU 2030'!J20 -> 0 | K20: ='Balancen Scenarie 2030'!K20-'Balancen BAU 2030'!K20 -> 0 | L20: ='Balancen Scenarie 2030'!L20-'Balancen BAU 2030'!L20 -> 0 | M20: ='Balancen Scenarie 2030'!M20-'Balancen BAU 2030'!M20 -> 0 | N20: ='Balancen Scenarie 2030'!N20-'Balancen BAU 2030'!N20 -> 0 | O20: ='Balancen Scenarie 2030'!O20-'Balancen BAU 2030'!O20 -> 0 | P20: ='Balancen Scenarie 2030'!P20-'Balancen BAU 2030'!P20 -> 0 | Q20: ='Balancen Scenarie 2030'!Q20-'Balancen BAU 2030'!Q20 -> 0 | R20: ='Balancen Scenarie 2030'!R20-'Balancen BAU 2030'!R20 -> 0 | S20: ='Balancen Scenarie 2030'!S20-'Balancen BAU 2030'!S20 -> 0 | T20: ='Balancen Scenarie 2030'!T20-'Balancen BAU 2030'!T20 -> 0 | U20: ='Balancen Scenarie 2030'!U20-'Balancen BAU 2030'!U20 -> 0 | V20: ='Balancen Scenarie 2030'!V20-'Balancen BAU 2030'!V20 -> 0 | W20: ='Balancen Scenarie 2030'!W20-'Balancen BAU 2030'!W20 -> 0 | X20: ='Balancen Scenarie 2030'!X20-'Balancen BAU 2030'!X20 -> 0 | Y20: ='Balancen Scenarie 2030'!Y20-'Balancen BAU 2030'!Y20 -> 17.67624892 | Z20: ='Balancen Scenarie 2030'!Z20-'Balancen BAU 2030'!Z20 -> -17.12822994 | AA20: ='Balancen Scenarie 2030'!AA20-'Balancen BAU 2030'!AA20 -> 16.79491281 | AB20: ='Balancen Scenarie 2030'!AB20-'Balancen BAU 2030'!AB20 -> 0 | AC20: ='Balancen Scenarie 2030'!AC20-'Balancen BAU 2030'!AC20 -> 0 | AD20: ='Balancen Scenarie 2030'!AD20-'Balancen BAU 2030'!AD20 -> 0 | AE20: ='Balancen Scenarie 2030'!AE20-'Balancen BAU 2030'!AE20 -> -283.9550872 | AF20: ='Balancen Scenarie 2030'!AF20-'Balancen BAU 2030'!AF20 -> 0 | AG20: ='Balancen Scenarie 2030'!AG20-'Balancen BAU 2030'!AG20 -> 300.75 | AH20: ='Balancen Scenarie 2030'!AH20-'Balancen BAU 2030'!AH20 -> 0 | AI20: ='Balancen Scenarie 2030'!AI20-'Balancen BAU 2030'!AI20 -> 0 | AJ20: ='Balancen Scenarie 2030'!AJ20-'Balancen BAU 2030'!AJ20 -> 0 | AK20: ='Balancen Scenarie 2030'!AK20-'Balancen BAU 2030'!AK20 -> 0 | AL20: ='Balancen Scenarie 2030'!AL20-'Balancen BAU 2030'!AL20 -> -25.4429327 | AM20: ='Balancen Scenarie 2030'!AM20-'Balancen BAU 2030'!AM20 -> 0 | AN20: ='Balancen Scenarie 2030'!AN20-'Balancen BAU 2030'!AN20 -> 0 | AO20: ='Balancen Scenarie 2030'!AO20-'Balancen BAU 2030'!AO20 -> 0 | AP20: ='Balancen Scenarie 2030'!AP20-'Balancen BAU 2030'!AP20 -> -25.4429327 | AQ20: ='Balancen Scenarie 2030'!AQ20-'Balancen BAU 2030'!AQ20 -> -21.32846661 | AR20: ='Balancen Scenarie 2030'!AR20-'Balancen BAU 2030'!AR20 -> 0 | AS20: ='Balancen Scenarie 2030'!AS20-'Balancen BAU 2030'!AS20 -> 0 | AT20: ='Balancen Scenarie 2030'!AT20-'Balancen BAU 2030'!AT20 -> 60.02321518 | AU20: ='Balancen Scenarie 2030'!AU20-'Balancen BAU 2030'!AU20 -> 0
A21: Tab ved transport af el, fjernvarme, mv. | B21: ='Balancen Scenarie 2030'!B21-'Balancen BAU 2030'!B21 -> -34.72107032 | C21: ='Balancen Scenarie 2030'!C21-'Balancen BAU 2030'!C21 -> 0 | D21: ='Balancen Scenarie 2030'!D21-'Balancen BAU 2030'!D21 -> 0 | E21: ='Balancen Scenarie 2030'!E21-'Balancen BAU 2030'!E21 -> 0 | F21: ='Balancen Scenarie 2030'!F21-'Balancen BAU 2030'!F21 -> 0 | G21: ='Balancen Scenarie 2030'!G21-'Balancen BAU 2030'!G21 -> 0 | H21: ='Balancen Scenarie 2030'!H21-'Balancen BAU 2030'!H21 -> 0 | I21: ='Balancen Scenarie 2030'!I21-'Balancen BAU 2030'!I21 -> 0 | J21: ='Balancen Scenarie 2030'!J21-'Balancen BAU 2030'!J21 -> 0 | K21: ='Balancen Scenarie 2030'!K21-'Balancen BAU 2030'!K21 -> 0 | L21: ='Balancen Scenarie 2030'!L21-'Balancen BAU 2030'!L21 -> 0 | M21: ='Balancen Scenarie 2030'!M21-'Balancen BAU 2030'!M21 -> 0 | N21: ='Balancen Scenarie 2030'!N21-'Balancen BAU 2030'!N21 -> 0 | O21: ='Balancen Scenarie 2030'!O21-'Balancen BAU 2030'!O21 -> 0 | P21: ='Balancen Scenarie 2030'!P21-'Balancen BAU 2030'!P21 -> 0 | Q21: ='Balancen Scenarie 2030'!Q21-'Balancen BAU 2030'!Q21 -> 0 | R21: ='Balancen Scenarie 2030'!R21-'Balancen BAU 2030'!R21 -> 0 | S21: ='Balancen Scenarie 2030'!S21-'Balancen BAU 2030'!S21 -> 0 | T21: ='Balancen Scenarie 2030'!T21-'Balancen BAU 2030'!T21 -> 0 | U21: ='Balancen Scenarie 2030'!U21-'Balancen BAU 2030'!U21 -> 0 | V21: ='Balancen Scenarie 2030'!V21-'Balancen BAU 2030'!V21 -> 0 | W21: ='Balancen Scenarie 2030'!W21-'Balancen BAU 2030'!W21 -> 0 | X21: ='Balancen Scenarie 2030'!X21-'Balancen BAU 2030'!X21 -> 0 | Y21: ='Balancen Scenarie 2030'!Y21-'Balancen BAU 2030'!Y21 -> 0 | Z21: ='Balancen Scenarie 2030'!Z21-'Balancen BAU 2030'!Z21 -> 0 | AA21: ='Balancen Scenarie 2030'!AA21-'Balancen BAU 2030'!AA21 -> 0 | AB21: ='Balancen Scenarie 2030'!AB21-'Balancen BAU 2030'!AB21 -> 0 | AC21: ='Balancen Scenarie 2030'!AC21-'Balancen BAU 2030'!AC21 -> 0 | AD21: ='Balancen Scenarie 2030'!AD21-'Balancen BAU 2030'!AD21 -> 0 | AE21: ='Balancen Scenarie 2030'!AE21-'Balancen BAU 2030'!AE21 -> 0 | AF21: ='Balancen Scenarie 2030'!AF21-'Balancen BAU 2030'!AF21 -> 0 | AG21: ='Balancen Scenarie 2030'!AG21-'Balancen BAU 2030'!AG21 -> 0 | AH21: ='Balancen Scenarie 2030'!AH21-'Balancen BAU 2030'!AH21 -> 0 | AI21: ='Balancen Scenarie 2030'!AI21-'Balancen BAU 2030'!AI21 -> 0 | AJ21: ='Balancen Scenarie 2030'!AJ21-'Balancen BAU 2030'!AJ21 -> 0 | AK21: ='Balancen Scenarie 2030'!AK21-'Balancen BAU 2030'!AK21 -> 0 | AL21: ='Balancen Scenarie 2030'!AL21-'Balancen BAU 2030'!AL21 -> -34.72107032 | AM21: ='Balancen Scenarie 2030'!AM21-'Balancen BAU 2030'!AM21 -> 0 | AN21: ='Balancen Scenarie 2030'!AN21-'Balancen BAU 2030'!AN21 -> 0 | AO21: ='Balancen Scenarie 2030'!AO21-'Balancen BAU 2030'!AO21 -> 0 | AP21: ='Balancen Scenarie 2030'!AP21-'Balancen BAU 2030'!AP21 -> -34.72107032 | AQ21: ='Balancen Scenarie 2030'!AQ21-'Balancen BAU 2030'!AQ21 -> 0 | AR21: ='Balancen Scenarie 2030'!AR21-'Balancen BAU 2030'!AR21 -> 0 | AS21: ='Balancen Scenarie 2030'!AS21-'Balancen BAU 2030'!AS21 -> 0 | AT21: ='Balancen Scenarie 2030'!AT21-'Balancen BAU 2030'!AT21 -> -146.5001038 | AU21: ='Balancen Scenarie 2030'!AU21-'Balancen BAU 2030'!AU21 -> 0
A22: Indgang ikke-nettilsluttet VE | B22: ='Balancen Scenarie 2030'!B22-'Balancen BAU 2030'!B22 -> -611.3795789 | C22: ='Balancen Scenarie 2030'!C22-'Balancen BAU 2030'!C22 -> 0 | D22: ='Balancen Scenarie 2030'!D22-'Balancen BAU 2030'!D22 -> 0 | E22: ='Balancen Scenarie 2030'!E22-'Balancen BAU 2030'!E22 -> 0 | F22: ='Balancen Scenarie 2030'!F22-'Balancen BAU 2030'!F22 -> 0 | G22: ='Balancen Scenarie 2030'!G22-'Balancen BAU 2030'!G22 -> 0 | H22: ='Balancen Scenarie 2030'!H22-'Balancen BAU 2030'!H22 -> 0 | I22: ='Balancen Scenarie 2030'!I22-'Balancen BAU 2030'!I22 -> 0 | J22: ='Balancen Scenarie 2030'!J22-'Balancen BAU 2030'!J22 -> 0 | K22: ='Balancen Scenarie 2030'!K22-'Balancen BAU 2030'!K22 -> 0 | L22: ='Balancen Scenarie 2030'!L22-'Balancen BAU 2030'!L22 -> 0 | M22: ='Balancen Scenarie 2030'!M22-'Balancen BAU 2030'!M22 -> 0 | N22: ='Balancen Scenarie 2030'!N22-'Balancen BAU 2030'!N22 -> 0 | O22: ='Balancen Scenarie 2030'!O22-'Balancen BAU 2030'!O22 -> 0 | P22: ='Balancen Scenarie 2030'!P22-'Balancen BAU 2030'!P22 -> 0 | Q22: ='Balancen Scenarie 2030'!Q22-'Balancen BAU 2030'!Q22 -> 0 | R22: ='Balancen Scenarie 2030'!R22-'Balancen BAU 2030'!R22 -> 0 | S22: ='Balancen Scenarie 2030'!S22-'Balancen BAU 2030'!S22 -> 0 | T22: ='Balancen Scenarie 2030'!T22-'Balancen BAU 2030'!T22 -> 0 | U22: ='Balancen Scenarie 2030'!U22-'Balancen BAU 2030'!U22 -> 0 | V22: ='Balancen Scenarie 2030'!V22-'Balancen BAU 2030'!V22 -> 0 | W22: ='Balancen Scenarie 2030'!W22-'Balancen BAU 2030'!W22 -> 0 | X22: ='Balancen Scenarie 2030'!X22-'Balancen BAU 2030'!X22 -> 0 | Y22: ='Balancen Scenarie 2030'!Y22-'Balancen BAU 2030'!Y22 -> 0 | Z22: ='Balancen Scenarie 2030'!Z22-'Balancen BAU 2030'!Z22 -> 0 | AA22: ='Balancen Scenarie 2030'!AA22-'Balancen BAU 2030'!AA22 -> 0 | AB22: ='Balancen Scenarie 2030'!AB22-'Balancen BAU 2030'!AB22 -> 0 | AC22: ='Balancen Scenarie 2030'!AC22-'Balancen BAU 2030'!AC22 -> 0 | AD22: ='Balancen Scenarie 2030'!AD22-'Balancen BAU 2030'!AD22 -> 0 | AE22: ='Balancen Scenarie 2030'!AE22-'Balancen BAU 2030'!AE22 -> 0 | AF22: ='Balancen Scenarie 2030'!AF22-'Balancen BAU 2030'!AF22 -> 0 | AG22: ='Balancen Scenarie 2030'!AG22-'Balancen BAU 2030'!AG22 -> 0 | AH22: ='Balancen Scenarie 2030'!AH22-'Balancen BAU 2030'!AH22 -> 9.663381206e-13 | AI22: ='Balancen Scenarie 2030'!AI22-'Balancen BAU 2030'!AI22 -> -611.3795789 | AJ22: ='Balancen Scenarie 2030'!AJ22-'Balancen BAU 2030'!AJ22 -> 0 | AK22: ='Balancen Scenarie 2030'!AK22-'Balancen BAU 2030'!AK22 -> 0 | AL22: ='Balancen Scenarie 2030'!AL22-'Balancen BAU 2030'!AL22 -> 0 | AM22: ='Balancen Scenarie 2030'!AM22-'Balancen BAU 2030'!AM22 -> 0 | AN22: ='Balancen Scenarie 2030'!AN22-'Balancen BAU 2030'!AN22 -> 0 | AO22: ='Balancen Scenarie 2030'!AO22-'Balancen BAU 2030'!AO22 -> 0 | AP22: ='Balancen Scenarie 2030'!AP22-'Balancen BAU 2030'!AP22 -> 0 | AQ22: ='Balancen Scenarie 2030'!AQ22-'Balancen BAU 2030'!AQ22 -> 0 | AR22: ='Balancen Scenarie 2030'!AR22-'Balancen BAU 2030'!AR22 -> 0 | AS22: ='Balancen Scenarie 2030'!AS22-'Balancen BAU 2030'!AS22 -> 0 | AT22: ='Balancen Scenarie 2030'!AT22-'Balancen BAU 2030'!AT22 -> 0 | AU22: ='Balancen Scenarie 2030'!AU22-'Balancen BAU 2030'!AU22 -> 0
A23: Afgang fra energisystemet | B23: ='Balancen Scenarie 2030'!B23-'Balancen BAU 2030'!B23 -> -310.0377482 | C23: ='Balancen Scenarie 2030'!C23-'Balancen BAU 2030'!C23 -> 0 | D23: ='Balancen Scenarie 2030'!D23-'Balancen BAU 2030'!D23 -> 0 | E23: ='Balancen Scenarie 2030'!E23-'Balancen BAU 2030'!E23 -> 0 | F23: ='Balancen Scenarie 2030'!F23-'Balancen BAU 2030'!F23 -> -372.2515431 | G23: ='Balancen Scenarie 2030'!G23-'Balancen BAU 2030'!G23 -> 0 | H23: ='Balancen Scenarie 2030'!H23-'Balancen BAU 2030'!H23 -> 0 | I23: ='Balancen Scenarie 2030'!I23-'Balancen BAU 2030'!I23 -> -57.56539974 | J23: ='Balancen Scenarie 2030'!J23-'Balancen BAU 2030'!J23 -> 0 | K23: ='Balancen Scenarie 2030'!K23-'Balancen BAU 2030'!K23 -> -314.6861434 | L23: ='Balancen Scenarie 2030'!L23-'Balancen BAU 2030'!L23 -> 0 | M23: ='Balancen Scenarie 2030'!M23-'Balancen BAU 2030'!M23 -> 0 | N23: ='Balancen Scenarie 2030'!N23-'Balancen BAU 2030'!N23 -> 0 | O23: ='Balancen Scenarie 2030'!O23-'Balancen BAU 2030'!O23 -> 0 | P23: ='Balancen Scenarie 2030'!P23-'Balancen BAU 2030'!P23 -> 0 | Q23: ='Balancen Scenarie 2030'!Q23-'Balancen BAU 2030'!Q23 -> 0 | R23: ='Balancen Scenarie 2030'!R23-'Balancen BAU 2030'!R23 -> -8.003553376e-11 | S23: ='Balancen Scenarie 2030'!S23-'Balancen BAU 2030'!S23 -> 0 | T23: ='Balancen Scenarie 2030'!T23-'Balancen BAU 2030'!T23 -> 0 | U23: ='Balancen Scenarie 2030'!U23-'Balancen BAU 2030'!U23 -> 0 | V23: ='Balancen Scenarie 2030'!V23-'Balancen BAU 2030'!V23 -> 0 | W23: ='Balancen Scenarie 2030'!W23-'Balancen BAU 2030'!W23 -> 0 | X23: ='Balancen Scenarie 2030'!X23-'Balancen BAU 2030'!X23 -> -8.003553376e-11 | Y23: ='Balancen Scenarie 2030'!Y23-'Balancen BAU 2030'!Y23 -> 0 | Z23: ='Balancen Scenarie 2030'!Z23-'Balancen BAU 2030'!Z23 -> 0 | AA23: ='Balancen Scenarie 2030'!AA23-'Balancen BAU 2030'!AA23 -> -13.68221095 | AB23: ='Balancen Scenarie 2030'!AB23-'Balancen BAU 2030'!AB23 -> -7.842242863 | AC23: ='Balancen Scenarie 2030'!AC23-'Balancen BAU 2030'!AC23 -> -5.839968089 | AD23: ='Balancen Scenarie 2030'!AD23-'Balancen BAU 2030'!AD23 -> 0 | AE23: ='Balancen Scenarie 2030'!AE23-'Balancen BAU 2030'!AE23 -> 0 | AF23: ='Balancen Scenarie 2030'!AF23-'Balancen BAU 2030'!AF23 -> 0 | AG23: ='Balancen Scenarie 2030'!AG23-'Balancen BAU 2030'!AG23 -> 0 | AH23: ='Balancen Scenarie 2030'!AH23-'Balancen BAU 2030'!AH23 -> -9.663381206e-13 | AI23: ='Balancen Scenarie 2030'!AI23-'Balancen BAU 2030'!AI23 -> 611.3795789 | AJ23: ='Balancen Scenarie 2030'!AJ23-'Balancen BAU 2030'!AJ23 -> 0 | AK23: ='Balancen Scenarie 2030'!AK23-'Balancen BAU 2030'!AK23 -> 0 | AL23: ='Balancen Scenarie 2030'!AL23-'Balancen BAU 2030'!AL23 -> -535.4835731 | AM23: ='Balancen Scenarie 2030'!AM23-'Balancen BAU 2030'!AM23 -> -611.3795789 | AN23: ='Balancen Scenarie 2030'!AN23-'Balancen BAU 2030'!AN23 -> 0 | AO23: ='Balancen Scenarie 2030'!AO23-'Balancen BAU 2030'!AO23 -> 75.89600581 | AP23: ='Balancen Scenarie 2030'!AP23-'Balancen BAU 2030'!AP23 -> 0 | AQ23: ='Balancen Scenarie 2030'!AQ23-'Balancen BAU 2030'!AQ23 -> 0 | AR23: ='Balancen Scenarie 2030'!AR23-'Balancen BAU 2030'!AR23 -> 0 | AS23: ='Balancen Scenarie 2030'!AS23-'Balancen BAU 2030'!AS23 -> 27386.59182 | AT23: ='Balancen Scenarie 2030'!AT23-'Balancen BAU 2030'!AT23 -> -689.163032 | AU23: ='Balancen Scenarie 2030'!AU23-'Balancen BAU 2030'!AU23 -> -86.47688866
A24: Netto eksport/lager | B24: ='Balancen Scenarie 2030'!B24-'Balancen BAU 2030'!B24 -> 0 | C24: ='Balancen Scenarie 2030'!C24-'Balancen BAU 2030'!C24 -> 0 | D24: ='Balancen Scenarie 2030'!D24-'Balancen BAU 2030'!D24 -> 0 | E24: ='Balancen Scenarie 2030'!E24-'Balancen BAU 2030'!E24 -> 0 | F24: ='Balancen Scenarie 2030'!F24-'Balancen BAU 2030'!F24 -> 0 | G24: ='Balancen Scenarie 2030'!G24-'Balancen BAU 2030'!G24 -> 0 | H24: ='Balancen Scenarie 2030'!H24-'Balancen BAU 2030'!H24 -> 0 | I24: ='Balancen Scenarie 2030'!I24-'Balancen BAU 2030'!I24 -> 0 | J24: ='Balancen Scenarie 2030'!J24-'Balancen BAU 2030'!J24 -> 0 | K24: ='Balancen Scenarie 2030'!K24-'Balancen BAU 2030'!K24 -> 0 | L24: ='Balancen Scenarie 2030'!L24-'Balancen BAU 2030'!L24 -> 0 | M24: ='Balancen Scenarie 2030'!M24-'Balancen BAU 2030'!M24 -> 0 | N24: ='Balancen Scenarie 2030'!N24-'Balancen BAU 2030'!N24 -> 0 | O24: ='Balancen Scenarie 2030'!O24-'Balancen BAU 2030'!O24 -> 0 | P24: ='Balancen Scenarie 2030'!P24-'Balancen BAU 2030'!P24 -> 0 | Q24: ='Balancen Scenarie 2030'!Q24-'Balancen BAU 2030'!Q24 -> 0 | R24: ='Balancen Scenarie 2030'!R24-'Balancen BAU 2030'!R24 -> 0 | S24: ='Balancen Scenarie 2030'!S24-'Balancen BAU 2030'!S24 -> 0 | T24: ='Balancen Scenarie 2030'!T24-'Balancen BAU 2030'!T24 -> 0 | U24: ='Balancen Scenarie 2030'!U24-'Balancen BAU 2030'!U24 -> 0 | V24: ='Balancen Scenarie 2030'!V24-'Balancen BAU 2030'!V24 -> 0 | W24: ='Balancen Scenarie 2030'!W24-'Balancen BAU 2030'!W24 -> 0 | X24: ='Balancen Scenarie 2030'!X24-'Balancen BAU 2030'!X24 -> 0 | Y24: ='Balancen Scenarie 2030'!Y24-'Balancen BAU 2030'!Y24 -> 0 | Z24: ='Balancen Scenarie 2030'!Z24-'Balancen BAU 2030'!Z24 -> 0 | AA24: ='Balancen Scenarie 2030'!AA24-'Balancen BAU 2030'!AA24 -> 0 | AB24: ='Balancen Scenarie 2030'!AB24-'Balancen BAU 2030'!AB24 -> 0 | AC24: ='Balancen Scenarie 2030'!AC24-'Balancen BAU 2030'!AC24 -> 0 | AD24: ='Balancen Scenarie 2030'!AD24-'Balancen BAU 2030'!AD24 -> 0 | AE24: ='Balancen Scenarie 2030'!AE24-'Balancen BAU 2030'!AE24 -> 0 | AF24: ='Balancen Scenarie 2030'!AF24-'Balancen BAU 2030'!AF24 -> 0 | AG24: ='Balancen Scenarie 2030'!AG24-'Balancen BAU 2030'!AG24 -> 0 | AH24: ='Balancen Scenarie 2030'!AH24-'Balancen BAU 2030'!AH24 -> 0 | AI24: ='Balancen Scenarie 2030'!AI24-'Balancen BAU 2030'!AI24 -> 0 | AJ24: ='Balancen Scenarie 2030'!AJ24-'Balancen BAU 2030'!AJ24 -> 0 | AK24: ='Balancen Scenarie 2030'!AK24-'Balancen BAU 2030'!AK24 -> 0 | AL24: ='Balancen Scenarie 2030'!AL24-'Balancen BAU 2030'!AL24 -> 0 | AM24: ='Balancen Scenarie 2030'!AM24-'Balancen BAU 2030'!AM24 -> 0 | AN24: ='Balancen Scenarie 2030'!AN24-'Balancen BAU 2030'!AN24 -> 0 | AO24: ='Balancen Scenarie 2030'!AO24-'Balancen BAU 2030'!AO24 -> 0 | AP24: ='Balancen Scenarie 2030'!AP24-'Balancen BAU 2030'!AP24 -> 0 | AQ24: ='Balancen Scenarie 2030'!AQ24-'Balancen BAU 2030'!AQ24 -> 0 | AR24: ='Balancen Scenarie 2030'!AR24-'Balancen BAU 2030'!AR24 -> 0 | AS24: ='Balancen Scenarie 2030'!AS24-'Balancen BAU 2030'!AS24 -> 0 | AT24: ='Balancen Scenarie 2030'!AT24-'Balancen BAU 2030'!AT24 -> 0 | AU24: ='Balancen Scenarie 2030'!AU24-'Balancen BAU 2030'!AU24 -> 0
A25: Transport | B25: ='Balancen Scenarie 2030'!B25-'Balancen BAU 2030'!B25 -> -310.0377482 | C25: ='Balancen Scenarie 2030'!C25-'Balancen BAU 2030'!C25 -> 0 | D25: ='Balancen Scenarie 2030'!D25-'Balancen BAU 2030'!D25 -> 0 | E25: ='Balancen Scenarie 2030'!E25-'Balancen BAU 2030'!E25 -> 0 | F25: ='Balancen Scenarie 2030'!F25-'Balancen BAU 2030'!F25 -> -372.2515431 | G25: ='Balancen Scenarie 2030'!G25-'Balancen BAU 2030'!G25 -> 0 | H25: ='Balancen Scenarie 2030'!H25-'Balancen BAU 2030'!H25 -> 0 | I25: ='Balancen Scenarie 2030'!I25-'Balancen BAU 2030'!I25 -> -57.56539974 | J25: ='Balancen Scenarie 2030'!J25-'Balancen BAU 2030'!J25 -> 0 | K25: ='Balancen Scenarie 2030'!K25-'Balancen BAU 2030'!K25 -> -314.6861434 | L25: ='Balancen Scenarie 2030'!L25-'Balancen BAU 2030'!L25 -> 0 | M25: ='Balancen Scenarie 2030'!M25-'Balancen BAU 2030'!M25 -> 0 | N25: ='Balancen Scenarie 2030'!N25-'Balancen BAU 2030'!N25 -> 0 | O25: ='Balancen Scenarie 2030'!O25-'Balancen BAU 2030'!O25 -> 0 | P25: ='Balancen Scenarie 2030'!P25-'Balancen BAU 2030'!P25 -> 0 | Q25: ='Balancen Scenarie 2030'!Q25-'Balancen BAU 2030'!Q25 -> 0 | R25: ='Balancen Scenarie 2030'!R25-'Balancen BAU 2030'!R25 -> 0 | S25: ='Balancen Scenarie 2030'!S25-'Balancen BAU 2030'!S25 -> 0 | T25: ='Balancen Scenarie 2030'!T25-'Balancen BAU 2030'!T25 -> 0 | U25: ='Balancen Scenarie 2030'!U25-'Balancen BAU 2030'!U25 -> 0 | V25: ='Balancen Scenarie 2030'!V25-'Balancen BAU 2030'!V25 -> 0 | W25: ='Balancen Scenarie 2030'!W25-'Balancen BAU 2030'!W25 -> 0 | X25: ='Balancen Scenarie 2030'!X25-'Balancen BAU 2030'!X25 -> 0 | Y25: ='Balancen Scenarie 2030'!Y25-'Balancen BAU 2030'!Y25 -> 0 | Z25: ='Balancen Scenarie 2030'!Z25-'Balancen BAU 2030'!Z25 -> 0 | AA25: ='Balancen Scenarie 2030'!AA25-'Balancen BAU 2030'!AA25 -> -13.68221095 | AB25: ='Balancen Scenarie 2030'!AB25-'Balancen BAU 2030'!AB25 -> -7.842242863 | AC25: ='Balancen Scenarie 2030'!AC25-'Balancen BAU 2030'!AC25 -> -5.839968089 | AD25: ='Balancen Scenarie 2030'!AD25-'Balancen BAU 2030'!AD25 -> 0 | AE25: ='Balancen Scenarie 2030'!AE25-'Balancen BAU 2030'!AE25 -> 0 | AF25: ='Balancen Scenarie 2030'!AF25-'Balancen BAU 2030'!AF25 -> 0 | AG25: ='Balancen Scenarie 2030'!AG25-'Balancen BAU 2030'!AG25 -> 0 | AH25: ='Balancen Scenarie 2030'!AH25-'Balancen BAU 2030'!AH25 -> 0 | AI25: ='Balancen Scenarie 2030'!AI25-'Balancen BAU 2030'!AI25 -> 0 | AJ25: ='Balancen Scenarie 2030'!AJ25-'Balancen BAU 2030'!AJ25 -> 0 | AK25: ='Balancen Scenarie 2030'!AK25-'Balancen BAU 2030'!AK25 -> 0 | AL25: ='Balancen Scenarie 2030'!AL25-'Balancen BAU 2030'!AL25 -> 75.89600581 | AM25: ='Balancen Scenarie 2030'!AM25-'Balancen BAU 2030'!AM25 -> 0 | AN25: ='Balancen Scenarie 2030'!AN25-'Balancen BAU 2030'!AN25 -> 0 | AO25: ='Balancen Scenarie 2030'!AO25-'Balancen BAU 2030'!AO25 -> 75.89600581 | AP25: ='Balancen Scenarie 2030'!AP25-'Balancen BAU 2030'!AP25 -> 0 | AQ25: ='Balancen Scenarie 2030'!AQ25-'Balancen BAU 2030'!AQ25 -> 0 | AR25: ='Balancen Scenarie 2030'!AR25-'Balancen BAU 2030'!AR25 -> 0 | AS25: ='Balancen Scenarie 2030'!AS25-'Balancen BAU 2030'!AS25 -> 27386.59182 | AT25: ='Balancen Scenarie 2030'!AT25-'Balancen BAU 2030'!AT25 -> -286.171435 | AU25: ='Balancen Scenarie 2030'!AU25-'Balancen BAU 2030'!AU25 -> -1.608807276
A26: Vejtransport | B26: ='Balancen Scenarie 2030'!B26-'Balancen BAU 2030'!B26 -> -310.0377482 | C26: ='Balancen Scenarie 2030'!C26-'Balancen BAU 2030'!C26 -> 0 | D26: ='Balancen Scenarie 2030'!D26-'Balancen BAU 2030'!D26 -> 0 | E26: ='Balancen Scenarie 2030'!E26-'Balancen BAU 2030'!E26 -> 0 | F26: ='Balancen Scenarie 2030'!F26-'Balancen BAU 2030'!F26 -> -372.2515431 | G26: ='Balancen Scenarie 2030'!G26-'Balancen BAU 2030'!G26 -> 0 | H26: ='Balancen Scenarie 2030'!H26-'Balancen BAU 2030'!H26 -> 0 | I26: ='Balancen Scenarie 2030'!I26-'Balancen BAU 2030'!I26 -> -57.56539974 | J26: ='Balancen Scenarie 2030'!J26-'Balancen BAU 2030'!J26 -> 0 | K26: ='Balancen Scenarie 2030'!K26-'Balancen BAU 2030'!K26 -> -314.6861434 | L26: ='Balancen Scenarie 2030'!L26-'Balancen BAU 2030'!L26 -> 0 | M26: ='Balancen Scenarie 2030'!M26-'Balancen BAU 2030'!M26 -> 0 | N26: ='Balancen Scenarie 2030'!N26-'Balancen BAU 2030'!N26 -> 0 | O26: ='Balancen Scenarie 2030'!O26-'Balancen BAU 2030'!O26 -> 0 | P26: ='Balancen Scenarie 2030'!P26-'Balancen BAU 2030'!P26 -> 0 | Q26: ='Balancen Scenarie 2030'!Q26-'Balancen BAU 2030'!Q26 -> 0 | R26: ='Balancen Scenarie 2030'!R26-'Balancen BAU 2030'!R26 -> 0 | S26: ='Balancen Scenarie 2030'!S26-'Balancen BAU 2030'!S26 -> 0 | T26: ='Balancen Scenarie 2030'!T26-'Balancen BAU 2030'!T26 -> 0 | U26: ='Balancen Scenarie 2030'!U26-'Balancen BAU 2030'!U26 -> 0 | V26: ='Balancen Scenarie 2030'!V26-'Balancen BAU 2030'!V26 -> 0 | W26: ='Balancen Scenarie 2030'!W26-'Balancen BAU 2030'!W26 -> 0 | X26: ='Balancen Scenarie 2030'!X26-'Balancen BAU 2030'!X26 -> 0 | Y26: ='Balancen Scenarie 2030'!Y26-'Balancen BAU 2030'!Y26 -> 0 | Z26: ='Balancen Scenarie 2030'!Z26-'Balancen BAU 2030'!Z26 -> 0 | AA26: ='Balancen Scenarie 2030'!AA26-'Balancen BAU 2030'!AA26 -> -13.68221095 | AB26: ='Balancen Scenarie 2030'!AB26-'Balancen BAU 2030'!AB26 -> -7.842242863 | AC26: ='Balancen Scenarie 2030'!AC26-'Balancen BAU 2030'!AC26 -> -5.839968089 | AD26: ='Balancen Scenarie 2030'!AD26-'Balancen BAU 2030'!AD26 -> 0 | AE26: ='Balancen Scenarie 2030'!AE26-'Balancen BAU 2030'!AE26 -> 0 | AF26: ='Balancen Scenarie 2030'!AF26-'Balancen BAU 2030'!AF26 -> 0 | AG26: ='Balancen Scenarie 2030'!AG26-'Balancen BAU 2030'!AG26 -> 0 | AH26: ='Balancen Scenarie 2030'!AH26-'Balancen BAU 2030'!AH26 -> 0 | AI26: ='Balancen Scenarie 2030'!AI26-'Balancen BAU 2030'!AI26 -> 0 | AJ26: ='Balancen Scenarie 2030'!AJ26-'Balancen BAU 2030'!AJ26 -> 0 | AK26: ='Balancen Scenarie 2030'!AK26-'Balancen BAU 2030'!AK26 -> 0 | AL26: ='Balancen Scenarie 2030'!AL26-'Balancen BAU 2030'!AL26 -> 75.89600581 | AM26: ='Balancen Scenarie 2030'!AM26-'Balancen BAU 2030'!AM26 -> 0 | AN26: ='Balancen Scenarie 2030'!AN26-'Balancen BAU 2030'!AN26 -> 0 | AO26: ='Balancen Scenarie 2030'!AO26-'Balancen BAU 2030'!AO26 -> 75.89600581 | AP26: ='Balancen Scenarie 2030'!AP26-'Balancen BAU 2030'!AP26 -> 0 | AQ26: ='Balancen Scenarie 2030'!AQ26-'Balancen BAU 2030'!AQ26 -> 0 | AR26: ='Balancen Scenarie 2030'!AR26-'Balancen BAU 2030'!AR26 -> 0 | AS26: ='Balancen Scenarie 2030'!AS26-'Balancen BAU 2030'!AS26 -> 27386.59182 | AT26: ='Balancen Scenarie 2030'!AT26-'Balancen BAU 2030'!AT26 -> -256.6579769 | AU26: ='Balancen Scenarie 2030'!AU26-'Balancen BAU 2030'!AU26 -> 0.1898246957
A27: Personbil | B27: ='Balancen Scenarie 2030'!B27-'Balancen BAU 2030'!B27 -> -310.0377482 | C27: ='Balancen Scenarie 2030'!C27-'Balancen BAU 2030'!C27 -> 0 | D27: ='Balancen Scenarie 2030'!D27-'Balancen BAU 2030'!D27 -> 0 | E27: ='Balancen Scenarie 2030'!E27-'Balancen BAU 2030'!E27 -> 0 | F27: ='Balancen Scenarie 2030'!F27-'Balancen BAU 2030'!F27 -> -372.2515431 | G27: ='Balancen Scenarie 2030'!G27-'Balancen BAU 2030'!G27 -> 0 | H27: ='Balancen Scenarie 2030'!H27-'Balancen BAU 2030'!H27 -> 0 | I27: ='Balancen Scenarie 2030'!I27-'Balancen BAU 2030'!I27 -> -57.56539974 | J27: ='Balancen Scenarie 2030'!J27-'Balancen BAU 2030'!J27 -> 0 | K27: ='Balancen Scenarie 2030'!K27-'Balancen BAU 2030'!K27 -> -314.6861434 | L27: ='Balancen Scenarie 2030'!L27-'Balancen BAU 2030'!L27 -> 0 | M27: ='Balancen Scenarie 2030'!M27-'Balancen BAU 2030'!M27 -> 0 | N27: ='Balancen Scenarie 2030'!N27-'Balancen BAU 2030'!N27 -> 0 | O27: ='Balancen Scenarie 2030'!O27-'Balancen BAU 2030'!O27 -> 0 | P27: ='Balancen Scenarie 2030'!P27-'Balancen BAU 2030'!P27 -> 0 | Q27: ='Balancen Scenarie 2030'!Q27-'Balancen BAU 2030'!Q27 -> 0 | R27: ='Balancen Scenarie 2030'!R27-'Balancen BAU 2030'!R27 -> 0 | S27: ='Balancen Scenarie 2030'!S27-'Balancen BAU 2030'!S27 -> 0 | T27: ='Balancen Scenarie 2030'!T27-'Balancen BAU 2030'!T27 -> 0 | U27: ='Balancen Scenarie 2030'!U27-'Balancen BAU 2030'!U27 -> 0 | V27: ='Balancen Scenarie 2030'!V27-'Balancen BAU 2030'!V27 -> 0 | W27: ='Balancen Scenarie 2030'!W27-'Balancen BAU 2030'!W27 -> 0 | X27: ='Balancen Scenarie 2030'!X27-'Balancen BAU 2030'!X27 -> 0 | Y27: ='Balancen Scenarie 2030'!Y27-'Balancen BAU 2030'!Y27 -> 0 | Z27: ='Balancen Scenarie 2030'!Z27-'Balancen BAU 2030'!Z27 -> 0 | AA27: ='Balancen Scenarie 2030'!AA27-'Balancen BAU 2030'!AA27 -> -13.68221095 | AB27: ='Balancen Scenarie 2030'!AB27-'Balancen BAU 2030'!AB27 -> -7.842242863 | AC27: ='Balancen Scenarie 2030'!AC27-'Balancen BAU 2030'!AC27 -> -5.839968089 | AD27: ='Balancen Scenarie 2030'!AD27-'Balancen BAU 2030'!AD27 -> 0 | AE27: ='Balancen Scenarie 2030'!AE27-'Balancen BAU 2030'!AE27 -> 0 | AF27: ='Balancen Scenarie 2030'!AF27-'Balancen BAU 2030'!AF27 -> 0 | AG27: ='Balancen Scenarie 2030'!AG27-'Balancen BAU 2030'!AG27 -> 0 | AH27: ='Balancen Scenarie 2030'!AH27-'Balancen BAU 2030'!AH27 -> 0 | AI27: ='Balancen Scenarie 2030'!AI27-'Balancen BAU 2030'!AI27 -> 0 | AJ27: ='Balancen Scenarie 2030'!AJ27-'Balancen BAU 2030'!AJ27 -> 0 | AK27: ='Balancen Scenarie 2030'!AK27-'Balancen BAU 2030'!AK27 -> 0 | AL27: ='Balancen Scenarie 2030'!AL27-'Balancen BAU 2030'!AL27 -> 75.89600581 | AM27: ='Balancen Scenarie 2030'!AM27-'Balancen BAU 2030'!AM27 -> 0 | AN27: ='Balancen Scenarie 2030'!AN27-'Balancen BAU 2030'!AN27 -> 0 | AO27: ='Balancen Scenarie 2030'!AO27-'Balancen BAU 2030'!AO27 -> 75.89600581 | AP27: ='Balancen Scenarie 2030'!AP27-'Balancen BAU 2030'!AP27 -> 0 | AQ27: ='Balancen Scenarie 2030'!AQ27-'Balancen BAU 2030'!AQ27 -> 0 | AR27: ='Balancen Scenarie 2030'!AR27-'Balancen BAU 2030'!AR27 -> 0 | AS27: ='Balancen Scenarie 2030'!AS27-'Balancen BAU 2030'!AS27 -> 27386.59182 | AT27: ='Balancen Scenarie 2030'!AT27-'Balancen BAU 2030'!AT27 -> -240.6578763 | AU27: ='Balancen Scenarie 2030'!AU27-'Balancen BAU 2030'!AU27 -> -6.673888871
A28: Lastbil | B28: ='Balancen Scenarie 2030'!B28-'Balancen BAU 2030'!B28 -> 0 | C28: ='Balancen Scenarie 2030'!C28-'Balancen BAU 2030'!C28 -> 0 | D28: ='Balancen Scenarie 2030'!D28-'Balancen BAU 2030'!D28 -> 0 | E28: ='Balancen Scenarie 2030'!E28-'Balancen BAU 2030'!E28 -> 0 | F28: ='Balancen Scenarie 2030'!F28-'Balancen BAU 2030'!F28 -> 0 | G28: ='Balancen Scenarie 2030'!G28-'Balancen BAU 2030'!G28 -> 0 | H28: ='Balancen Scenarie 2030'!H28-'Balancen BAU 2030'!H28 -> 0 | I28: ='Balancen Scenarie 2030'!I28-'Balancen BAU 2030'!I28 -> 0 | J28: ='Balancen Scenarie 2030'!J28-'Balancen BAU 2030'!J28 -> 0 | K28: ='Balancen Scenarie 2030'!K28-'Balancen BAU 2030'!K28 -> 0 | L28: ='Balancen Scenarie 2030'!L28-'Balancen BAU 2030'!L28 -> 0 | M28: ='Balancen Scenarie 2030'!M28-'Balancen BAU 2030'!M28 -> 0 | N28: ='Balancen Scenarie 2030'!N28-'Balancen BAU 2030'!N28 -> 0 | O28: ='Balancen Scenarie 2030'!O28-'Balancen BAU 2030'!O28 -> 0 | P28: ='Balancen Scenarie 2030'!P28-'Balancen BAU 2030'!P28 -> 0 | Q28: ='Balancen Scenarie 2030'!Q28-'Balancen BAU 2030'!Q28 -> 0 | R28: ='Balancen Scenarie 2030'!R28-'Balancen BAU 2030'!R28 -> 0 | S28: ='Balancen Scenarie 2030'!S28-'Balancen BAU 2030'!S28 -> 0 | T28: ='Balancen Scenarie 2030'!T28-'Balancen BAU 2030'!T28 -> 0 | U28: ='Balancen Scenarie 2030'!U28-'Balancen BAU 2030'!U28 -> 0 | V28: ='Balancen Scenarie 2030'!V28-'Balancen BAU 2030'!V28 -> 0 | W28: ='Balancen Scenarie 2030'!W28-'Balancen BAU 2030'!W28 -> 0 | X28: ='Balancen Scenarie 2030'!X28-'Balancen BAU 2030'!X28 -> 0 | Y28: ='Balancen Scenarie 2030'!Y28-'Balancen BAU 2030'!Y28 -> 0 | Z28: ='Balancen Scenarie 2030'!Z28-'Balancen BAU 2030'!Z28 -> 0 | AA28: ='Balancen Scenarie 2030'!AA28-'Balancen BAU 2030'!AA28 -> 0 | AB28: ='Balancen Scenarie 2030'!AB28-'Balancen BAU 2030'!AB28 -> 0 | AC28: ='Balancen Scenarie 2030'!AC28-'Balancen BAU 2030'!AC28 -> 0 | AD28: ='Balancen Scenarie 2030'!AD28-'Balancen BAU 2030'!AD28 -> 0 | AE28: ='Balancen Scenarie 2030'!AE28-'Balancen BAU 2030'!AE28 -> 0 | AF28: ='Balancen Scenarie 2030'!AF28-'Balancen BAU 2030'!AF28 -> 0 | AG28: ='Balancen Scenarie 2030'!AG28-'Balancen BAU 2030'!AG28 -> 0 | AH28: ='Balancen Scenarie 2030'!AH28-'Balancen BAU 2030'!AH28 -> 0 | AI28: ='Balancen Scenarie 2030'!AI28-'Balancen BAU 2030'!AI28 -> 0 | AJ28: ='Balancen Scenarie 2030'!AJ28-'Balancen BAU 2030'!AJ28 -> 0 | AK28: ='Balancen Scenarie 2030'!AK28-'Balancen BAU 2030'!AK28 -> 0 | AL28: ='Balancen Scenarie 2030'!AL28-'Balancen BAU 2030'!AL28 -> 0 | AM28: ='Balancen Scenarie 2030'!AM28-'Balancen BAU 2030'!AM28 -> 0 | AN28: ='Balancen Scenarie 2030'!AN28-'Balancen BAU 2030'!AN28 -> 0 | AO28: ='Balancen Scenarie 2030'!AO28-'Balancen BAU 2030'!AO28 -> 0 | AP28: ='Balancen Scenarie 2030'!AP28-'Balancen BAU 2030'!AP28 -> 0 | AQ28: ='Balancen Scenarie 2030'!AQ28-'Balancen BAU 2030'!AQ28 -> 0 | AR28: ='Balancen Scenarie 2030'!AR28-'Balancen BAU 2030'!AR28 -> 0 | AS28: ='Balancen Scenarie 2030'!AS28-'Balancen BAU 2030'!AS28 -> 0 | AT28: ='Balancen Scenarie 2030'!AT28-'Balancen BAU 2030'!AT28 -> 0 | AU28: ='Balancen Scenarie 2030'!AU28-'Balancen BAU 2030'!AU28 -> 3.202865928
A29: Varebil | B29: ='Balancen Scenarie 2030'!B29-'Balancen BAU 2030'!B29 -> 0 | C29: ='Balancen Scenarie 2030'!C29-'Balancen BAU 2030'!C29 -> 0 | D29: ='Balancen Scenarie 2030'!D29-'Balancen BAU 2030'!D29 -> 0 | E29: ='Balancen Scenarie 2030'!E29-'Balancen BAU 2030'!E29 -> 0 | F29: ='Balancen Scenarie 2030'!F29-'Balancen BAU 2030'!F29 -> 0 | G29: ='Balancen Scenarie 2030'!G29-'Balancen BAU 2030'!G29 -> 0 | H29: ='Balancen Scenarie 2030'!H29-'Balancen BAU 2030'!H29 -> 0 | I29: ='Balancen Scenarie 2030'!I29-'Balancen BAU 2030'!I29 -> 0 | J29: ='Balancen Scenarie 2030'!J29-'Balancen BAU 2030'!J29 -> 0 | K29: ='Balancen Scenarie 2030'!K29-'Balancen BAU 2030'!K29 -> 0 | L29: ='Balancen Scenarie 2030'!L29-'Balancen BAU 2030'!L29 -> 0 | M29: ='Balancen Scenarie 2030'!M29-'Balancen BAU 2030'!M29 -> 0 | N29: ='Balancen Scenarie 2030'!N29-'Balancen BAU 2030'!N29 -> 0 | O29: ='Balancen Scenarie 2030'!O29-'Balancen BAU 2030'!O29 -> 0 | P29: ='Balancen Scenarie 2030'!P29-'Balancen BAU 2030'!P29 -> 0 | Q29: ='Balancen Scenarie 2030'!Q29-'Balancen BAU 2030'!Q29 -> 0 | R29: ='Balancen Scenarie 2030'!R29-'Balancen BAU 2030'!R29 -> 0 | S29: ='Balancen Scenarie 2030'!S29-'Balancen BAU 2030'!S29 -> 0 | T29: ='Balancen Scenarie 2030'!T29-'Balancen BAU 2030'!T29 -> 0 | U29: ='Balancen Scenarie 2030'!U29-'Balancen BAU 2030'!U29 -> 0 | V29: ='Balancen Scenarie 2030'!V29-'Balancen BAU 2030'!V29 -> 0 | W29: ='Balancen Scenarie 2030'!W29-'Balancen BAU 2030'!W29 -> 0 | X29: ='Balancen Scenarie 2030'!X29-'Balancen BAU 2030'!X29 -> 0 | Y29: ='Balancen Scenarie 2030'!Y29-'Balancen BAU 2030'!Y29 -> 0 | Z29: ='Balancen Scenarie 2030'!Z29-'Balancen BAU 2030'!Z29 -> 0 | AA29: ='Balancen Scenarie 2030'!AA29-'Balancen BAU 2030'!AA29 -> 0 | AB29: ='Balancen Scenarie 2030'!AB29-'Balancen BAU 2030'!AB29 -> 0 | AC29: ='Balancen Scenarie 2030'!AC29-'Balancen BAU 2030'!AC29 -> 0 | AD29: ='Balancen Scenarie 2030'!AD29-'Balancen BAU 2030'!AD29 -> 0 | AE29: ='Balancen Scenarie 2030'!AE29-'Balancen BAU 2030'!AE29 -> 0 | AF29: ='Balancen Scenarie 2030'!AF29-'Balancen BAU 2030'!AF29 -> 0 | AG29: ='Balancen Scenarie 2030'!AG29-'Balancen BAU 2030'!AG29 -> 0 | AH29: ='Balancen Scenarie 2030'!AH29-'Balancen BAU 2030'!AH29 -> 0 | AI29: ='Balancen Scenarie 2030'!AI29-'Balancen BAU 2030'!AI29 -> 0 | AJ29: ='Balancen Scenarie 2030'!AJ29-'Balancen BAU 2030'!AJ29 -> 0 | AK29: ='Balancen Scenarie 2030'!AK29-'Balancen BAU 2030'!AK29 -> 0 | AL29: ='Balancen Scenarie 2030'!AL29-'Balancen BAU 2030'!AL29 -> 0 | AM29: ='Balancen Scenarie 2030'!AM29-'Balancen BAU 2030'!AM29 -> 0 | AN29: ='Balancen Scenarie 2030'!AN29-'Balancen BAU 2030'!AN29 -> 0 | AO29: ='Balancen Scenarie 2030'!AO29-'Balancen BAU 2030'!AO29 -> 0 | AP29: ='Balancen Scenarie 2030'!AP29-'Balancen BAU 2030'!AP29 -> 0 | AQ29: ='Balancen Scenarie 2030'!AQ29-'Balancen BAU 2030'!AQ29 -> 0 | AR29: ='Balancen Scenarie 2030'!AR29-'Balancen BAU 2030'!AR29 -> 0 | AS29: ='Balancen Scenarie 2030'!AS29-'Balancen BAU 2030'!AS29 -> 0 | AT29: ='Balancen Scenarie 2030'!AT29-'Balancen BAU 2030'!AT29 -> -11.38862281 | AU29: ='Balancen Scenarie 2030'!AU29-'Balancen BAU 2030'!AU29 -> 2.694440226
A30: Knallert og motorcykel | B30: ='Balancen Scenarie 2030'!B30-'Balancen BAU 2030'!B30 -> 0 | C30: ='Balancen Scenarie 2030'!C30-'Balancen BAU 2030'!C30 -> 0 | D30: ='Balancen Scenarie 2030'!D30-'Balancen BAU 2030'!D30 -> 0 | E30: ='Balancen Scenarie 2030'!E30-'Balancen BAU 2030'!E30 -> 0 | F30: ='Balancen Scenarie 2030'!F30-'Balancen BAU 2030'!F30 -> 0 | G30: ='Balancen Scenarie 2030'!G30-'Balancen BAU 2030'!G30 -> 0 | H30: ='Balancen Scenarie 2030'!H30-'Balancen BAU 2030'!H30 -> 0 | I30: ='Balancen Scenarie 2030'!I30-'Balancen BAU 2030'!I30 -> 0 | J30: ='Balancen Scenarie 2030'!J30-'Balancen BAU 2030'!J30 -> 0 | K30: ='Balancen Scenarie 2030'!K30-'Balancen BAU 2030'!K30 -> 0 | L30: ='Balancen Scenarie 2030'!L30-'Balancen BAU 2030'!L30 -> 0 | M30: ='Balancen Scenarie 2030'!M30-'Balancen BAU 2030'!M30 -> 0 | N30: ='Balancen Scenarie 2030'!N30-'Balancen BAU 2030'!N30 -> 0 | O30: ='Balancen Scenarie 2030'!O30-'Balancen BAU 2030'!O30 -> 0 | P30: ='Balancen Scenarie 2030'!P30-'Balancen BAU 2030'!P30 -> 0 | Q30: ='Balancen Scenarie 2030'!Q30-'Balancen BAU 2030'!Q30 -> 0 | R30: ='Balancen Scenarie 2030'!R30-'Balancen BAU 2030'!R30 -> 0 | S30: ='Balancen Scenarie 2030'!S30-'Balancen BAU 2030'!S30 -> 0 | T30: ='Balancen Scenarie 2030'!T30-'Balancen BAU 2030'!T30 -> 0 | U30: ='Balancen Scenarie 2030'!U30-'Balancen BAU 2030'!U30 -> 0 | V30: ='Balancen Scenarie 2030'!V30-'Balancen BAU 2030'!V30 -> 0 | W30: ='Balancen Scenarie 2030'!W30-'Balancen BAU 2030'!W30 -> 0 | X30: ='Balancen Scenarie 2030'!X30-'Balancen BAU 2030'!X30 -> 0 | Y30: ='Balancen Scenarie 2030'!Y30-'Balancen BAU 2030'!Y30 -> 0 | Z30: ='Balancen Scenarie 2030'!Z30-'Balancen BAU 2030'!Z30 -> 0 | AA30: ='Balancen Scenarie 2030'!AA30-'Balancen BAU 2030'!AA30 -> 0 | AB30: ='Balancen Scenarie 2030'!AB30-'Balancen BAU 2030'!AB30 -> 0 | AC30: ='Balancen Scenarie 2030'!AC30-'Balancen BAU 2030'!AC30 -> 0 | AD30: ='Balancen Scenarie 2030'!AD30-'Balancen BAU 2030'!AD30 -> 0 | AE30: ='Balancen Scenarie 2030'!AE30-'Balancen BAU 2030'!AE30 -> 0 | AF30: ='Balancen Scenarie 2030'!AF30-'Balancen BAU 2030'!AF30 -> 0 | AG30: ='Balancen Scenarie 2030'!AG30-'Balancen BAU 2030'!AG30 -> 0 | AH30: ='Balancen Scenarie 2030'!AH30-'Balancen BAU 2030'!AH30 -> 0 | AI30: ='Balancen Scenarie 2030'!AI30-'Balancen BAU 2030'!AI30 -> 0 | AJ30: ='Balancen Scenarie 2030'!AJ30-'Balancen BAU 2030'!AJ30 -> 0 | AK30: ='Balancen Scenarie 2030'!AK30-'Balancen BAU 2030'!AK30 -> 0 | AL30: ='Balancen Scenarie 2030'!AL30-'Balancen BAU 2030'!AL30 -> 0 | AM30: ='Balancen Scenarie 2030'!AM30-'Balancen BAU 2030'!AM30 -> 0 | AN30: ='Balancen Scenarie 2030'!AN30-'Balancen BAU 2030'!AN30 -> 0 | AO30: ='Balancen Scenarie 2030'!AO30-'Balancen BAU 2030'!AO30 -> 0 | AP30: ='Balancen Scenarie 2030'!AP30-'Balancen BAU 2030'!AP30 -> 0 | AQ30: ='Balancen Scenarie 2030'!AQ30-'Balancen BAU 2030'!AQ30 -> 0 | AR30: ='Balancen Scenarie 2030'!AR30-'Balancen BAU 2030'!AR30 -> 0 | AS30: ='Balancen Scenarie 2030'!AS30-'Balancen BAU 2030'!AS30 -> 0 | AT30: ='Balancen Scenarie 2030'!AT30-'Balancen BAU 2030'!AT30 -> 0 | AU30: ='Balancen Scenarie 2030'!AU30-'Balancen BAU 2030'!AU30 -> 0.115038032
A31: Bus | B31: ='Balancen Scenarie 2030'!B31-'Balancen BAU 2030'!B31 -> 0 | C31: ='Balancen Scenarie 2030'!C31-'Balancen BAU 2030'!C31 -> 0 | D31: ='Balancen Scenarie 2030'!D31-'Balancen BAU 2030'!D31 -> 0 | E31: ='Balancen Scenarie 2030'!E31-'Balancen BAU 2030'!E31 -> 0 | F31: ='Balancen Scenarie 2030'!F31-'Balancen BAU 2030'!F31 -> 0 | G31: ='Balancen Scenarie 2030'!G31-'Balancen BAU 2030'!G31 -> 0 | H31: ='Balancen Scenarie 2030'!H31-'Balancen BAU 2030'!H31 -> 0 | I31: ='Balancen Scenarie 2030'!I31-'Balancen BAU 2030'!I31 -> 0 | J31: ='Balancen Scenarie 2030'!J31-'Balancen BAU 2030'!J31 -> 0 | K31: ='Balancen Scenarie 2030'!K31-'Balancen BAU 2030'!K31 -> 0 | L31: ='Balancen Scenarie 2030'!L31-'Balancen BAU 2030'!L31 -> 0 | M31: ='Balancen Scenarie 2030'!M31-'Balancen BAU 2030'!M31 -> 0 | N31: ='Balancen Scenarie 2030'!N31-'Balancen BAU 2030'!N31 -> 0 | O31: ='Balancen Scenarie 2030'!O31-'Balancen BAU 2030'!O31 -> 0 | P31: ='Balancen Scenarie 2030'!P31-'Balancen BAU 2030'!P31 -> 0 | Q31: ='Balancen Scenarie 2030'!Q31-'Balancen BAU 2030'!Q31 -> 0 | R31: ='Balancen Scenarie 2030'!R31-'Balancen BAU 2030'!R31 -> 0 | S31: ='Balancen Scenarie 2030'!S31-'Balancen BAU 2030'!S31 -> 0 | T31: ='Balancen Scenarie 2030'!T31-'Balancen BAU 2030'!T31 -> 0 | U31: ='Balancen Scenarie 2030'!U31-'Balancen BAU 2030'!U31 -> 0 | V31: ='Balancen Scenarie 2030'!V31-'Balancen BAU 2030'!V31 -> 0 | W31: ='Balancen Scenarie 2030'!W31-'Balancen BAU 2030'!W31 -> 0 | X31: ='Balancen Scenarie 2030'!X31-'Balancen BAU 2030'!X31 -> 0 | Y31: ='Balancen Scenarie 2030'!Y31-'Balancen BAU 2030'!Y31 -> 0 | Z31: ='Balancen Scenarie 2030'!Z31-'Balancen BAU 2030'!Z31 -> 0 | AA31: ='Balancen Scenarie 2030'!AA31-'Balancen BAU 2030'!AA31 -> 0 | AB31: ='Balancen Scenarie 2030'!AB31-'Balancen BAU 2030'!AB31 -> 0 | AC31: ='Balancen Scenarie 2030'!AC31-'Balancen BAU 2030'!AC31 -> 0 | AD31: ='Balancen Scenarie 2030'!AD31-'Balancen BAU 2030'!AD31 -> 0 | AE31: ='Balancen Scenarie 2030'!AE31-'Balancen BAU 2030'!AE31 -> 0 | AF31: ='Balancen Scenarie 2030'!AF31-'Balancen BAU 2030'!AF31 -> 0 | AG31: ='Balancen Scenarie 2030'!AG31-'Balancen BAU 2030'!AG31 -> 0 | AH31: ='Balancen Scenarie 2030'!AH31-'Balancen BAU 2030'!AH31 -> 0 | AI31: ='Balancen Scenarie 2030'!AI31-'Balancen BAU 2030'!AI31 -> 0 | AJ31: ='Balancen Scenarie 2030'!AJ31-'Balancen BAU 2030'!AJ31 -> 0 | AK31: ='Balancen Scenarie 2030'!AK31-'Balancen BAU 2030'!AK31 -> 0 | AL31: ='Balancen Scenarie 2030'!AL31-'Balancen BAU 2030'!AL31 -> 0 | AM31: ='Balancen Scenarie 2030'!AM31-'Balancen BAU 2030'!AM31 -> 0 | AN31: ='Balancen Scenarie 2030'!AN31-'Balancen BAU 2030'!AN31 -> 0 | AO31: ='Balancen Scenarie 2030'!AO31-'Balancen BAU 2030'!AO31 -> 0 | AP31: ='Balancen Scenarie 2030'!AP31-'Balancen BAU 2030'!AP31 -> 0 | AQ31: ='Balancen Scenarie 2030'!AQ31-'Balancen BAU 2030'!AQ31 -> 0 | AR31: ='Balancen Scenarie 2030'!AR31-'Balancen BAU 2030'!AR31 -> 0 | AS31: ='Balancen Scenarie 2030'!AS31-'Balancen BAU 2030'!AS31 -> 0 | AT31: ='Balancen Scenarie 2030'!AT31-'Balancen BAU 2030'!AT31 -> -4.611477817 | AU31: ='Balancen Scenarie 2030'!AU31-'Balancen BAU 2030'!AU31 -> 0.8513693817
A32: Ikke-kategoriseret | B32: ='Balancen Scenarie 2030'!B32-'Balancen BAU 2030'!B32 -> 0 | C32: ='Balancen Scenarie 2030'!C32-'Balancen BAU 2030'!C32 -> 0 | D32: ='Balancen Scenarie 2030'!D32-'Balancen BAU 2030'!D32 -> 0 | E32: ='Balancen Scenarie 2030'!E32-'Balancen BAU 2030'!E32 -> 0 | F32: ='Balancen Scenarie 2030'!F32-'Balancen BAU 2030'!F32 -> 0 | G32: ='Balancen Scenarie 2030'!G32-'Balancen BAU 2030'!G32 -> 0 | H32: ='Balancen Scenarie 2030'!H32-'Balancen BAU 2030'!H32 -> 0 | I32: ='Balancen Scenarie 2030'!I32-'Balancen BAU 2030'!I32 -> 0 | J32: ='Balancen Scenarie 2030'!J32-'Balancen BAU 2030'!J32 -> 0 | K32: ='Balancen Scenarie 2030'!K32-'Balancen BAU 2030'!K32 -> 0 | L32: ='Balancen Scenarie 2030'!L32-'Balancen BAU 2030'!L32 -> 0 | M32: ='Balancen Scenarie 2030'!M32-'Balancen BAU 2030'!M32 -> 0 | N32: ='Balancen Scenarie 2030'!N32-'Balancen BAU 2030'!N32 -> 0 | O32: ='Balancen Scenarie 2030'!O32-'Balancen BAU 2030'!O32 -> 0 | P32: ='Balancen Scenarie 2030'!P32-'Balancen BAU 2030'!P32 -> 0 | Q32: ='Balancen Scenarie 2030'!Q32-'Balancen BAU 2030'!Q32 -> 0 | R32: ='Balancen Scenarie 2030'!R32-'Balancen BAU 2030'!R32 -> 0 | S32: ='Balancen Scenarie 2030'!S32-'Balancen BAU 2030'!S32 -> 0 | T32: ='Balancen Scenarie 2030'!T32-'Balancen BAU 2030'!T32 -> 0 | U32: ='Balancen Scenarie 2030'!U32-'Balancen BAU 2030'!U32 -> 0 | V32: ='Balancen Scenarie 2030'!V32-'Balancen BAU 2030'!V32 -> 0 | W32: ='Balancen Scenarie 2030'!W32-'Balancen BAU 2030'!W32 -> 0 | X32: ='Balancen Scenarie 2030'!X32-'Balancen BAU 2030'!X32 -> 0 | Y32: ='Balancen Scenarie 2030'!Y32-'Balancen BAU 2030'!Y32 -> 0 | Z32: ='Balancen Scenarie 2030'!Z32-'Balancen BAU 2030'!Z32 -> 0 | AA32: ='Balancen Scenarie 2030'!AA32-'Balancen BAU 2030'!AA32 -> 0 | AB32: ='Balancen Scenarie 2030'!AB32-'Balancen BAU 2030'!AB32 -> 0 | AC32: ='Balancen Scenarie 2030'!AC32-'Balancen BAU 2030'!AC32 -> 0 | AD32: ='Balancen Scenarie 2030'!AD32-'Balancen BAU 2030'!AD32 -> 0 | AE32: ='Balancen Scenarie 2030'!AE32-'Balancen BAU 2030'!AE32 -> 0 | AF32: ='Balancen Scenarie 2030'!AF32-'Balancen BAU 2030'!AF32 -> 0 | AG32: ='Balancen Scenarie 2030'!AG32-'Balancen BAU 2030'!AG32 -> 0 | AH32: ='Balancen Scenarie 2030'!AH32-'Balancen BAU 2030'!AH32 -> 0 | AI32: ='Balancen Scenarie 2030'!AI32-'Balancen BAU 2030'!AI32 -> 0 | AJ32: ='Balancen Scenarie 2030'!AJ32-'Balancen BAU 2030'!AJ32 -> 0 | AK32: ='Balancen Scenarie 2030'!AK32-'Balancen BAU 2030'!AK32 -> 0 | AL32: ='Balancen Scenarie 2030'!AL32-'Balancen BAU 2030'!AL32 -> 0 | AM32: ='Balancen Scenarie 2030'!AM32-'Balancen BAU 2030'!AM32 -> 0 | AN32: ='Balancen Scenarie 2030'!AN32-'Balancen BAU 2030'!AN32 -> 0 | AO32: ='Balancen Scenarie 2030'!AO32-'Balancen BAU 2030'!AO32 -> 0 | AP32: ='Balancen Scenarie 2030'!AP32-'Balancen BAU 2030'!AP32 -> 0 | AQ32: ='Balancen Scenarie 2030'!AQ32-'Balancen BAU 2030'!AQ32 -> 0 | AR32: ='Balancen Scenarie 2030'!AR32-'Balancen BAU 2030'!AR32 -> 0 | AS32: ='Balancen Scenarie 2030'!AS32-'Balancen BAU 2030'!AS32 -> 0 | AT32: ='Balancen Scenarie 2030'!AT32-'Balancen BAU 2030'!AT32 -> 0 | AU32: ='Balancen Scenarie 2030'!AU32-'Balancen BAU 2030'!AU32 -> 0
A33: Jernbanetransport | B33: ='Balancen Scenarie 2030'!B33-'Balancen BAU 2030'!B33 -> 0 | C33: ='Balancen Scenarie 2030'!C33-'Balancen BAU 2030'!C33 -> 0 | D33: ='Balancen Scenarie 2030'!D33-'Balancen BAU 2030'!D33 -> 0 | E33: ='Balancen Scenarie 2030'!E33-'Balancen BAU 2030'!E33 -> 0 | F33: ='Balancen Scenarie 2030'!F33-'Balancen BAU 2030'!F33 -> -1.136868377e-12 | G33: ='Balancen Scenarie 2030'!G33-'Balancen BAU 2030'!G33 -> 0 | H33: ='Balancen Scenarie 2030'!H33-'Balancen BAU 2030'!H33 -> 0 | I33: ='Balancen Scenarie 2030'!I33-'Balancen BAU 2030'!I33 -> -1.136868377e-12 | J33: ='Balancen Scenarie 2030'!J33-'Balancen BAU 2030'!J33 -> 0 | K33: ='Balancen Scenarie 2030'!K33-'Balancen BAU 2030'!K33 -> 0 | L33: ='Balancen Scenarie 2030'!L33-'Balancen BAU 2030'!L33 -> 0 | M33: ='Balancen Scenarie 2030'!M33-'Balancen BAU 2030'!M33 -> 0 | N33: ='Balancen Scenarie 2030'!N33-'Balancen BAU 2030'!N33 -> 0 | O33: ='Balancen Scenarie 2030'!O33-'Balancen BAU 2030'!O33 -> 0 | P33: ='Balancen Scenarie 2030'!P33-'Balancen BAU 2030'!P33 -> 0 | Q33: ='Balancen Scenarie 2030'!Q33-'Balancen BAU 2030'!Q33 -> 0 | R33: ='Balancen Scenarie 2030'!R33-'Balancen BAU 2030'!R33 -> 0 | S33: ='Balancen Scenarie 2030'!S33-'Balancen BAU 2030'!S33 -> 0 | T33: ='Balancen Scenarie 2030'!T33-'Balancen BAU 2030'!T33 -> 0 | U33: ='Balancen Scenarie 2030'!U33-'Balancen BAU 2030'!U33 -> 0 | V33: ='Balancen Scenarie 2030'!V33-'Balancen BAU 2030'!V33 -> 0 | W33: ='Balancen Scenarie 2030'!W33-'Balancen BAU 2030'!W33 -> 0 | X33: ='Balancen Scenarie 2030'!X33-'Balancen BAU 2030'!X33 -> 0 | Y33: ='Balancen Scenarie 2030'!Y33-'Balancen BAU 2030'!Y33 -> 0 | Z33: ='Balancen Scenarie 2030'!Z33-'Balancen BAU 2030'!Z33 -> 0 | AA33: ='Balancen Scenarie 2030'!AA33-'Balancen BAU 2030'!AA33 -> -1.421085472e-13 | AB33: ='Balancen Scenarie 2030'!AB33-'Balancen BAU 2030'!AB33 -> -1.421085472e-13 | AC33: ='Balancen Scenarie 2030'!AC33-'Balancen BAU 2030'!AC33 -> 0 | AD33: ='Balancen Scenarie 2030'!AD33-'Balancen BAU 2030'!AD33 -> 0 | AE33: ='Balancen Scenarie 2030'!AE33-'Balancen BAU 2030'!AE33 -> 0 | AF33: ='Balancen Scenarie 2030'!AF33-'Balancen BAU 2030'!AF33 -> 0 | AG33: ='Balancen Scenarie 2030'!AG33-'Balancen BAU 2030'!AG33 -> 0 | AH33: ='Balancen Scenarie 2030'!AH33-'Balancen BAU 2030'!AH33 -> 0 | AI33: ='Balancen Scenarie 2030'!AI33-'Balancen BAU 2030'!AI33 -> 0 | AJ33: ='Balancen Scenarie 2030'!AJ33-'Balancen BAU 2030'!AJ33 -> 0 | AK33: ='Balancen Scenarie 2030'!AK33-'Balancen BAU 2030'!AK33 -> 0 | AL33: ='Balancen Scenarie 2030'!AL33-'Balancen BAU 2030'!AL33 -> -3.637978807e-12 | AM33: ='Balancen Scenarie 2030'!AM33-'Balancen BAU 2030'!AM33 -> 0 | AN33: ='Balancen Scenarie 2030'!AN33-'Balancen BAU 2030'!AN33 -> 0 | AO33: ='Balancen Scenarie 2030'!AO33-'Balancen BAU 2030'!AO33 -> -3.637978807e-12 | AP33: ='Balancen Scenarie 2030'!AP33-'Balancen BAU 2030'!AP33 -> 0 | AQ33: ='Balancen Scenarie 2030'!AQ33-'Balancen BAU 2030'!AQ33 -> 0 | AR33: ='Balancen Scenarie 2030'!AR33-'Balancen BAU 2030'!AR33 -> 0 | AS33: ='Balancen Scenarie 2030'!AS33-'Balancen BAU 2030'!AS33 -> 8.731149137e-11 | AT33: ='Balancen Scenarie 2030'!AT33-'Balancen BAU 2030'!AT33 -> -29.51345803 | AU33: ='Balancen Scenarie 2030'!AU33-'Balancen BAU 2030'!AU33 -> -1.798631972
A34: Regionaltog | B34: ='Balancen Scenarie 2030'!B34-'Balancen BAU 2030'!B34 -> 0 | C34: ='Balancen Scenarie 2030'!C34-'Balancen BAU 2030'!C34 -> 0 | D34: ='Balancen Scenarie 2030'!D34-'Balancen BAU 2030'!D34 -> 0 | E34: ='Balancen Scenarie 2030'!E34-'Balancen BAU 2030'!E34 -> 0 | F34: ='Balancen Scenarie 2030'!F34-'Balancen BAU 2030'!F34 -> 0 | G34: ='Balancen Scenarie 2030'!G34-'Balancen BAU 2030'!G34 -> 0 | H34: ='Balancen Scenarie 2030'!H34-'Balancen BAU 2030'!H34 -> 0 | I34: ='Balancen Scenarie 2030'!I34-'Balancen BAU 2030'!I34 -> 0 | J34: ='Balancen Scenarie 2030'!J34-'Balancen BAU 2030'!J34 -> 0 | K34: ='Balancen Scenarie 2030'!K34-'Balancen BAU 2030'!K34 -> 0 | L34: ='Balancen Scenarie 2030'!L34-'Balancen BAU 2030'!L34 -> 0 | M34: ='Balancen Scenarie 2030'!M34-'Balancen BAU 2030'!M34 -> 0 | N34: ='Balancen Scenarie 2030'!N34-'Balancen BAU 2030'!N34 -> 0 | O34: ='Balancen Scenarie 2030'!O34-'Balancen BAU 2030'!O34 -> 0 | P34: ='Balancen Scenarie 2030'!P34-'Balancen BAU 2030'!P34 -> 0 | Q34: ='Balancen Scenarie 2030'!Q34-'Balancen BAU 2030'!Q34 -> 0 | R34: ='Balancen Scenarie 2030'!R34-'Balancen BAU 2030'!R34 -> 0 | S34: ='Balancen Scenarie 2030'!S34-'Balancen BAU 2030'!S34 -> 0 | T34: ='Balancen Scenarie 2030'!T34-'Balancen BAU 2030'!T34 -> 0 | U34: ='Balancen Scenarie 2030'!U34-'Balancen BAU 2030'!U34 -> 0 | V34: ='Balancen Scenarie 2030'!V34-'Balancen BAU 2030'!V34 -> 0 | W34: ='Balancen Scenarie 2030'!W34-'Balancen BAU 2030'!W34 -> 0 | X34: ='Balancen Scenarie 2030'!X34-'Balancen BAU 2030'!X34 -> 0 | Y34: ='Balancen Scenarie 2030'!Y34-'Balancen BAU 2030'!Y34 -> 0 | Z34: ='Balancen Scenarie 2030'!Z34-'Balancen BAU 2030'!Z34 -> 0 | AA34: ='Balancen Scenarie 2030'!AA34-'Balancen BAU 2030'!AA34 -> 0 | AB34: ='Balancen Scenarie 2030'!AB34-'Balancen BAU 2030'!AB34 -> 0 | AC34: ='Balancen Scenarie 2030'!AC34-'Balancen BAU 2030'!AC34 -> 0 | AD34: ='Balancen Scenarie 2030'!AD34-'Balancen BAU 2030'!AD34 -> 0 | AE34: ='Balancen Scenarie 2030'!AE34-'Balancen BAU 2030'!AE34 -> 0 | AF34: ='Balancen Scenarie 2030'!AF34-'Balancen BAU 2030'!AF34 -> 0 | AG34: ='Balancen Scenarie 2030'!AG34-'Balancen BAU 2030'!AG34 -> 0 | AH34: ='Balancen Scenarie 2030'!AH34-'Balancen BAU 2030'!AH34 -> 0 | AI34: ='Balancen Scenarie 2030'!AI34-'Balancen BAU 2030'!AI34 -> 0 | AJ34: ='Balancen Scenarie 2030'!AJ34-'Balancen BAU 2030'!AJ34 -> 0 | AK34: ='Balancen Scenarie 2030'!AK34-'Balancen BAU 2030'!AK34 -> 0 | AL34: ='Balancen Scenarie 2030'!AL34-'Balancen BAU 2030'!AL34 -> 0 | AM34: ='Balancen Scenarie 2030'!AM34-'Balancen BAU 2030'!AM34 -> 0 | AN34: ='Balancen Scenarie 2030'!AN34-'Balancen BAU 2030'!AN34 -> 0 | AO34: ='Balancen Scenarie 2030'!AO34-'Balancen BAU 2030'!AO34 -> 0 | AP34: ='Balancen Scenarie 2030'!AP34-'Balancen BAU 2030'!AP34 -> 0 | AQ34: ='Balancen Scenarie 2030'!AQ34-'Balancen BAU 2030'!AQ34 -> 0 | AR34: ='Balancen Scenarie 2030'!AR34-'Balancen BAU 2030'!AR34 -> 0 | AS34: ='Balancen Scenarie 2030'!AS34-'Balancen BAU 2030'!AS34 -> 0 | AT34: ='Balancen Scenarie 2030'!AT34-'Balancen BAU 2030'!AT34 -> 0 | AU34: ='Balancen Scenarie 2030'!AU34-'Balancen BAU 2030'!AU34 -> 0
A35: Intercitytog | B35: ='Balancen Scenarie 2030'!B35-'Balancen BAU 2030'!B35 -> 0 | C35: ='Balancen Scenarie 2030'!C35-'Balancen BAU 2030'!C35 -> 0 | D35: ='Balancen Scenarie 2030'!D35-'Balancen BAU 2030'!D35 -> 0 | E35: ='Balancen Scenarie 2030'!E35-'Balancen BAU 2030'!E35 -> 0 | F35: ='Balancen Scenarie 2030'!F35-'Balancen BAU 2030'!F35 -> 0 | G35: ='Balancen Scenarie 2030'!G35-'Balancen BAU 2030'!G35 -> 0 | H35: ='Balancen Scenarie 2030'!H35-'Balancen BAU 2030'!H35 -> 0 | I35: ='Balancen Scenarie 2030'!I35-'Balancen BAU 2030'!I35 -> 0 | J35: ='Balancen Scenarie 2030'!J35-'Balancen BAU 2030'!J35 -> 0 | K35: ='Balancen Scenarie 2030'!K35-'Balancen BAU 2030'!K35 -> 0 | L35: ='Balancen Scenarie 2030'!L35-'Balancen BAU 2030'!L35 -> 0 | M35: ='Balancen Scenarie 2030'!M35-'Balancen BAU 2030'!M35 -> 0 | N35: ='Balancen Scenarie 2030'!N35-'Balancen BAU 2030'!N35 -> 0 | O35: ='Balancen Scenarie 2030'!O35-'Balancen BAU 2030'!O35 -> 0 | P35: ='Balancen Scenarie 2030'!P35-'Balancen BAU 2030'!P35 -> 0 | Q35: ='Balancen Scenarie 2030'!Q35-'Balancen BAU 2030'!Q35 -> 0 | R35: ='Balancen Scenarie 2030'!R35-'Balancen BAU 2030'!R35 -> 0 | S35: ='Balancen Scenarie 2030'!S35-'Balancen BAU 2030'!S35 -> 0 | T35: ='Balancen Scenarie 2030'!T35-'Balancen BAU 2030'!T35 -> 0 | U35: ='Balancen Scenarie 2030'!U35-'Balancen BAU 2030'!U35 -> 0 | V35: ='Balancen Scenarie 2030'!V35-'Balancen BAU 2030'!V35 -> 0 | W35: ='Balancen Scenarie 2030'!W35-'Balancen BAU 2030'!W35 -> 0 | X35: ='Balancen Scenarie 2030'!X35-'Balancen BAU 2030'!X35 -> 0 | Y35: ='Balancen Scenarie 2030'!Y35-'Balancen BAU 2030'!Y35 -> 0 | Z35: ='Balancen Scenarie 2030'!Z35-'Balancen BAU 2030'!Z35 -> 0 | AA35: ='Balancen Scenarie 2030'!AA35-'Balancen BAU 2030'!AA35 -> 0 | AB35: ='Balancen Scenarie 2030'!AB35-'Balancen BAU 2030'!AB35 -> 0 | AC35: ='Balancen Scenarie 2030'!AC35-'Balancen BAU 2030'!AC35 -> 0 | AD35: ='Balancen Scenarie 2030'!AD35-'Balancen BAU 2030'!AD35 -> 0 | AE35: ='Balancen Scenarie 2030'!AE35-'Balancen BAU 2030'!AE35 -> 0 | AF35: ='Balancen Scenarie 2030'!AF35-'Balancen BAU 2030'!AF35 -> 0 | AG35: ='Balancen Scenarie 2030'!AG35-'Balancen BAU 2030'!AG35 -> 0 | AH35: ='Balancen Scenarie 2030'!AH35-'Balancen BAU 2030'!AH35 -> 0 | AI35: ='Balancen Scenarie 2030'!AI35-'Balancen BAU 2030'!AI35 -> 0 | AJ35: ='Balancen Scenarie 2030'!AJ35-'Balancen BAU 2030'!AJ35 -> 0 | AK35: ='Balancen Scenarie 2030'!AK35-'Balancen BAU 2030'!AK35 -> 0 | AL35: ='Balancen Scenarie 2030'!AL35-'Balancen BAU 2030'!AL35 -> 0 | AM35: ='Balancen Scenarie 2030'!AM35-'Balancen BAU 2030'!AM35 -> 0 | AN35: ='Balancen Scenarie 2030'!AN35-'Balancen BAU 2030'!AN35 -> 0 | AO35: ='Balancen Scenarie 2030'!AO35-'Balancen BAU 2030'!AO35 -> 0 | AP35: ='Balancen Scenarie 2030'!AP35-'Balancen BAU 2030'!AP35 -> 0 | AQ35: ='Balancen Scenarie 2030'!AQ35-'Balancen BAU 2030'!AQ35 -> 0 | AR35: ='Balancen Scenarie 2030'!AR35-'Balancen BAU 2030'!AR35 -> 0 | AS35: ='Balancen Scenarie 2030'!AS35-'Balancen BAU 2030'!AS35 -> 0 | AT35: ='Balancen Scenarie 2030'!AT35-'Balancen BAU 2030'!AT35 -> 0 | AU35: ='Balancen Scenarie 2030'!AU35-'Balancen BAU 2030'!AU35 -> 0
A36: Lyntog | B36: ='Balancen Scenarie 2030'!B36-'Balancen BAU 2030'!B36 -> 0 | C36: ='Balancen Scenarie 2030'!C36-'Balancen BAU 2030'!C36 -> 0 | D36: ='Balancen Scenarie 2030'!D36-'Balancen BAU 2030'!D36 -> 0 | E36: ='Balancen Scenarie 2030'!E36-'Balancen BAU 2030'!E36 -> 0 | F36: ='Balancen Scenarie 2030'!F36-'Balancen BAU 2030'!F36 -> 0 | G36: ='Balancen Scenarie 2030'!G36-'Balancen BAU 2030'!G36 -> 0 | H36: ='Balancen Scenarie 2030'!H36-'Balancen BAU 2030'!H36 -> 0 | I36: ='Balancen Scenarie 2030'!I36-'Balancen BAU 2030'!I36 -> 0 | J36: ='Balancen Scenarie 2030'!J36-'Balancen BAU 2030'!J36 -> 0 | K36: ='Balancen Scenarie 2030'!K36-'Balancen BAU 2030'!K36 -> 0 | L36: ='Balancen Scenarie 2030'!L36-'Balancen BAU 2030'!L36 -> 0 | M36: ='Balancen Scenarie 2030'!M36-'Balancen BAU 2030'!M36 -> 0 | N36: ='Balancen Scenarie 2030'!N36-'Balancen BAU 2030'!N36 -> 0 | O36: ='Balancen Scenarie 2030'!O36-'Balancen BAU 2030'!O36 -> 0 | P36: ='Balancen Scenarie 2030'!P36-'Balancen BAU 2030'!P36 -> 0 | Q36: ='Balancen Scenarie 2030'!Q36-'Balancen BAU 2030'!Q36 -> 0 | R36: ='Balancen Scenarie 2030'!R36-'Balancen BAU 2030'!R36 -> 0 | S36: ='Balancen Scenarie 2030'!S36-'Balancen BAU 2030'!S36 -> 0 | T36: ='Balancen Scenarie 2030'!T36-'Balancen BAU 2030'!T36 -> 0 | U36: ='Balancen Scenarie 2030'!U36-'Balancen BAU 2030'!U36 -> 0 | V36: ='Balancen Scenarie 2030'!V36-'Balancen BAU 2030'!V36 -> 0 | W36: ='Balancen Scenarie 2030'!W36-'Balancen BAU 2030'!W36 -> 0 | X36: ='Balancen Scenarie 2030'!X36-'Balancen BAU 2030'!X36 -> 0 | Y36: ='Balancen Scenarie 2030'!Y36-'Balancen BAU 2030'!Y36 -> 0 | Z36: ='Balancen Scenarie 2030'!Z36-'Balancen BAU 2030'!Z36 -> 0 | AA36: ='Balancen Scenarie 2030'!AA36-'Balancen BAU 2030'!AA36 -> 0 | AB36: ='Balancen Scenarie 2030'!AB36-'Balancen BAU 2030'!AB36 -> 0 | AC36: ='Balancen Scenarie 2030'!AC36-'Balancen BAU 2030'!AC36 -> 0 | AD36: ='Balancen Scenarie 2030'!AD36-'Balancen BAU 2030'!AD36 -> 0 | AE36: ='Balancen Scenarie 2030'!AE36-'Balancen BAU 2030'!AE36 -> 0 | AF36: ='Balancen Scenarie 2030'!AF36-'Balancen BAU 2030'!AF36 -> 0 | AG36: ='Balancen Scenarie 2030'!AG36-'Balancen BAU 2030'!AG36 -> 0 | AH36: ='Balancen Scenarie 2030'!AH36-'Balancen BAU 2030'!AH36 -> 0 | AI36: ='Balancen Scenarie 2030'!AI36-'Balancen BAU 2030'!AI36 -> 0 | AJ36: ='Balancen Scenarie 2030'!AJ36-'Balancen BAU 2030'!AJ36 -> 0 | AK36: ='Balancen Scenarie 2030'!AK36-'Balancen BAU 2030'!AK36 -> 0 | AL36: ='Balancen Scenarie 2030'!AL36-'Balancen BAU 2030'!AL36 -> 0 | AM36: ='Balancen Scenarie 2030'!AM36-'Balancen BAU 2030'!AM36 -> 0 | AN36: ='Balancen Scenarie 2030'!AN36-'Balancen BAU 2030'!AN36 -> 0 | AO36: ='Balancen Scenarie 2030'!AO36-'Balancen BAU 2030'!AO36 -> 0 | AP36: ='Balancen Scenarie 2030'!AP36-'Balancen BAU 2030'!AP36 -> 0 | AQ36: ='Balancen Scenarie 2030'!AQ36-'Balancen BAU 2030'!AQ36 -> 0 | AR36: ='Balancen Scenarie 2030'!AR36-'Balancen BAU 2030'!AR36 -> 0 | AS36: ='Balancen Scenarie 2030'!AS36-'Balancen BAU 2030'!AS36 -> 0 | AT36: ='Balancen Scenarie 2030'!AT36-'Balancen BAU 2030'!AT36 -> 0 | AU36: ='Balancen Scenarie 2030'!AU36-'Balancen BAU 2030'!AU36 -> 0
A37: Lokalbane | B37: ='Balancen Scenarie 2030'!B37-'Balancen BAU 2030'!B37 -> 0 | C37: ='Balancen Scenarie 2030'!C37-'Balancen BAU 2030'!C37 -> 0 | D37: ='Balancen Scenarie 2030'!D37-'Balancen BAU 2030'!D37 -> 0 | E37: ='Balancen Scenarie 2030'!E37-'Balancen BAU 2030'!E37 -> 0 | F37: ='Balancen Scenarie 2030'!F37-'Balancen BAU 2030'!F37 -> 0 | G37: ='Balancen Scenarie 2030'!G37-'Balancen BAU 2030'!G37 -> 0 | H37: ='Balancen Scenarie 2030'!H37-'Balancen BAU 2030'!H37 -> 0 | I37: ='Balancen Scenarie 2030'!I37-'Balancen BAU 2030'!I37 -> 0 | J37: ='Balancen Scenarie 2030'!J37-'Balancen BAU 2030'!J37 -> 0 | K37: ='Balancen Scenarie 2030'!K37-'Balancen BAU 2030'!K37 -> 0 | L37: ='Balancen Scenarie 2030'!L37-'Balancen BAU 2030'!L37 -> 0 | M37: ='Balancen Scenarie 2030'!M37-'Balancen BAU 2030'!M37 -> 0 | N37: ='Balancen Scenarie 2030'!N37-'Balancen BAU 2030'!N37 -> 0 | O37: ='Balancen Scenarie 2030'!O37-'Balancen BAU 2030'!O37 -> 0 | P37: ='Balancen Scenarie 2030'!P37-'Balancen BAU 2030'!P37 -> 0 | Q37: ='Balancen Scenarie 2030'!Q37-'Balancen BAU 2030'!Q37 -> 0 | R37: ='Balancen Scenarie 2030'!R37-'Balancen BAU 2030'!R37 -> 0 | S37: ='Balancen Scenarie 2030'!S37-'Balancen BAU 2030'!S37 -> 0 | T37: ='Balancen Scenarie 2030'!T37-'Balancen BAU 2030'!T37 -> 0 | U37: ='Balancen Scenarie 2030'!U37-'Balancen BAU 2030'!U37 -> 0 | V37: ='Balancen Scenarie 2030'!V37-'Balancen BAU 2030'!V37 -> 0 | W37: ='Balancen Scenarie 2030'!W37-'Balancen BAU 2030'!W37 -> 0 | X37: ='Balancen Scenarie 2030'!X37-'Balancen BAU 2030'!X37 -> 0 | Y37: ='Balancen Scenarie 2030'!Y37-'Balancen BAU 2030'!Y37 -> 0 | Z37: ='Balancen Scenarie 2030'!Z37-'Balancen BAU 2030'!Z37 -> 0 | AA37: ='Balancen Scenarie 2030'!AA37-'Balancen BAU 2030'!AA37 -> 0 | AB37: ='Balancen Scenarie 2030'!AB37-'Balancen BAU 2030'!AB37 -> 0 | AC37: ='Balancen Scenarie 2030'!AC37-'Balancen BAU 2030'!AC37 -> 0 | AD37: ='Balancen Scenarie 2030'!AD37-'Balancen BAU 2030'!AD37 -> 0 | AE37: ='Balancen Scenarie 2030'!AE37-'Balancen BAU 2030'!AE37 -> 0 | AF37: ='Balancen Scenarie 2030'!AF37-'Balancen BAU 2030'!AF37 -> 0 | AG37: ='Balancen Scenarie 2030'!AG37-'Balancen BAU 2030'!AG37 -> 0 | AH37: ='Balancen Scenarie 2030'!AH37-'Balancen BAU 2030'!AH37 -> 0 | AI37: ='Balancen Scenarie 2030'!AI37-'Balancen BAU 2030'!AI37 -> 0 | AJ37: ='Balancen Scenarie 2030'!AJ37-'Balancen BAU 2030'!AJ37 -> 0 | AK37: ='Balancen Scenarie 2030'!AK37-'Balancen BAU 2030'!AK37 -> 0 | AL37: ='Balancen Scenarie 2030'!AL37-'Balancen BAU 2030'!AL37 -> 0 | AM37: ='Balancen Scenarie 2030'!AM37-'Balancen BAU 2030'!AM37 -> 0 | AN37: ='Balancen Scenarie 2030'!AN37-'Balancen BAU 2030'!AN37 -> 0 | AO37: ='Balancen Scenarie 2030'!AO37-'Balancen BAU 2030'!AO37 -> 0 | AP37: ='Balancen Scenarie 2030'!AP37-'Balancen BAU 2030'!AP37 -> 0 | AQ37: ='Balancen Scenarie 2030'!AQ37-'Balancen BAU 2030'!AQ37 -> 0 | AR37: ='Balancen Scenarie 2030'!AR37-'Balancen BAU 2030'!AR37 -> 0 | AS37: ='Balancen Scenarie 2030'!AS37-'Balancen BAU 2030'!AS37 -> 0 | AT37: ='Balancen Scenarie 2030'!AT37-'Balancen BAU 2030'!AT37 -> 0 | AU37: ='Balancen Scenarie 2030'!AU37-'Balancen BAU 2030'!AU37 -> 0
A38: S-tog | B38: ='Balancen Scenarie 2030'!B38-'Balancen BAU 2030'!B38 -> 0 | C38: ='Balancen Scenarie 2030'!C38-'Balancen BAU 2030'!C38 -> 0 | D38: ='Balancen Scenarie 2030'!D38-'Balancen BAU 2030'!D38 -> 0 | E38: ='Balancen Scenarie 2030'!E38-'Balancen BAU 2030'!E38 -> 0 | F38: ='Balancen Scenarie 2030'!F38-'Balancen BAU 2030'!F38 -> 0 | G38: ='Balancen Scenarie 2030'!G38-'Balancen BAU 2030'!G38 -> 0 | H38: ='Balancen Scenarie 2030'!H38-'Balancen BAU 2030'!H38 -> 0 | I38: ='Balancen Scenarie 2030'!I38-'Balancen BAU 2030'!I38 -> 0 | J38: ='Balancen Scenarie 2030'!J38-'Balancen BAU 2030'!J38 -> 0 | K38: ='Balancen Scenarie 2030'!K38-'Balancen BAU 2030'!K38 -> 0 | L38: ='Balancen Scenarie 2030'!L38-'Balancen BAU 2030'!L38 -> 0 | M38: ='Balancen Scenarie 2030'!M38-'Balancen BAU 2030'!M38 -> 0 | N38: ='Balancen Scenarie 2030'!N38-'Balancen BAU 2030'!N38 -> 0 | O38: ='Balancen Scenarie 2030'!O38-'Balancen BAU 2030'!O38 -> 0 | P38: ='Balancen Scenarie 2030'!P38-'Balancen BAU 2030'!P38 -> 0 | Q38: ='Balancen Scenarie 2030'!Q38-'Balancen BAU 2030'!Q38 -> 0 | R38: ='Balancen Scenarie 2030'!R38-'Balancen BAU 2030'!R38 -> 0 | S38: ='Balancen Scenarie 2030'!S38-'Balancen BAU 2030'!S38 -> 0 | T38: ='Balancen Scenarie 2030'!T38-'Balancen BAU 2030'!T38 -> 0 | U38: ='Balancen Scenarie 2030'!U38-'Balancen BAU 2030'!U38 -> 0 | V38: ='Balancen Scenarie 2030'!V38-'Balancen BAU 2030'!V38 -> 0 | W38: ='Balancen Scenarie 2030'!W38-'Balancen BAU 2030'!W38 -> 0 | X38: ='Balancen Scenarie 2030'!X38-'Balancen BAU 2030'!X38 -> 0 | Y38: ='Balancen Scenarie 2030'!Y38-'Balancen BAU 2030'!Y38 -> 0 | Z38: ='Balancen Scenarie 2030'!Z38-'Balancen BAU 2030'!Z38 -> 0 | AA38: ='Balancen Scenarie 2030'!AA38-'Balancen BAU 2030'!AA38 -> 0 | AB38: ='Balancen Scenarie 2030'!AB38-'Balancen BAU 2030'!AB38 -> 0 | AC38: ='Balancen Scenarie 2030'!AC38-'Balancen BAU 2030'!AC38 -> 0 | AD38: ='Balancen Scenarie 2030'!AD38-'Balancen BAU 2030'!AD38 -> 0 | AE38: ='Balancen Scenarie 2030'!AE38-'Balancen BAU 2030'!AE38 -> 0 | AF38: ='Balancen Scenarie 2030'!AF38-'Balancen BAU 2030'!AF38 -> 0 | AG38: ='Balancen Scenarie 2030'!AG38-'Balancen BAU 2030'!AG38 -> 0 | AH38: ='Balancen Scenarie 2030'!AH38-'Balancen BAU 2030'!AH38 -> 0 | AI38: ='Balancen Scenarie 2030'!AI38-'Balancen BAU 2030'!AI38 -> 0 | AJ38: ='Balancen Scenarie 2030'!AJ38-'Balancen BAU 2030'!AJ38 -> 0 | AK38: ='Balancen Scenarie 2030'!AK38-'Balancen BAU 2030'!AK38 -> 0 | AL38: ='Balancen Scenarie 2030'!AL38-'Balancen BAU 2030'!AL38 -> 0 | AM38: ='Balancen Scenarie 2030'!AM38-'Balancen BAU 2030'!AM38 -> 0 | AN38: ='Balancen Scenarie 2030'!AN38-'Balancen BAU 2030'!AN38 -> 0 | AO38: ='Balancen Scenarie 2030'!AO38-'Balancen BAU 2030'!AO38 -> 0 | AP38: ='Balancen Scenarie 2030'!AP38-'Balancen BAU 2030'!AP38 -> 0 | AQ38: ='Balancen Scenarie 2030'!AQ38-'Balancen BAU 2030'!AQ38 -> 0 | AR38: ='Balancen Scenarie 2030'!AR38-'Balancen BAU 2030'!AR38 -> 0 | AS38: ='Balancen Scenarie 2030'!AS38-'Balancen BAU 2030'!AS38 -> 0 | AT38: ='Balancen Scenarie 2030'!AT38-'Balancen BAU 2030'!AT38 -> 0 | AU38: ='Balancen Scenarie 2030'!AU38-'Balancen BAU 2030'!AU38 -> 0
A39: Metro | B39: ='Balancen Scenarie 2030'!B39-'Balancen BAU 2030'!B39 -> 0 | C39: ='Balancen Scenarie 2030'!C39-'Balancen BAU 2030'!C39 -> 0 | D39: ='Balancen Scenarie 2030'!D39-'Balancen BAU 2030'!D39 -> 0 | E39: ='Balancen Scenarie 2030'!E39-'Balancen BAU 2030'!E39 -> 0 | F39: ='Balancen Scenarie 2030'!F39-'Balancen BAU 2030'!F39 -> 0 | G39: ='Balancen Scenarie 2030'!G39-'Balancen BAU 2030'!G39 -> 0 | H39: ='Balancen Scenarie 2030'!H39-'Balancen BAU 2030'!H39 -> 0 | I39: ='Balancen Scenarie 2030'!I39-'Balancen BAU 2030'!I39 -> 0 | J39: ='Balancen Scenarie 2030'!J39-'Balancen BAU 2030'!J39 -> 0 | K39: ='Balancen Scenarie 2030'!K39-'Balancen BAU 2030'!K39 -> 0 | L39: ='Balancen Scenarie 2030'!L39-'Balancen BAU 2030'!L39 -> 0 | M39: ='Balancen Scenarie 2030'!M39-'Balancen BAU 2030'!M39 -> 0 | N39: ='Balancen Scenarie 2030'!N39-'Balancen BAU 2030'!N39 -> 0 | O39: ='Balancen Scenarie 2030'!O39-'Balancen BAU 2030'!O39 -> 0 | P39: ='Balancen Scenarie 2030'!P39-'Balancen BAU 2030'!P39 -> 0 | Q39: ='Balancen Scenarie 2030'!Q39-'Balancen BAU 2030'!Q39 -> 0 | R39: ='Balancen Scenarie 2030'!R39-'Balancen BAU 2030'!R39 -> 0 | S39: ='Balancen Scenarie 2030'!S39-'Balancen BAU 2030'!S39 -> 0 | T39: ='Balancen Scenarie 2030'!T39-'Balancen BAU 2030'!T39 -> 0 | U39: ='Balancen Scenarie 2030'!U39-'Balancen BAU 2030'!U39 -> 0 | V39: ='Balancen Scenarie 2030'!V39-'Balancen BAU 2030'!V39 -> 0 | W39: ='Balancen Scenarie 2030'!W39-'Balancen BAU 2030'!W39 -> 0 | X39: ='Balancen Scenarie 2030'!X39-'Balancen BAU 2030'!X39 -> 0 | Y39: ='Balancen Scenarie 2030'!Y39-'Balancen BAU 2030'!Y39 -> 0 | Z39: ='Balancen Scenarie 2030'!Z39-'Balancen BAU 2030'!Z39 -> 0 | AA39: ='Balancen Scenarie 2030'!AA39-'Balancen BAU 2030'!AA39 -> 0 | AB39: ='Balancen Scenarie 2030'!AB39-'Balancen BAU 2030'!AB39 -> 0 | AC39: ='Balancen Scenarie 2030'!AC39-'Balancen BAU 2030'!AC39 -> 0 | AD39: ='Balancen Scenarie 2030'!AD39-'Balancen BAU 2030'!AD39 -> 0 | AE39: ='Balancen Scenarie 2030'!AE39-'Balancen BAU 2030'!AE39 -> 0 | AF39: ='Balancen Scenarie 2030'!AF39-'Balancen BAU 2030'!AF39 -> 0 | AG39: ='Balancen Scenarie 2030'!AG39-'Balancen BAU 2030'!AG39 -> 0 | AH39: ='Balancen Scenarie 2030'!AH39-'Balancen BAU 2030'!AH39 -> 0 | AI39: ='Balancen Scenarie 2030'!AI39-'Balancen BAU 2030'!AI39 -> 0 | AJ39: ='Balancen Scenarie 2030'!AJ39-'Balancen BAU 2030'!AJ39 -> 0 | AK39: ='Balancen Scenarie 2030'!AK39-'Balancen BAU 2030'!AK39 -> 0 | AL39: ='Balancen Scenarie 2030'!AL39-'Balancen BAU 2030'!AL39 -> 0 | AM39: ='Balancen Scenarie 2030'!AM39-'Balancen BAU 2030'!AM39 -> 0 | AN39: ='Balancen Scenarie 2030'!AN39-'Balancen BAU 2030'!AN39 -> 0 | AO39: ='Balancen Scenarie 2030'!AO39-'Balancen BAU 2030'!AO39 -> 0 | AP39: ='Balancen Scenarie 2030'!AP39-'Balancen BAU 2030'!AP39 -> 0 | AQ39: ='Balancen Scenarie 2030'!AQ39-'Balancen BAU 2030'!AQ39 -> 0 | AR39: ='Balancen Scenarie 2030'!AR39-'Balancen BAU 2030'!AR39 -> 0 | AS39: ='Balancen Scenarie 2030'!AS39-'Balancen BAU 2030'!AS39 -> 0 | AT39: ='Balancen Scenarie 2030'!AT39-'Balancen BAU 2030'!AT39 -> 0 | AU39: ='Balancen Scenarie 2030'!AU39-'Balancen BAU 2030'!AU39 -> 0
A40: Ikke-kategoriseret | B40: ='Balancen Scenarie 2030'!B40-'Balancen BAU 2030'!B40 -> 0 | C40: ='Balancen Scenarie 2030'!C40-'Balancen BAU 2030'!C40 -> 0 | D40: ='Balancen Scenarie 2030'!D40-'Balancen BAU 2030'!D40 -> 0 | E40: ='Balancen Scenarie 2030'!E40-'Balancen BAU 2030'!E40 -> 0 | F40: ='Balancen Scenarie 2030'!F40-'Balancen BAU 2030'!F40 -> -1.136868377e-12 | G40: ='Balancen Scenarie 2030'!G40-'Balancen BAU 2030'!G40 -> 0 | H40: ='Balancen Scenarie 2030'!H40-'Balancen BAU 2030'!H40 -> 0 | I40: ='Balancen Scenarie 2030'!I40-'Balancen BAU 2030'!I40 -> -1.136868377e-12 | J40: ='Balancen Scenarie 2030'!J40-'Balancen BAU 2030'!J40 -> 0 | K40: ='Balancen Scenarie 2030'!K40-'Balancen BAU 2030'!K40 -> 0 | L40: ='Balancen Scenarie 2030'!L40-'Balancen BAU 2030'!L40 -> 0 | M40: ='Balancen Scenarie 2030'!M40-'Balancen BAU 2030'!M40 -> 0 | N40: ='Balancen Scenarie 2030'!N40-'Balancen BAU 2030'!N40 -> 0 | O40: ='Balancen Scenarie 2030'!O40-'Balancen BAU 2030'!O40 -> 0 | P40: ='Balancen Scenarie 2030'!P40-'Balancen BAU 2030'!P40 -> 0 | Q40: ='Balancen Scenarie 2030'!Q40-'Balancen BAU 2030'!Q40 -> 0 | R40: ='Balancen Scenarie 2030'!R40-'Balancen BAU 2030'!R40 -> 0 | S40: ='Balancen Scenarie 2030'!S40-'Balancen BAU 2030'!S40 -> 0 | T40: ='Balancen Scenarie 2030'!T40-'Balancen BAU 2030'!T40 -> 0 | U40: ='Balancen Scenarie 2030'!U40-'Balancen BAU 2030'!U40 -> 0 | V40: ='Balancen Scenarie 2030'!V40-'Balancen BAU 2030'!V40 -> 0 | W40: ='Balancen Scenarie 2030'!W40-'Balancen BAU 2030'!W40 -> 0 | X40: ='Balancen Scenarie 2030'!X40-'Balancen BAU 2030'!X40 -> 0 | Y40: ='Balancen Scenarie 2030'!Y40-'Balancen BAU 2030'!Y40 -> 0 | Z40: ='Balancen Scenarie 2030'!Z40-'Balancen BAU 2030'!Z40 -> 0 | AA40: ='Balancen Scenarie 2030'!AA40-'Balancen BAU 2030'!AA40 -> -1.421085472e-13 | AB40: ='Balancen Scenarie 2030'!AB40-'Balancen BAU 2030'!AB40 -> -1.421085472e-13 | AC40: ='Balancen Scenarie 2030'!AC40-'Balancen BAU 2030'!AC40 -> 0 | AD40: ='Balancen Scenarie 2030'!AD40-'Balancen BAU 2030'!AD40 -> 0 | AE40: ='Balancen Scenarie 2030'!AE40-'Balancen BAU 2030'!AE40 -> 0 | AF40: ='Balancen Scenarie 2030'!AF40-'Balancen BAU 2030'!AF40 -> 0 | AG40: ='Balancen Scenarie 2030'!AG40-'Balancen BAU 2030'!AG40 -> 0 | AH40: ='Balancen Scenarie 2030'!AH40-'Balancen BAU 2030'!AH40 -> 0 | AI40: ='Balancen Scenarie 2030'!AI40-'Balancen BAU 2030'!AI40 -> 0 | AJ40: ='Balancen Scenarie 2030'!AJ40-'Balancen BAU 2030'!AJ40 -> 0 | AK40: ='Balancen Scenarie 2030'!AK40-'Balancen BAU 2030'!AK40 -> 0 | AL40: ='Balancen Scenarie 2030'!AL40-'Balancen BAU 2030'!AL40 -> -3.637978807e-12 | AM40: ='Balancen Scenarie 2030'!AM40-'Balancen BAU 2030'!AM40 -> 0 | AN40: ='Balancen Scenarie 2030'!AN40-'Balancen BAU 2030'!AN40 -> 0 | AO40: ='Balancen Scenarie 2030'!AO40-'Balancen BAU 2030'!AO40 -> -3.637978807e-12 | AP40: ='Balancen Scenarie 2030'!AP40-'Balancen BAU 2030'!AP40 -> 0 | AQ40: ='Balancen Scenarie 2030'!AQ40-'Balancen BAU 2030'!AQ40 -> 0 | AR40: ='Balancen Scenarie 2030'!AR40-'Balancen BAU 2030'!AR40 -> 0 | AS40: ='Balancen Scenarie 2030'!AS40-'Balancen BAU 2030'!AS40 -> 8.731149137e-11 | AT40: ='Balancen Scenarie 2030'!AT40-'Balancen BAU 2030'!AT40 -> -29.51345803 | AU40: ='Balancen Scenarie 2030'!AU40-'Balancen BAU 2030'!AU40 -> -1.798631972
A41: Søtransport, indenrigs | B41: ='Balancen Scenarie 2030'!B41-'Balancen BAU 2030'!B41 -> 0 | C41: ='Balancen Scenarie 2030'!C41-'Balancen BAU 2030'!C41 -> 0 | D41: ='Balancen Scenarie 2030'!D41-'Balancen BAU 2030'!D41 -> 0 | E41: ='Balancen Scenarie 2030'!E41-'Balancen BAU 2030'!E41 -> 0 | F41: ='Balancen Scenarie 2030'!F41-'Balancen BAU 2030'!F41 -> 0 | G41: ='Balancen Scenarie 2030'!G41-'Balancen BAU 2030'!G41 -> 0 | H41: ='Balancen Scenarie 2030'!H41-'Balancen BAU 2030'!H41 -> 0 | I41: ='Balancen Scenarie 2030'!I41-'Balancen BAU 2030'!I41 -> 0 | J41: ='Balancen Scenarie 2030'!J41-'Balancen BAU 2030'!J41 -> 0 | K41: ='Balancen Scenarie 2030'!K41-'Balancen BAU 2030'!K41 -> 0 | L41: ='Balancen Scenarie 2030'!L41-'Balancen BAU 2030'!L41 -> 0 | M41: ='Balancen Scenarie 2030'!M41-'Balancen BAU 2030'!M41 -> 0 | N41: ='Balancen Scenarie 2030'!N41-'Balancen BAU 2030'!N41 -> 0 | O41: ='Balancen Scenarie 2030'!O41-'Balancen BAU 2030'!O41 -> 0 | P41: ='Balancen Scenarie 2030'!P41-'Balancen BAU 2030'!P41 -> 0 | Q41: ='Balancen Scenarie 2030'!Q41-'Balancen BAU 2030'!Q41 -> 0 | R41: ='Balancen Scenarie 2030'!R41-'Balancen BAU 2030'!R41 -> 0 | S41: ='Balancen Scenarie 2030'!S41-'Balancen BAU 2030'!S41 -> 0 | T41: ='Balancen Scenarie 2030'!T41-'Balancen BAU 2030'!T41 -> 0 | U41: ='Balancen Scenarie 2030'!U41-'Balancen BAU 2030'!U41 -> 0 | V41: ='Balancen Scenarie 2030'!V41-'Balancen BAU 2030'!V41 -> 0 | W41: ='Balancen Scenarie 2030'!W41-'Balancen BAU 2030'!W41 -> 0 | X41: ='Balancen Scenarie 2030'!X41-'Balancen BAU 2030'!X41 -> 0 | Y41: ='Balancen Scenarie 2030'!Y41-'Balancen BAU 2030'!Y41 -> 0 | Z41: ='Balancen Scenarie 2030'!Z41-'Balancen BAU 2030'!Z41 -> 0 | AA41: ='Balancen Scenarie 2030'!AA41-'Balancen BAU 2030'!AA41 -> 0 | AB41: ='Balancen Scenarie 2030'!AB41-'Balancen BAU 2030'!AB41 -> 0 | AC41: ='Balancen Scenarie 2030'!AC41-'Balancen BAU 2030'!AC41 -> 0 | AD41: ='Balancen Scenarie 2030'!AD41-'Balancen BAU 2030'!AD41 -> 0 | AE41: ='Balancen Scenarie 2030'!AE41-'Balancen BAU 2030'!AE41 -> 0 | AF41: ='Balancen Scenarie 2030'!AF41-'Balancen BAU 2030'!AF41 -> 0 | AG41: ='Balancen Scenarie 2030'!AG41-'Balancen BAU 2030'!AG41 -> 0 | AH41: ='Balancen Scenarie 2030'!AH41-'Balancen BAU 2030'!AH41 -> 0 | AI41: ='Balancen Scenarie 2030'!AI41-'Balancen BAU 2030'!AI41 -> 0 | AJ41: ='Balancen Scenarie 2030'!AJ41-'Balancen BAU 2030'!AJ41 -> 0 | AK41: ='Balancen Scenarie 2030'!AK41-'Balancen BAU 2030'!AK41 -> 0 | AL41: ='Balancen Scenarie 2030'!AL41-'Balancen BAU 2030'!AL41 -> 0 | AM41: ='Balancen Scenarie 2030'!AM41-'Balancen BAU 2030'!AM41 -> 0 | AN41: ='Balancen Scenarie 2030'!AN41-'Balancen BAU 2030'!AN41 -> 0 | AO41: ='Balancen Scenarie 2030'!AO41-'Balancen BAU 2030'!AO41 -> 0 | AP41: ='Balancen Scenarie 2030'!AP41-'Balancen BAU 2030'!AP41 -> 0 | AQ41: ='Balancen Scenarie 2030'!AQ41-'Balancen BAU 2030'!AQ41 -> 0 | AR41: ='Balancen Scenarie 2030'!AR41-'Balancen BAU 2030'!AR41 -> 0 | AS41: ='Balancen Scenarie 2030'!AS41-'Balancen BAU 2030'!AS41 -> 0 | AT41: ='Balancen Scenarie 2030'!AT41-'Balancen BAU 2030'!AT41 -> 0 | AU41: ='Balancen Scenarie 2030'!AU41-'Balancen BAU 2030'!AU41 -> 0
A42: Lufttransport | B42: ='Balancen Scenarie 2030'!B42-'Balancen BAU 2030'!B42 -> 0 | C42: ='Balancen Scenarie 2030'!C42-'Balancen BAU 2030'!C42 -> 0 | D42: ='Balancen Scenarie 2030'!D42-'Balancen BAU 2030'!D42 -> 0 | E42: ='Balancen Scenarie 2030'!E42-'Balancen BAU 2030'!E42 -> 0 | F42: ='Balancen Scenarie 2030'!F42-'Balancen BAU 2030'!F42 -> 0 | G42: ='Balancen Scenarie 2030'!G42-'Balancen BAU 2030'!G42 -> 0 | H42: ='Balancen Scenarie 2030'!H42-'Balancen BAU 2030'!H42 -> 0 | I42: ='Balancen Scenarie 2030'!I42-'Balancen BAU 2030'!I42 -> 0 | J42: ='Balancen Scenarie 2030'!J42-'Balancen BAU 2030'!J42 -> 0 | K42: ='Balancen Scenarie 2030'!K42-'Balancen BAU 2030'!K42 -> 0 | L42: ='Balancen Scenarie 2030'!L42-'Balancen BAU 2030'!L42 -> 0 | M42: ='Balancen Scenarie 2030'!M42-'Balancen BAU 2030'!M42 -> 0 | N42: ='Balancen Scenarie 2030'!N42-'Balancen BAU 2030'!N42 -> 0 | O42: ='Balancen Scenarie 2030'!O42-'Balancen BAU 2030'!O42 -> 0 | P42: ='Balancen Scenarie 2030'!P42-'Balancen BAU 2030'!P42 -> 0 | Q42: ='Balancen Scenarie 2030'!Q42-'Balancen BAU 2030'!Q42 -> 0 | R42: ='Balancen Scenarie 2030'!R42-'Balancen BAU 2030'!R42 -> 0 | S42: ='Balancen Scenarie 2030'!S42-'Balancen BAU 2030'!S42 -> 0 | T42: ='Balancen Scenarie 2030'!T42-'Balancen BAU 2030'!T42 -> 0 | U42: ='Balancen Scenarie 2030'!U42-'Balancen BAU 2030'!U42 -> 0 | V42: ='Balancen Scenarie 2030'!V42-'Balancen BAU 2030'!V42 -> 0 | W42: ='Balancen Scenarie 2030'!W42-'Balancen BAU 2030'!W42 -> 0 | X42: ='Balancen Scenarie 2030'!X42-'Balancen BAU 2030'!X42 -> 0 | Y42: ='Balancen Scenarie 2030'!Y42-'Balancen BAU 2030'!Y42 -> 0 | Z42: ='Balancen Scenarie 2030'!Z42-'Balancen BAU 2030'!Z42 -> 0 | AA42: ='Balancen Scenarie 2030'!AA42-'Balancen BAU 2030'!AA42 -> 0 | AB42: ='Balancen Scenarie 2030'!AB42-'Balancen BAU 2030'!AB42 -> 0 | AC42: ='Balancen Scenarie 2030'!AC42-'Balancen BAU 2030'!AC42 -> 0 | AD42: ='Balancen Scenarie 2030'!AD42-'Balancen BAU 2030'!AD42 -> 0 | AE42: ='Balancen Scenarie 2030'!AE42-'Balancen BAU 2030'!AE42 -> 0 | AF42: ='Balancen Scenarie 2030'!AF42-'Balancen BAU 2030'!AF42 -> 0 | AG42: ='Balancen Scenarie 2030'!AG42-'Balancen BAU 2030'!AG42 -> 0 | AH42: ='Balancen Scenarie 2030'!AH42-'Balancen BAU 2030'!AH42 -> 0 | AI42: ='Balancen Scenarie 2030'!AI42-'Balancen BAU 2030'!AI42 -> 0 | AJ42: ='Balancen Scenarie 2030'!AJ42-'Balancen BAU 2030'!AJ42 -> 0 | AK42: ='Balancen Scenarie 2030'!AK42-'Balancen BAU 2030'!AK42 -> 0 | AL42: ='Balancen Scenarie 2030'!AL42-'Balancen BAU 2030'!AL42 -> 0 | AM42: ='Balancen Scenarie 2030'!AM42-'Balancen BAU 2030'!AM42 -> 0 | AN42: ='Balancen Scenarie 2030'!AN42-'Balancen BAU 2030'!AN42 -> 0 | AO42: ='Balancen Scenarie 2030'!AO42-'Balancen BAU 2030'!AO42 -> 0 | AP42: ='Balancen Scenarie 2030'!AP42-'Balancen BAU 2030'!AP42 -> 0 | AQ42: ='Balancen Scenarie 2030'!AQ42-'Balancen BAU 2030'!AQ42 -> 0 | AR42: ='Balancen Scenarie 2030'!AR42-'Balancen BAU 2030'!AR42 -> 0 | AS42: ='Balancen Scenarie 2030'!AS42-'Balancen BAU 2030'!AS42 -> 0 | AT42: ='Balancen Scenarie 2030'!AT42-'Balancen BAU 2030'!AT42 -> 0 | AU42: ='Balancen Scenarie 2030'!AU42-'Balancen BAU 2030'!AU42 -> 0
A43: Indenrigs | B43: ='Balancen Scenarie 2030'!B43-'Balancen BAU 2030'!B43 -> 0 | C43: ='Balancen Scenarie 2030'!C43-'Balancen BAU 2030'!C43 -> 0 | D43: ='Balancen Scenarie 2030'!D43-'Balancen BAU 2030'!D43 -> 0 | E43: ='Balancen Scenarie 2030'!E43-'Balancen BAU 2030'!E43 -> 0 | F43: ='Balancen Scenarie 2030'!F43-'Balancen BAU 2030'!F43 -> 0 | G43: ='Balancen Scenarie 2030'!G43-'Balancen BAU 2030'!G43 -> 0 | H43: ='Balancen Scenarie 2030'!H43-'Balancen BAU 2030'!H43 -> 0 | I43: ='Balancen Scenarie 2030'!I43-'Balancen BAU 2030'!I43 -> 0 | J43: ='Balancen Scenarie 2030'!J43-'Balancen BAU 2030'!J43 -> 0 | K43: ='Balancen Scenarie 2030'!K43-'Balancen BAU 2030'!K43 -> 0 | L43: ='Balancen Scenarie 2030'!L43-'Balancen BAU 2030'!L43 -> 0 | M43: ='Balancen Scenarie 2030'!M43-'Balancen BAU 2030'!M43 -> 0 | N43: ='Balancen Scenarie 2030'!N43-'Balancen BAU 2030'!N43 -> 0 | O43: ='Balancen Scenarie 2030'!O43-'Balancen BAU 2030'!O43 -> 0 | P43: ='Balancen Scenarie 2030'!P43-'Balancen BAU 2030'!P43 -> 0 | Q43: ='Balancen Scenarie 2030'!Q43-'Balancen BAU 2030'!Q43 -> 0 | R43: ='Balancen Scenarie 2030'!R43-'Balancen BAU 2030'!R43 -> 0 | S43: ='Balancen Scenarie 2030'!S43-'Balancen BAU 2030'!S43 -> 0 | T43: ='Balancen Scenarie 2030'!T43-'Balancen BAU 2030'!T43 -> 0 | U43: ='Balancen Scenarie 2030'!U43-'Balancen BAU 2030'!U43 -> 0 | V43: ='Balancen Scenarie 2030'!V43-'Balancen BAU 2030'!V43 -> 0 | W43: ='Balancen Scenarie 2030'!W43-'Balancen BAU 2030'!W43 -> 0 | X43: ='Balancen Scenarie 2030'!X43-'Balancen BAU 2030'!X43 -> 0 | Y43: ='Balancen Scenarie 2030'!Y43-'Balancen BAU 2030'!Y43 -> 0 | Z43: ='Balancen Scenarie 2030'!Z43-'Balancen BAU 2030'!Z43 -> 0 | AA43: ='Balancen Scenarie 2030'!AA43-'Balancen BAU 2030'!AA43 -> 0 | AB43: ='Balancen Scenarie 2030'!AB43-'Balancen BAU 2030'!AB43 -> 0 | AC43: ='Balancen Scenarie 2030'!AC43-'Balancen BAU 2030'!AC43 -> 0 | AD43: ='Balancen Scenarie 2030'!AD43-'Balancen BAU 2030'!AD43 -> 0 | AE43: ='Balancen Scenarie 2030'!AE43-'Balancen BAU 2030'!AE43 -> 0 | AF43: ='Balancen Scenarie 2030'!AF43-'Balancen BAU 2030'!AF43 -> 0 | AG43: ='Balancen Scenarie 2030'!AG43-'Balancen BAU 2030'!AG43 -> 0 | AH43: ='Balancen Scenarie 2030'!AH43-'Balancen BAU 2030'!AH43 -> 0 | AI43: ='Balancen Scenarie 2030'!AI43-'Balancen BAU 2030'!AI43 -> 0 | AJ43: ='Balancen Scenarie 2030'!AJ43-'Balancen BAU 2030'!AJ43 -> 0 | AK43: ='Balancen Scenarie 2030'!AK43-'Balancen BAU 2030'!AK43 -> 0 | AL43: ='Balancen Scenarie 2030'!AL43-'Balancen BAU 2030'!AL43 -> 0 | AM43: ='Balancen Scenarie 2030'!AM43-'Balancen BAU 2030'!AM43 -> 0 | AN43: ='Balancen Scenarie 2030'!AN43-'Balancen BAU 2030'!AN43 -> 0 | AO43: ='Balancen Scenarie 2030'!AO43-'Balancen BAU 2030'!AO43 -> 0 | AP43: ='Balancen Scenarie 2030'!AP43-'Balancen BAU 2030'!AP43 -> 0 | AQ43: ='Balancen Scenarie 2030'!AQ43-'Balancen BAU 2030'!AQ43 -> 0 | AR43: ='Balancen Scenarie 2030'!AR43-'Balancen BAU 2030'!AR43 -> 0 | AS43: ='Balancen Scenarie 2030'!AS43-'Balancen BAU 2030'!AS43 -> 0 | AT43: ='Balancen Scenarie 2030'!AT43-'Balancen BAU 2030'!AT43 -> 0 | AU43: ='Balancen Scenarie 2030'!AU43-'Balancen BAU 2030'!AU43 -> 0
A44: Udenrigs | B44: ='Balancen Scenarie 2030'!B44-'Balancen BAU 2030'!B44 -> 0 | C44: ='Balancen Scenarie 2030'!C44-'Balancen BAU 2030'!C44 -> 0 | D44: ='Balancen Scenarie 2030'!D44-'Balancen BAU 2030'!D44 -> 0 | E44: ='Balancen Scenarie 2030'!E44-'Balancen BAU 2030'!E44 -> 0 | F44: ='Balancen Scenarie 2030'!F44-'Balancen BAU 2030'!F44 -> 0 | G44: ='Balancen Scenarie 2030'!G44-'Balancen BAU 2030'!G44 -> 0 | H44: ='Balancen Scenarie 2030'!H44-'Balancen BAU 2030'!H44 -> 0 | I44: ='Balancen Scenarie 2030'!I44-'Balancen BAU 2030'!I44 -> 0 | J44: ='Balancen Scenarie 2030'!J44-'Balancen BAU 2030'!J44 -> 0 | K44: ='Balancen Scenarie 2030'!K44-'Balancen BAU 2030'!K44 -> 0 | L44: ='Balancen Scenarie 2030'!L44-'Balancen BAU 2030'!L44 -> 0 | M44: ='Balancen Scenarie 2030'!M44-'Balancen BAU 2030'!M44 -> 0 | N44: ='Balancen Scenarie 2030'!N44-'Balancen BAU 2030'!N44 -> 0 | O44: ='Balancen Scenarie 2030'!O44-'Balancen BAU 2030'!O44 -> 0 | P44: ='Balancen Scenarie 2030'!P44-'Balancen BAU 2030'!P44 -> 0 | Q44: ='Balancen Scenarie 2030'!Q44-'Balancen BAU 2030'!Q44 -> 0 | R44: ='Balancen Scenarie 2030'!R44-'Balancen BAU 2030'!R44 -> 0 | S44: ='Balancen Scenarie 2030'!S44-'Balancen BAU 2030'!S44 -> 0 | T44: ='Balancen Scenarie 2030'!T44-'Balancen BAU 2030'!T44 -> 0 | U44: ='Balancen Scenarie 2030'!U44-'Balancen BAU 2030'!U44 -> 0 | V44: ='Balancen Scenarie 2030'!V44-'Balancen BAU 2030'!V44 -> 0 | W44: ='Balancen Scenarie 2030'!W44-'Balancen BAU 2030'!W44 -> 0 | X44: ='Balancen Scenarie 2030'!X44-'Balancen BAU 2030'!X44 -> 0 | Y44: ='Balancen Scenarie 2030'!Y44-'Balancen BAU 2030'!Y44 -> 0 | Z44: ='Balancen Scenarie 2030'!Z44-'Balancen BAU 2030'!Z44 -> 0 | AA44: ='Balancen Scenarie 2030'!AA44-'Balancen BAU 2030'!AA44 -> 0 | AB44: ='Balancen Scenarie 2030'!AB44-'Balancen BAU 2030'!AB44 -> 0 | AC44: ='Balancen Scenarie 2030'!AC44-'Balancen BAU 2030'!AC44 -> 0 | AD44: ='Balancen Scenarie 2030'!AD44-'Balancen BAU 2030'!AD44 -> 0 | AE44: ='Balancen Scenarie 2030'!AE44-'Balancen BAU 2030'!AE44 -> 0 | AF44: ='Balancen Scenarie 2030'!AF44-'Balancen BAU 2030'!AF44 -> 0 | AG44: ='Balancen Scenarie 2030'!AG44-'Balancen BAU 2030'!AG44 -> 0 | AH44: ='Balancen Scenarie 2030'!AH44-'Balancen BAU 2030'!AH44 -> 0 | AI44: ='Balancen Scenarie 2030'!AI44-'Balancen BAU 2030'!AI44 -> 0 | AJ44: ='Balancen Scenarie 2030'!AJ44-'Balancen BAU 2030'!AJ44 -> 0 | AK44: ='Balancen Scenarie 2030'!AK44-'Balancen BAU 2030'!AK44 -> 0 | AL44: ='Balancen Scenarie 2030'!AL44-'Balancen BAU 2030'!AL44 -> 0 | AM44: ='Balancen Scenarie 2030'!AM44-'Balancen BAU 2030'!AM44 -> 0 | AN44: ='Balancen Scenarie 2030'!AN44-'Balancen BAU 2030'!AN44 -> 0 | AO44: ='Balancen Scenarie 2030'!AO44-'Balancen BAU 2030'!AO44 -> 0 | AP44: ='Balancen Scenarie 2030'!AP44-'Balancen BAU 2030'!AP44 -> 0 | AQ44: ='Balancen Scenarie 2030'!AQ44-'Balancen BAU 2030'!AQ44 -> 0 | AR44: ='Balancen Scenarie 2030'!AR44-'Balancen BAU 2030'!AR44 -> 0 | AS44: ='Balancen Scenarie 2030'!AS44-'Balancen BAU 2030'!AS44 -> 0 | AT44: ='Balancen Scenarie 2030'!AT44-'Balancen BAU 2030'!AT44 -> 0 | AU44: ='Balancen Scenarie 2030'!AU44-'Balancen BAU 2030'!AU44 -> 0
A45: Ikke-kategoriseret | B45: ='Balancen Scenarie 2030'!B45-'Balancen BAU 2030'!B45 -> 0 | C45: ='Balancen Scenarie 2030'!C45-'Balancen BAU 2030'!C45 -> 0 | D45: ='Balancen Scenarie 2030'!D45-'Balancen BAU 2030'!D45 -> 0 | E45: ='Balancen Scenarie 2030'!E45-'Balancen BAU 2030'!E45 -> 0 | F45: ='Balancen Scenarie 2030'!F45-'Balancen BAU 2030'!F45 -> 0 | G45: ='Balancen Scenarie 2030'!G45-'Balancen BAU 2030'!G45 -> 0 | H45: ='Balancen Scenarie 2030'!H45-'Balancen BAU 2030'!H45 -> 0 | I45: ='Balancen Scenarie 2030'!I45-'Balancen BAU 2030'!I45 -> 0 | J45: ='Balancen Scenarie 2030'!J45-'Balancen BAU 2030'!J45 -> 0 | K45: ='Balancen Scenarie 2030'!K45-'Balancen BAU 2030'!K45 -> 0 | L45: ='Balancen Scenarie 2030'!L45-'Balancen BAU 2030'!L45 -> 0 | M45: ='Balancen Scenarie 2030'!M45-'Balancen BAU 2030'!M45 -> 0 | N45: ='Balancen Scenarie 2030'!N45-'Balancen BAU 2030'!N45 -> 0 | O45: ='Balancen Scenarie 2030'!O45-'Balancen BAU 2030'!O45 -> 0 | P45: ='Balancen Scenarie 2030'!P45-'Balancen BAU 2030'!P45 -> 0 | Q45: ='Balancen Scenarie 2030'!Q45-'Balancen BAU 2030'!Q45 -> 0 | R45: ='Balancen Scenarie 2030'!R45-'Balancen BAU 2030'!R45 -> 0 | S45: ='Balancen Scenarie 2030'!S45-'Balancen BAU 2030'!S45 -> 0 | T45: ='Balancen Scenarie 2030'!T45-'Balancen BAU 2030'!T45 -> 0 | U45: ='Balancen Scenarie 2030'!U45-'Balancen BAU 2030'!U45 -> 0 | V45: ='Balancen Scenarie 2030'!V45-'Balancen BAU 2030'!V45 -> 0 | W45: ='Balancen Scenarie 2030'!W45-'Balancen BAU 2030'!W45 -> 0 | X45: ='Balancen Scenarie 2030'!X45-'Balancen BAU 2030'!X45 -> 0 | Y45: ='Balancen Scenarie 2030'!Y45-'Balancen BAU 2030'!Y45 -> 0 | Z45: ='Balancen Scenarie 2030'!Z45-'Balancen BAU 2030'!Z45 -> 0 | AA45: ='Balancen Scenarie 2030'!AA45-'Balancen BAU 2030'!AA45 -> 0 | AB45: ='Balancen Scenarie 2030'!AB45-'Balancen BAU 2030'!AB45 -> 0 | AC45: ='Balancen Scenarie 2030'!AC45-'Balancen BAU 2030'!AC45 -> 0 | AD45: ='Balancen Scenarie 2030'!AD45-'Balancen BAU 2030'!AD45 -> 0 | AE45: ='Balancen Scenarie 2030'!AE45-'Balancen BAU 2030'!AE45 -> 0 | AF45: ='Balancen Scenarie 2030'!AF45-'Balancen BAU 2030'!AF45 -> 0 | AG45: ='Balancen Scenarie 2030'!AG45-'Balancen BAU 2030'!AG45 -> 0 | AH45: ='Balancen Scenarie 2030'!AH45-'Balancen BAU 2030'!AH45 -> 0 | AI45: ='Balancen Scenarie 2030'!AI45-'Balancen BAU 2030'!AI45 -> 0 | AJ45: ='Balancen Scenarie 2030'!AJ45-'Balancen BAU 2030'!AJ45 -> 0 | AK45: ='Balancen Scenarie 2030'!AK45-'Balancen BAU 2030'!AK45 -> 0 | AL45: ='Balancen Scenarie 2030'!AL45-'Balancen BAU 2030'!AL45 -> 0 | AM45: ='Balancen Scenarie 2030'!AM45-'Balancen BAU 2030'!AM45 -> 0 | AN45: ='Balancen Scenarie 2030'!AN45-'Balancen BAU 2030'!AN45 -> 0 | AO45: ='Balancen Scenarie 2030'!AO45-'Balancen BAU 2030'!AO45 -> 0 | AP45: ='Balancen Scenarie 2030'!AP45-'Balancen BAU 2030'!AP45 -> 0 | AQ45: ='Balancen Scenarie 2030'!AQ45-'Balancen BAU 2030'!AQ45 -> 0 | AR45: ='Balancen Scenarie 2030'!AR45-'Balancen BAU 2030'!AR45 -> 0 | AS45: ='Balancen Scenarie 2030'!AS45-'Balancen BAU 2030'!AS45 -> 0 | AT45: ='Balancen Scenarie 2030'!AT45-'Balancen BAU 2030'!AT45 -> 0 | AU45: ='Balancen Scenarie 2030'!AU45-'Balancen BAU 2030'!AU45 -> 0
A46: Husholdninger | B46: ='Balancen Scenarie 2030'!B46-'Balancen BAU 2030'!B46 -> 0 | C46: ='Balancen Scenarie 2030'!C46-'Balancen BAU 2030'!C46 -> 0 | D46: ='Balancen Scenarie 2030'!D46-'Balancen BAU 2030'!D46 -> 0 | E46: ='Balancen Scenarie 2030'!E46-'Balancen BAU 2030'!E46 -> 0 | F46: ='Balancen Scenarie 2030'!F46-'Balancen BAU 2030'!F46 -> -5.00222086e-12 | G46: ='Balancen Scenarie 2030'!G46-'Balancen BAU 2030'!G46 -> 0 | H46: ='Balancen Scenarie 2030'!H46-'Balancen BAU 2030'!H46 -> 0 | I46: ='Balancen Scenarie 2030'!I46-'Balancen BAU 2030'!I46 -> 0 | J46: ='Balancen Scenarie 2030'!J46-'Balancen BAU 2030'!J46 -> 0 | K46: ='Balancen Scenarie 2030'!K46-'Balancen BAU 2030'!K46 -> 0 | L46: ='Balancen Scenarie 2030'!L46-'Balancen BAU 2030'!L46 -> 0 | M46: ='Balancen Scenarie 2030'!M46-'Balancen BAU 2030'!M46 -> 0 | N46: ='Balancen Scenarie 2030'!N46-'Balancen BAU 2030'!N46 -> 0 | O46: ='Balancen Scenarie 2030'!O46-'Balancen BAU 2030'!O46 -> -5.00222086e-12 | P46: ='Balancen Scenarie 2030'!P46-'Balancen BAU 2030'!P46 -> -1.182343112e-11 | Q46: ='Balancen Scenarie 2030'!Q46-'Balancen BAU 2030'!Q46 -> 0 | R46: ='Balancen Scenarie 2030'!R46-'Balancen BAU 2030'!R46 -> -7.639755495e-11 | S46: ='Balancen Scenarie 2030'!S46-'Balancen BAU 2030'!S46 -> 0 | T46: ='Balancen Scenarie 2030'!T46-'Balancen BAU 2030'!T46 -> 0 | U46: ='Balancen Scenarie 2030'!U46-'Balancen BAU 2030'!U46 -> 0 | V46: ='Balancen Scenarie 2030'!V46-'Balancen BAU 2030'!V46 -> 0 | W46: ='Balancen Scenarie 2030'!W46-'Balancen BAU 2030'!W46 -> 0 | X46: ='Balancen Scenarie 2030'!X46-'Balancen BAU 2030'!X46 -> -7.639755495e-11 | Y46: ='Balancen Scenarie 2030'!Y46-'Balancen BAU 2030'!Y46 -> 0 | Z46: ='Balancen Scenarie 2030'!Z46-'Balancen BAU 2030'!Z46 -> -2.910383046e-11 | AA46: ='Balancen Scenarie 2030'!AA46-'Balancen BAU 2030'!AA46 -> -1.065814104e-13 | AB46: ='Balancen Scenarie 2030'!AB46-'Balancen BAU 2030'!AB46 -> 0 | AC46: ='Balancen Scenarie 2030'!AC46-'Balancen BAU 2030'!AC46 -> 0 | AD46: ='Balancen Scenarie 2030'!AD46-'Balancen BAU 2030'!AD46 -> 0 | AE46: ='Balancen Scenarie 2030'!AE46-'Balancen BAU 2030'!AE46 -> 0 | AF46: ='Balancen Scenarie 2030'!AF46-'Balancen BAU 2030'!AF46 -> 0 | AG46: ='Balancen Scenarie 2030'!AG46-'Balancen BAU 2030'!AG46 -> -1.065814104e-13 | AH46: ='Balancen Scenarie 2030'!AH46-'Balancen BAU 2030'!AH46 -> -5.684341886e-13 | AI46: ='Balancen Scenarie 2030'!AI46-'Balancen BAU 2030'!AI46 -> 356.552785 | AJ46: ='Balancen Scenarie 2030'!AJ46-'Balancen BAU 2030'!AJ46 -> 0 | AK46: ='Balancen Scenarie 2030'!AK46-'Balancen BAU 2030'!AK46 -> 0 | AL46: ='Balancen Scenarie 2030'!AL46-'Balancen BAU 2030'!AL46 -> -356.552785 | AM46: ='Balancen Scenarie 2030'!AM46-'Balancen BAU 2030'!AM46 -> -356.552785 | AN46: ='Balancen Scenarie 2030'!AN46-'Balancen BAU 2030'!AN46 -> 0 | AO46: ='Balancen Scenarie 2030'!AO46-'Balancen BAU 2030'!AO46 -> 0 | AP46: ='Balancen Scenarie 2030'!AP46-'Balancen BAU 2030'!AP46 -> 0 | AQ46: ='Balancen Scenarie 2030'!AQ46-'Balancen BAU 2030'!AQ46 -> 0 | AR46: ='Balancen Scenarie 2030'!AR46-'Balancen BAU 2030'!AR46 -> -7.958078641e-13 | AS46: ='Balancen Scenarie 2030'!AS46-'Balancen BAU 2030'!AS46 -> 1.164153218e-09 | AT46: ='Balancen Scenarie 2030'!AT46-'Balancen BAU 2030'!AT46 -> 59.32777136 | AU46: ='Balancen Scenarie 2030'!AU46-'Balancen BAU 2030'!AU46 -> -50.80173798
A47: Fritliggende huse | B47: ='Balancen Scenarie 2030'!B47-'Balancen BAU 2030'!B47 -> 0 | C47: ='Balancen Scenarie 2030'!C47-'Balancen BAU 2030'!C47 -> 0 | D47: ='Balancen Scenarie 2030'!D47-'Balancen BAU 2030'!D47 -> 0 | E47: ='Balancen Scenarie 2030'!E47-'Balancen BAU 2030'!E47 -> 0 | F47: ='Balancen Scenarie 2030'!F47-'Balancen BAU 2030'!F47 -> 0 | G47: ='Balancen Scenarie 2030'!G47-'Balancen BAU 2030'!G47 -> 0 | H47: ='Balancen Scenarie 2030'!H47-'Balancen BAU 2030'!H47 -> 0 | I47: ='Balancen Scenarie 2030'!I47-'Balancen BAU 2030'!I47 -> 0 | J47: ='Balancen Scenarie 2030'!J47-'Balancen BAU 2030'!J47 -> 0 | K47: ='Balancen Scenarie 2030'!K47-'Balancen BAU 2030'!K47 -> 0 | L47: ='Balancen Scenarie 2030'!L47-'Balancen BAU 2030'!L47 -> 0 | M47: ='Balancen Scenarie 2030'!M47-'Balancen BAU 2030'!M47 -> 0 | N47: ='Balancen Scenarie 2030'!N47-'Balancen BAU 2030'!N47 -> 0 | O47: ='Balancen Scenarie 2030'!O47-'Balancen BAU 2030'!O47 -> 0 | P47: ='Balancen Scenarie 2030'!P47-'Balancen BAU 2030'!P47 -> 0 | Q47: ='Balancen Scenarie 2030'!Q47-'Balancen BAU 2030'!Q47 -> 0 | R47: ='Balancen Scenarie 2030'!R47-'Balancen BAU 2030'!R47 -> 0 | S47: ='Balancen Scenarie 2030'!S47-'Balancen BAU 2030'!S47 -> 0 | T47: ='Balancen Scenarie 2030'!T47-'Balancen BAU 2030'!T47 -> 0 | U47: ='Balancen Scenarie 2030'!U47-'Balancen BAU 2030'!U47 -> 0 | V47: ='Balancen Scenarie 2030'!V47-'Balancen BAU 2030'!V47 -> 0 | W47: ='Balancen Scenarie 2030'!W47-'Balancen BAU 2030'!W47 -> 0 | X47: ='Balancen Scenarie 2030'!X47-'Balancen BAU 2030'!X47 -> 0 | Y47: ='Balancen Scenarie 2030'!Y47-'Balancen BAU 2030'!Y47 -> 0 | Z47: ='Balancen Scenarie 2030'!Z47-'Balancen BAU 2030'!Z47 -> 0 | AA47: ='Balancen Scenarie 2030'!AA47-'Balancen BAU 2030'!AA47 -> 0 | AB47: ='Balancen Scenarie 2030'!AB47-'Balancen BAU 2030'!AB47 -> 0 | AC47: ='Balancen Scenarie 2030'!AC47-'Balancen BAU 2030'!AC47 -> 0 | AD47: ='Balancen Scenarie 2030'!AD47-'Balancen BAU 2030'!AD47 -> 0 | AE47: ='Balancen Scenarie 2030'!AE47-'Balancen BAU 2030'!AE47 -> 0 | AF47: ='Balancen Scenarie 2030'!AF47-'Balancen BAU 2030'!AF47 -> 0 | AG47: ='Balancen Scenarie 2030'!AG47-'Balancen BAU 2030'!AG47 -> 0 | AH47: ='Balancen Scenarie 2030'!AH47-'Balancen BAU 2030'!AH47 -> 0 | AI47: ='Balancen Scenarie 2030'!AI47-'Balancen BAU 2030'!AI47 -> 0 | AJ47: ='Balancen Scenarie 2030'!AJ47-'Balancen BAU 2030'!AJ47 -> 0 | AK47: ='Balancen Scenarie 2030'!AK47-'Balancen BAU 2030'!AK47 -> 0 | AL47: ='Balancen Scenarie 2030'!AL47-'Balancen BAU 2030'!AL47 -> 0 | AM47: ='Balancen Scenarie 2030'!AM47-'Balancen BAU 2030'!AM47 -> 0 | AN47: ='Balancen Scenarie 2030'!AN47-'Balancen BAU 2030'!AN47 -> 0 | AO47: ='Balancen Scenarie 2030'!AO47-'Balancen BAU 2030'!AO47 -> 0 | AP47: ='Balancen Scenarie 2030'!AP47-'Balancen BAU 2030'!AP47 -> 0 | AQ47: ='Balancen Scenarie 2030'!AQ47-'Balancen BAU 2030'!AQ47 -> 0 | AR47: ='Balancen Scenarie 2030'!AR47-'Balancen BAU 2030'!AR47 -> 0 | AS47: ='Balancen Scenarie 2030'!AS47-'Balancen BAU 2030'!AS47 -> 0 | AT47: ='Balancen Scenarie 2030'!AT47-'Balancen BAU 2030'!AT47 -> 0 | AU47: ='Balancen Scenarie 2030'!AU47-'Balancen BAU 2030'!AU47 -> 0
A48: Etageejendomme | B48: ='Balancen Scenarie 2030'!B48-'Balancen BAU 2030'!B48 -> 0 | C48: ='Balancen Scenarie 2030'!C48-'Balancen BAU 2030'!C48 -> 0 | D48: ='Balancen Scenarie 2030'!D48-'Balancen BAU 2030'!D48 -> 0 | E48: ='Balancen Scenarie 2030'!E48-'Balancen BAU 2030'!E48 -> 0 | F48: ='Balancen Scenarie 2030'!F48-'Balancen BAU 2030'!F48 -> 0 | G48: ='Balancen Scenarie 2030'!G48-'Balancen BAU 2030'!G48 -> 0 | H48: ='Balancen Scenarie 2030'!H48-'Balancen BAU 2030'!H48 -> 0 | I48: ='Balancen Scenarie 2030'!I48-'Balancen BAU 2030'!I48 -> 0 | J48: ='Balancen Scenarie 2030'!J48-'Balancen BAU 2030'!J48 -> 0 | K48: ='Balancen Scenarie 2030'!K48-'Balancen BAU 2030'!K48 -> 0 | L48: ='Balancen Scenarie 2030'!L48-'Balancen BAU 2030'!L48 -> 0 | M48: ='Balancen Scenarie 2030'!M48-'Balancen BAU 2030'!M48 -> 0 | N48: ='Balancen Scenarie 2030'!N48-'Balancen BAU 2030'!N48 -> 0 | O48: ='Balancen Scenarie 2030'!O48-'Balancen BAU 2030'!O48 -> 0 | P48: ='Balancen Scenarie 2030'!P48-'Balancen BAU 2030'!P48 -> 0 | Q48: ='Balancen Scenarie 2030'!Q48-'Balancen BAU 2030'!Q48 -> 0 | R48: ='Balancen Scenarie 2030'!R48-'Balancen BAU 2030'!R48 -> 0 | S48: ='Balancen Scenarie 2030'!S48-'Balancen BAU 2030'!S48 -> 0 | T48: ='Balancen Scenarie 2030'!T48-'Balancen BAU 2030'!T48 -> 0 | U48: ='Balancen Scenarie 2030'!U48-'Balancen BAU 2030'!U48 -> 0 | V48: ='Balancen Scenarie 2030'!V48-'Balancen BAU 2030'!V48 -> 0 | W48: ='Balancen Scenarie 2030'!W48-'Balancen BAU 2030'!W48 -> 0 | X48: ='Balancen Scenarie 2030'!X48-'Balancen BAU 2030'!X48 -> 0 | Y48: ='Balancen Scenarie 2030'!Y48-'Balancen BAU 2030'!Y48 -> 0 | Z48: ='Balancen Scenarie 2030'!Z48-'Balancen BAU 2030'!Z48 -> 0 | AA48: ='Balancen Scenarie 2030'!AA48-'Balancen BAU 2030'!AA48 -> 0 | AB48: ='Balancen Scenarie 2030'!AB48-'Balancen BAU 2030'!AB48 -> 0 | AC48: ='Balancen Scenarie 2030'!AC48-'Balancen BAU 2030'!AC48 -> 0 | AD48: ='Balancen Scenarie 2030'!AD48-'Balancen BAU 2030'!AD48 -> 0 | AE48: ='Balancen Scenarie 2030'!AE48-'Balancen BAU 2030'!AE48 -> 0 | AF48: ='Balancen Scenarie 2030'!AF48-'Balancen BAU 2030'!AF48 -> 0 | AG48: ='Balancen Scenarie 2030'!AG48-'Balancen BAU 2030'!AG48 -> 0 | AH48: ='Balancen Scenarie 2030'!AH48-'Balancen BAU 2030'!AH48 -> 0 | AI48: ='Balancen Scenarie 2030'!AI48-'Balancen BAU 2030'!AI48 -> 0 | AJ48: ='Balancen Scenarie 2030'!AJ48-'Balancen BAU 2030'!AJ48 -> 0 | AK48: ='Balancen Scenarie 2030'!AK48-'Balancen BAU 2030'!AK48 -> 0 | AL48: ='Balancen Scenarie 2030'!AL48-'Balancen BAU 2030'!AL48 -> 0 | AM48: ='Balancen Scenarie 2030'!AM48-'Balancen BAU 2030'!AM48 -> 0 | AN48: ='Balancen Scenarie 2030'!AN48-'Balancen BAU 2030'!AN48 -> 0 | AO48: ='Balancen Scenarie 2030'!AO48-'Balancen BAU 2030'!AO48 -> 0 | AP48: ='Balancen Scenarie 2030'!AP48-'Balancen BAU 2030'!AP48 -> 0 | AQ48: ='Balancen Scenarie 2030'!AQ48-'Balancen BAU 2030'!AQ48 -> 0 | AR48: ='Balancen Scenarie 2030'!AR48-'Balancen BAU 2030'!AR48 -> 0 | AS48: ='Balancen Scenarie 2030'!AS48-'Balancen BAU 2030'!AS48 -> 0 | AT48: ='Balancen Scenarie 2030'!AT48-'Balancen BAU 2030'!AT48 -> 0 | AU48: ='Balancen Scenarie 2030'!AU48-'Balancen BAU 2030'!AU48 -> 0
A49: Ikke-kategoriseret | B49: ='Balancen Scenarie 2030'!B49-'Balancen BAU 2030'!B49 -> 0 | C49: ='Balancen Scenarie 2030'!C49-'Balancen BAU 2030'!C49 -> 0 | D49: ='Balancen Scenarie 2030'!D49-'Balancen BAU 2030'!D49 -> 0 | E49: ='Balancen Scenarie 2030'!E49-'Balancen BAU 2030'!E49 -> 0 | F49: ='Balancen Scenarie 2030'!F49-'Balancen BAU 2030'!F49 -> -5.00222086e-12 | G49: ='Balancen Scenarie 2030'!G49-'Balancen BAU 2030'!G49 -> 0 | H49: ='Balancen Scenarie 2030'!H49-'Balancen BAU 2030'!H49 -> 0 | I49: ='Balancen Scenarie 2030'!I49-'Balancen BAU 2030'!I49 -> 0 | J49: ='Balancen Scenarie 2030'!J49-'Balancen BAU 2030'!J49 -> 0 | K49: ='Balancen Scenarie 2030'!K49-'Balancen BAU 2030'!K49 -> 0 | L49: ='Balancen Scenarie 2030'!L49-'Balancen BAU 2030'!L49 -> 0 | M49: ='Balancen Scenarie 2030'!M49-'Balancen BAU 2030'!M49 -> 0 | N49: ='Balancen Scenarie 2030'!N49-'Balancen BAU 2030'!N49 -> 0 | O49: ='Balancen Scenarie 2030'!O49-'Balancen BAU 2030'!O49 -> -5.00222086e-12 | P49: ='Balancen Scenarie 2030'!P49-'Balancen BAU 2030'!P49 -> -1.182343112e-11 | Q49: ='Balancen Scenarie 2030'!Q49-'Balancen BAU 2030'!Q49 -> 0 | R49: ='Balancen Scenarie 2030'!R49-'Balancen BAU 2030'!R49 -> -7.639755495e-11 | S49: ='Balancen Scenarie 2030'!S49-'Balancen BAU 2030'!S49 -> 0 | T49: ='Balancen Scenarie 2030'!T49-'Balancen BAU 2030'!T49 -> 0 | U49: ='Balancen Scenarie 2030'!U49-'Balancen BAU 2030'!U49 -> 0 | V49: ='Balancen Scenarie 2030'!V49-'Balancen BAU 2030'!V49 -> 0 | W49: ='Balancen Scenarie 2030'!W49-'Balancen BAU 2030'!W49 -> 0 | X49: ='Balancen Scenarie 2030'!X49-'Balancen BAU 2030'!X49 -> -7.639755495e-11 | Y49: ='Balancen Scenarie 2030'!Y49-'Balancen BAU 2030'!Y49 -> 0 | Z49: ='Balancen Scenarie 2030'!Z49-'Balancen BAU 2030'!Z49 -> -2.910383046e-11 | AA49: ='Balancen Scenarie 2030'!AA49-'Balancen BAU 2030'!AA49 -> -1.065814104e-13 | AB49: ='Balancen Scenarie 2030'!AB49-'Balancen BAU 2030'!AB49 -> 0 | AC49: ='Balancen Scenarie 2030'!AC49-'Balancen BAU 2030'!AC49 -> 0 | AD49: ='Balancen Scenarie 2030'!AD49-'Balancen BAU 2030'!AD49 -> 0 | AE49: ='Balancen Scenarie 2030'!AE49-'Balancen BAU 2030'!AE49 -> 0 | AF49: ='Balancen Scenarie 2030'!AF49-'Balancen BAU 2030'!AF49 -> 0 | AG49: ='Balancen Scenarie 2030'!AG49-'Balancen BAU 2030'!AG49 -> -1.065814104e-13 | AH49: ='Balancen Scenarie 2030'!AH49-'Balancen BAU 2030'!AH49 -> -5.684341886e-13 | AI49: ='Balancen Scenarie 2030'!AI49-'Balancen BAU 2030'!AI49 -> 356.552785 | AJ49: ='Balancen Scenarie 2030'!AJ49-'Balancen BAU 2030'!AJ49 -> 0 | AK49: ='Balancen Scenarie 2030'!AK49-'Balancen BAU 2030'!AK49 -> 0 | AL49: ='Balancen Scenarie 2030'!AL49-'Balancen BAU 2030'!AL49 -> -356.552785 | AM49: ='Balancen Scenarie 2030'!AM49-'Balancen BAU 2030'!AM49 -> -356.552785 | AN49: ='Balancen Scenarie 2030'!AN49-'Balancen BAU 2030'!AN49 -> 0 | AO49: ='Balancen Scenarie 2030'!AO49-'Balancen BAU 2030'!AO49 -> 0 | AP49: ='Balancen Scenarie 2030'!AP49-'Balancen BAU 2030'!AP49 -> 0 | AQ49: ='Balancen Scenarie 2030'!AQ49-'Balancen BAU 2030'!AQ49 -> 0 | AR49: ='Balancen Scenarie 2030'!AR49-'Balancen BAU 2030'!AR49 -> -7.958078641e-13 | AS49: ='Balancen Scenarie 2030'!AS49-'Balancen BAU 2030'!AS49 -> 1.164153218e-09 | AT49: ='Balancen Scenarie 2030'!AT49-'Balancen BAU 2030'!AT49 -> 59.32777136 | AU49: ='Balancen Scenarie 2030'!AU49-'Balancen BAU 2030'!AU49 -> -50.80173798
A50: Offentlig service | B50: ='Balancen Scenarie 2030'!B50-'Balancen BAU 2030'!B50 -> 0 | C50: ='Balancen Scenarie 2030'!C50-'Balancen BAU 2030'!C50 -> 0 | D50: ='Balancen Scenarie 2030'!D50-'Balancen BAU 2030'!D50 -> 0 | E50: ='Balancen Scenarie 2030'!E50-'Balancen BAU 2030'!E50 -> 0 | F50: ='Balancen Scenarie 2030'!F50-'Balancen BAU 2030'!F50 -> -6.252776075e-13 | G50: ='Balancen Scenarie 2030'!G50-'Balancen BAU 2030'!G50 -> 0 | H50: ='Balancen Scenarie 2030'!H50-'Balancen BAU 2030'!H50 -> 0 | I50: ='Balancen Scenarie 2030'!I50-'Balancen BAU 2030'!I50 -> 0 | J50: ='Balancen Scenarie 2030'!J50-'Balancen BAU 2030'!J50 -> 0 | K50: ='Balancen Scenarie 2030'!K50-'Balancen BAU 2030'!K50 -> 0 | L50: ='Balancen Scenarie 2030'!L50-'Balancen BAU 2030'!L50 -> 0 | M50: ='Balancen Scenarie 2030'!M50-'Balancen BAU 2030'!M50 -> 0 | N50: ='Balancen Scenarie 2030'!N50-'Balancen BAU 2030'!N50 -> 0 | O50: ='Balancen Scenarie 2030'!O50-'Balancen BAU 2030'!O50 -> -6.252776075e-13 | P50: ='Balancen Scenarie 2030'!P50-'Balancen BAU 2030'!P50 -> -7.389644452e-13 | Q50: ='Balancen Scenarie 2030'!Q50-'Balancen BAU 2030'!Q50 -> 0 | R50: ='Balancen Scenarie 2030'!R50-'Balancen BAU 2030'!R50 -> -5.00222086e-12 | S50: ='Balancen Scenarie 2030'!S50-'Balancen BAU 2030'!S50 -> 0 | T50: ='Balancen Scenarie 2030'!T50-'Balancen BAU 2030'!T50 -> 0 | U50: ='Balancen Scenarie 2030'!U50-'Balancen BAU 2030'!U50 -> 0 | V50: ='Balancen Scenarie 2030'!V50-'Balancen BAU 2030'!V50 -> 0 | W50: ='Balancen Scenarie 2030'!W50-'Balancen BAU 2030'!W50 -> 0 | X50: ='Balancen Scenarie 2030'!X50-'Balancen BAU 2030'!X50 -> -5.00222086e-12 | Y50: ='Balancen Scenarie 2030'!Y50-'Balancen BAU 2030'!Y50 -> 0 | Z50: ='Balancen Scenarie 2030'!Z50-'Balancen BAU 2030'!Z50 -> -2.160049917e-12 | AA50: ='Balancen Scenarie 2030'!AA50-'Balancen BAU 2030'!AA50 -> 0 | AB50: ='Balancen Scenarie 2030'!AB50-'Balancen BAU 2030'!AB50 -> 0 | AC50: ='Balancen Scenarie 2030'!AC50-'Balancen BAU 2030'!AC50 -> 0 | AD50: ='Balancen Scenarie 2030'!AD50-'Balancen BAU 2030'!AD50 -> 0 | AE50: ='Balancen Scenarie 2030'!AE50-'Balancen BAU 2030'!AE50 -> 0 | AF50: ='Balancen Scenarie 2030'!AF50-'Balancen BAU 2030'!AF50 -> 0 | AG50: ='Balancen Scenarie 2030'!AG50-'Balancen BAU 2030'!AG50 -> 0 | AH50: ='Balancen Scenarie 2030'!AH50-'Balancen BAU 2030'!AH50 -> -3.97903932e-13 | AI50: ='Balancen Scenarie 2030'!AI50-'Balancen BAU 2030'!AI50 -> 53.2059473 | AJ50: ='Balancen Scenarie 2030'!AJ50-'Balancen BAU 2030'!AJ50 -> 0 | AK50: ='Balancen Scenarie 2030'!AK50-'Balancen BAU 2030'!AK50 -> 0 | AL50: ='Balancen Scenarie 2030'!AL50-'Balancen BAU 2030'!AL50 -> -53.2059473 | AM50: ='Balancen Scenarie 2030'!AM50-'Balancen BAU 2030'!AM50 -> -53.2059473 | AN50: ='Balancen Scenarie 2030'!AN50-'Balancen BAU 2030'!AN50 -> 0 | AO50: ='Balancen Scenarie 2030'!AO50-'Balancen BAU 2030'!AO50 -> 0 | AP50: ='Balancen Scenarie 2030'!AP50-'Balancen BAU 2030'!AP50 -> 3.001332516e-11 | AQ50: ='Balancen Scenarie 2030'!AQ50-'Balancen BAU 2030'!AQ50 -> 0 | AR50: ='Balancen Scenarie 2030'!AR50-'Balancen BAU 2030'!AR50 -> -1.953992523e-14 | AS50: ='Balancen Scenarie 2030'!AS50-'Balancen BAU 2030'!AS50 -> 8.731149137e-11 | AT50: ='Balancen Scenarie 2030'!AT50-'Balancen BAU 2030'!AT50 -> 3.7181867 | AU50: ='Balancen Scenarie 2030'!AU50-'Balancen BAU 2030'!AU50 -> -7.82715108
A51: Erhverv ekskl. fremstillingsvirksomhed | B51: ='Balancen Scenarie 2030'!B51-'Balancen BAU 2030'!B51 -> 0 | C51: ='Balancen Scenarie 2030'!C51-'Balancen BAU 2030'!C51 -> 0 | D51: ='Balancen Scenarie 2030'!D51-'Balancen BAU 2030'!D51 -> 0 | E51: ='Balancen Scenarie 2030'!E51-'Balancen BAU 2030'!E51 -> 0 | F51: ='Balancen Scenarie 2030'!F51-'Balancen BAU 2030'!F51 -> 0 | G51: ='Balancen Scenarie 2030'!G51-'Balancen BAU 2030'!G51 -> 0 | H51: ='Balancen Scenarie 2030'!H51-'Balancen BAU 2030'!H51 -> 0 | I51: ='Balancen Scenarie 2030'!I51-'Balancen BAU 2030'!I51 -> 0 | J51: ='Balancen Scenarie 2030'!J51-'Balancen BAU 2030'!J51 -> 0 | K51: ='Balancen Scenarie 2030'!K51-'Balancen BAU 2030'!K51 -> 0 | L51: ='Balancen Scenarie 2030'!L51-'Balancen BAU 2030'!L51 -> 0 | M51: ='Balancen Scenarie 2030'!M51-'Balancen BAU 2030'!M51 -> 0 | N51: ='Balancen Scenarie 2030'!N51-'Balancen BAU 2030'!N51 -> 0 | O51: ='Balancen Scenarie 2030'!O51-'Balancen BAU 2030'!O51 -> 0 | P51: ='Balancen Scenarie 2030'!P51-'Balancen BAU 2030'!P51 -> 0 | Q51: ='Balancen Scenarie 2030'!Q51-'Balancen BAU 2030'!Q51 -> 0 | R51: ='Balancen Scenarie 2030'!R51-'Balancen BAU 2030'!R51 -> 0 | S51: ='Balancen Scenarie 2030'!S51-'Balancen BAU 2030'!S51 -> 0 | T51: ='Balancen Scenarie 2030'!T51-'Balancen BAU 2030'!T51 -> 0 | U51: ='Balancen Scenarie 2030'!U51-'Balancen BAU 2030'!U51 -> 0 | V51: ='Balancen Scenarie 2030'!V51-'Balancen BAU 2030'!V51 -> 0 | W51: ='Balancen Scenarie 2030'!W51-'Balancen BAU 2030'!W51 -> 0 | X51: ='Balancen Scenarie 2030'!X51-'Balancen BAU 2030'!X51 -> 0 | Y51: ='Balancen Scenarie 2030'!Y51-'Balancen BAU 2030'!Y51 -> 0 | Z51: ='Balancen Scenarie 2030'!Z51-'Balancen BAU 2030'!Z51 -> 0 | AA51: ='Balancen Scenarie 2030'!AA51-'Balancen BAU 2030'!AA51 -> 0 | AB51: ='Balancen Scenarie 2030'!AB51-'Balancen BAU 2030'!AB51 -> 0 | AC51: ='Balancen Scenarie 2030'!AC51-'Balancen BAU 2030'!AC51 -> 0 | AD51: ='Balancen Scenarie 2030'!AD51-'Balancen BAU 2030'!AD51 -> 0 | AE51: ='Balancen Scenarie 2030'!AE51-'Balancen BAU 2030'!AE51 -> 0 | AF51: ='Balancen Scenarie 2030'!AF51-'Balancen BAU 2030'!AF51 -> 0 | AG51: ='Balancen Scenarie 2030'!AG51-'Balancen BAU 2030'!AG51 -> 0 | AH51: ='Balancen Scenarie 2030'!AH51-'Balancen BAU 2030'!AH51 -> 0 | AI51: ='Balancen Scenarie 2030'!AI51-'Balancen BAU 2030'!AI51 -> 178.7604342 | AJ51: ='Balancen Scenarie 2030'!AJ51-'Balancen BAU 2030'!AJ51 -> 0 | AK51: ='Balancen Scenarie 2030'!AK51-'Balancen BAU 2030'!AK51 -> 0 | AL51: ='Balancen Scenarie 2030'!AL51-'Balancen BAU 2030'!AL51 -> -178.7604342 | AM51: ='Balancen Scenarie 2030'!AM51-'Balancen BAU 2030'!AM51 -> -178.7604342 | AN51: ='Balancen Scenarie 2030'!AN51-'Balancen BAU 2030'!AN51 -> 0 | AO51: ='Balancen Scenarie 2030'!AO51-'Balancen BAU 2030'!AO51 -> 0 | AP51: ='Balancen Scenarie 2030'!AP51-'Balancen BAU 2030'!AP51 -> -5.820766091e-11 | AQ51: ='Balancen Scenarie 2030'!AQ51-'Balancen BAU 2030'!AQ51 -> 0 | AR51: ='Balancen Scenarie 2030'!AR51-'Balancen BAU 2030'!AR51 -> 0 | AS51: ='Balancen Scenarie 2030'!AS51-'Balancen BAU 2030'!AS51 -> 0 | AT51: ='Balancen Scenarie 2030'!AT51-'Balancen BAU 2030'!AT51 -> -213.5023197 | AU51: ='Balancen Scenarie 2030'!AU51-'Balancen BAU 2030'!AU51 -> -29.81633654
A52: Privat service | B52: ='Balancen Scenarie 2030'!B52-'Balancen BAU 2030'!B52 -> -1.018634066e-10 | C52: ='Balancen Scenarie 2030'!C52-'Balancen BAU 2030'!C52 -> 0 | D52: ='Balancen Scenarie 2030'!D52-'Balancen BAU 2030'!D52 -> 0 | E52: ='Balancen Scenarie 2030'!E52-'Balancen BAU 2030'!E52 -> 0 | F52: ='Balancen Scenarie 2030'!F52-'Balancen BAU 2030'!F52 -> 0 | G52: ='Balancen Scenarie 2030'!G52-'Balancen BAU 2030'!G52 -> 0 | H52: ='Balancen Scenarie 2030'!H52-'Balancen BAU 2030'!H52 -> 0 | I52: ='Balancen Scenarie 2030'!I52-'Balancen BAU 2030'!I52 -> 0 | J52: ='Balancen Scenarie 2030'!J52-'Balancen BAU 2030'!J52 -> 0 | K52: ='Balancen Scenarie 2030'!K52-'Balancen BAU 2030'!K52 -> 0 | L52: ='Balancen Scenarie 2030'!L52-'Balancen BAU 2030'!L52 -> 0 | M52: ='Balancen Scenarie 2030'!M52-'Balancen BAU 2030'!M52 -> 0 | N52: ='Balancen Scenarie 2030'!N52-'Balancen BAU 2030'!N52 -> 0 | O52: ='Balancen Scenarie 2030'!O52-'Balancen BAU 2030'!O52 -> 0 | P52: ='Balancen Scenarie 2030'!P52-'Balancen BAU 2030'!P52 -> 0 | Q52: ='Balancen Scenarie 2030'!Q52-'Balancen BAU 2030'!Q52 -> 0 | R52: ='Balancen Scenarie 2030'!R52-'Balancen BAU 2030'!R52 -> 0 | S52: ='Balancen Scenarie 2030'!S52-'Balancen BAU 2030'!S52 -> 0 | T52: ='Balancen Scenarie 2030'!T52-'Balancen BAU 2030'!T52 -> 0 | U52: ='Balancen Scenarie 2030'!U52-'Balancen BAU 2030'!U52 -> 0 | V52: ='Balancen Scenarie 2030'!V52-'Balancen BAU 2030'!V52 -> 0 | W52: ='Balancen Scenarie 2030'!W52-'Balancen BAU 2030'!W52 -> 0 | X52: ='Balancen Scenarie 2030'!X52-'Balancen BAU 2030'!X52 -> 0 | Y52: ='Balancen Scenarie 2030'!Y52-'Balancen BAU 2030'!Y52 -> 0 | Z52: ='Balancen Scenarie 2030'!Z52-'Balancen BAU 2030'!Z52 -> 0 | AA52: ='Balancen Scenarie 2030'!AA52-'Balancen BAU 2030'!AA52 -> 0 | AB52: ='Balancen Scenarie 2030'!AB52-'Balancen BAU 2030'!AB52 -> 0 | AC52: ='Balancen Scenarie 2030'!AC52-'Balancen BAU 2030'!AC52 -> 0 | AD52: ='Balancen Scenarie 2030'!AD52-'Balancen BAU 2030'!AD52 -> 0 | AE52: ='Balancen Scenarie 2030'!AE52-'Balancen BAU 2030'!AE52 -> 0 | AF52: ='Balancen Scenarie 2030'!AF52-'Balancen BAU 2030'!AF52 -> 0 | AG52: ='Balancen Scenarie 2030'!AG52-'Balancen BAU 2030'!AG52 -> 0 | AH52: ='Balancen Scenarie 2030'!AH52-'Balancen BAU 2030'!AH52 -> 0 | AI52: ='Balancen Scenarie 2030'!AI52-'Balancen BAU 2030'!AI52 -> 96.10750539 | AJ52: ='Balancen Scenarie 2030'!AJ52-'Balancen BAU 2030'!AJ52 -> 0 | AK52: ='Balancen Scenarie 2030'!AK52-'Balancen BAU 2030'!AK52 -> 0 | AL52: ='Balancen Scenarie 2030'!AL52-'Balancen BAU 2030'!AL52 -> -96.10750539 | AM52: ='Balancen Scenarie 2030'!AM52-'Balancen BAU 2030'!AM52 -> -96.10750539 | AN52: ='Balancen Scenarie 2030'!AN52-'Balancen BAU 2030'!AN52 -> 0 | AO52: ='Balancen Scenarie 2030'!AO52-'Balancen BAU 2030'!AO52 -> 0 | AP52: ='Balancen Scenarie 2030'!AP52-'Balancen BAU 2030'!AP52 -> -7.275957614e-11 | AQ52: ='Balancen Scenarie 2030'!AQ52-'Balancen BAU 2030'!AQ52 -> -3.456079867e-11 | AR52: ='Balancen Scenarie 2030'!AR52-'Balancen BAU 2030'!AR52 -> 0 | AS52: ='Balancen Scenarie 2030'!AS52-'Balancen BAU 2030'!AS52 -> 0 | AT52: ='Balancen Scenarie 2030'!AT52-'Balancen BAU 2030'!AT52 -> -174.0245535 | AU52: ='Balancen Scenarie 2030'!AU52-'Balancen BAU 2030'!AU52 -> -22.2070665
A53: Engros- og detailhandel | B53: ='Balancen Scenarie 2030'!B53-'Balancen BAU 2030'!B53 -> 0 | C53: ='Balancen Scenarie 2030'!C53-'Balancen BAU 2030'!C53 -> 0 | D53: ='Balancen Scenarie 2030'!D53-'Balancen BAU 2030'!D53 -> 0 | E53: ='Balancen Scenarie 2030'!E53-'Balancen BAU 2030'!E53 -> 0 | F53: ='Balancen Scenarie 2030'!F53-'Balancen BAU 2030'!F53 -> 0 | G53: ='Balancen Scenarie 2030'!G53-'Balancen BAU 2030'!G53 -> 0 | H53: ='Balancen Scenarie 2030'!H53-'Balancen BAU 2030'!H53 -> 0 | I53: ='Balancen Scenarie 2030'!I53-'Balancen BAU 2030'!I53 -> 0 | J53: ='Balancen Scenarie 2030'!J53-'Balancen BAU 2030'!J53 -> 0 | K53: ='Balancen Scenarie 2030'!K53-'Balancen BAU 2030'!K53 -> 0 | L53: ='Balancen Scenarie 2030'!L53-'Balancen BAU 2030'!L53 -> 0 | M53: ='Balancen Scenarie 2030'!M53-'Balancen BAU 2030'!M53 -> 0 | N53: ='Balancen Scenarie 2030'!N53-'Balancen BAU 2030'!N53 -> 0 | O53: ='Balancen Scenarie 2030'!O53-'Balancen BAU 2030'!O53 -> 0 | P53: ='Balancen Scenarie 2030'!P53-'Balancen BAU 2030'!P53 -> 0 | Q53: ='Balancen Scenarie 2030'!Q53-'Balancen BAU 2030'!Q53 -> 0 | R53: ='Balancen Scenarie 2030'!R53-'Balancen BAU 2030'!R53 -> 0 | S53: ='Balancen Scenarie 2030'!S53-'Balancen BAU 2030'!S53 -> 0 | T53: ='Balancen Scenarie 2030'!T53-'Balancen BAU 2030'!T53 -> 0 | U53: ='Balancen Scenarie 2030'!U53-'Balancen BAU 2030'!U53 -> 0 | V53: ='Balancen Scenarie 2030'!V53-'Balancen BAU 2030'!V53 -> 0 | W53: ='Balancen Scenarie 2030'!W53-'Balancen BAU 2030'!W53 -> 0 | X53: ='Balancen Scenarie 2030'!X53-'Balancen BAU 2030'!X53 -> 0 | Y53: ='Balancen Scenarie 2030'!Y53-'Balancen BAU 2030'!Y53 -> 0 | Z53: ='Balancen Scenarie 2030'!Z53-'Balancen BAU 2030'!Z53 -> 0 | AA53: ='Balancen Scenarie 2030'!AA53-'Balancen BAU 2030'!AA53 -> 0 | AB53: ='Balancen Scenarie 2030'!AB53-'Balancen BAU 2030'!AB53 -> 0 | AC53: ='Balancen Scenarie 2030'!AC53-'Balancen BAU 2030'!AC53 -> 0 | AD53: ='Balancen Scenarie 2030'!AD53-'Balancen BAU 2030'!AD53 -> 0 | AE53: ='Balancen Scenarie 2030'!AE53-'Balancen BAU 2030'!AE53 -> 0 | AF53: ='Balancen Scenarie 2030'!AF53-'Balancen BAU 2030'!AF53 -> 0 | AG53: ='Balancen Scenarie 2030'!AG53-'Balancen BAU 2030'!AG53 -> 0 | AH53: ='Balancen Scenarie 2030'!AH53-'Balancen BAU 2030'!AH53 -> 0 | AI53: ='Balancen Scenarie 2030'!AI53-'Balancen BAU 2030'!AI53 -> 48.76903931 | AJ53: ='Balancen Scenarie 2030'!AJ53-'Balancen BAU 2030'!AJ53 -> 0 | AK53: ='Balancen Scenarie 2030'!AK53-'Balancen BAU 2030'!AK53 -> 0 | AL53: ='Balancen Scenarie 2030'!AL53-'Balancen BAU 2030'!AL53 -> -48.76903931 | AM53: ='Balancen Scenarie 2030'!AM53-'Balancen BAU 2030'!AM53 -> -48.76903931 | AN53: ='Balancen Scenarie 2030'!AN53-'Balancen BAU 2030'!AN53 -> 0 | AO53: ='Balancen Scenarie 2030'!AO53-'Balancen BAU 2030'!AO53 -> 0 | AP53: ='Balancen Scenarie 2030'!AP53-'Balancen BAU 2030'!AP53 -> 0 | AQ53: ='Balancen Scenarie 2030'!AQ53-'Balancen BAU 2030'!AQ53 -> 1.818989404e-11 | AR53: ='Balancen Scenarie 2030'!AR53-'Balancen BAU 2030'!AR53 -> 0 | AS53: ='Balancen Scenarie 2030'!AS53-'Balancen BAU 2030'!AS53 -> 0 | AT53: ='Balancen Scenarie 2030'!AT53-'Balancen BAU 2030'!AT53 -> -39.70393981 | AU53: ='Balancen Scenarie 2030'!AU53-'Balancen BAU 2030'!AU53 -> -8.669720962
A54: Landbrug, skovbrug og gartneri | B54: ='Balancen Scenarie 2030'!B54-'Balancen BAU 2030'!B54 -> 2.910383046e-11 | C54: ='Balancen Scenarie 2030'!C54-'Balancen BAU 2030'!C54 -> 0 | D54: ='Balancen Scenarie 2030'!D54-'Balancen BAU 2030'!D54 -> 0 | E54: ='Balancen Scenarie 2030'!E54-'Balancen BAU 2030'!E54 -> 0 | F54: ='Balancen Scenarie 2030'!F54-'Balancen BAU 2030'!F54 -> 0 | G54: ='Balancen Scenarie 2030'!G54-'Balancen BAU 2030'!G54 -> 0 | H54: ='Balancen Scenarie 2030'!H54-'Balancen BAU 2030'!H54 -> 0 | I54: ='Balancen Scenarie 2030'!I54-'Balancen BAU 2030'!I54 -> 0 | J54: ='Balancen Scenarie 2030'!J54-'Balancen BAU 2030'!J54 -> 0 | K54: ='Balancen Scenarie 2030'!K54-'Balancen BAU 2030'!K54 -> 0 | L54: ='Balancen Scenarie 2030'!L54-'Balancen BAU 2030'!L54 -> 0 | M54: ='Balancen Scenarie 2030'!M54-'Balancen BAU 2030'!M54 -> 0 | N54: ='Balancen Scenarie 2030'!N54-'Balancen BAU 2030'!N54 -> 0 | O54: ='Balancen Scenarie 2030'!O54-'Balancen BAU 2030'!O54 -> 0 | P54: ='Balancen Scenarie 2030'!P54-'Balancen BAU 2030'!P54 -> 0 | Q54: ='Balancen Scenarie 2030'!Q54-'Balancen BAU 2030'!Q54 -> 0 | R54: ='Balancen Scenarie 2030'!R54-'Balancen BAU 2030'!R54 -> 0 | S54: ='Balancen Scenarie 2030'!S54-'Balancen BAU 2030'!S54 -> 0 | T54: ='Balancen Scenarie 2030'!T54-'Balancen BAU 2030'!T54 -> 0 | U54: ='Balancen Scenarie 2030'!U54-'Balancen BAU 2030'!U54 -> 0 | V54: ='Balancen Scenarie 2030'!V54-'Balancen BAU 2030'!V54 -> 0 | W54: ='Balancen Scenarie 2030'!W54-'Balancen BAU 2030'!W54 -> 0 | X54: ='Balancen Scenarie 2030'!X54-'Balancen BAU 2030'!X54 -> 0 | Y54: ='Balancen Scenarie 2030'!Y54-'Balancen BAU 2030'!Y54 -> 0 | Z54: ='Balancen Scenarie 2030'!Z54-'Balancen BAU 2030'!Z54 -> 0 | AA54: ='Balancen Scenarie 2030'!AA54-'Balancen BAU 2030'!AA54 -> 0 | AB54: ='Balancen Scenarie 2030'!AB54-'Balancen BAU 2030'!AB54 -> 0 | AC54: ='Balancen Scenarie 2030'!AC54-'Balancen BAU 2030'!AC54 -> 0 | AD54: ='Balancen Scenarie 2030'!AD54-'Balancen BAU 2030'!AD54 -> 0 | AE54: ='Balancen Scenarie 2030'!AE54-'Balancen BAU 2030'!AE54 -> 0 | AF54: ='Balancen Scenarie 2030'!AF54-'Balancen BAU 2030'!AF54 -> 0 | AG54: ='Balancen Scenarie 2030'!AG54-'Balancen BAU 2030'!AG54 -> 0 | AH54: ='Balancen Scenarie 2030'!AH54-'Balancen BAU 2030'!AH54 -> 0 | AI54: ='Balancen Scenarie 2030'!AI54-'Balancen BAU 2030'!AI54 -> 33.62986887 | AJ54: ='Balancen Scenarie 2030'!AJ54-'Balancen BAU 2030'!AJ54 -> 0 | AK54: ='Balancen Scenarie 2030'!AK54-'Balancen BAU 2030'!AK54 -> 0 | AL54: ='Balancen Scenarie 2030'!AL54-'Balancen BAU 2030'!AL54 -> -33.62986887 | AM54: ='Balancen Scenarie 2030'!AM54-'Balancen BAU 2030'!AM54 -> -33.62986887 | AN54: ='Balancen Scenarie 2030'!AN54-'Balancen BAU 2030'!AN54 -> 0 | AO54: ='Balancen Scenarie 2030'!AO54-'Balancen BAU 2030'!AO54 -> 0 | AP54: ='Balancen Scenarie 2030'!AP54-'Balancen BAU 2030'!AP54 -> 8.185452316e-12 | AQ54: ='Balancen Scenarie 2030'!AQ54-'Balancen BAU 2030'!AQ54 -> 2.046363079e-12 | AR54: ='Balancen Scenarie 2030'!AR54-'Balancen BAU 2030'!AR54 -> 0 | AS54: ='Balancen Scenarie 2030'!AS54-'Balancen BAU 2030'!AS54 -> -9.313225746e-10 | AT54: ='Balancen Scenarie 2030'!AT54-'Balancen BAU 2030'!AT54 -> 15.05859558 | AU54: ='Balancen Scenarie 2030'!AU54-'Balancen BAU 2030'!AU54 -> 1.04112975
A55: Fiskeri | B55: ='Balancen Scenarie 2030'!B55-'Balancen BAU 2030'!B55 -> 0 | C55: ='Balancen Scenarie 2030'!C55-'Balancen BAU 2030'!C55 -> 0 | D55: ='Balancen Scenarie 2030'!D55-'Balancen BAU 2030'!D55 -> 0 | E55: ='Balancen Scenarie 2030'!E55-'Balancen BAU 2030'!E55 -> 0 | F55: ='Balancen Scenarie 2030'!F55-'Balancen BAU 2030'!F55 -> 0 | G55: ='Balancen Scenarie 2030'!G55-'Balancen BAU 2030'!G55 -> 0 | H55: ='Balancen Scenarie 2030'!H55-'Balancen BAU 2030'!H55 -> 0 | I55: ='Balancen Scenarie 2030'!I55-'Balancen BAU 2030'!I55 -> 0 | J55: ='Balancen Scenarie 2030'!J55-'Balancen BAU 2030'!J55 -> 0 | K55: ='Balancen Scenarie 2030'!K55-'Balancen BAU 2030'!K55 -> 0 | L55: ='Balancen Scenarie 2030'!L55-'Balancen BAU 2030'!L55 -> 0 | M55: ='Balancen Scenarie 2030'!M55-'Balancen BAU 2030'!M55 -> 0 | N55: ='Balancen Scenarie 2030'!N55-'Balancen BAU 2030'!N55 -> 0 | O55: ='Balancen Scenarie 2030'!O55-'Balancen BAU 2030'!O55 -> 0 | P55: ='Balancen Scenarie 2030'!P55-'Balancen BAU 2030'!P55 -> 0 | Q55: ='Balancen Scenarie 2030'!Q55-'Balancen BAU 2030'!Q55 -> 0 | R55: ='Balancen Scenarie 2030'!R55-'Balancen BAU 2030'!R55 -> 0 | S55: ='Balancen Scenarie 2030'!S55-'Balancen BAU 2030'!S55 -> 0 | T55: ='Balancen Scenarie 2030'!T55-'Balancen BAU 2030'!T55 -> 0 | U55: ='Balancen Scenarie 2030'!U55-'Balancen BAU 2030'!U55 -> 0 | V55: ='Balancen Scenarie 2030'!V55-'Balancen BAU 2030'!V55 -> 0 | W55: ='Balancen Scenarie 2030'!W55-'Balancen BAU 2030'!W55 -> 0 | X55: ='Balancen Scenarie 2030'!X55-'Balancen BAU 2030'!X55 -> 0 | Y55: ='Balancen Scenarie 2030'!Y55-'Balancen BAU 2030'!Y55 -> 0 | Z55: ='Balancen Scenarie 2030'!Z55-'Balancen BAU 2030'!Z55 -> 0 | AA55: ='Balancen Scenarie 2030'!AA55-'Balancen BAU 2030'!AA55 -> 0 | AB55: ='Balancen Scenarie 2030'!AB55-'Balancen BAU 2030'!AB55 -> 0 | AC55: ='Balancen Scenarie 2030'!AC55-'Balancen BAU 2030'!AC55 -> 0 | AD55: ='Balancen Scenarie 2030'!AD55-'Balancen BAU 2030'!AD55 -> 0 | AE55: ='Balancen Scenarie 2030'!AE55-'Balancen BAU 2030'!AE55 -> 0 | AF55: ='Balancen Scenarie 2030'!AF55-'Balancen BAU 2030'!AF55 -> 0 | AG55: ='Balancen Scenarie 2030'!AG55-'Balancen BAU 2030'!AG55 -> 0 | AH55: ='Balancen Scenarie 2030'!AH55-'Balancen BAU 2030'!AH55 -> 0 | AI55: ='Balancen Scenarie 2030'!AI55-'Balancen BAU 2030'!AI55 -> 0 | AJ55: ='Balancen Scenarie 2030'!AJ55-'Balancen BAU 2030'!AJ55 -> 0 | AK55: ='Balancen Scenarie 2030'!AK55-'Balancen BAU 2030'!AK55 -> 0 | AL55: ='Balancen Scenarie 2030'!AL55-'Balancen BAU 2030'!AL55 -> 0 | AM55: ='Balancen Scenarie 2030'!AM55-'Balancen BAU 2030'!AM55 -> 0 | AN55: ='Balancen Scenarie 2030'!AN55-'Balancen BAU 2030'!AN55 -> 0 | AO55: ='Balancen Scenarie 2030'!AO55-'Balancen BAU 2030'!AO55 -> 0 | AP55: ='Balancen Scenarie 2030'!AP55-'Balancen BAU 2030'!AP55 -> 0 | AQ55: ='Balancen Scenarie 2030'!AQ55-'Balancen BAU 2030'!AQ55 -> 0 | AR55: ='Balancen Scenarie 2030'!AR55-'Balancen BAU 2030'!AR55 -> 0 | AS55: ='Balancen Scenarie 2030'!AS55-'Balancen BAU 2030'!AS55 -> 4.656612873e-10 | AT55: ='Balancen Scenarie 2030'!AT55-'Balancen BAU 2030'!AT55 -> 0 | AU55: ='Balancen Scenarie 2030'!AU55-'Balancen BAU 2030'!AU55 -> 0
A56: Byggeri- og anlægsvirksomhed | B56: ='Balancen Scenarie 2030'!B56-'Balancen BAU 2030'!B56 -> 0 | C56: ='Balancen Scenarie 2030'!C56-'Balancen BAU 2030'!C56 -> 0 | D56: ='Balancen Scenarie 2030'!D56-'Balancen BAU 2030'!D56 -> 0 | E56: ='Balancen Scenarie 2030'!E56-'Balancen BAU 2030'!E56 -> 0 | F56: ='Balancen Scenarie 2030'!F56-'Balancen BAU 2030'!F56 -> 0 | G56: ='Balancen Scenarie 2030'!G56-'Balancen BAU 2030'!G56 -> 0 | H56: ='Balancen Scenarie 2030'!H56-'Balancen BAU 2030'!H56 -> 0 | I56: ='Balancen Scenarie 2030'!I56-'Balancen BAU 2030'!I56 -> 0 | J56: ='Balancen Scenarie 2030'!J56-'Balancen BAU 2030'!J56 -> 0 | K56: ='Balancen Scenarie 2030'!K56-'Balancen BAU 2030'!K56 -> 0 | L56: ='Balancen Scenarie 2030'!L56-'Balancen BAU 2030'!L56 -> 0 | M56: ='Balancen Scenarie 2030'!M56-'Balancen BAU 2030'!M56 -> 0 | N56: ='Balancen Scenarie 2030'!N56-'Balancen BAU 2030'!N56 -> 0 | O56: ='Balancen Scenarie 2030'!O56-'Balancen BAU 2030'!O56 -> 0 | P56: ='Balancen Scenarie 2030'!P56-'Balancen BAU 2030'!P56 -> 0 | Q56: ='Balancen Scenarie 2030'!Q56-'Balancen BAU 2030'!Q56 -> 0 | R56: ='Balancen Scenarie 2030'!R56-'Balancen BAU 2030'!R56 -> 0 | S56: ='Balancen Scenarie 2030'!S56-'Balancen BAU 2030'!S56 -> 0 | T56: ='Balancen Scenarie 2030'!T56-'Balancen BAU 2030'!T56 -> 0 | U56: ='Balancen Scenarie 2030'!U56-'Balancen BAU 2030'!U56 -> 0 | V56: ='Balancen Scenarie 2030'!V56-'Balancen BAU 2030'!V56 -> 0 | W56: ='Balancen Scenarie 2030'!W56-'Balancen BAU 2030'!W56 -> 0 | X56: ='Balancen Scenarie 2030'!X56-'Balancen BAU 2030'!X56 -> 0 | Y56: ='Balancen Scenarie 2030'!Y56-'Balancen BAU 2030'!Y56 -> 0 | Z56: ='Balancen Scenarie 2030'!Z56-'Balancen BAU 2030'!Z56 -> 0 | AA56: ='Balancen Scenarie 2030'!AA56-'Balancen BAU 2030'!AA56 -> 0 | AB56: ='Balancen Scenarie 2030'!AB56-'Balancen BAU 2030'!AB56 -> 0 | AC56: ='Balancen Scenarie 2030'!AC56-'Balancen BAU 2030'!AC56 -> 0 | AD56: ='Balancen Scenarie 2030'!AD56-'Balancen BAU 2030'!AD56 -> 0 | AE56: ='Balancen Scenarie 2030'!AE56-'Balancen BAU 2030'!AE56 -> 0 | AF56: ='Balancen Scenarie 2030'!AF56-'Balancen BAU 2030'!AF56 -> 0 | AG56: ='Balancen Scenarie 2030'!AG56-'Balancen BAU 2030'!AG56 -> 0 | AH56: ='Balancen Scenarie 2030'!AH56-'Balancen BAU 2030'!AH56 -> 0 | AI56: ='Balancen Scenarie 2030'!AI56-'Balancen BAU 2030'!AI56 -> 0.2540206472 | AJ56: ='Balancen Scenarie 2030'!AJ56-'Balancen BAU 2030'!AJ56 -> 0 | AK56: ='Balancen Scenarie 2030'!AK56-'Balancen BAU 2030'!AK56 -> 0 | AL56: ='Balancen Scenarie 2030'!AL56-'Balancen BAU 2030'!AL56 -> -0.2540206472 | AM56: ='Balancen Scenarie 2030'!AM56-'Balancen BAU 2030'!AM56 -> -0.2540206472 | AN56: ='Balancen Scenarie 2030'!AN56-'Balancen BAU 2030'!AN56 -> 0 | AO56: ='Balancen Scenarie 2030'!AO56-'Balancen BAU 2030'!AO56 -> 0 | AP56: ='Balancen Scenarie 2030'!AP56-'Balancen BAU 2030'!AP56 -> -3.637978807e-12 | AQ56: ='Balancen Scenarie 2030'!AQ56-'Balancen BAU 2030'!AQ56 -> 0 | AR56: ='Balancen Scenarie 2030'!AR56-'Balancen BAU 2030'!AR56 -> 0 | AS56: ='Balancen Scenarie 2030'!AS56-'Balancen BAU 2030'!AS56 -> 0 | AT56: ='Balancen Scenarie 2030'!AT56-'Balancen BAU 2030'!AT56 -> -14.83242201 | AU56: ='Balancen Scenarie 2030'!AU56-'Balancen BAU 2030'!AU56 -> 0.01932117296
A57: Ikke-kategoriseret | B57: ='Balancen Scenarie 2030'!B57-'Balancen BAU 2030'!B57 -> 0 | C57: ='Balancen Scenarie 2030'!C57-'Balancen BAU 2030'!C57 -> 0 | D57: ='Balancen Scenarie 2030'!D57-'Balancen BAU 2030'!D57 -> 0 | E57: ='Balancen Scenarie 2030'!E57-'Balancen BAU 2030'!E57 -> 0 | F57: ='Balancen Scenarie 2030'!F57-'Balancen BAU 2030'!F57 -> 0 | G57: ='Balancen Scenarie 2030'!G57-'Balancen BAU 2030'!G57 -> 0 | H57: ='Balancen Scenarie 2030'!H57-'Balancen BAU 2030'!H57 -> 0 | I57: ='Balancen Scenarie 2030'!I57-'Balancen BAU 2030'!I57 -> 0 | J57: ='Balancen Scenarie 2030'!J57-'Balancen BAU 2030'!J57 -> 0 | K57: ='Balancen Scenarie 2030'!K57-'Balancen BAU 2030'!K57 -> 0 | L57: ='Balancen Scenarie 2030'!L57-'Balancen BAU 2030'!L57 -> 0 | M57: ='Balancen Scenarie 2030'!M57-'Balancen BAU 2030'!M57 -> 0 | N57: ='Balancen Scenarie 2030'!N57-'Balancen BAU 2030'!N57 -> 0 | O57: ='Balancen Scenarie 2030'!O57-'Balancen BAU 2030'!O57 -> 0 | P57: ='Balancen Scenarie 2030'!P57-'Balancen BAU 2030'!P57 -> 0 | Q57: ='Balancen Scenarie 2030'!Q57-'Balancen BAU 2030'!Q57 -> 0 | R57: ='Balancen Scenarie 2030'!R57-'Balancen BAU 2030'!R57 -> 0 | S57: ='Balancen Scenarie 2030'!S57-'Balancen BAU 2030'!S57 -> 0 | T57: ='Balancen Scenarie 2030'!T57-'Balancen BAU 2030'!T57 -> 0 | U57: ='Balancen Scenarie 2030'!U57-'Balancen BAU 2030'!U57 -> 0 | V57: ='Balancen Scenarie 2030'!V57-'Balancen BAU 2030'!V57 -> 0 | W57: ='Balancen Scenarie 2030'!W57-'Balancen BAU 2030'!W57 -> 0 | X57: ='Balancen Scenarie 2030'!X57-'Balancen BAU 2030'!X57 -> 0 | Y57: ='Balancen Scenarie 2030'!Y57-'Balancen BAU 2030'!Y57 -> 0 | Z57: ='Balancen Scenarie 2030'!Z57-'Balancen BAU 2030'!Z57 -> 0 | AA57: ='Balancen Scenarie 2030'!AA57-'Balancen BAU 2030'!AA57 -> 0 | AB57: ='Balancen Scenarie 2030'!AB57-'Balancen BAU 2030'!AB57 -> 0 | AC57: ='Balancen Scenarie 2030'!AC57-'Balancen BAU 2030'!AC57 -> 0 | AD57: ='Balancen Scenarie 2030'!AD57-'Balancen BAU 2030'!AD57 -> 0 | AE57: ='Balancen Scenarie 2030'!AE57-'Balancen BAU 2030'!AE57 -> 0 | AF57: ='Balancen Scenarie 2030'!AF57-'Balancen BAU 2030'!AF57 -> 0 | AG57: ='Balancen Scenarie 2030'!AG57-'Balancen BAU 2030'!AG57 -> 0 | AH57: ='Balancen Scenarie 2030'!AH57-'Balancen BAU 2030'!AH57 -> 0 | AI57: ='Balancen Scenarie 2030'!AI57-'Balancen BAU 2030'!AI57 -> 0 | AJ57: ='Balancen Scenarie 2030'!AJ57-'Balancen BAU 2030'!AJ57 -> 0 | AK57: ='Balancen Scenarie 2030'!AK57-'Balancen BAU 2030'!AK57 -> 0 | AL57: ='Balancen Scenarie 2030'!AL57-'Balancen BAU 2030'!AL57 -> 0 | AM57: ='Balancen Scenarie 2030'!AM57-'Balancen BAU 2030'!AM57 -> 0 | AN57: ='Balancen Scenarie 2030'!AN57-'Balancen BAU 2030'!AN57 -> 0 | AO57: ='Balancen Scenarie 2030'!AO57-'Balancen BAU 2030'!AO57 -> 0 | AP57: ='Balancen Scenarie 2030'!AP57-'Balancen BAU 2030'!AP57 -> 0 | AQ57: ='Balancen Scenarie 2030'!AQ57-'Balancen BAU 2030'!AQ57 -> 0 | AR57: ='Balancen Scenarie 2030'!AR57-'Balancen BAU 2030'!AR57 -> 0 | AS57: ='Balancen Scenarie 2030'!AS57-'Balancen BAU 2030'!AS57 -> 0 | AT57: ='Balancen Scenarie 2030'!AT57-'Balancen BAU 2030'!AT57 -> 0 | AU57: ='Balancen Scenarie 2030'!AU57-'Balancen BAU 2030'!AU57 -> 0
A58: Fremstillingsvirksomhed | B58: ='Balancen Scenarie 2030'!B58-'Balancen BAU 2030'!B58 -> 0 | C58: ='Balancen Scenarie 2030'!C58-'Balancen BAU 2030'!C58 -> 0 | D58: ='Balancen Scenarie 2030'!D58-'Balancen BAU 2030'!D58 -> 0 | E58: ='Balancen Scenarie 2030'!E58-'Balancen BAU 2030'!E58 -> 0 | F58: ='Balancen Scenarie 2030'!F58-'Balancen BAU 2030'!F58 -> 0 | G58: ='Balancen Scenarie 2030'!G58-'Balancen BAU 2030'!G58 -> 0 | H58: ='Balancen Scenarie 2030'!H58-'Balancen BAU 2030'!H58 -> 0 | I58: ='Balancen Scenarie 2030'!I58-'Balancen BAU 2030'!I58 -> 0 | J58: ='Balancen Scenarie 2030'!J58-'Balancen BAU 2030'!J58 -> 0 | K58: ='Balancen Scenarie 2030'!K58-'Balancen BAU 2030'!K58 -> 0 | L58: ='Balancen Scenarie 2030'!L58-'Balancen BAU 2030'!L58 -> 0 | M58: ='Balancen Scenarie 2030'!M58-'Balancen BAU 2030'!M58 -> 0 | N58: ='Balancen Scenarie 2030'!N58-'Balancen BAU 2030'!N58 -> 0 | O58: ='Balancen Scenarie 2030'!O58-'Balancen BAU 2030'!O58 -> 0 | P58: ='Balancen Scenarie 2030'!P58-'Balancen BAU 2030'!P58 -> 0 | Q58: ='Balancen Scenarie 2030'!Q58-'Balancen BAU 2030'!Q58 -> 0 | R58: ='Balancen Scenarie 2030'!R58-'Balancen BAU 2030'!R58 -> 0 | S58: ='Balancen Scenarie 2030'!S58-'Balancen BAU 2030'!S58 -> 0 | T58: ='Balancen Scenarie 2030'!T58-'Balancen BAU 2030'!T58 -> 0 | U58: ='Balancen Scenarie 2030'!U58-'Balancen BAU 2030'!U58 -> 0 | V58: ='Balancen Scenarie 2030'!V58-'Balancen BAU 2030'!V58 -> 0 | W58: ='Balancen Scenarie 2030'!W58-'Balancen BAU 2030'!W58 -> 0 | X58: ='Balancen Scenarie 2030'!X58-'Balancen BAU 2030'!X58 -> 0 | Y58: ='Balancen Scenarie 2030'!Y58-'Balancen BAU 2030'!Y58 -> 0 | Z58: ='Balancen Scenarie 2030'!Z58-'Balancen BAU 2030'!Z58 -> 0 | AA58: ='Balancen Scenarie 2030'!AA58-'Balancen BAU 2030'!AA58 -> 0 | AB58: ='Balancen Scenarie 2030'!AB58-'Balancen BAU 2030'!AB58 -> 0 | AC58: ='Balancen Scenarie 2030'!AC58-'Balancen BAU 2030'!AC58 -> 0 | AD58: ='Balancen Scenarie 2030'!AD58-'Balancen BAU 2030'!AD58 -> 0 | AE58: ='Balancen Scenarie 2030'!AE58-'Balancen BAU 2030'!AE58 -> 0 | AF58: ='Balancen Scenarie 2030'!AF58-'Balancen BAU 2030'!AF58 -> 0 | AG58: ='Balancen Scenarie 2030'!AG58-'Balancen BAU 2030'!AG58 -> 0 | AH58: ='Balancen Scenarie 2030'!AH58-'Balancen BAU 2030'!AH58 -> 0 | AI58: ='Balancen Scenarie 2030'!AI58-'Balancen BAU 2030'!AI58 -> 22.86041244 | AJ58: ='Balancen Scenarie 2030'!AJ58-'Balancen BAU 2030'!AJ58 -> 0 | AK58: ='Balancen Scenarie 2030'!AK58-'Balancen BAU 2030'!AK58 -> 0 | AL58: ='Balancen Scenarie 2030'!AL58-'Balancen BAU 2030'!AL58 -> -22.86041244 | AM58: ='Balancen Scenarie 2030'!AM58-'Balancen BAU 2030'!AM58 -> -22.86041244 | AN58: ='Balancen Scenarie 2030'!AN58-'Balancen BAU 2030'!AN58 -> 0 | AO58: ='Balancen Scenarie 2030'!AO58-'Balancen BAU 2030'!AO58 -> 0 | AP58: ='Balancen Scenarie 2030'!AP58-'Balancen BAU 2030'!AP58 -> 0 | AQ58: ='Balancen Scenarie 2030'!AQ58-'Balancen BAU 2030'!AQ58 -> 0 | AR58: ='Balancen Scenarie 2030'!AR58-'Balancen BAU 2030'!AR58 -> 0 | AS58: ='Balancen Scenarie 2030'!AS58-'Balancen BAU 2030'!AS58 -> 0 | AT58: ='Balancen Scenarie 2030'!AT58-'Balancen BAU 2030'!AT58 -> -252.5352353 | AU58: ='Balancen Scenarie 2030'!AU58-'Balancen BAU 2030'!AU58 -> 3.577144211
A59: Non-road | B59: ='Balancen Scenarie 2030'!B59-'Balancen BAU 2030'!B59 -> 0 | C59: ='Balancen Scenarie 2030'!C59-'Balancen BAU 2030'!C59 -> 0 | D59: ='Balancen Scenarie 2030'!D59-'Balancen BAU 2030'!D59 -> 0 | E59: ='Balancen Scenarie 2030'!E59-'Balancen BAU 2030'!E59 -> 0 | F59: ='Balancen Scenarie 2030'!F59-'Balancen BAU 2030'!F59 -> 0 | G59: ='Balancen Scenarie 2030'!G59-'Balancen BAU 2030'!G59 -> 0 | H59: ='Balancen Scenarie 2030'!H59-'Balancen BAU 2030'!H59 -> 0 | I59: ='Balancen Scenarie 2030'!I59-'Balancen BAU 2030'!I59 -> 0 | J59: ='Balancen Scenarie 2030'!J59-'Balancen BAU 2030'!J59 -> 0 | K59: ='Balancen Scenarie 2030'!K59-'Balancen BAU 2030'!K59 -> 0 | L59: ='Balancen Scenarie 2030'!L59-'Balancen BAU 2030'!L59 -> 0 | M59: ='Balancen Scenarie 2030'!M59-'Balancen BAU 2030'!M59 -> 0 | N59: ='Balancen Scenarie 2030'!N59-'Balancen BAU 2030'!N59 -> 0 | O59: ='Balancen Scenarie 2030'!O59-'Balancen BAU 2030'!O59 -> 0 | P59: ='Balancen Scenarie 2030'!P59-'Balancen BAU 2030'!P59 -> 0 | Q59: ='Balancen Scenarie 2030'!Q59-'Balancen BAU 2030'!Q59 -> 0 | R59: ='Balancen Scenarie 2030'!R59-'Balancen BAU 2030'!R59 -> 0 | S59: ='Balancen Scenarie 2030'!S59-'Balancen BAU 2030'!S59 -> 0 | T59: ='Balancen Scenarie 2030'!T59-'Balancen BAU 2030'!T59 -> 0 | U59: ='Balancen Scenarie 2030'!U59-'Balancen BAU 2030'!U59 -> 0 | V59: ='Balancen Scenarie 2030'!V59-'Balancen BAU 2030'!V59 -> 0 | W59: ='Balancen Scenarie 2030'!W59-'Balancen BAU 2030'!W59 -> 0 | X59: ='Balancen Scenarie 2030'!X59-'Balancen BAU 2030'!X59 -> 0 | Y59: ='Balancen Scenarie 2030'!Y59-'Balancen BAU 2030'!Y59 -> 0 | Z59: ='Balancen Scenarie 2030'!Z59-'Balancen BAU 2030'!Z59 -> 0 | AA59: ='Balancen Scenarie 2030'!AA59-'Balancen BAU 2030'!AA59 -> 0 | AB59: ='Balancen Scenarie 2030'!AB59-'Balancen BAU 2030'!AB59 -> 0 | AC59: ='Balancen Scenarie 2030'!AC59-'Balancen BAU 2030'!AC59 -> 0 | AD59: ='Balancen Scenarie 2030'!AD59-'Balancen BAU 2030'!AD59 -> 0 | AE59: ='Balancen Scenarie 2030'!AE59-'Balancen BAU 2030'!AE59 -> 0 | AF59: ='Balancen Scenarie 2030'!AF59-'Balancen BAU 2030'!AF59 -> 0 | AG59: ='Balancen Scenarie 2030'!AG59-'Balancen BAU 2030'!AG59 -> 0 | AH59: ='Balancen Scenarie 2030'!AH59-'Balancen BAU 2030'!AH59 -> 0 | AI59: ='Balancen Scenarie 2030'!AI59-'Balancen BAU 2030'!AI59 -> 0 | AJ59: ='Balancen Scenarie 2030'!AJ59-'Balancen BAU 2030'!AJ59 -> 0 | AK59: ='Balancen Scenarie 2030'!AK59-'Balancen BAU 2030'!AK59 -> 0 | AL59: ='Balancen Scenarie 2030'!AL59-'Balancen BAU 2030'!AL59 -> 0 | AM59: ='Balancen Scenarie 2030'!AM59-'Balancen BAU 2030'!AM59 -> 0 | AN59: ='Balancen Scenarie 2030'!AN59-'Balancen BAU 2030'!AN59 -> 0 | AO59: ='Balancen Scenarie 2030'!AO59-'Balancen BAU 2030'!AO59 -> 0 | AP59: ='Balancen Scenarie 2030'!AP59-'Balancen BAU 2030'!AP59 -> 0 | AQ59: ='Balancen Scenarie 2030'!AQ59-'Balancen BAU 2030'!AQ59 -> 0 | AR59: ='Balancen Scenarie 2030'!AR59-'Balancen BAU 2030'!AR59 -> 0 | AS59: ='Balancen Scenarie 2030'!AS59-'Balancen BAU 2030'!AS59 -> 0 | AT59: ='Balancen Scenarie 2030'!AT59-'Balancen BAU 2030'!AT59 -> 0 | AU59: ='Balancen Scenarie 2030'!AU59-'Balancen BAU 2030'!AU59 -> 0
A60: Offentlig service | B60: ='Balancen Scenarie 2030'!B60-'Balancen BAU 2030'!B60 -> 0 | C60: ='Balancen Scenarie 2030'!C60-'Balancen BAU 2030'!C60 -> 0 | D60: ='Balancen Scenarie 2030'!D60-'Balancen BAU 2030'!D60 -> 0 | E60: ='Balancen Scenarie 2030'!E60-'Balancen BAU 2030'!E60 -> 0 | F60: ='Balancen Scenarie 2030'!F60-'Balancen BAU 2030'!F60 -> 0 | G60: ='Balancen Scenarie 2030'!G60-'Balancen BAU 2030'!G60 -> 0 | H60: ='Balancen Scenarie 2030'!H60-'Balancen BAU 2030'!H60 -> 0 | I60: ='Balancen Scenarie 2030'!I60-'Balancen BAU 2030'!I60 -> 0 | J60: ='Balancen Scenarie 2030'!J60-'Balancen BAU 2030'!J60 -> 0 | K60: ='Balancen Scenarie 2030'!K60-'Balancen BAU 2030'!K60 -> 0 | L60: ='Balancen Scenarie 2030'!L60-'Balancen BAU 2030'!L60 -> 0 | M60: ='Balancen Scenarie 2030'!M60-'Balancen BAU 2030'!M60 -> 0 | N60: ='Balancen Scenarie 2030'!N60-'Balancen BAU 2030'!N60 -> 0 | O60: ='Balancen Scenarie 2030'!O60-'Balancen BAU 2030'!O60 -> 0 | P60: ='Balancen Scenarie 2030'!P60-'Balancen BAU 2030'!P60 -> 0 | Q60: ='Balancen Scenarie 2030'!Q60-'Balancen BAU 2030'!Q60 -> 0 | R60: ='Balancen Scenarie 2030'!R60-'Balancen BAU 2030'!R60 -> 0 | S60: ='Balancen Scenarie 2030'!S60-'Balancen BAU 2030'!S60 -> 0 | T60: ='Balancen Scenarie 2030'!T60-'Balancen BAU 2030'!T60 -> 0 | U60: ='Balancen Scenarie 2030'!U60-'Balancen BAU 2030'!U60 -> 0 | V60: ='Balancen Scenarie 2030'!V60-'Balancen BAU 2030'!V60 -> 0 | W60: ='Balancen Scenarie 2030'!W60-'Balancen BAU 2030'!W60 -> 0 | X60: ='Balancen Scenarie 2030'!X60-'Balancen BAU 2030'!X60 -> 0 | Y60: ='Balancen Scenarie 2030'!Y60-'Balancen BAU 2030'!Y60 -> 0 | Z60: ='Balancen Scenarie 2030'!Z60-'Balancen BAU 2030'!Z60 -> 0 | AA60: ='Balancen Scenarie 2030'!AA60-'Balancen BAU 2030'!AA60 -> 0 | AB60: ='Balancen Scenarie 2030'!AB60-'Balancen BAU 2030'!AB60 -> 0 | AC60: ='Balancen Scenarie 2030'!AC60-'Balancen BAU 2030'!AC60 -> 0 | AD60: ='Balancen Scenarie 2030'!AD60-'Balancen BAU 2030'!AD60 -> 0 | AE60: ='Balancen Scenarie 2030'!AE60-'Balancen BAU 2030'!AE60 -> 0 | AF60: ='Balancen Scenarie 2030'!AF60-'Balancen BAU 2030'!AF60 -> 0 | AG60: ='Balancen Scenarie 2030'!AG60-'Balancen BAU 2030'!AG60 -> 0 | AH60: ='Balancen Scenarie 2030'!AH60-'Balancen BAU 2030'!AH60 -> 0 | AI60: ='Balancen Scenarie 2030'!AI60-'Balancen BAU 2030'!AI60 -> 0 | AJ60: ='Balancen Scenarie 2030'!AJ60-'Balancen BAU 2030'!AJ60 -> 0 | AK60: ='Balancen Scenarie 2030'!AK60-'Balancen BAU 2030'!AK60 -> 0 | AL60: ='Balancen Scenarie 2030'!AL60-'Balancen BAU 2030'!AL60 -> 0 | AM60: ='Balancen Scenarie 2030'!AM60-'Balancen BAU 2030'!AM60 -> 0 | AN60: ='Balancen Scenarie 2030'!AN60-'Balancen BAU 2030'!AN60 -> 0 | AO60: ='Balancen Scenarie 2030'!AO60-'Balancen BAU 2030'!AO60 -> 0 | AP60: ='Balancen Scenarie 2030'!AP60-'Balancen BAU 2030'!AP60 -> 0 | AQ60: ='Balancen Scenarie 2030'!AQ60-'Balancen BAU 2030'!AQ60 -> 0 | AR60: ='Balancen Scenarie 2030'!AR60-'Balancen BAU 2030'!AR60 -> 0 | AS60: ='Balancen Scenarie 2030'!AS60-'Balancen BAU 2030'!AS60 -> 0 | AT60: ='Balancen Scenarie 2030'!AT60-'Balancen BAU 2030'!AT60 -> 0 | AU60: ='Balancen Scenarie 2030'!AU60-'Balancen BAU 2030'!AU60 -> 0
A61: Privat service | B61: ='Balancen Scenarie 2030'!B61-'Balancen BAU 2030'!B61 -> 0 | C61: ='Balancen Scenarie 2030'!C61-'Balancen BAU 2030'!C61 -> 0 | D61: ='Balancen Scenarie 2030'!D61-'Balancen BAU 2030'!D61 -> 0 | E61: ='Balancen Scenarie 2030'!E61-'Balancen BAU 2030'!E61 -> 0 | F61: ='Balancen Scenarie 2030'!F61-'Balancen BAU 2030'!F61 -> 0 | G61: ='Balancen Scenarie 2030'!G61-'Balancen BAU 2030'!G61 -> 0 | H61: ='Balancen Scenarie 2030'!H61-'Balancen BAU 2030'!H61 -> 0 | I61: ='Balancen Scenarie 2030'!I61-'Balancen BAU 2030'!I61 -> 0 | J61: ='Balancen Scenarie 2030'!J61-'Balancen BAU 2030'!J61 -> 0 | K61: ='Balancen Scenarie 2030'!K61-'Balancen BAU 2030'!K61 -> 0 | L61: ='Balancen Scenarie 2030'!L61-'Balancen BAU 2030'!L61 -> 0 | M61: ='Balancen Scenarie 2030'!M61-'Balancen BAU 2030'!M61 -> 0 | N61: ='Balancen Scenarie 2030'!N61-'Balancen BAU 2030'!N61 -> 0 | O61: ='Balancen Scenarie 2030'!O61-'Balancen BAU 2030'!O61 -> 0 | P61: ='Balancen Scenarie 2030'!P61-'Balancen BAU 2030'!P61 -> 0 | Q61: ='Balancen Scenarie 2030'!Q61-'Balancen BAU 2030'!Q61 -> 0 | R61: ='Balancen Scenarie 2030'!R61-'Balancen BAU 2030'!R61 -> 0 | S61: ='Balancen Scenarie 2030'!S61-'Balancen BAU 2030'!S61 -> 0 | T61: ='Balancen Scenarie 2030'!T61-'Balancen BAU 2030'!T61 -> 0 | U61: ='Balancen Scenarie 2030'!U61-'Balancen BAU 2030'!U61 -> 0 | V61: ='Balancen Scenarie 2030'!V61-'Balancen BAU 2030'!V61 -> 0 | W61: ='Balancen Scenarie 2030'!W61-'Balancen BAU 2030'!W61 -> 0 | X61: ='Balancen Scenarie 2030'!X61-'Balancen BAU 2030'!X61 -> 0 | Y61: ='Balancen Scenarie 2030'!Y61-'Balancen BAU 2030'!Y61 -> 0 | Z61: ='Balancen Scenarie 2030'!Z61-'Balancen BAU 2030'!Z61 -> 0 | AA61: ='Balancen Scenarie 2030'!AA61-'Balancen BAU 2030'!AA61 -> 0 | AB61: ='Balancen Scenarie 2030'!AB61-'Balancen BAU 2030'!AB61 -> 0 | AC61: ='Balancen Scenarie 2030'!AC61-'Balancen BAU 2030'!AC61 -> 0 | AD61: ='Balancen Scenarie 2030'!AD61-'Balancen BAU 2030'!AD61 -> 0 | AE61: ='Balancen Scenarie 2030'!AE61-'Balancen BAU 2030'!AE61 -> 0 | AF61: ='Balancen Scenarie 2030'!AF61-'Balancen BAU 2030'!AF61 -> 0 | AG61: ='Balancen Scenarie 2030'!AG61-'Balancen BAU 2030'!AG61 -> 0 | AH61: ='Balancen Scenarie 2030'!AH61-'Balancen BAU 2030'!AH61 -> 0 | AI61: ='Balancen Scenarie 2030'!AI61-'Balancen BAU 2030'!AI61 -> 0 | AJ61: ='Balancen Scenarie 2030'!AJ61-'Balancen BAU 2030'!AJ61 -> 0 | AK61: ='Balancen Scenarie 2030'!AK61-'Balancen BAU 2030'!AK61 -> 0 | AL61: ='Balancen Scenarie 2030'!AL61-'Balancen BAU 2030'!AL61 -> 0 | AM61: ='Balancen Scenarie 2030'!AM61-'Balancen BAU 2030'!AM61 -> 0 | AN61: ='Balancen Scenarie 2030'!AN61-'Balancen BAU 2030'!AN61 -> 0 | AO61: ='Balancen Scenarie 2030'!AO61-'Balancen BAU 2030'!AO61 -> 0 | AP61: ='Balancen Scenarie 2030'!AP61-'Balancen BAU 2030'!AP61 -> 0 | AQ61: ='Balancen Scenarie 2030'!AQ61-'Balancen BAU 2030'!AQ61 -> 0 | AR61: ='Balancen Scenarie 2030'!AR61-'Balancen BAU 2030'!AR61 -> 0 | AS61: ='Balancen Scenarie 2030'!AS61-'Balancen BAU 2030'!AS61 -> 0 | AT61: ='Balancen Scenarie 2030'!AT61-'Balancen BAU 2030'!AT61 -> 0 | AU61: ='Balancen Scenarie 2030'!AU61-'Balancen BAU 2030'!AU61 -> 0
A62: Landbrug, skovbrug og gartneri | B62: ='Balancen Scenarie 2030'!B62-'Balancen BAU 2030'!B62 -> 0 | C62: ='Balancen Scenarie 2030'!C62-'Balancen BAU 2030'!C62 -> 0 | D62: ='Balancen Scenarie 2030'!D62-'Balancen BAU 2030'!D62 -> 0 | E62: ='Balancen Scenarie 2030'!E62-'Balancen BAU 2030'!E62 -> 0 | F62: ='Balancen Scenarie 2030'!F62-'Balancen BAU 2030'!F62 -> 0 | G62: ='Balancen Scenarie 2030'!G62-'Balancen BAU 2030'!G62 -> 0 | H62: ='Balancen Scenarie 2030'!H62-'Balancen BAU 2030'!H62 -> 0 | I62: ='Balancen Scenarie 2030'!I62-'Balancen BAU 2030'!I62 -> 0 | J62: ='Balancen Scenarie 2030'!J62-'Balancen BAU 2030'!J62 -> 0 | K62: ='Balancen Scenarie 2030'!K62-'Balancen BAU 2030'!K62 -> 0 | L62: ='Balancen Scenarie 2030'!L62-'Balancen BAU 2030'!L62 -> 0 | M62: ='Balancen Scenarie 2030'!M62-'Balancen BAU 2030'!M62 -> 0 | N62: ='Balancen Scenarie 2030'!N62-'Balancen BAU 2030'!N62 -> 0 | O62: ='Balancen Scenarie 2030'!O62-'Balancen BAU 2030'!O62 -> 0 | P62: ='Balancen Scenarie 2030'!P62-'Balancen BAU 2030'!P62 -> 0 | Q62: ='Balancen Scenarie 2030'!Q62-'Balancen BAU 2030'!Q62 -> 0 | R62: ='Balancen Scenarie 2030'!R62-'Balancen BAU 2030'!R62 -> 0 | S62: ='Balancen Scenarie 2030'!S62-'Balancen BAU 2030'!S62 -> 0 | T62: ='Balancen Scenarie 2030'!T62-'Balancen BAU 2030'!T62 -> 0 | U62: ='Balancen Scenarie 2030'!U62-'Balancen BAU 2030'!U62 -> 0 | V62: ='Balancen Scenarie 2030'!V62-'Balancen BAU 2030'!V62 -> 0 | W62: ='Balancen Scenarie 2030'!W62-'Balancen BAU 2030'!W62 -> 0 | X62: ='Balancen Scenarie 2030'!X62-'Balancen BAU 2030'!X62 -> 0 | Y62: ='Balancen Scenarie 2030'!Y62-'Balancen BAU 2030'!Y62 -> 0 | Z62: ='Balancen Scenarie 2030'!Z62-'Balancen BAU 2030'!Z62 -> 0 | AA62: ='Balancen Scenarie 2030'!AA62-'Balancen BAU 2030'!AA62 -> 0 | AB62: ='Balancen Scenarie 2030'!AB62-'Balancen BAU 2030'!AB62 -> 0 | AC62: ='Balancen Scenarie 2030'!AC62-'Balancen BAU 2030'!AC62 -> 0 | AD62: ='Balancen Scenarie 2030'!AD62-'Balancen BAU 2030'!AD62 -> 0 | AE62: ='Balancen Scenarie 2030'!AE62-'Balancen BAU 2030'!AE62 -> 0 | AF62: ='Balancen Scenarie 2030'!AF62-'Balancen BAU 2030'!AF62 -> 0 | AG62: ='Balancen Scenarie 2030'!AG62-'Balancen BAU 2030'!AG62 -> 0 | AH62: ='Balancen Scenarie 2030'!AH62-'Balancen BAU 2030'!AH62 -> 0 | AI62: ='Balancen Scenarie 2030'!AI62-'Balancen BAU 2030'!AI62 -> 0 | AJ62: ='Balancen Scenarie 2030'!AJ62-'Balancen BAU 2030'!AJ62 -> 0 | AK62: ='Balancen Scenarie 2030'!AK62-'Balancen BAU 2030'!AK62 -> 0 | AL62: ='Balancen Scenarie 2030'!AL62-'Balancen BAU 2030'!AL62 -> 0 | AM62: ='Balancen Scenarie 2030'!AM62-'Balancen BAU 2030'!AM62 -> 0 | AN62: ='Balancen Scenarie 2030'!AN62-'Balancen BAU 2030'!AN62 -> 0 | AO62: ='Balancen Scenarie 2030'!AO62-'Balancen BAU 2030'!AO62 -> 0 | AP62: ='Balancen Scenarie 2030'!AP62-'Balancen BAU 2030'!AP62 -> 0 | AQ62: ='Balancen Scenarie 2030'!AQ62-'Balancen BAU 2030'!AQ62 -> 0 | AR62: ='Balancen Scenarie 2030'!AR62-'Balancen BAU 2030'!AR62 -> 0 | AS62: ='Balancen Scenarie 2030'!AS62-'Balancen BAU 2030'!AS62 -> 0 | AT62: ='Balancen Scenarie 2030'!AT62-'Balancen BAU 2030'!AT62 -> 0 | AU62: ='Balancen Scenarie 2030'!AU62-'Balancen BAU 2030'!AU62 -> 0
A63: Fiskeri | B63: ='Balancen Scenarie 2030'!B63-'Balancen BAU 2030'!B63 -> 0 | C63: ='Balancen Scenarie 2030'!C63-'Balancen BAU 2030'!C63 -> 0 | D63: ='Balancen Scenarie 2030'!D63-'Balancen BAU 2030'!D63 -> 0 | E63: ='Balancen Scenarie 2030'!E63-'Balancen BAU 2030'!E63 -> 0 | F63: ='Balancen Scenarie 2030'!F63-'Balancen BAU 2030'!F63 -> 0 | G63: ='Balancen Scenarie 2030'!G63-'Balancen BAU 2030'!G63 -> 0 | H63: ='Balancen Scenarie 2030'!H63-'Balancen BAU 2030'!H63 -> 0 | I63: ='Balancen Scenarie 2030'!I63-'Balancen BAU 2030'!I63 -> 0 | J63: ='Balancen Scenarie 2030'!J63-'Balancen BAU 2030'!J63 -> 0 | K63: ='Balancen Scenarie 2030'!K63-'Balancen BAU 2030'!K63 -> 0 | L63: ='Balancen Scenarie 2030'!L63-'Balancen BAU 2030'!L63 -> 0 | M63: ='Balancen Scenarie 2030'!M63-'Balancen BAU 2030'!M63 -> 0 | N63: ='Balancen Scenarie 2030'!N63-'Balancen BAU 2030'!N63 -> 0 | O63: ='Balancen Scenarie 2030'!O63-'Balancen BAU 2030'!O63 -> 0 | P63: ='Balancen Scenarie 2030'!P63-'Balancen BAU 2030'!P63 -> 0 | Q63: ='Balancen Scenarie 2030'!Q63-'Balancen BAU 2030'!Q63 -> 0 | R63: ='Balancen Scenarie 2030'!R63-'Balancen BAU 2030'!R63 -> 0 | S63: ='Balancen Scenarie 2030'!S63-'Balancen BAU 2030'!S63 -> 0 | T63: ='Balancen Scenarie 2030'!T63-'Balancen BAU 2030'!T63 -> 0 | U63: ='Balancen Scenarie 2030'!U63-'Balancen BAU 2030'!U63 -> 0 | V63: ='Balancen Scenarie 2030'!V63-'Balancen BAU 2030'!V63 -> 0 | W63: ='Balancen Scenarie 2030'!W63-'Balancen BAU 2030'!W63 -> 0 | X63: ='Balancen Scenarie 2030'!X63-'Balancen BAU 2030'!X63 -> 0 | Y63: ='Balancen Scenarie 2030'!Y63-'Balancen BAU 2030'!Y63 -> 0 | Z63: ='Balancen Scenarie 2030'!Z63-'Balancen BAU 2030'!Z63 -> 0 | AA63: ='Balancen Scenarie 2030'!AA63-'Balancen BAU 2030'!AA63 -> 0 | AB63: ='Balancen Scenarie 2030'!AB63-'Balancen BAU 2030'!AB63 -> 0 | AC63: ='Balancen Scenarie 2030'!AC63-'Balancen BAU 2030'!AC63 -> 0 | AD63: ='Balancen Scenarie 2030'!AD63-'Balancen BAU 2030'!AD63 -> 0 | AE63: ='Balancen Scenarie 2030'!AE63-'Balancen BAU 2030'!AE63 -> 0 | AF63: ='Balancen Scenarie 2030'!AF63-'Balancen BAU 2030'!AF63 -> 0 | AG63: ='Balancen Scenarie 2030'!AG63-'Balancen BAU 2030'!AG63 -> 0 | AH63: ='Balancen Scenarie 2030'!AH63-'Balancen BAU 2030'!AH63 -> 0 | AI63: ='Balancen Scenarie 2030'!AI63-'Balancen BAU 2030'!AI63 -> 0 | AJ63: ='Balancen Scenarie 2030'!AJ63-'Balancen BAU 2030'!AJ63 -> 0 | AK63: ='Balancen Scenarie 2030'!AK63-'Balancen BAU 2030'!AK63 -> 0 | AL63: ='Balancen Scenarie 2030'!AL63-'Balancen BAU 2030'!AL63 -> 0 | AM63: ='Balancen Scenarie 2030'!AM63-'Balancen BAU 2030'!AM63 -> 0 | AN63: ='Balancen Scenarie 2030'!AN63-'Balancen BAU 2030'!AN63 -> 0 | AO63: ='Balancen Scenarie 2030'!AO63-'Balancen BAU 2030'!AO63 -> 0 | AP63: ='Balancen Scenarie 2030'!AP63-'Balancen BAU 2030'!AP63 -> 0 | AQ63: ='Balancen Scenarie 2030'!AQ63-'Balancen BAU 2030'!AQ63 -> 0 | AR63: ='Balancen Scenarie 2030'!AR63-'Balancen BAU 2030'!AR63 -> 0 | AS63: ='Balancen Scenarie 2030'!AS63-'Balancen BAU 2030'!AS63 -> 0 | AT63: ='Balancen Scenarie 2030'!AT63-'Balancen BAU 2030'!AT63 -> 0 | AU63: ='Balancen Scenarie 2030'!AU63-'Balancen BAU 2030'!AU63 -> 0
A64: Byggeri- og anlægsvirksomhed | B64: ='Balancen Scenarie 2030'!B64-'Balancen BAU 2030'!B64 -> 0 | C64: ='Balancen Scenarie 2030'!C64-'Balancen BAU 2030'!C64 -> 0 | D64: ='Balancen Scenarie 2030'!D64-'Balancen BAU 2030'!D64 -> 0 | E64: ='Balancen Scenarie 2030'!E64-'Balancen BAU 2030'!E64 -> 0 | F64: ='Balancen Scenarie 2030'!F64-'Balancen BAU 2030'!F64 -> 0 | G64: ='Balancen Scenarie 2030'!G64-'Balancen BAU 2030'!G64 -> 0 | H64: ='Balancen Scenarie 2030'!H64-'Balancen BAU 2030'!H64 -> 0 | I64: ='Balancen Scenarie 2030'!I64-'Balancen BAU 2030'!I64 -> 0 | J64: ='Balancen Scenarie 2030'!J64-'Balancen BAU 2030'!J64 -> 0 | K64: ='Balancen Scenarie 2030'!K64-'Balancen BAU 2030'!K64 -> 0 | L64: ='Balancen Scenarie 2030'!L64-'Balancen BAU 2030'!L64 -> 0 | M64: ='Balancen Scenarie 2030'!M64-'Balancen BAU 2030'!M64 -> 0 | N64: ='Balancen Scenarie 2030'!N64-'Balancen BAU 2030'!N64 -> 0 | O64: ='Balancen Scenarie 2030'!O64-'Balancen BAU 2030'!O64 -> 0 | P64: ='Balancen Scenarie 2030'!P64-'Balancen BAU 2030'!P64 -> 0 | Q64: ='Balancen Scenarie 2030'!Q64-'Balancen BAU 2030'!Q64 -> 0 | R64: ='Balancen Scenarie 2030'!R64-'Balancen BAU 2030'!R64 -> 0 | S64: ='Balancen Scenarie 2030'!S64-'Balancen BAU 2030'!S64 -> 0 | T64: ='Balancen Scenarie 2030'!T64-'Balancen BAU 2030'!T64 -> 0 | U64: ='Balancen Scenarie 2030'!U64-'Balancen BAU 2030'!U64 -> 0 | V64: ='Balancen Scenarie 2030'!V64-'Balancen BAU 2030'!V64 -> 0 | W64: ='Balancen Scenarie 2030'!W64-'Balancen BAU 2030'!W64 -> 0 | X64: ='Balancen Scenarie 2030'!X64-'Balancen BAU 2030'!X64 -> 0 | Y64: ='Balancen Scenarie 2030'!Y64-'Balancen BAU 2030'!Y64 -> 0 | Z64: ='Balancen Scenarie 2030'!Z64-'Balancen BAU 2030'!Z64 -> 0 | AA64: ='Balancen Scenarie 2030'!AA64-'Balancen BAU 2030'!AA64 -> 0 | AB64: ='Balancen Scenarie 2030'!AB64-'Balancen BAU 2030'!AB64 -> 0 | AC64: ='Balancen Scenarie 2030'!AC64-'Balancen BAU 2030'!AC64 -> 0 | AD64: ='Balancen Scenarie 2030'!AD64-'Balancen BAU 2030'!AD64 -> 0 | AE64: ='Balancen Scenarie 2030'!AE64-'Balancen BAU 2030'!AE64 -> 0 | AF64: ='Balancen Scenarie 2030'!AF64-'Balancen BAU 2030'!AF64 -> 0 | AG64: ='Balancen Scenarie 2030'!AG64-'Balancen BAU 2030'!AG64 -> 0 | AH64: ='Balancen Scenarie 2030'!AH64-'Balancen BAU 2030'!AH64 -> 0 | AI64: ='Balancen Scenarie 2030'!AI64-'Balancen BAU 2030'!AI64 -> 0 | AJ64: ='Balancen Scenarie 2030'!AJ64-'Balancen BAU 2030'!AJ64 -> 0 | AK64: ='Balancen Scenarie 2030'!AK64-'Balancen BAU 2030'!AK64 -> 0 | AL64: ='Balancen Scenarie 2030'!AL64-'Balancen BAU 2030'!AL64 -> 0 | AM64: ='Balancen Scenarie 2030'!AM64-'Balancen BAU 2030'!AM64 -> 0 | AN64: ='Balancen Scenarie 2030'!AN64-'Balancen BAU 2030'!AN64 -> 0 | AO64: ='Balancen Scenarie 2030'!AO64-'Balancen BAU 2030'!AO64 -> 0 | AP64: ='Balancen Scenarie 2030'!AP64-'Balancen BAU 2030'!AP64 -> 0 | AQ64: ='Balancen Scenarie 2030'!AQ64-'Balancen BAU 2030'!AQ64 -> 0 | AR64: ='Balancen Scenarie 2030'!AR64-'Balancen BAU 2030'!AR64 -> 0 | AS64: ='Balancen Scenarie 2030'!AS64-'Balancen BAU 2030'!AS64 -> 0 | AT64: ='Balancen Scenarie 2030'!AT64-'Balancen BAU 2030'!AT64 -> 0 | AU64: ='Balancen Scenarie 2030'!AU64-'Balancen BAU 2030'!AU64 -> 0
B65: ='Balancen Scenarie 2030'!B65-'Balancen BAU 2030'!B65 -> 0 | C65: ='Balancen Scenarie 2030'!C65-'Balancen BAU 2030'!C65 -> 0 | D65: ='Balancen Scenarie 2030'!D65-'Balancen BAU 2030'!D65 -> 0 | E65: ='Balancen Scenarie 2030'!E65-'Balancen BAU 2030'!E65 -> 0 | F65: ='Balancen Scenarie 2030'!F65-'Balancen BAU 2030'!F65 -> 0 | G65: ='Balancen Scenarie 2030'!G65-'Balancen BAU 2030'!G65 -> 0 | H65: ='Balancen Scenarie 2030'!H65-'Balancen BAU 2030'!H65 -> 0 | I65: ='Balancen Scenarie 2030'!I65-'Balancen BAU 2030'!I65 -> 0 | J65: ='Balancen Scenarie 2030'!J65-'Balancen BAU 2030'!J65 -> 0 | K65: ='Balancen Scenarie 2030'!K65-'Balancen BAU 2030'!K65 -> 0 | L65: ='Balancen Scenarie 2030'!L65-'Balancen BAU 2030'!L65 -> 0 | M65: ='Balancen Scenarie 2030'!M65-'Balancen BAU 2030'!M65 -> 0 | N65: ='Balancen Scenarie 2030'!N65-'Balancen BAU 2030'!N65 -> 0 | O65: ='Balancen Scenarie 2030'!O65-'Balancen BAU 2030'!O65 -> 0 | P65: ='Balancen Scenarie 2030'!P65-'Balancen BAU 2030'!P65 -> 0 | Q65: ='Balancen Scenarie 2030'!Q65-'Balancen BAU 2030'!Q65 -> 0 | R65: ='Balancen Scenarie 2030'!R65-'Balancen BAU 2030'!R65 -> 0 | S65: ='Balancen Scenarie 2030'!S65-'Balancen BAU 2030'!S65 -> 0 | T65: ='Balancen Scenarie 2030'!T65-'Balancen BAU 2030'!T65 -> 0 | U65: ='Balancen Scenarie 2030'!U65-'Balancen BAU 2030'!U65 -> 0 | V65: ='Balancen Scenarie 2030'!V65-'Balancen BAU 2030'!V65 -> 0 | W65: ='Balancen Scenarie 2030'!W65-'Balancen BAU 2030'!W65 -> 0 | X65: ='Balancen Scenarie 2030'!X65-'Balancen BAU 2030'!X65 -> 0 | Y65: ='Balancen Scenarie 2030'!Y65-'Balancen BAU 2030'!Y65 -> 0 | Z65: ='Balancen Scenarie 2030'!Z65-'Balancen BAU 2030'!Z65 -> 0 | AA65: ='Balancen Scenarie 2030'!AA65-'Balancen BAU 2030'!AA65 -> 0 | AB65: ='Balancen Scenarie 2030'!AB65-'Balancen BAU 2030'!AB65 -> 0 | AC65: ='Balancen Scenarie 2030'!AC65-'Balancen BAU 2030'!AC65 -> 0 | AD65: ='Balancen Scenarie 2030'!AD65-'Balancen BAU 2030'!AD65 -> 0 | AE65: ='Balancen Scenarie 2030'!AE65-'Balancen BAU 2030'!AE65 -> 0 | AF65: ='Balancen Scenarie 2030'!AF65-'Balancen BAU 2030'!AF65 -> 0 | AG65: ='Balancen Scenarie 2030'!AG65-'Balancen BAU 2030'!AG65 -> 0 | AH65: ='Balancen Scenarie 2030'!AH65-'Balancen BAU 2030'!AH65 -> 0 | AI65: ='Balancen Scenarie 2030'!AI65-'Balancen BAU 2030'!AI65 -> 0 | AJ65: ='Balancen Scenarie 2030'!AJ65-'Balancen BAU 2030'!AJ65 -> 0 | AK65: ='Balancen Scenarie 2030'!AK65-'Balancen BAU 2030'!AK65 -> 0 | AL65: ='Balancen Scenarie 2030'!AL65-'Balancen BAU 2030'!AL65 -> 0 | AM65: ='Balancen Scenarie 2030'!AM65-'Balancen BAU 2030'!AM65 -> 0 | AN65: ='Balancen Scenarie 2030'!AN65-'Balancen BAU 2030'!AN65 -> 0 | AO65: ='Balancen Scenarie 2030'!AO65-'Balancen BAU 2030'!AO65 -> 0 | AP65: ='Balancen Scenarie 2030'!AP65-'Balancen BAU 2030'!AP65 -> 0 | AQ65: ='Balancen Scenarie 2030'!AQ65-'Balancen BAU 2030'!AQ65 -> 0 | AR65: ='Balancen Scenarie 2030'!AR65-'Balancen BAU 2030'!AR65 -> 0 | AS65: ='Balancen Scenarie 2030'!AS65-'Balancen BAU 2030'!AS65 -> 0 | AT65: ='Balancen Scenarie 2030'!AT65-'Balancen BAU 2030'!AT65 -> 0 | AU65: ='Balancen Scenarie 2030'!AU65-'Balancen BAU 2030'!AU65 -> 0
A66: CO2-udledning | B66: ='Balancen Scenarie 2030'!B66-'Balancen BAU 2030'!B66 -> 0 | C66: ='Balancen Scenarie 2030'!C66-'Balancen BAU 2030'!C66 -> 0 | D66: ='Balancen Scenarie 2030'!D66-'Balancen BAU 2030'!D66 -> 0 | E66: ='Balancen Scenarie 2030'!E66-'Balancen BAU 2030'!E66 -> 0 | F66: ='Balancen Scenarie 2030'!F66-'Balancen BAU 2030'!F66 -> 0 | G66: ='Balancen Scenarie 2030'!G66-'Balancen BAU 2030'!G66 -> 0 | H66: ='Balancen Scenarie 2030'!H66-'Balancen BAU 2030'!H66 -> 0 | I66: ='Balancen Scenarie 2030'!I66-'Balancen BAU 2030'!I66 -> 0 | J66: ='Balancen Scenarie 2030'!J66-'Balancen BAU 2030'!J66 -> 0 | K66: ='Balancen Scenarie 2030'!K66-'Balancen BAU 2030'!K66 -> 0 | L66: ='Balancen Scenarie 2030'!L66-'Balancen BAU 2030'!L66 -> 0 | M66: ='Balancen Scenarie 2030'!M66-'Balancen BAU 2030'!M66 -> 0 | N66: ='Balancen Scenarie 2030'!N66-'Balancen BAU 2030'!N66 -> 0 | O66: ='Balancen Scenarie 2030'!O66-'Balancen BAU 2030'!O66 -> 0 | P66: ='Balancen Scenarie 2030'!P66-'Balancen BAU 2030'!P66 -> 0 | Q66: ='Balancen Scenarie 2030'!Q66-'Balancen BAU 2030'!Q66 -> 0 | R66: ='Balancen Scenarie 2030'!R66-'Balancen BAU 2030'!R66 -> 0 | S66: ='Balancen Scenarie 2030'!S66-'Balancen BAU 2030'!S66 -> 0 | T66: ='Balancen Scenarie 2030'!T66-'Balancen BAU 2030'!T66 -> 0 | U66: ='Balancen Scenarie 2030'!U66-'Balancen BAU 2030'!U66 -> 0 | V66: ='Balancen Scenarie 2030'!V66-'Balancen BAU 2030'!V66 -> 0 | W66: ='Balancen Scenarie 2030'!W66-'Balancen BAU 2030'!W66 -> 0 | X66: ='Balancen Scenarie 2030'!X66-'Balancen BAU 2030'!X66 -> 0 | Y66: ='Balancen Scenarie 2030'!Y66-'Balancen BAU 2030'!Y66 -> 0 | Z66: ='Balancen Scenarie 2030'!Z66-'Balancen BAU 2030'!Z66 -> 0 | AA66: ='Balancen Scenarie 2030'!AA66-'Balancen BAU 2030'!AA66 -> 0 | AB66: ='Balancen Scenarie 2030'!AB66-'Balancen BAU 2030'!AB66 -> 0 | AC66: ='Balancen Scenarie 2030'!AC66-'Balancen BAU 2030'!AC66 -> 0 | AD66: ='Balancen Scenarie 2030'!AD66-'Balancen BAU 2030'!AD66 -> 0 | AE66: ='Balancen Scenarie 2030'!AE66-'Balancen BAU 2030'!AE66 -> 0 | AF66: ='Balancen Scenarie 2030'!AF66-'Balancen BAU 2030'!AF66 -> 0 | AG66: ='Balancen Scenarie 2030'!AG66-'Balancen BAU 2030'!AG66 -> 0 | AH66: ='Balancen Scenarie 2030'!AH66-'Balancen BAU 2030'!AH66 -> 0 | AI66: ='Balancen Scenarie 2030'!AI66-'Balancen BAU 2030'!AI66 -> 0 | AJ66: ='Balancen Scenarie 2030'!AJ66-'Balancen BAU 2030'!AJ66 -> 0 | AK66: ='Balancen Scenarie 2030'!AK66-'Balancen BAU 2030'!AK66 -> 0 | AL66: ='Balancen Scenarie 2030'!AL66-'Balancen BAU 2030'!AL66 -> 0 | AM66: ='Balancen Scenarie 2030'!AM66-'Balancen BAU 2030'!AM66 -> 0 | AN66: ='Balancen Scenarie 2030'!AN66-'Balancen BAU 2030'!AN66 -> 0 | AO66: ='Balancen Scenarie 2030'!AO66-'Balancen BAU 2030'!AO66 -> 0 | AP66: ='Balancen Scenarie 2030'!AP66-'Balancen BAU 2030'!AP66 -> 0 | AQ66: ='Balancen Scenarie 2030'!AQ66-'Balancen BAU 2030'!AQ66 -> 0 | AR66: ='Balancen Scenarie 2030'!AR66-'Balancen BAU 2030'!AR66 -> 0 | AS66: ='Balancen Scenarie 2030'!AS66-'Balancen BAU 2030'!AS66 -> 0 | AT66: ='Balancen Scenarie 2030'!AT66-'Balancen BAU 2030'!AT66 -> 0 | AU66: ='Balancen Scenarie 2030'!AU66-'Balancen BAU 2030'!AU66 -> 0
A67: Emissionsfaktorer | B67: ='Balancen Scenarie 2030'!B67-'Balancen BAU 2030'!B67 -> 0 | C67: ='Balancen Scenarie 2030'!C67-'Balancen BAU 2030'!C67 -> 0 | D67: ='Balancen Scenarie 2030'!D67-'Balancen BAU 2030'!D67 -> 0 | E67: ='Balancen Scenarie 2030'!E67-'Balancen BAU 2030'!E67 -> 0 | F67: ='Balancen Scenarie 2030'!F67-'Balancen BAU 2030'!F67 -> 0 | G67: ='Balancen Scenarie 2030'!G67-'Balancen BAU 2030'!G67 -> 0 | H67: ='Balancen Scenarie 2030'!H67-'Balancen BAU 2030'!H67 -> 0 | I67: ='Balancen Scenarie 2030'!I67-'Balancen BAU 2030'!I67 -> 0 | J67: ='Balancen Scenarie 2030'!J67-'Balancen BAU 2030'!J67 -> 0 | K67: ='Balancen Scenarie 2030'!K67-'Balancen BAU 2030'!K67 -> 0 | L67: ='Balancen Scenarie 2030'!L67-'Balancen BAU 2030'!L67 -> 0 | M67: ='Balancen Scenarie 2030'!M67-'Balancen BAU 2030'!M67 -> 0 | N67: ='Balancen Scenarie 2030'!N67-'Balancen BAU 2030'!N67 -> 0 | O67: ='Balancen Scenarie 2030'!O67-'Balancen BAU 2030'!O67 -> 0 | P67: ='Balancen Scenarie 2030'!P67-'Balancen BAU 2030'!P67 -> 0 | Q67: ='Balancen Scenarie 2030'!Q67-'Balancen BAU 2030'!Q67 -> 0 | R67: ='Balancen Scenarie 2030'!R67-'Balancen BAU 2030'!R67 -> 0 | S67: ='Balancen Scenarie 2030'!S67-'Balancen BAU 2030'!S67 -> 0 | T67: ='Balancen Scenarie 2030'!T67-'Balancen BAU 2030'!T67 -> 0 | U67: ='Balancen Scenarie 2030'!U67-'Balancen BAU 2030'!U67 -> 0 | V67: ='Balancen Scenarie 2030'!V67-'Balancen BAU 2030'!V67 -> 0 | W67: ='Balancen Scenarie 2030'!W67-'Balancen BAU 2030'!W67 -> 0 | X67: ='Balancen Scenarie 2030'!X67-'Balancen BAU 2030'!X67 -> 0 | Y67: ='Balancen Scenarie 2030'!Y67-'Balancen BAU 2030'!Y67 -> 0 | Z67: ='Balancen Scenarie 2030'!Z67-'Balancen BAU 2030'!Z67 -> 0 | AA67: ='Balancen Scenarie 2030'!AA67-'Balancen BAU 2030'!AA67 -> 0 | AB67: ='Balancen Scenarie 2030'!AB67-'Balancen BAU 2030'!AB67 -> 0 | AC67: ='Balancen Scenarie 2030'!AC67-'Balancen BAU 2030'!AC67 -> 0 | AD67: ='Balancen Scenarie 2030'!AD67-'Balancen BAU 2030'!AD67 -> 0 | AE67: ='Balancen Scenarie 2030'!AE67-'Balancen BAU 2030'!AE67 -> 0 | AF67: ='Balancen Scenarie 2030'!AF67-'Balancen BAU 2030'!AF67 -> 0 | AG67: ='Balancen Scenarie 2030'!AG67-'Balancen BAU 2030'!AG67 -> 0 | AH67: ='Balancen Scenarie 2030'!AH67-'Balancen BAU 2030'!AH67 -> 0 | AI67: ='Balancen Scenarie 2030'!AI67-'Balancen BAU 2030'!AI67 -> 0 | AJ67: ='Balancen Scenarie 2030'!AJ67-'Balancen BAU 2030'!AJ67 -> 0 | AK67: ='Balancen Scenarie 2030'!AK67-'Balancen BAU 2030'!AK67 -> 0 | AL67: ='Balancen Scenarie 2030'!AL67-'Balancen BAU 2030'!AL67 -> 0 | AM67: ='Balancen Scenarie 2030'!AM67-'Balancen BAU 2030'!AM67 -> 0 | AN67: ='Balancen Scenarie 2030'!AN67-'Balancen BAU 2030'!AN67 -> 0 | AO67: ='Balancen Scenarie 2030'!AO67-'Balancen BAU 2030'!AO67 -> 0 | AP67: ='Balancen Scenarie 2030'!AP67-'Balancen BAU 2030'!AP67 -> 0 | AQ67: ='Balancen Scenarie 2030'!AQ67-'Balancen BAU 2030'!AQ67 -> 0 | AR67: ='Balancen Scenarie 2030'!AR67-'Balancen BAU 2030'!AR67 -> 0 | AS67: ='Balancen Scenarie 2030'!AS67-'Balancen BAU 2030'!AS67 -> 0 | AT67: ='Balancen Scenarie 2030'!AT67-'Balancen BAU 2030'!AT67 -> 0 | AU67: ='Balancen Scenarie 2030'!AU67-'Balancen BAU 2030'!AU67 -> 0
A68: CO2-emissionsfaktorer (Scope 1) [ton CO2/TJ] | B68: ='Balancen Scenarie 2030'!B68-'Balancen BAU 2030'!B68 -> 0 | C68: ='Balancen Scenarie 2030'!C68-'Balancen BAU 2030'!C68 -> 0 | D68: ='Balancen Scenarie 2030'!D68-'Balancen BAU 2030'!D68 -> 0 | E68: ='Balancen Scenarie 2030'!E68-'Balancen BAU 2030'!E68 -> 0 | F68: ='Balancen Scenarie 2030'!F68-'Balancen BAU 2030'!F68 -> 0 | G68: ='Balancen Scenarie 2030'!G68-'Balancen BAU 2030'!G68 -> 0 | H68: ='Balancen Scenarie 2030'!H68-'Balancen BAU 2030'!H68 -> 0 | I68: ='Balancen Scenarie 2030'!I68-'Balancen BAU 2030'!I68 -> 0 | J68: ='Balancen Scenarie 2030'!J68-'Balancen BAU 2030'!J68 -> 0 | K68: ='Balancen Scenarie 2030'!K68-'Balancen BAU 2030'!K68 -> 0 | L68: ='Balancen Scenarie 2030'!L68-'Balancen BAU 2030'!L68 -> 0 | M68: ='Balancen Scenarie 2030'!M68-'Balancen BAU 2030'!M68 -> 0 | N68: ='Balancen Scenarie 2030'!N68-'Balancen BAU 2030'!N68 -> 0 | O68: ='Balancen Scenarie 2030'!O68-'Balancen BAU 2030'!O68 -> 0 | P68: ='Balancen Scenarie 2030'!P68-'Balancen BAU 2030'!P68 -> 0 | Q68: ='Balancen Scenarie 2030'!Q68-'Balancen BAU 2030'!Q68 -> 0 | R68: ='Balancen Scenarie 2030'!R68-'Balancen BAU 2030'!R68 -> 0 | S68: ='Balancen Scenarie 2030'!S68-'Balancen BAU 2030'!S68 -> 0 | T68: ='Balancen Scenarie 2030'!T68-'Balancen BAU 2030'!T68 -> 0 | U68: ='Balancen Scenarie 2030'!U68-'Balancen BAU 2030'!U68 -> 0 | V68: ='Balancen Scenarie 2030'!V68-'Balancen BAU 2030'!V68 -> 0 | W68: ='Balancen Scenarie 2030'!W68-'Balancen BAU 2030'!W68 -> 0 | X68: ='Balancen Scenarie 2030'!X68-'Balancen BAU 2030'!X68 -> 0 | Y68: ='Balancen Scenarie 2030'!Y68-'Balancen BAU 2030'!Y68 -> 0 | Z68: ='Balancen Scenarie 2030'!Z68-'Balancen BAU 2030'!Z68 -> 0 | AA68: ='Balancen Scenarie 2030'!AA68-'Balancen BAU 2030'!AA68 -> 0 | AB68: ='Balancen Scenarie 2030'!AB68-'Balancen BAU 2030'!AB68 -> 0 | AC68: ='Balancen Scenarie 2030'!AC68-'Balancen BAU 2030'!AC68 -> 0 | AD68: ='Balancen Scenarie 2030'!AD68-'Balancen BAU 2030'!AD68 -> 0 | AE68: ='Balancen Scenarie 2030'!AE68-'Balancen BAU 2030'!AE68 -> 0 | AF68: ='Balancen Scenarie 2030'!AF68-'Balancen BAU 2030'!AF68 -> 0 | AG68: ='Balancen Scenarie 2030'!AG68-'Balancen BAU 2030'!AG68 -> 0 | AH68: ='Balancen Scenarie 2030'!AH68-'Balancen BAU 2030'!AH68 -> 0 | AI68: ='Balancen Scenarie 2030'!AI68-'Balancen BAU 2030'!AI68 -> 0 | AJ68: ='Balancen Scenarie 2030'!AJ68-'Balancen BAU 2030'!AJ68 -> 0 | AK68: ='Balancen Scenarie 2030'!AK68-'Balancen BAU 2030'!AK68 -> 0 | AL68: ='Balancen Scenarie 2030'!AL68-'Balancen BAU 2030'!AL68 -> 10 | AM68: ='Balancen Scenarie 2030'!AM68-'Balancen BAU 2030'!AM68 -> 0 | AN68: ='Balancen Scenarie 2030'!AN68-'Balancen BAU 2030'!AN68 -> 0 | AO68: ='Balancen Scenarie 2030'!AO68-'Balancen BAU 2030'!AO68 -> 0 | AP68: ='Balancen Scenarie 2030'!AP68-'Balancen BAU 2030'!AP68 -> 0 | AQ68: ='Balancen Scenarie 2030'!AQ68-'Balancen BAU 2030'!AQ68 -> 0 | AR68: ='Balancen Scenarie 2030'!AR68-'Balancen BAU 2030'!AR68 -> 0 | AS68: ='Balancen Scenarie 2030'!AS68-'Balancen BAU 2030'!AS68 -> 0 | AT68: ='Balancen Scenarie 2030'!AT68-'Balancen BAU 2030'!AT68 -> 0 | AU68: ='Balancen Scenarie 2030'!AU68-'Balancen BAU 2030'!AU68 -> 0
A69: CO2-emissionsfaktorer (Scope 2) [ton CO2/TJ] | B69: ='Balancen Scenarie 2030'!B69-'Balancen BAU 2030'!B69 -> 0 | C69: ='Balancen Scenarie 2030'!C69-'Balancen BAU 2030'!C69 -> 0 | D69: ='Balancen Scenarie 2030'!D69-'Balancen BAU 2030'!D69 -> 0 | E69: ='Balancen Scenarie 2030'!E69-'Balancen BAU 2030'!E69 -> 0 | F69: ='Balancen Scenarie 2030'!F69-'Balancen BAU 2030'!F69 -> 0 | G69: ='Balancen Scenarie 2030'!G69-'Balancen BAU 2030'!G69 -> 0 | H69: ='Balancen Scenarie 2030'!H69-'Balancen BAU 2030'!H69 -> 0 | I69: ='Balancen Scenarie 2030'!I69-'Balancen BAU 2030'!I69 -> 0 | J69: ='Balancen Scenarie 2030'!J69-'Balancen BAU 2030'!J69 -> 0 | K69: ='Balancen Scenarie 2030'!K69-'Balancen BAU 2030'!K69 -> 0 | L69: ='Balancen Scenarie 2030'!L69-'Balancen BAU 2030'!L69 -> 0 | M69: ='Balancen Scenarie 2030'!M69-'Balancen BAU 2030'!M69 -> 0 | N69: ='Balancen Scenarie 2030'!N69-'Balancen BAU 2030'!N69 -> 0 | O69: ='Balancen Scenarie 2030'!O69-'Balancen BAU 2030'!O69 -> 0 | P69: ='Balancen Scenarie 2030'!P69-'Balancen BAU 2030'!P69 -> 0 | Q69: ='Balancen Scenarie 2030'!Q69-'Balancen BAU 2030'!Q69 -> 0 | R69: ='Balancen Scenarie 2030'!R69-'Balancen BAU 2030'!R69 -> 0 | S69: ='Balancen Scenarie 2030'!S69-'Balancen BAU 2030'!S69 -> 0 | T69: ='Balancen Scenarie 2030'!T69-'Balancen BAU 2030'!T69 -> 0 | U69: ='Balancen Scenarie 2030'!U69-'Balancen BAU 2030'!U69 -> 0 | V69: ='Balancen Scenarie 2030'!V69-'Balancen BAU 2030'!V69 -> 0 | W69: ='Balancen Scenarie 2030'!W69-'Balancen BAU 2030'!W69 -> 0 | X69: ='Balancen Scenarie 2030'!X69-'Balancen BAU 2030'!X69 -> 0 | Y69: ='Balancen Scenarie 2030'!Y69-'Balancen BAU 2030'!Y69 -> 0 | Z69: ='Balancen Scenarie 2030'!Z69-'Balancen BAU 2030'!Z69 -> 0 | AA69: ='Balancen Scenarie 2030'!AA69-'Balancen BAU 2030'!AA69 -> 0 | AB69: ='Balancen Scenarie 2030'!AB69-'Balancen BAU 2030'!AB69 -> 0 | AC69: ='Balancen Scenarie 2030'!AC69-'Balancen BAU 2030'!AC69 -> 0 | AD69: ='Balancen Scenarie 2030'!AD69-'Balancen BAU 2030'!AD69 -> 0 | AE69: ='Balancen Scenarie 2030'!AE69-'Balancen BAU 2030'!AE69 -> 0 | AF69: ='Balancen Scenarie 2030'!AF69-'Balancen BAU 2030'!AF69 -> 0 | AG69: ='Balancen Scenarie 2030'!AG69-'Balancen BAU 2030'!AG69 -> 0 | AH69: ='Balancen Scenarie 2030'!AH69-'Balancen BAU 2030'!AH69 -> 0 | AI69: ='Balancen Scenarie 2030'!AI69-'Balancen BAU 2030'!AI69 -> 0 | AJ69: ='Balancen Scenarie 2030'!AJ69-'Balancen BAU 2030'!AJ69 -> 0 | AK69: ='Balancen Scenarie 2030'!AK69-'Balancen BAU 2030'!AK69 -> 0 | AL69: ='Balancen Scenarie 2030'!AL69-'Balancen BAU 2030'!AL69 -> -0.009222955634 | AM69: ='Balancen Scenarie 2030'!AM69-'Balancen BAU 2030'!AM69 -> 0 | AN69: ='Balancen Scenarie 2030'!AN69-'Balancen BAU 2030'!AN69 -> 0 | AO69: ='Balancen Scenarie 2030'!AO69-'Balancen BAU 2030'!AO69 -> 0 | AP69: ='Balancen Scenarie 2030'!AP69-'Balancen BAU 2030'!AP69 -> 0 | AQ69: ='Balancen Scenarie 2030'!AQ69-'Balancen BAU 2030'!AQ69 -> -0.005050829378 | AR69: ='Balancen Scenarie 2030'!AR69-'Balancen BAU 2030'!AR69 -> 0 | AS69: ='Balancen Scenarie 2030'!AS69-'Balancen BAU 2030'!AS69 -> 0 | AT69: ='Balancen Scenarie 2030'!AT69-'Balancen BAU 2030'!AT69 -> 0 | AU69: ='Balancen Scenarie 2030'!AU69-'Balancen BAU 2030'!AU69 -> 0
A70: CO2-emissionsfaktorer (Residual-el) [ton CO2/TJ] | B70: ='Balancen Scenarie 2030'!B70-'Balancen BAU 2030'!B70 -> 0 | C70: ='Balancen Scenarie 2030'!C70-'Balancen BAU 2030'!C70 -> 0 | D70: ='Balancen Scenarie 2030'!D70-'Balancen BAU 2030'!D70 -> 0 | E70: ='Balancen Scenarie 2030'!E70-'Balancen BAU 2030'!E70 -> 0 | F70: ='Balancen Scenarie 2030'!F70-'Balancen BAU 2030'!F70 -> 0 | G70: ='Balancen Scenarie 2030'!G70-'Balancen BAU 2030'!G70 -> 0 | H70: ='Balancen Scenarie 2030'!H70-'Balancen BAU 2030'!H70 -> 0 | I70: ='Balancen Scenarie 2030'!I70-'Balancen BAU 2030'!I70 -> 0 | J70: ='Balancen Scenarie 2030'!J70-'Balancen BAU 2030'!J70 -> 0 | K70: ='Balancen Scenarie 2030'!K70-'Balancen BAU 2030'!K70 -> 0 | L70: ='Balancen Scenarie 2030'!L70-'Balancen BAU 2030'!L70 -> 0 | M70: ='Balancen Scenarie 2030'!M70-'Balancen BAU 2030'!M70 -> 0 | N70: ='Balancen Scenarie 2030'!N70-'Balancen BAU 2030'!N70 -> 0 | O70: ='Balancen Scenarie 2030'!O70-'Balancen BAU 2030'!O70 -> 0 | P70: ='Balancen Scenarie 2030'!P70-'Balancen BAU 2030'!P70 -> 0 | Q70: ='Balancen Scenarie 2030'!Q70-'Balancen BAU 2030'!Q70 -> 0 | R70: ='Balancen Scenarie 2030'!R70-'Balancen BAU 2030'!R70 -> 0 | S70: ='Balancen Scenarie 2030'!S70-'Balancen BAU 2030'!S70 -> 0 | T70: ='Balancen Scenarie 2030'!T70-'Balancen BAU 2030'!T70 -> 0 | U70: ='Balancen Scenarie 2030'!U70-'Balancen BAU 2030'!U70 -> 0 | V70: ='Balancen Scenarie 2030'!V70-'Balancen BAU 2030'!V70 -> 0 | W70: ='Balancen Scenarie 2030'!W70-'Balancen BAU 2030'!W70 -> 0 | X70: ='Balancen Scenarie 2030'!X70-'Balancen BAU 2030'!X70 -> 0 | Y70: ='Balancen Scenarie 2030'!Y70-'Balancen BAU 2030'!Y70 -> 0 | Z70: ='Balancen Scenarie 2030'!Z70-'Balancen BAU 2030'!Z70 -> 0 | AA70: ='Balancen Scenarie 2030'!AA70-'Balancen BAU 2030'!AA70 -> 0 | AB70: ='Balancen Scenarie 2030'!AB70-'Balancen BAU 2030'!AB70 -> 0 | AC70: ='Balancen Scenarie 2030'!AC70-'Balancen BAU 2030'!AC70 -> 0 | AD70: ='Balancen Scenarie 2030'!AD70-'Balancen BAU 2030'!AD70 -> 0 | AE70: ='Balancen Scenarie 2030'!AE70-'Balancen BAU 2030'!AE70 -> 0 | AF70: ='Balancen Scenarie 2030'!AF70-'Balancen BAU 2030'!AF70 -> 0 | AG70: ='Balancen Scenarie 2030'!AG70-'Balancen BAU 2030'!AG70 -> 0 | AH70: ='Balancen Scenarie 2030'!AH70-'Balancen BAU 2030'!AH70 -> 0 | AI70: ='Balancen Scenarie 2030'!AI70-'Balancen BAU 2030'!AI70 -> 0 | AJ70: ='Balancen Scenarie 2030'!AJ70-'Balancen BAU 2030'!AJ70 -> 0 | AK70: ='Balancen Scenarie 2030'!AK70-'Balancen BAU 2030'!AK70 -> 0 | AL70: ='Balancen Scenarie 2030'!AL70-'Balancen BAU 2030'!AL70 -> 0 | AM70: ='Balancen Scenarie 2030'!AM70-'Balancen BAU 2030'!AM70 -> 0 | AN70: ='Balancen Scenarie 2030'!AN70-'Balancen BAU 2030'!AN70 -> 0 | AO70: ='Balancen Scenarie 2030'!AO70-'Balancen BAU 2030'!AO70 -> 0 | AP70: ='Balancen Scenarie 2030'!AP70-'Balancen BAU 2030'!AP70 -> 0 | AQ70: ='Balancen Scenarie 2030'!AQ70-'Balancen BAU 2030'!AQ70 -> 0 | AR70: ='Balancen Scenarie 2030'!AR70-'Balancen BAU 2030'!AR70 -> 0 | AS70: ='Balancen Scenarie 2030'!AS70-'Balancen BAU 2030'!AS70 -> 0 | AT70: ='Balancen Scenarie 2030'!AT70-'Balancen BAU 2030'!AT70 -> 0 | AU70: ='Balancen Scenarie 2030'!AU70-'Balancen BAU 2030'!AU70 -> 0
A71: Faktiske CO2-emissionsfaktorer for biomasse [ton CO2/TJ] (Inkluderes ikke) | B71: ='Balancen Scenarie 2030'!B71-'Balancen BAU 2030'!B71 -> 0 | C71: ='Balancen Scenarie 2030'!C71-'Balancen BAU 2030'!C71 -> 0 | D71: ='Balancen Scenarie 2030'!D71-'Balancen BAU 2030'!D71 -> 0 | E71: ='Balancen Scenarie 2030'!E71-'Balancen BAU 2030'!E71 -> 0 | F71: ='Balancen Scenarie 2030'!F71-'Balancen BAU 2030'!F71 -> 0 | G71: ='Balancen Scenarie 2030'!G71-'Balancen BAU 2030'!G71 -> 0 | H71: ='Balancen Scenarie 2030'!H71-'Balancen BAU 2030'!H71 -> 0 | I71: ='Balancen Scenarie 2030'!I71-'Balancen BAU 2030'!I71 -> 0 | J71: ='Balancen Scenarie 2030'!J71-'Balancen BAU 2030'!J71 -> 0 | K71: ='Balancen Scenarie 2030'!K71-'Balancen BAU 2030'!K71 -> 0 | L71: ='Balancen Scenarie 2030'!L71-'Balancen BAU 2030'!L71 -> 0 | M71: ='Balancen Scenarie 2030'!M71-'Balancen BAU 2030'!M71 -> 0 | N71: ='Balancen Scenarie 2030'!N71-'Balancen BAU 2030'!N71 -> 0 | O71: ='Balancen Scenarie 2030'!O71-'Balancen BAU 2030'!O71 -> 0 | P71: ='Balancen Scenarie 2030'!P71-'Balancen BAU 2030'!P71 -> 0 | Q71: ='Balancen Scenarie 2030'!Q71-'Balancen BAU 2030'!Q71 -> 0 | R71: ='Balancen Scenarie 2030'!R71-'Balancen BAU 2030'!R71 -> 0 | S71: ='Balancen Scenarie 2030'!S71-'Balancen BAU 2030'!S71 -> 0 | T71: ='Balancen Scenarie 2030'!T71-'Balancen BAU 2030'!T71 -> 0 | U71: ='Balancen Scenarie 2030'!U71-'Balancen BAU 2030'!U71 -> 0 | V71: ='Balancen Scenarie 2030'!V71-'Balancen BAU 2030'!V71 -> 0 | W71: ='Balancen Scenarie 2030'!W71-'Balancen BAU 2030'!W71 -> 0 | X71: ='Balancen Scenarie 2030'!X71-'Balancen BAU 2030'!X71 -> 0 | Y71: ='Balancen Scenarie 2030'!Y71-'Balancen BAU 2030'!Y71 -> 0 | Z71: ='Balancen Scenarie 2030'!Z71-'Balancen BAU 2030'!Z71 -> 0 | AA71: ='Balancen Scenarie 2030'!AA71-'Balancen BAU 2030'!AA71 -> 0 | AB71: ='Balancen Scenarie 2030'!AB71-'Balancen BAU 2030'!AB71 -> 0 | AC71: ='Balancen Scenarie 2030'!AC71-'Balancen BAU 2030'!AC71 -> 0 | AD71: ='Balancen Scenarie 2030'!AD71-'Balancen BAU 2030'!AD71 -> 0 | AE71: ='Balancen Scenarie 2030'!AE71-'Balancen BAU 2030'!AE71 -> 0 | AF71: ='Balancen Scenarie 2030'!AF71-'Balancen BAU 2030'!AF71 -> 0 | AG71: ='Balancen Scenarie 2030'!AG71-'Balancen BAU 2030'!AG71 -> 0 | AH71: ='Balancen Scenarie 2030'!AH71-'Balancen BAU 2030'!AH71 -> 0 | AI71: ='Balancen Scenarie 2030'!AI71-'Balancen BAU 2030'!AI71 -> 0 | AJ71: ='Balancen Scenarie 2030'!AJ71-'Balancen BAU 2030'!AJ71 -> 0 | AK71: ='Balancen Scenarie 2030'!AK71-'Balancen BAU 2030'!AK71 -> 0 | AL71: ='Balancen Scenarie 2030'!AL71-'Balancen BAU 2030'!AL71 -> 0 | AM71: ='Balancen Scenarie 2030'!AM71-'Balancen BAU 2030'!AM71 -> 0 | AN71: ='Balancen Scenarie 2030'!AN71-'Balancen BAU 2030'!AN71 -> 0 | AO71: ='Balancen Scenarie 2030'!AO71-'Balancen BAU 2030'!AO71 -> 0 | AP71: ='Balancen Scenarie 2030'!AP71-'Balancen BAU 2030'!AP71 -> 0 | AQ71: ='Balancen Scenarie 2030'!AQ71-'Balancen BAU 2030'!AQ71 -> 0 | AR71: ='Balancen Scenarie 2030'!AR71-'Balancen BAU 2030'!AR71 -> 0 | AS71: ='Balancen Scenarie 2030'!AS71-'Balancen BAU 2030'!AS71 -> 0 | AT71: ='Balancen Scenarie 2030'!AT71-'Balancen BAU 2030'!AT71 -> 0 | AU71: ='Balancen Scenarie 2030'!AU71-'Balancen BAU 2030'!AU71 -> 0
A72: CO2-udledning | B72: ='Balancen Scenarie 2030'!B72-'Balancen BAU 2030'!B72 -> 0 | C72: ='Balancen Scenarie 2030'!C72-'Balancen BAU 2030'!C72 -> 0 | D72: ='Balancen Scenarie 2030'!D72-'Balancen BAU 2030'!D72 -> 0 | E72: ='Balancen Scenarie 2030'!E72-'Balancen BAU 2030'!E72 -> 0 | F72: ='Balancen Scenarie 2030'!F72-'Balancen BAU 2030'!F72 -> 0 | G72: ='Balancen Scenarie 2030'!G72-'Balancen BAU 2030'!G72 -> 0 | H72: ='Balancen Scenarie 2030'!H72-'Balancen BAU 2030'!H72 -> 0 | I72: ='Balancen Scenarie 2030'!I72-'Balancen BAU 2030'!I72 -> 0 | J72: ='Balancen Scenarie 2030'!J72-'Balancen BAU 2030'!J72 -> 0 | K72: ='Balancen Scenarie 2030'!K72-'Balancen BAU 2030'!K72 -> 0 | L72: ='Balancen Scenarie 2030'!L72-'Balancen BAU 2030'!L72 -> 0 | M72: ='Balancen Scenarie 2030'!M72-'Balancen BAU 2030'!M72 -> 0 | N72: ='Balancen Scenarie 2030'!N72-'Balancen BAU 2030'!N72 -> 0 | O72: ='Balancen Scenarie 2030'!O72-'Balancen BAU 2030'!O72 -> 0 | P72: ='Balancen Scenarie 2030'!P72-'Balancen BAU 2030'!P72 -> 0 | Q72: ='Balancen Scenarie 2030'!Q72-'Balancen BAU 2030'!Q72 -> 0 | R72: ='Balancen Scenarie 2030'!R72-'Balancen BAU 2030'!R72 -> 0 | S72: ='Balancen Scenarie 2030'!S72-'Balancen BAU 2030'!S72 -> 0 | T72: ='Balancen Scenarie 2030'!T72-'Balancen BAU 2030'!T72 -> 0 | U72: ='Balancen Scenarie 2030'!U72-'Balancen BAU 2030'!U72 -> 0 | V72: ='Balancen Scenarie 2030'!V72-'Balancen BAU 2030'!V72 -> 0 | W72: ='Balancen Scenarie 2030'!W72-'Balancen BAU 2030'!W72 -> 0 | X72: ='Balancen Scenarie 2030'!X72-'Balancen BAU 2030'!X72 -> 0 | Y72: ='Balancen Scenarie 2030'!Y72-'Balancen BAU 2030'!Y72 -> 0 | Z72: ='Balancen Scenarie 2030'!Z72-'Balancen BAU 2030'!Z72 -> 0 | AA72: ='Balancen Scenarie 2030'!AA72-'Balancen BAU 2030'!AA72 -> 0 | AB72: ='Balancen Scenarie 2030'!AB72-'Balancen BAU 2030'!AB72 -> 0 | AC72: ='Balancen Scenarie 2030'!AC72-'Balancen BAU 2030'!AC72 -> 0 | AD72: ='Balancen Scenarie 2030'!AD72-'Balancen BAU 2030'!AD72 -> 0 | AE72: ='Balancen Scenarie 2030'!AE72-'Balancen BAU 2030'!AE72 -> 0 | AF72: ='Balancen Scenarie 2030'!AF72-'Balancen BAU 2030'!AF72 -> 0 | AG72: ='Balancen Scenarie 2030'!AG72-'Balancen BAU 2030'!AG72 -> 0 | AH72: ='Balancen Scenarie 2030'!AH72-'Balancen BAU 2030'!AH72 -> 0 | AI72: ='Balancen Scenarie 2030'!AI72-'Balancen BAU 2030'!AI72 -> 0 | AJ72: ='Balancen Scenarie 2030'!AJ72-'Balancen BAU 2030'!AJ72 -> 0 | AK72: ='Balancen Scenarie 2030'!AK72-'Balancen BAU 2030'!AK72 -> 0 | AL72: ='Balancen Scenarie 2030'!AL72-'Balancen BAU 2030'!AL72 -> 0 | AM72: ='Balancen Scenarie 2030'!AM72-'Balancen BAU 2030'!AM72 -> 0 | AN72: ='Balancen Scenarie 2030'!AN72-'Balancen BAU 2030'!AN72 -> 0 | AO72: ='Balancen Scenarie 2030'!AO72-'Balancen BAU 2030'!AO72 -> 0 | AP72: ='Balancen Scenarie 2030'!AP72-'Balancen BAU 2030'!AP72 -> 0 | AQ72: ='Balancen Scenarie 2030'!AQ72-'Balancen BAU 2030'!AQ72 -> 0 | AR72: ='Balancen Scenarie 2030'!AR72-'Balancen BAU 2030'!AR72 -> 0 | AS72: ='Balancen Scenarie 2030'!AS72-'Balancen BAU 2030'!AS72 -> 0 | AT72: ='Balancen Scenarie 2030'!AT72-'Balancen BAU 2030'!AT72 -> 0 | AU72: ='Balancen Scenarie 2030'!AU72-'Balancen BAU 2030'!AU72 -> 0
A73: CO2-udledning fra energi og transport [ton CO2] | B73: ='Balancen Scenarie 2030'!B73-'Balancen BAU 2030'!B73 -> 0 | C73: ='Balancen Scenarie 2030'!C73-'Balancen BAU 2030'!C73 -> 0 | D73: ='Balancen Scenarie 2030'!D73-'Balancen BAU 2030'!D73 -> 0 | E73: ='Balancen Scenarie 2030'!E73-'Balancen BAU 2030'!E73 -> 0 | F73: ='Balancen Scenarie 2030'!F73-'Balancen BAU 2030'!F73 -> 0 | G73: ='Balancen Scenarie 2030'!G73-'Balancen BAU 2030'!G73 -> 0 | H73: ='Balancen Scenarie 2030'!H73-'Balancen BAU 2030'!H73 -> 0 | I73: ='Balancen Scenarie 2030'!I73-'Balancen BAU 2030'!I73 -> 0 | J73: ='Balancen Scenarie 2030'!J73-'Balancen BAU 2030'!J73 -> 0 | K73: ='Balancen Scenarie 2030'!K73-'Balancen BAU 2030'!K73 -> 0 | L73: ='Balancen Scenarie 2030'!L73-'Balancen BAU 2030'!L73 -> 0 | M73: ='Balancen Scenarie 2030'!M73-'Balancen BAU 2030'!M73 -> 0 | N73: ='Balancen Scenarie 2030'!N73-'Balancen BAU 2030'!N73 -> 0 | O73: ='Balancen Scenarie 2030'!O73-'Balancen BAU 2030'!O73 -> 0 | P73: ='Balancen Scenarie 2030'!P73-'Balancen BAU 2030'!P73 -> 0 | Q73: ='Balancen Scenarie 2030'!Q73-'Balancen BAU 2030'!Q73 -> 0 | R73: ='Balancen Scenarie 2030'!R73-'Balancen BAU 2030'!R73 -> 0 | S73: ='Balancen Scenarie 2030'!S73-'Balancen BAU 2030'!S73 -> 0 | T73: ='Balancen Scenarie 2030'!T73-'Balancen BAU 2030'!T73 -> 0 | U73: ='Balancen Scenarie 2030'!U73-'Balancen BAU 2030'!U73 -> 0 | V73: ='Balancen Scenarie 2030'!V73-'Balancen BAU 2030'!V73 -> 0 | W73: ='Balancen Scenarie 2030'!W73-'Balancen BAU 2030'!W73 -> 0 | X73: ='Balancen Scenarie 2030'!X73-'Balancen BAU 2030'!X73 -> 0 | Y73: ='Balancen Scenarie 2030'!Y73-'Balancen BAU 2030'!Y73 -> 0 | Z73: ='Balancen Scenarie 2030'!Z73-'Balancen BAU 2030'!Z73 -> 0 | AA73: ='Balancen Scenarie 2030'!AA73-'Balancen BAU 2030'!AA73 -> 0 | AB73: ='Balancen Scenarie 2030'!AB73-'Balancen BAU 2030'!AB73 -> 0 | AC73: ='Balancen Scenarie 2030'!AC73-'Balancen BAU 2030'!AC73 -> 0 | AD73: ='Balancen Scenarie 2030'!AD73-'Balancen BAU 2030'!AD73 -> 0 | AE73: ='Balancen Scenarie 2030'!AE73-'Balancen BAU 2030'!AE73 -> 0 | AF73: ='Balancen Scenarie 2030'!AF73-'Balancen BAU 2030'!AF73 -> 0 | AG73: ='Balancen Scenarie 2030'!AG73-'Balancen BAU 2030'!AG73 -> 0 | AH73: ='Balancen Scenarie 2030'!AH73-'Balancen BAU 2030'!AH73 -> 0 | AI73: ='Balancen Scenarie 2030'!AI73-'Balancen BAU 2030'!AI73 -> 0 | AJ73: ='Balancen Scenarie 2030'!AJ73-'Balancen BAU 2030'!AJ73 -> 0 | AK73: ='Balancen Scenarie 2030'!AK73-'Balancen BAU 2030'!AK73 -> 0 | AL73: ='Balancen Scenarie 2030'!AL73-'Balancen BAU 2030'!AL73 -> 0 | AM73: ='Balancen Scenarie 2030'!AM73-'Balancen BAU 2030'!AM73 -> 0 | AN73: ='Balancen Scenarie 2030'!AN73-'Balancen BAU 2030'!AN73 -> 0 | AO73: ='Balancen Scenarie 2030'!AO73-'Balancen BAU 2030'!AO73 -> 0 | AP73: ='Balancen Scenarie 2030'!AP73-'Balancen BAU 2030'!AP73 -> 0 | AQ73: ='Balancen Scenarie 2030'!AQ73-'Balancen BAU 2030'!AQ73 -> 0 | AR73: ='Balancen Scenarie 2030'!AR73-'Balancen BAU 2030'!AR73 -> 0 | AS73: ='Balancen Scenarie 2030'!AS73-'Balancen BAU 2030'!AS73 -> 26392.95401 | AT73: ='Balancen Scenarie 2030'!AT73-'Balancen BAU 2030'!AT73 -> 0 | AU73: ='Balancen Scenarie 2030'!AU73-'Balancen BAU 2030'!AU73 -> 0
A74: CO2-udledning for brændsler [ton CO2] | B74: ='Balancen Scenarie 2030'!B74-'Balancen BAU 2030'!B74 -> 0 | C74: ='Balancen Scenarie 2030'!C74-'Balancen BAU 2030'!C74 -> 0 | D74: ='Balancen Scenarie 2030'!D74-'Balancen BAU 2030'!D74 -> 0 | E74: ='Balancen Scenarie 2030'!E74-'Balancen BAU 2030'!E74 -> 0 | F74: ='Balancen Scenarie 2030'!F74-'Balancen BAU 2030'!F74 -> -3168374.618 | G74: ='Balancen Scenarie 2030'!G74-'Balancen BAU 2030'!G74 -> 0 | H74: ='Balancen Scenarie 2030'!H74-'Balancen BAU 2030'!H74 -> 0 | I74: ='Balancen Scenarie 2030'!I74-'Balancen BAU 2030'!I74 -> 4265.596121 | J74: ='Balancen Scenarie 2030'!J74-'Balancen BAU 2030'!J74 -> 0 | K74: ='Balancen Scenarie 2030'!K74-'Balancen BAU 2030'!K74 -> 22972.08847 | L74: ='Balancen Scenarie 2030'!L74-'Balancen BAU 2030'!L74 -> -3195445.79 | M74: ='Balancen Scenarie 2030'!M74-'Balancen BAU 2030'!M74 -> 0 | N74: ='Balancen Scenarie 2030'!N74-'Balancen BAU 2030'!N74 -> 0 | O74: ='Balancen Scenarie 2030'!O74-'Balancen BAU 2030'!O74 -> -166.5129515 | P74: ='Balancen Scenarie 2030'!P74-'Balancen BAU 2030'!P74 -> -827.1248575 | Q74: ='Balancen Scenarie 2030'!Q74-'Balancen BAU 2030'!Q74 -> 0 | R74: ='Balancen Scenarie 2030'!R74-'Balancen BAU 2030'!R74 -> 0 | S74: ='Balancen Scenarie 2030'!S74-'Balancen BAU 2030'!S74 -> 0 | T74: ='Balancen Scenarie 2030'!T74-'Balancen BAU 2030'!T74 -> 0 | U74: ='Balancen Scenarie 2030'!U74-'Balancen BAU 2030'!U74 -> 0 | V74: ='Balancen Scenarie 2030'!V74-'Balancen BAU 2030'!V74 -> 0 | W74: ='Balancen Scenarie 2030'!W74-'Balancen BAU 2030'!W74 -> 0 | X74: ='Balancen Scenarie 2030'!X74-'Balancen BAU 2030'!X74 -> 0 | Y74: ='Balancen Scenarie 2030'!Y74-'Balancen BAU 2030'!Y74 -> 0 | Z74: ='Balancen Scenarie 2030'!Z74-'Balancen BAU 2030'!Z74 -> 0 | AA74: ='Balancen Scenarie 2030'!AA74-'Balancen BAU 2030'!AA74 -> 0 | AB74: ='Balancen Scenarie 2030'!AB74-'Balancen BAU 2030'!AB74 -> 0 | AC74: ='Balancen Scenarie 2030'!AC74-'Balancen BAU 2030'!AC74 -> 0 | AD74: ='Balancen Scenarie 2030'!AD74-'Balancen BAU 2030'!AD74 -> 0 | AE74: ='Balancen Scenarie 2030'!AE74-'Balancen BAU 2030'!AE74 -> 0 | AF74: ='Balancen Scenarie 2030'!AF74-'Balancen BAU 2030'!AF74 -> 0 | AG74: ='Balancen Scenarie 2030'!AG74-'Balancen BAU 2030'!AG74 -> 0 | AH74: ='Balancen Scenarie 2030'!AH74-'Balancen BAU 2030'!AH74 -> 0 | AI74: ='Balancen Scenarie 2030'!AI74-'Balancen BAU 2030'!AI74 -> 0 | AJ74: ='Balancen Scenarie 2030'!AJ74-'Balancen BAU 2030'!AJ74 -> 0 | AK74: ='Balancen Scenarie 2030'!AK74-'Balancen BAU 2030'!AK74 -> 0 | AL74: ='Balancen Scenarie 2030'!AL74-'Balancen BAU 2030'!AL74 -> -58481.20276 | AM74: ='Balancen Scenarie 2030'!AM74-'Balancen BAU 2030'!AM74 -> 0 | AN74: ='Balancen Scenarie 2030'!AN74-'Balancen BAU 2030'!AN74 -> 0 | AO74: ='Balancen Scenarie 2030'!AO74-'Balancen BAU 2030'!AO74 -> 0 | AP74: ='Balancen Scenarie 2030'!AP74-'Balancen BAU 2030'!AP74 -> 0 | AQ74: ='Balancen Scenarie 2030'!AQ74-'Balancen BAU 2030'!AQ74 -> -79599.85057 | AR74: ='Balancen Scenarie 2030'!AR74-'Balancen BAU 2030'!AR74 -> 4.365574569e-11 | AS74: ='Balancen Scenarie 2030'!AS74-'Balancen BAU 2030'!AS74 -> -3169201.743 | AT74: ='Balancen Scenarie 2030'!AT74-'Balancen BAU 2030'!AT74 -> 0 | AU74: ='Balancen Scenarie 2030'!AU74-'Balancen BAU 2030'!AU74 -> 0
A75: Andre drivhusgasudledninger fra transport [ton CO2e] | B75: ='Balancen Scenarie 2030'!B75-'Balancen BAU 2030'!B75 -> 0 | C75: ='Balancen Scenarie 2030'!C75-'Balancen BAU 2030'!C75 -> 0 | D75: ='Balancen Scenarie 2030'!D75-'Balancen BAU 2030'!D75 -> 0 | E75: ='Balancen Scenarie 2030'!E75-'Balancen BAU 2030'!E75 -> 0 | F75: ='Balancen Scenarie 2030'!F75-'Balancen BAU 2030'!F75 -> -25348.19873 | G75: ='Balancen Scenarie 2030'!G75-'Balancen BAU 2030'!G75 -> 0 | H75: ='Balancen Scenarie 2030'!H75-'Balancen BAU 2030'!H75 -> 0 | I75: ='Balancen Scenarie 2030'!I75-'Balancen BAU 2030'!I75 -> 6173.24816 | J75: ='Balancen Scenarie 2030'!J75-'Balancen BAU 2030'!J75 -> 0 | K75: ='Balancen Scenarie 2030'!K75-'Balancen BAU 2030'!K75 -> 72.30248181 | L75: ='Balancen Scenarie 2030'!L75-'Balancen BAU 2030'!L75 -> -31593.74937 | M75: ='Balancen Scenarie 2030'!M75-'Balancen BAU 2030'!M75 -> 0 | N75: ='Balancen Scenarie 2030'!N75-'Balancen BAU 2030'!N75 -> 0 | O75: ='Balancen Scenarie 2030'!O75-'Balancen BAU 2030'!O75 -> 0 | P75: ='Balancen Scenarie 2030'!P75-'Balancen BAU 2030'!P75 -> 0.0309655436 | Q75: ='Balancen Scenarie 2030'!Q75-'Balancen BAU 2030'!Q75 -> 0 | R75: ='Balancen Scenarie 2030'!R75-'Balancen BAU 2030'!R75 -> 0 | S75: ='Balancen Scenarie 2030'!S75-'Balancen BAU 2030'!S75 -> 0 | T75: ='Balancen Scenarie 2030'!T75-'Balancen BAU 2030'!T75 -> 0 | U75: ='Balancen Scenarie 2030'!U75-'Balancen BAU 2030'!U75 -> 0 | V75: ='Balancen Scenarie 2030'!V75-'Balancen BAU 2030'!V75 -> 0 | W75: ='Balancen Scenarie 2030'!W75-'Balancen BAU 2030'!W75 -> 0 | X75: ='Balancen Scenarie 2030'!X75-'Balancen BAU 2030'!X75 -> 0 | Y75: ='Balancen Scenarie 2030'!Y75-'Balancen BAU 2030'!Y75 -> 0 | Z75: ='Balancen Scenarie 2030'!Z75-'Balancen BAU 2030'!Z75 -> 0.09289663081 | AA75: ='Balancen Scenarie 2030'!AA75-'Balancen BAU 2030'!AA75 -> -174.1956155 | AB75: ='Balancen Scenarie 2030'!AB75-'Balancen BAU 2030'!AB75 -> 8.013462467 | AC75: ='Balancen Scenarie 2030'!AC75-'Balancen BAU 2030'!AC75 -> -182.209078 | AD75: ='Balancen Scenarie 2030'!AD75-'Balancen BAU 2030'!AD75 -> 0 | AE75: ='Balancen Scenarie 2030'!AE75-'Balancen BAU 2030'!AE75 -> 0 | AF75: ='Balancen Scenarie 2030'!AF75-'Balancen BAU 2030'!AF75 -> 0 | AG75: ='Balancen Scenarie 2030'!AG75-'Balancen BAU 2030'!AG75 -> 0 | AH75: ='Balancen Scenarie 2030'!AH75-'Balancen BAU 2030'!AH75 -> 0 | AI75: ='Balancen Scenarie 2030'!AI75-'Balancen BAU 2030'!AI75 -> 0 | AJ75: ='Balancen Scenarie 2030'!AJ75-'Balancen BAU 2030'!AJ75 -> 0 | AK75: ='Balancen Scenarie 2030'!AK75-'Balancen BAU 2030'!AK75 -> 0 | AL75: ='Balancen Scenarie 2030'!AL75-'Balancen BAU 2030'!AL75 -> 0 | AM75: ='Balancen Scenarie 2030'!AM75-'Balancen BAU 2030'!AM75 -> 0 | AN75: ='Balancen Scenarie 2030'!AN75-'Balancen BAU 2030'!AN75 -> 0 | AO75: ='Balancen Scenarie 2030'!AO75-'Balancen BAU 2030'!AO75 -> 0 | AP75: ='Balancen Scenarie 2030'!AP75-'Balancen BAU 2030'!AP75 -> 0 | AQ75: ='Balancen Scenarie 2030'!AQ75-'Balancen BAU 2030'!AQ75 -> 0 | AR75: ='Balancen Scenarie 2030'!AR75-'Balancen BAU 2030'!AR75 -> 0 | AS75: ='Balancen Scenarie 2030'!AS75-'Balancen BAU 2030'!AS75 -> -25522.27049 | AT75: ='Balancen Scenarie 2030'!AT75-'Balancen BAU 2030'!AT75 -> 0 | AU75: ='Balancen Scenarie 2030'!AU75-'Balancen BAU 2030'!AU75 -> 0
A76: CO2-udledning fra Kemiske processer, Landbrug, Affald og Spildevand [ton CO2e] | B76: ='Balancen Scenarie 2030'!B76-'Balancen BAU 2030'!B76 -> 0 | C76: ='Balancen Scenarie 2030'!C76-'Balancen BAU 2030'!C76 -> 0 | D76: ='Balancen Scenarie 2030'!D76-'Balancen BAU 2030'!D76 -> 0 | E76: ='Balancen Scenarie 2030'!E76-'Balancen BAU 2030'!E76 -> 0 | F76: ='Balancen Scenarie 2030'!F76-'Balancen BAU 2030'!F76 -> 0 | G76: ='Balancen Scenarie 2030'!G76-'Balancen BAU 2030'!G76 -> 0 | H76: ='Balancen Scenarie 2030'!H76-'Balancen BAU 2030'!H76 -> 0 | I76: ='Balancen Scenarie 2030'!I76-'Balancen BAU 2030'!I76 -> 0 | J76: ='Balancen Scenarie 2030'!J76-'Balancen BAU 2030'!J76 -> 0 | K76: ='Balancen Scenarie 2030'!K76-'Balancen BAU 2030'!K76 -> 0 | L76: ='Balancen Scenarie 2030'!L76-'Balancen BAU 2030'!L76 -> 0 | M76: ='Balancen Scenarie 2030'!M76-'Balancen BAU 2030'!M76 -> 0 | N76: ='Balancen Scenarie 2030'!N76-'Balancen BAU 2030'!N76 -> 0 | O76: ='Balancen Scenarie 2030'!O76-'Balancen BAU 2030'!O76 -> 0 | P76: ='Balancen Scenarie 2030'!P76-'Balancen BAU 2030'!P76 -> 0 | Q76: ='Balancen Scenarie 2030'!Q76-'Balancen BAU 2030'!Q76 -> 0 | R76: ='Balancen Scenarie 2030'!R76-'Balancen BAU 2030'!R76 -> 0 | S76: ='Balancen Scenarie 2030'!S76-'Balancen BAU 2030'!S76 -> 0 | T76: ='Balancen Scenarie 2030'!T76-'Balancen BAU 2030'!T76 -> 0 | U76: ='Balancen Scenarie 2030'!U76-'Balancen BAU 2030'!U76 -> 0 | V76: ='Balancen Scenarie 2030'!V76-'Balancen BAU 2030'!V76 -> 0 | W76: ='Balancen Scenarie 2030'!W76-'Balancen BAU 2030'!W76 -> 0 | X76: ='Balancen Scenarie 2030'!X76-'Balancen BAU 2030'!X76 -> 0 | Y76: ='Balancen Scenarie 2030'!Y76-'Balancen BAU 2030'!Y76 -> 0 | Z76: ='Balancen Scenarie 2030'!Z76-'Balancen BAU 2030'!Z76 -> 0 | AA76: ='Balancen Scenarie 2030'!AA76-'Balancen BAU 2030'!AA76 -> 0 | AB76: ='Balancen Scenarie 2030'!AB76-'Balancen BAU 2030'!AB76 -> 0 | AC76: ='Balancen Scenarie 2030'!AC76-'Balancen BAU 2030'!AC76 -> 0 | AD76: ='Balancen Scenarie 2030'!AD76-'Balancen BAU 2030'!AD76 -> 0 | AE76: ='Balancen Scenarie 2030'!AE76-'Balancen BAU 2030'!AE76 -> 0 | AF76: ='Balancen Scenarie 2030'!AF76-'Balancen BAU 2030'!AF76 -> 0 | AG76: ='Balancen Scenarie 2030'!AG76-'Balancen BAU 2030'!AG76 -> 0 | AH76: ='Balancen Scenarie 2030'!AH76-'Balancen BAU 2030'!AH76 -> 0 | AI76: ='Balancen Scenarie 2030'!AI76-'Balancen BAU 2030'!AI76 -> 0 | AJ76: ='Balancen Scenarie 2030'!AJ76-'Balancen BAU 2030'!AJ76 -> 0 | AK76: ='Balancen Scenarie 2030'!AK76-'Balancen BAU 2030'!AK76 -> 0 | AL76: ='Balancen Scenarie 2030'!AL76-'Balancen BAU 2030'!AL76 -> 0 | AM76: ='Balancen Scenarie 2030'!AM76-'Balancen BAU 2030'!AM76 -> 0 | AN76: ='Balancen Scenarie 2030'!AN76-'Balancen BAU 2030'!AN76 -> 0 | AO76: ='Balancen Scenarie 2030'!AO76-'Balancen BAU 2030'!AO76 -> 0 | AP76: ='Balancen Scenarie 2030'!AP76-'Balancen BAU 2030'!AP76 -> 0 | AQ76: ='Balancen Scenarie 2030'!AQ76-'Balancen BAU 2030'!AQ76 -> 0 | AR76: ='Balancen Scenarie 2030'!AR76-'Balancen BAU 2030'!AR76 -> 0 | AS76: ='Balancen Scenarie 2030'!AS76-'Balancen BAU 2030'!AS76 -> 0 | AT76: ='Balancen Scenarie 2030'!AT76-'Balancen BAU 2030'!AT76 -> 0 | AU76: ='Balancen Scenarie 2030'!AU76-'Balancen BAU 2030'!AU76 -> 0
A77: Udledning af CO2e fra Kemiske processer | B77: ='Balancen Scenarie 2030'!B77-'Balancen BAU 2030'!B77 -> 0 | C77: ='Balancen Scenarie 2030'!C77-'Balancen BAU 2030'!C77 -> 0 | D77: ='Balancen Scenarie 2030'!D77-'Balancen BAU 2030'!D77 -> 0 | E77: ='Balancen Scenarie 2030'!E77-'Balancen BAU 2030'!E77 -> 0 | F77: ='Balancen Scenarie 2030'!F77-'Balancen BAU 2030'!F77 -> 0 | G77: ='Balancen Scenarie 2030'!G77-'Balancen BAU 2030'!G77 -> 0 | H77: ='Balancen Scenarie 2030'!H77-'Balancen BAU 2030'!H77 -> 0 | I77: ='Balancen Scenarie 2030'!I77-'Balancen BAU 2030'!I77 -> 0 | J77: ='Balancen Scenarie 2030'!J77-'Balancen BAU 2030'!J77 -> 0 | K77: ='Balancen Scenarie 2030'!K77-'Balancen BAU 2030'!K77 -> 0 | L77: ='Balancen Scenarie 2030'!L77-'Balancen BAU 2030'!L77 -> 0 | M77: ='Balancen Scenarie 2030'!M77-'Balancen BAU 2030'!M77 -> 0 | N77: ='Balancen Scenarie 2030'!N77-'Balancen BAU 2030'!N77 -> 0 | O77: ='Balancen Scenarie 2030'!O77-'Balancen BAU 2030'!O77 -> 0 | P77: ='Balancen Scenarie 2030'!P77-'Balancen BAU 2030'!P77 -> 0 | Q77: ='Balancen Scenarie 2030'!Q77-'Balancen BAU 2030'!Q77 -> 0 | R77: ='Balancen Scenarie 2030'!R77-'Balancen BAU 2030'!R77 -> 0 | S77: ='Balancen Scenarie 2030'!S77-'Balancen BAU 2030'!S77 -> 0 | T77: ='Balancen Scenarie 2030'!T77-'Balancen BAU 2030'!T77 -> 0 | U77: ='Balancen Scenarie 2030'!U77-'Balancen BAU 2030'!U77 -> 0 | V77: ='Balancen Scenarie 2030'!V77-'Balancen BAU 2030'!V77 -> 0 | W77: ='Balancen Scenarie 2030'!W77-'Balancen BAU 2030'!W77 -> 0 | X77: ='Balancen Scenarie 2030'!X77-'Balancen BAU 2030'!X77 -> 0 | Y77: ='Balancen Scenarie 2030'!Y77-'Balancen BAU 2030'!Y77 -> 0 | Z77: ='Balancen Scenarie 2030'!Z77-'Balancen BAU 2030'!Z77 -> 0 | AA77: ='Balancen Scenarie 2030'!AA77-'Balancen BAU 2030'!AA77 -> 0 | AB77: ='Balancen Scenarie 2030'!AB77-'Balancen BAU 2030'!AB77 -> 0 | AC77: ='Balancen Scenarie 2030'!AC77-'Balancen BAU 2030'!AC77 -> 0 | AD77: ='Balancen Scenarie 2030'!AD77-'Balancen BAU 2030'!AD77 -> 0 | AE77: ='Balancen Scenarie 2030'!AE77-'Balancen BAU 2030'!AE77 -> 0 | AF77: ='Balancen Scenarie 2030'!AF77-'Balancen BAU 2030'!AF77 -> 0 | AG77: ='Balancen Scenarie 2030'!AG77-'Balancen BAU 2030'!AG77 -> 0 | AH77: ='Balancen Scenarie 2030'!AH77-'Balancen BAU 2030'!AH77 -> 0 | AI77: ='Balancen Scenarie 2030'!AI77-'Balancen BAU 2030'!AI77 -> 0 | AJ77: ='Balancen Scenarie 2030'!AJ77-'Balancen BAU 2030'!AJ77 -> 0 | AK77: ='Balancen Scenarie 2030'!AK77-'Balancen BAU 2030'!AK77 -> 0 | AL77: ='Balancen Scenarie 2030'!AL77-'Balancen BAU 2030'!AL77 -> 0 | AM77: ='Balancen Scenarie 2030'!AM77-'Balancen BAU 2030'!AM77 -> 0 | AN77: ='Balancen Scenarie 2030'!AN77-'Balancen BAU 2030'!AN77 -> 0 | AO77: ='Balancen Scenarie 2030'!AO77-'Balancen BAU 2030'!AO77 -> 0 | AP77: ='Balancen Scenarie 2030'!AP77-'Balancen BAU 2030'!AP77 -> 0 | AQ77: ='Balancen Scenarie 2030'!AQ77-'Balancen BAU 2030'!AQ77 -> 0 | AR77: ='Balancen Scenarie 2030'!AR77-'Balancen BAU 2030'!AR77 -> 0 | AS77: ='Balancen Scenarie 2030'!AS77-'Balancen BAU 2030'!AS77 -> 1.28056854e-09 | AT77: ='Balancen Scenarie 2030'!AT77-'Balancen BAU 2030'!AT77 -> 0 | AU77: ='Balancen Scenarie 2030'!AU77-'Balancen BAU 2030'!AU77 -> 0
A78: Udledning af CO2e fra Landbrug | B78: ='Balancen Scenarie 2030'!B78-'Balancen BAU 2030'!B78 -> 0 | C78: ='Balancen Scenarie 2030'!C78-'Balancen BAU 2030'!C78 -> 0 | D78: ='Balancen Scenarie 2030'!D78-'Balancen BAU 2030'!D78 -> 0 | E78: ='Balancen Scenarie 2030'!E78-'Balancen BAU 2030'!E78 -> 0 | F78: ='Balancen Scenarie 2030'!F78-'Balancen BAU 2030'!F78 -> 0 | G78: ='Balancen Scenarie 2030'!G78-'Balancen BAU 2030'!G78 -> 0 | H78: ='Balancen Scenarie 2030'!H78-'Balancen BAU 2030'!H78 -> 0 | I78: ='Balancen Scenarie 2030'!I78-'Balancen BAU 2030'!I78 -> 0 | J78: ='Balancen Scenarie 2030'!J78-'Balancen BAU 2030'!J78 -> 0 | K78: ='Balancen Scenarie 2030'!K78-'Balancen BAU 2030'!K78 -> 0 | L78: ='Balancen Scenarie 2030'!L78-'Balancen BAU 2030'!L78 -> 0 | M78: ='Balancen Scenarie 2030'!M78-'Balancen BAU 2030'!M78 -> 0 | N78: ='Balancen Scenarie 2030'!N78-'Balancen BAU 2030'!N78 -> 0 | O78: ='Balancen Scenarie 2030'!O78-'Balancen BAU 2030'!O78 -> 0 | P78: ='Balancen Scenarie 2030'!P78-'Balancen BAU 2030'!P78 -> 0 | Q78: ='Balancen Scenarie 2030'!Q78-'Balancen BAU 2030'!Q78 -> 0 | R78: ='Balancen Scenarie 2030'!R78-'Balancen BAU 2030'!R78 -> 0 | S78: ='Balancen Scenarie 2030'!S78-'Balancen BAU 2030'!S78 -> 0 | T78: ='Balancen Scenarie 2030'!T78-'Balancen BAU 2030'!T78 -> 0 | U78: ='Balancen Scenarie 2030'!U78-'Balancen BAU 2030'!U78 -> 0 | V78: ='Balancen Scenarie 2030'!V78-'Balancen BAU 2030'!V78 -> 0 | W78: ='Balancen Scenarie 2030'!W78-'Balancen BAU 2030'!W78 -> 0 | X78: ='Balancen Scenarie 2030'!X78-'Balancen BAU 2030'!X78 -> 0 | Y78: ='Balancen Scenarie 2030'!Y78-'Balancen BAU 2030'!Y78 -> 0 | Z78: ='Balancen Scenarie 2030'!Z78-'Balancen BAU 2030'!Z78 -> 0 | AA78: ='Balancen Scenarie 2030'!AA78-'Balancen BAU 2030'!AA78 -> 0 | AB78: ='Balancen Scenarie 2030'!AB78-'Balancen BAU 2030'!AB78 -> 0 | AC78: ='Balancen Scenarie 2030'!AC78-'Balancen BAU 2030'!AC78 -> 0 | AD78: ='Balancen Scenarie 2030'!AD78-'Balancen BAU 2030'!AD78 -> 0 | AE78: ='Balancen Scenarie 2030'!AE78-'Balancen BAU 2030'!AE78 -> 0 | AF78: ='Balancen Scenarie 2030'!AF78-'Balancen BAU 2030'!AF78 -> 0 | AG78: ='Balancen Scenarie 2030'!AG78-'Balancen BAU 2030'!AG78 -> 0 | AH78: ='Balancen Scenarie 2030'!AH78-'Balancen BAU 2030'!AH78 -> 0 | AI78: ='Balancen Scenarie 2030'!AI78-'Balancen BAU 2030'!AI78 -> 0 | AJ78: ='Balancen Scenarie 2030'!AJ78-'Balancen BAU 2030'!AJ78 -> 0 | AK78: ='Balancen Scenarie 2030'!AK78-'Balancen BAU 2030'!AK78 -> 0 | AL78: ='Balancen Scenarie 2030'!AL78-'Balancen BAU 2030'!AL78 -> 0 | AM78: ='Balancen Scenarie 2030'!AM78-'Balancen BAU 2030'!AM78 -> 0 | AN78: ='Balancen Scenarie 2030'!AN78-'Balancen BAU 2030'!AN78 -> 0 | AO78: ='Balancen Scenarie 2030'!AO78-'Balancen BAU 2030'!AO78 -> 0 | AP78: ='Balancen Scenarie 2030'!AP78-'Balancen BAU 2030'!AP78 -> 0 | AQ78: ='Balancen Scenarie 2030'!AQ78-'Balancen BAU 2030'!AQ78 -> 0 | AR78: ='Balancen Scenarie 2030'!AR78-'Balancen BAU 2030'!AR78 -> 0 | AS78: ='Balancen Scenarie 2030'!AS78-'Balancen BAU 2030'!AS78 -> 0 | AT78: ='Balancen Scenarie 2030'!AT78-'Balancen BAU 2030'!AT78 -> 0 | AU78: ='Balancen Scenarie 2030'!AU78-'Balancen BAU 2030'!AU78 -> 0
A79: fra husdyrfordøjelse | B79: ='Balancen Scenarie 2030'!B79-'Balancen BAU 2030'!B79 -> 0 | C79: ='Balancen Scenarie 2030'!C79-'Balancen BAU 2030'!C79 -> 0 | D79: ='Balancen Scenarie 2030'!D79-'Balancen BAU 2030'!D79 -> 0 | E79: ='Balancen Scenarie 2030'!E79-'Balancen BAU 2030'!E79 -> 0 | F79: ='Balancen Scenarie 2030'!F79-'Balancen BAU 2030'!F79 -> 0 | G79: ='Balancen Scenarie 2030'!G79-'Balancen BAU 2030'!G79 -> 0 | H79: ='Balancen Scenarie 2030'!H79-'Balancen BAU 2030'!H79 -> 0 | I79: ='Balancen Scenarie 2030'!I79-'Balancen BAU 2030'!I79 -> 0 | J79: ='Balancen Scenarie 2030'!J79-'Balancen BAU 2030'!J79 -> 0 | K79: ='Balancen Scenarie 2030'!K79-'Balancen BAU 2030'!K79 -> 0 | L79: ='Balancen Scenarie 2030'!L79-'Balancen BAU 2030'!L79 -> 0 | M79: ='Balancen Scenarie 2030'!M79-'Balancen BAU 2030'!M79 -> 0 | N79: ='Balancen Scenarie 2030'!N79-'Balancen BAU 2030'!N79 -> 0 | O79: ='Balancen Scenarie 2030'!O79-'Balancen BAU 2030'!O79 -> 0 | P79: ='Balancen Scenarie 2030'!P79-'Balancen BAU 2030'!P79 -> 0 | Q79: ='Balancen Scenarie 2030'!Q79-'Balancen BAU 2030'!Q79 -> 0 | R79: ='Balancen Scenarie 2030'!R79-'Balancen BAU 2030'!R79 -> 0 | S79: ='Balancen Scenarie 2030'!S79-'Balancen BAU 2030'!S79 -> 0 | T79: ='Balancen Scenarie 2030'!T79-'Balancen BAU 2030'!T79 -> 0 | U79: ='Balancen Scenarie 2030'!U79-'Balancen BAU 2030'!U79 -> 0 | V79: ='Balancen Scenarie 2030'!V79-'Balancen BAU 2030'!V79 -> 0 | W79: ='Balancen Scenarie 2030'!W79-'Balancen BAU 2030'!W79 -> 0 | X79: ='Balancen Scenarie 2030'!X79-'Balancen BAU 2030'!X79 -> 0 | Y79: ='Balancen Scenarie 2030'!Y79-'Balancen BAU 2030'!Y79 -> 0 | Z79: ='Balancen Scenarie 2030'!Z79-'Balancen BAU 2030'!Z79 -> 0 | AA79: ='Balancen Scenarie 2030'!AA79-'Balancen BAU 2030'!AA79 -> 0 | AB79: ='Balancen Scenarie 2030'!AB79-'Balancen BAU 2030'!AB79 -> 0 | AC79: ='Balancen Scenarie 2030'!AC79-'Balancen BAU 2030'!AC79 -> 0 | AD79: ='Balancen Scenarie 2030'!AD79-'Balancen BAU 2030'!AD79 -> 0 | AE79: ='Balancen Scenarie 2030'!AE79-'Balancen BAU 2030'!AE79 -> 0 | AF79: ='Balancen Scenarie 2030'!AF79-'Balancen BAU 2030'!AF79 -> 0 | AG79: ='Balancen Scenarie 2030'!AG79-'Balancen BAU 2030'!AG79 -> 0 | AH79: ='Balancen Scenarie 2030'!AH79-'Balancen BAU 2030'!AH79 -> 0 | AI79: ='Balancen Scenarie 2030'!AI79-'Balancen BAU 2030'!AI79 -> 0 | AJ79: ='Balancen Scenarie 2030'!AJ79-'Balancen BAU 2030'!AJ79 -> 0 | AK79: ='Balancen Scenarie 2030'!AK79-'Balancen BAU 2030'!AK79 -> 0 | AL79: ='Balancen Scenarie 2030'!AL79-'Balancen BAU 2030'!AL79 -> 0 | AM79: ='Balancen Scenarie 2030'!AM79-'Balancen BAU 2030'!AM79 -> 0 | AN79: ='Balancen Scenarie 2030'!AN79-'Balancen BAU 2030'!AN79 -> 0 | AO79: ='Balancen Scenarie 2030'!AO79-'Balancen BAU 2030'!AO79 -> 0 | AP79: ='Balancen Scenarie 2030'!AP79-'Balancen BAU 2030'!AP79 -> 0 | AQ79: ='Balancen Scenarie 2030'!AQ79-'Balancen BAU 2030'!AQ79 -> 0 | AR79: ='Balancen Scenarie 2030'!AR79-'Balancen BAU 2030'!AR79 -> 0 | AS79: ='Balancen Scenarie 2030'!AS79-'Balancen BAU 2030'!AS79 -> 0 | AT79: ='Balancen Scenarie 2030'!AT79-'Balancen BAU 2030'!AT79 -> 0 | AU79: ='Balancen Scenarie 2030'!AU79-'Balancen BAU 2030'!AU79 -> 0
A80: fra husdyrgødning i stald og lagre | B80: ='Balancen Scenarie 2030'!B80-'Balancen BAU 2030'!B80 -> 0 | C80: ='Balancen Scenarie 2030'!C80-'Balancen BAU 2030'!C80 -> 0 | D80: ='Balancen Scenarie 2030'!D80-'Balancen BAU 2030'!D80 -> 0 | E80: ='Balancen Scenarie 2030'!E80-'Balancen BAU 2030'!E80 -> 0 | F80: ='Balancen Scenarie 2030'!F80-'Balancen BAU 2030'!F80 -> 0 | G80: ='Balancen Scenarie 2030'!G80-'Balancen BAU 2030'!G80 -> 0 | H80: ='Balancen Scenarie 2030'!H80-'Balancen BAU 2030'!H80 -> 0 | I80: ='Balancen Scenarie 2030'!I80-'Balancen BAU 2030'!I80 -> 0 | J80: ='Balancen Scenarie 2030'!J80-'Balancen BAU 2030'!J80 -> 0 | K80: ='Balancen Scenarie 2030'!K80-'Balancen BAU 2030'!K80 -> 0 | L80: ='Balancen Scenarie 2030'!L80-'Balancen BAU 2030'!L80 -> 0 | M80: ='Balancen Scenarie 2030'!M80-'Balancen BAU 2030'!M80 -> 0 | N80: ='Balancen Scenarie 2030'!N80-'Balancen BAU 2030'!N80 -> 0 | O80: ='Balancen Scenarie 2030'!O80-'Balancen BAU 2030'!O80 -> 0 | P80: ='Balancen Scenarie 2030'!P80-'Balancen BAU 2030'!P80 -> 0 | Q80: ='Balancen Scenarie 2030'!Q80-'Balancen BAU 2030'!Q80 -> 0 | R80: ='Balancen Scenarie 2030'!R80-'Balancen BAU 2030'!R80 -> 0 | S80: ='Balancen Scenarie 2030'!S80-'Balancen BAU 2030'!S80 -> 0 | T80: ='Balancen Scenarie 2030'!T80-'Balancen BAU 2030'!T80 -> 0 | U80: ='Balancen Scenarie 2030'!U80-'Balancen BAU 2030'!U80 -> 0 | V80: ='Balancen Scenarie 2030'!V80-'Balancen BAU 2030'!V80 -> 0 | W80: ='Balancen Scenarie 2030'!W80-'Balancen BAU 2030'!W80 -> 0 | X80: ='Balancen Scenarie 2030'!X80-'Balancen BAU 2030'!X80 -> 0 | Y80: ='Balancen Scenarie 2030'!Y80-'Balancen BAU 2030'!Y80 -> 0 | Z80: ='Balancen Scenarie 2030'!Z80-'Balancen BAU 2030'!Z80 -> 0 | AA80: ='Balancen Scenarie 2030'!AA80-'Balancen BAU 2030'!AA80 -> 0 | AB80: ='Balancen Scenarie 2030'!AB80-'Balancen BAU 2030'!AB80 -> 0 | AC80: ='Balancen Scenarie 2030'!AC80-'Balancen BAU 2030'!AC80 -> 0 | AD80: ='Balancen Scenarie 2030'!AD80-'Balancen BAU 2030'!AD80 -> 0 | AE80: ='Balancen Scenarie 2030'!AE80-'Balancen BAU 2030'!AE80 -> 0 | AF80: ='Balancen Scenarie 2030'!AF80-'Balancen BAU 2030'!AF80 -> 0 | AG80: ='Balancen Scenarie 2030'!AG80-'Balancen BAU 2030'!AG80 -> 0 | AH80: ='Balancen Scenarie 2030'!AH80-'Balancen BAU 2030'!AH80 -> 0 | AI80: ='Balancen Scenarie 2030'!AI80-'Balancen BAU 2030'!AI80 -> 0 | AJ80: ='Balancen Scenarie 2030'!AJ80-'Balancen BAU 2030'!AJ80 -> 0 | AK80: ='Balancen Scenarie 2030'!AK80-'Balancen BAU 2030'!AK80 -> 0 | AL80: ='Balancen Scenarie 2030'!AL80-'Balancen BAU 2030'!AL80 -> 0 | AM80: ='Balancen Scenarie 2030'!AM80-'Balancen BAU 2030'!AM80 -> 0 | AN80: ='Balancen Scenarie 2030'!AN80-'Balancen BAU 2030'!AN80 -> 0 | AO80: ='Balancen Scenarie 2030'!AO80-'Balancen BAU 2030'!AO80 -> 0 | AP80: ='Balancen Scenarie 2030'!AP80-'Balancen BAU 2030'!AP80 -> 0 | AQ80: ='Balancen Scenarie 2030'!AQ80-'Balancen BAU 2030'!AQ80 -> 0 | AR80: ='Balancen Scenarie 2030'!AR80-'Balancen BAU 2030'!AR80 -> 0 | AS80: ='Balancen Scenarie 2030'!AS80-'Balancen BAU 2030'!AS80 -> 0 | AT80: ='Balancen Scenarie 2030'!AT80-'Balancen BAU 2030'!AT80 -> 0 | AU80: ='Balancen Scenarie 2030'!AU80-'Balancen BAU 2030'!AU80 -> 0
A81: fra landbrugsjorde | B81: ='Balancen Scenarie 2030'!B81-'Balancen BAU 2030'!B81 -> 0 | C81: ='Balancen Scenarie 2030'!C81-'Balancen BAU 2030'!C81 -> 0 | D81: ='Balancen Scenarie 2030'!D81-'Balancen BAU 2030'!D81 -> 0 | E81: ='Balancen Scenarie 2030'!E81-'Balancen BAU 2030'!E81 -> 0 | F81: ='Balancen Scenarie 2030'!F81-'Balancen BAU 2030'!F81 -> 0 | G81: ='Balancen Scenarie 2030'!G81-'Balancen BAU 2030'!G81 -> 0 | H81: ='Balancen Scenarie 2030'!H81-'Balancen BAU 2030'!H81 -> 0 | I81: ='Balancen Scenarie 2030'!I81-'Balancen BAU 2030'!I81 -> 0 | J81: ='Balancen Scenarie 2030'!J81-'Balancen BAU 2030'!J81 -> 0 | K81: ='Balancen Scenarie 2030'!K81-'Balancen BAU 2030'!K81 -> 0 | L81: ='Balancen Scenarie 2030'!L81-'Balancen BAU 2030'!L81 -> 0 | M81: ='Balancen Scenarie 2030'!M81-'Balancen BAU 2030'!M81 -> 0 | N81: ='Balancen Scenarie 2030'!N81-'Balancen BAU 2030'!N81 -> 0 | O81: ='Balancen Scenarie 2030'!O81-'Balancen BAU 2030'!O81 -> 0 | P81: ='Balancen Scenarie 2030'!P81-'Balancen BAU 2030'!P81 -> 0 | Q81: ='Balancen Scenarie 2030'!Q81-'Balancen BAU 2030'!Q81 -> 0 | R81: ='Balancen Scenarie 2030'!R81-'Balancen BAU 2030'!R81 -> 0 | S81: ='Balancen Scenarie 2030'!S81-'Balancen BAU 2030'!S81 -> 0 | T81: ='Balancen Scenarie 2030'!T81-'Balancen BAU 2030'!T81 -> 0 | U81: ='Balancen Scenarie 2030'!U81-'Balancen BAU 2030'!U81 -> 0 | V81: ='Balancen Scenarie 2030'!V81-'Balancen BAU 2030'!V81 -> 0 | W81: ='Balancen Scenarie 2030'!W81-'Balancen BAU 2030'!W81 -> 0 | X81: ='Balancen Scenarie 2030'!X81-'Balancen BAU 2030'!X81 -> 0 | Y81: ='Balancen Scenarie 2030'!Y81-'Balancen BAU 2030'!Y81 -> 0 | Z81: ='Balancen Scenarie 2030'!Z81-'Balancen BAU 2030'!Z81 -> 0 | AA81: ='Balancen Scenarie 2030'!AA81-'Balancen BAU 2030'!AA81 -> 0 | AB81: ='Balancen Scenarie 2030'!AB81-'Balancen BAU 2030'!AB81 -> 0 | AC81: ='Balancen Scenarie 2030'!AC81-'Balancen BAU 2030'!AC81 -> 0 | AD81: ='Balancen Scenarie 2030'!AD81-'Balancen BAU 2030'!AD81 -> 0 | AE81: ='Balancen Scenarie 2030'!AE81-'Balancen BAU 2030'!AE81 -> 0 | AF81: ='Balancen Scenarie 2030'!AF81-'Balancen BAU 2030'!AF81 -> 0 | AG81: ='Balancen Scenarie 2030'!AG81-'Balancen BAU 2030'!AG81 -> 0 | AH81: ='Balancen Scenarie 2030'!AH81-'Balancen BAU 2030'!AH81 -> 0 | AI81: ='Balancen Scenarie 2030'!AI81-'Balancen BAU 2030'!AI81 -> 0 | AJ81: ='Balancen Scenarie 2030'!AJ81-'Balancen BAU 2030'!AJ81 -> 0 | AK81: ='Balancen Scenarie 2030'!AK81-'Balancen BAU 2030'!AK81 -> 0 | AL81: ='Balancen Scenarie 2030'!AL81-'Balancen BAU 2030'!AL81 -> 0 | AM81: ='Balancen Scenarie 2030'!AM81-'Balancen BAU 2030'!AM81 -> 0 | AN81: ='Balancen Scenarie 2030'!AN81-'Balancen BAU 2030'!AN81 -> 0 | AO81: ='Balancen Scenarie 2030'!AO81-'Balancen BAU 2030'!AO81 -> 0 | AP81: ='Balancen Scenarie 2030'!AP81-'Balancen BAU 2030'!AP81 -> 0 | AQ81: ='Balancen Scenarie 2030'!AQ81-'Balancen BAU 2030'!AQ81 -> 0 | AR81: ='Balancen Scenarie 2030'!AR81-'Balancen BAU 2030'!AR81 -> 0 | AS81: ='Balancen Scenarie 2030'!AS81-'Balancen BAU 2030'!AS81 -> 1.024454832e-08 | AT81: ='Balancen Scenarie 2030'!AT81-'Balancen BAU 2030'!AT81 -> 0 | AU81: ='Balancen Scenarie 2030'!AU81-'Balancen BAU 2030'!AU81 -> 0
A82: fra dyrkning af organisk jord | B82: ='Balancen Scenarie 2030'!B82-'Balancen BAU 2030'!B82 -> 0 | C82: ='Balancen Scenarie 2030'!C82-'Balancen BAU 2030'!C82 -> 0 | D82: ='Balancen Scenarie 2030'!D82-'Balancen BAU 2030'!D82 -> 0 | E82: ='Balancen Scenarie 2030'!E82-'Balancen BAU 2030'!E82 -> 0 | F82: ='Balancen Scenarie 2030'!F82-'Balancen BAU 2030'!F82 -> 0 | G82: ='Balancen Scenarie 2030'!G82-'Balancen BAU 2030'!G82 -> 0 | H82: ='Balancen Scenarie 2030'!H82-'Balancen BAU 2030'!H82 -> 0 | I82: ='Balancen Scenarie 2030'!I82-'Balancen BAU 2030'!I82 -> 0 | J82: ='Balancen Scenarie 2030'!J82-'Balancen BAU 2030'!J82 -> 0 | K82: ='Balancen Scenarie 2030'!K82-'Balancen BAU 2030'!K82 -> 0 | L82: ='Balancen Scenarie 2030'!L82-'Balancen BAU 2030'!L82 -> 0 | M82: ='Balancen Scenarie 2030'!M82-'Balancen BAU 2030'!M82 -> 0 | N82: ='Balancen Scenarie 2030'!N82-'Balancen BAU 2030'!N82 -> 0 | O82: ='Balancen Scenarie 2030'!O82-'Balancen BAU 2030'!O82 -> 0 | P82: ='Balancen Scenarie 2030'!P82-'Balancen BAU 2030'!P82 -> 0 | Q82: ='Balancen Scenarie 2030'!Q82-'Balancen BAU 2030'!Q82 -> 0 | R82: ='Balancen Scenarie 2030'!R82-'Balancen BAU 2030'!R82 -> 0 | S82: ='Balancen Scenarie 2030'!S82-'Balancen BAU 2030'!S82 -> 0 | T82: ='Balancen Scenarie 2030'!T82-'Balancen BAU 2030'!T82 -> 0 | U82: ='Balancen Scenarie 2030'!U82-'Balancen BAU 2030'!U82 -> 0 | V82: ='Balancen Scenarie 2030'!V82-'Balancen BAU 2030'!V82 -> 0 | W82: ='Balancen Scenarie 2030'!W82-'Balancen BAU 2030'!W82 -> 0 | X82: ='Balancen Scenarie 2030'!X82-'Balancen BAU 2030'!X82 -> 0 | Y82: ='Balancen Scenarie 2030'!Y82-'Balancen BAU 2030'!Y82 -> 0 | Z82: ='Balancen Scenarie 2030'!Z82-'Balancen BAU 2030'!Z82 -> 0 | AA82: ='Balancen Scenarie 2030'!AA82-'Balancen BAU 2030'!AA82 -> 0 | AB82: ='Balancen Scenarie 2030'!AB82-'Balancen BAU 2030'!AB82 -> 0 | AC82: ='Balancen Scenarie 2030'!AC82-'Balancen BAU 2030'!AC82 -> 0 | AD82: ='Balancen Scenarie 2030'!AD82-'Balancen BAU 2030'!AD82 -> 0 | AE82: ='Balancen Scenarie 2030'!AE82-'Balancen BAU 2030'!AE82 -> 0 | AF82: ='Balancen Scenarie 2030'!AF82-'Balancen BAU 2030'!AF82 -> 0 | AG82: ='Balancen Scenarie 2030'!AG82-'Balancen BAU 2030'!AG82 -> 0 | AH82: ='Balancen Scenarie 2030'!AH82-'Balancen BAU 2030'!AH82 -> 0 | AI82: ='Balancen Scenarie 2030'!AI82-'Balancen BAU 2030'!AI82 -> 0 | AJ82: ='Balancen Scenarie 2030'!AJ82-'Balancen BAU 2030'!AJ82 -> 0 | AK82: ='Balancen Scenarie 2030'!AK82-'Balancen BAU 2030'!AK82 -> 0 | AL82: ='Balancen Scenarie 2030'!AL82-'Balancen BAU 2030'!AL82 -> 0 | AM82: ='Balancen Scenarie 2030'!AM82-'Balancen BAU 2030'!AM82 -> 0 | AN82: ='Balancen Scenarie 2030'!AN82-'Balancen BAU 2030'!AN82 -> 0 | AO82: ='Balancen Scenarie 2030'!AO82-'Balancen BAU 2030'!AO82 -> 0 | AP82: ='Balancen Scenarie 2030'!AP82-'Balancen BAU 2030'!AP82 -> 0 | AQ82: ='Balancen Scenarie 2030'!AQ82-'Balancen BAU 2030'!AQ82 -> 0 | AR82: ='Balancen Scenarie 2030'!AR82-'Balancen BAU 2030'!AR82 -> 0 | AS82: ='Balancen Scenarie 2030'!AS82-'Balancen BAU 2030'!AS82 -> 0 | AT82: ='Balancen Scenarie 2030'!AT82-'Balancen BAU 2030'!AT82 -> 0 | AU82: ='Balancen Scenarie 2030'!AU82-'Balancen BAU 2030'!AU82 -> 0
A83: fra øvrig landbrug | B83: ='Balancen Scenarie 2030'!B83-'Balancen BAU 2030'!B83 -> 0 | C83: ='Balancen Scenarie 2030'!C83-'Balancen BAU 2030'!C83 -> 0 | D83: ='Balancen Scenarie 2030'!D83-'Balancen BAU 2030'!D83 -> 0 | E83: ='Balancen Scenarie 2030'!E83-'Balancen BAU 2030'!E83 -> 0 | F83: ='Balancen Scenarie 2030'!F83-'Balancen BAU 2030'!F83 -> 0 | G83: ='Balancen Scenarie 2030'!G83-'Balancen BAU 2030'!G83 -> 0 | H83: ='Balancen Scenarie 2030'!H83-'Balancen BAU 2030'!H83 -> 0 | I83: ='Balancen Scenarie 2030'!I83-'Balancen BAU 2030'!I83 -> 0 | J83: ='Balancen Scenarie 2030'!J83-'Balancen BAU 2030'!J83 -> 0 | K83: ='Balancen Scenarie 2030'!K83-'Balancen BAU 2030'!K83 -> 0 | L83: ='Balancen Scenarie 2030'!L83-'Balancen BAU 2030'!L83 -> 0 | M83: ='Balancen Scenarie 2030'!M83-'Balancen BAU 2030'!M83 -> 0 | N83: ='Balancen Scenarie 2030'!N83-'Balancen BAU 2030'!N83 -> 0 | O83: ='Balancen Scenarie 2030'!O83-'Balancen BAU 2030'!O83 -> 0 | P83: ='Balancen Scenarie 2030'!P83-'Balancen BAU 2030'!P83 -> 0 | Q83: ='Balancen Scenarie 2030'!Q83-'Balancen BAU 2030'!Q83 -> 0 | R83: ='Balancen Scenarie 2030'!R83-'Balancen BAU 2030'!R83 -> 0 | S83: ='Balancen Scenarie 2030'!S83-'Balancen BAU 2030'!S83 -> 0 | T83: ='Balancen Scenarie 2030'!T83-'Balancen BAU 2030'!T83 -> 0 | U83: ='Balancen Scenarie 2030'!U83-'Balancen BAU 2030'!U83 -> 0 | V83: ='Balancen Scenarie 2030'!V83-'Balancen BAU 2030'!V83 -> 0 | W83: ='Balancen Scenarie 2030'!W83-'Balancen BAU 2030'!W83 -> 0 | X83: ='Balancen Scenarie 2030'!X83-'Balancen BAU 2030'!X83 -> 0 | Y83: ='Balancen Scenarie 2030'!Y83-'Balancen BAU 2030'!Y83 -> 0 | Z83: ='Balancen Scenarie 2030'!Z83-'Balancen BAU 2030'!Z83 -> 0 | AA83: ='Balancen Scenarie 2030'!AA83-'Balancen BAU 2030'!AA83 -> 0 | AB83: ='Balancen Scenarie 2030'!AB83-'Balancen BAU 2030'!AB83 -> 0 | AC83: ='Balancen Scenarie 2030'!AC83-'Balancen BAU 2030'!AC83 -> 0 | AD83: ='Balancen Scenarie 2030'!AD83-'Balancen BAU 2030'!AD83 -> 0 | AE83: ='Balancen Scenarie 2030'!AE83-'Balancen BAU 2030'!AE83 -> 0 | AF83: ='Balancen Scenarie 2030'!AF83-'Balancen BAU 2030'!AF83 -> 0 | AG83: ='Balancen Scenarie 2030'!AG83-'Balancen BAU 2030'!AG83 -> 0 | AH83: ='Balancen Scenarie 2030'!AH83-'Balancen BAU 2030'!AH83 -> 0 | AI83: ='Balancen Scenarie 2030'!AI83-'Balancen BAU 2030'!AI83 -> 0 | AJ83: ='Balancen Scenarie 2030'!AJ83-'Balancen BAU 2030'!AJ83 -> 0 | AK83: ='Balancen Scenarie 2030'!AK83-'Balancen BAU 2030'!AK83 -> 0 | AL83: ='Balancen Scenarie 2030'!AL83-'Balancen BAU 2030'!AL83 -> 0 | AM83: ='Balancen Scenarie 2030'!AM83-'Balancen BAU 2030'!AM83 -> 0 | AN83: ='Balancen Scenarie 2030'!AN83-'Balancen BAU 2030'!AN83 -> 0 | AO83: ='Balancen Scenarie 2030'!AO83-'Balancen BAU 2030'!AO83 -> 0 | AP83: ='Balancen Scenarie 2030'!AP83-'Balancen BAU 2030'!AP83 -> 0 | AQ83: ='Balancen Scenarie 2030'!AQ83-'Balancen BAU 2030'!AQ83 -> 0 | AR83: ='Balancen Scenarie 2030'!AR83-'Balancen BAU 2030'!AR83 -> 0 | AS83: ='Balancen Scenarie 2030'!AS83-'Balancen BAU 2030'!AS83 -> 0 | AT83: ='Balancen Scenarie 2030'!AT83-'Balancen BAU 2030'!AT83 -> 0 | AU83: ='Balancen Scenarie 2030'!AU83-'Balancen BAU 2030'!AU83 -> 0
A84: fra biogasreduktion | B84: ='Balancen Scenarie 2030'!B84-'Balancen BAU 2030'!B84 -> 0 | C84: ='Balancen Scenarie 2030'!C84-'Balancen BAU 2030'!C84 -> 0 | D84: ='Balancen Scenarie 2030'!D84-'Balancen BAU 2030'!D84 -> 0 | E84: ='Balancen Scenarie 2030'!E84-'Balancen BAU 2030'!E84 -> 0 | F84: ='Balancen Scenarie 2030'!F84-'Balancen BAU 2030'!F84 -> 0 | G84: ='Balancen Scenarie 2030'!G84-'Balancen BAU 2030'!G84 -> 0 | H84: ='Balancen Scenarie 2030'!H84-'Balancen BAU 2030'!H84 -> 0 | I84: ='Balancen Scenarie 2030'!I84-'Balancen BAU 2030'!I84 -> 0 | J84: ='Balancen Scenarie 2030'!J84-'Balancen BAU 2030'!J84 -> 0 | K84: ='Balancen Scenarie 2030'!K84-'Balancen BAU 2030'!K84 -> 0 | L84: ='Balancen Scenarie 2030'!L84-'Balancen BAU 2030'!L84 -> 0 | M84: ='Balancen Scenarie 2030'!M84-'Balancen BAU 2030'!M84 -> 0 | N84: ='Balancen Scenarie 2030'!N84-'Balancen BAU 2030'!N84 -> 0 | O84: ='Balancen Scenarie 2030'!O84-'Balancen BAU 2030'!O84 -> 0 | P84: ='Balancen Scenarie 2030'!P84-'Balancen BAU 2030'!P84 -> 0 | Q84: ='Balancen Scenarie 2030'!Q84-'Balancen BAU 2030'!Q84 -> 0 | R84: ='Balancen Scenarie 2030'!R84-'Balancen BAU 2030'!R84 -> 0 | S84: ='Balancen Scenarie 2030'!S84-'Balancen BAU 2030'!S84 -> 0 | T84: ='Balancen Scenarie 2030'!T84-'Balancen BAU 2030'!T84 -> 0 | U84: ='Balancen Scenarie 2030'!U84-'Balancen BAU 2030'!U84 -> 0 | V84: ='Balancen Scenarie 2030'!V84-'Balancen BAU 2030'!V84 -> 0 | W84: ='Balancen Scenarie 2030'!W84-'Balancen BAU 2030'!W84 -> 0 | X84: ='Balancen Scenarie 2030'!X84-'Balancen BAU 2030'!X84 -> 0 | Y84: ='Balancen Scenarie 2030'!Y84-'Balancen BAU 2030'!Y84 -> 0 | Z84: ='Balancen Scenarie 2030'!Z84-'Balancen BAU 2030'!Z84 -> 0 | AA84: ='Balancen Scenarie 2030'!AA84-'Balancen BAU 2030'!AA84 -> 0 | AB84: ='Balancen Scenarie 2030'!AB84-'Balancen BAU 2030'!AB84 -> 0 | AC84: ='Balancen Scenarie 2030'!AC84-'Balancen BAU 2030'!AC84 -> 0 | AD84: ='Balancen Scenarie 2030'!AD84-'Balancen BAU 2030'!AD84 -> 0 | AE84: ='Balancen Scenarie 2030'!AE84-'Balancen BAU 2030'!AE84 -> 0 | AF84: ='Balancen Scenarie 2030'!AF84-'Balancen BAU 2030'!AF84 -> 0 | AG84: ='Balancen Scenarie 2030'!AG84-'Balancen BAU 2030'!AG84 -> 0 | AH84: ='Balancen Scenarie 2030'!AH84-'Balancen BAU 2030'!AH84 -> 0 | AI84: ='Balancen Scenarie 2030'!AI84-'Balancen BAU 2030'!AI84 -> 0 | AJ84: ='Balancen Scenarie 2030'!AJ84-'Balancen BAU 2030'!AJ84 -> 0 | AK84: ='Balancen Scenarie 2030'!AK84-'Balancen BAU 2030'!AK84 -> 0 | AL84: ='Balancen Scenarie 2030'!AL84-'Balancen BAU 2030'!AL84 -> 0 | AM84: ='Balancen Scenarie 2030'!AM84-'Balancen BAU 2030'!AM84 -> 0 | AN84: ='Balancen Scenarie 2030'!AN84-'Balancen BAU 2030'!AN84 -> 0 | AO84: ='Balancen Scenarie 2030'!AO84-'Balancen BAU 2030'!AO84 -> 0 | AP84: ='Balancen Scenarie 2030'!AP84-'Balancen BAU 2030'!AP84 -> 0 | AQ84: ='Balancen Scenarie 2030'!AQ84-'Balancen BAU 2030'!AQ84 -> 0 | AR84: ='Balancen Scenarie 2030'!AR84-'Balancen BAU 2030'!AR84 -> 0 | AS84: ='Balancen Scenarie 2030'!AS84-'Balancen BAU 2030'!AS84 -> 0 | AT84: ='Balancen Scenarie 2030'!AT84-'Balancen BAU 2030'!AT84 -> 0 | AU84: ='Balancen Scenarie 2030'!AU84-'Balancen BAU 2030'!AU84 -> 0
A85: Udledning af CO2e fra Affald | B85: ='Balancen Scenarie 2030'!B85-'Balancen BAU 2030'!B85 -> 0 | C85: ='Balancen Scenarie 2030'!C85-'Balancen BAU 2030'!C85 -> 0 | D85: ='Balancen Scenarie 2030'!D85-'Balancen BAU 2030'!D85 -> 0 | E85: ='Balancen Scenarie 2030'!E85-'Balancen BAU 2030'!E85 -> 0 | F85: ='Balancen Scenarie 2030'!F85-'Balancen BAU 2030'!F85 -> 0 | G85: ='Balancen Scenarie 2030'!G85-'Balancen BAU 2030'!G85 -> 0 | H85: ='Balancen Scenarie 2030'!H85-'Balancen BAU 2030'!H85 -> 0 | I85: ='Balancen Scenarie 2030'!I85-'Balancen BAU 2030'!I85 -> 0 | J85: ='Balancen Scenarie 2030'!J85-'Balancen BAU 2030'!J85 -> 0 | K85: ='Balancen Scenarie 2030'!K85-'Balancen BAU 2030'!K85 -> 0 | L85: ='Balancen Scenarie 2030'!L85-'Balancen BAU 2030'!L85 -> 0 | M85: ='Balancen Scenarie 2030'!M85-'Balancen BAU 2030'!M85 -> 0 | N85: ='Balancen Scenarie 2030'!N85-'Balancen BAU 2030'!N85 -> 0 | O85: ='Balancen Scenarie 2030'!O85-'Balancen BAU 2030'!O85 -> 0 | P85: ='Balancen Scenarie 2030'!P85-'Balancen BAU 2030'!P85 -> 0 | Q85: ='Balancen Scenarie 2030'!Q85-'Balancen BAU 2030'!Q85 -> 0 | R85: ='Balancen Scenarie 2030'!R85-'Balancen BAU 2030'!R85 -> 0 | S85: ='Balancen Scenarie 2030'!S85-'Balancen BAU 2030'!S85 -> 0 | T85: ='Balancen Scenarie 2030'!T85-'Balancen BAU 2030'!T85 -> 0 | U85: ='Balancen Scenarie 2030'!U85-'Balancen BAU 2030'!U85 -> 0 | V85: ='Balancen Scenarie 2030'!V85-'Balancen BAU 2030'!V85 -> 0 | W85: ='Balancen Scenarie 2030'!W85-'Balancen BAU 2030'!W85 -> 0 | X85: ='Balancen Scenarie 2030'!X85-'Balancen BAU 2030'!X85 -> 0 | Y85: ='Balancen Scenarie 2030'!Y85-'Balancen BAU 2030'!Y85 -> 0 | Z85: ='Balancen Scenarie 2030'!Z85-'Balancen BAU 2030'!Z85 -> 0 | AA85: ='Balancen Scenarie 2030'!AA85-'Balancen BAU 2030'!AA85 -> 0 | AB85: ='Balancen Scenarie 2030'!AB85-'Balancen BAU 2030'!AB85 -> 0 | AC85: ='Balancen Scenarie 2030'!AC85-'Balancen BAU 2030'!AC85 -> 0 | AD85: ='Balancen Scenarie 2030'!AD85-'Balancen BAU 2030'!AD85 -> 0 | AE85: ='Balancen Scenarie 2030'!AE85-'Balancen BAU 2030'!AE85 -> 0 | AF85: ='Balancen Scenarie 2030'!AF85-'Balancen BAU 2030'!AF85 -> 0 | AG85: ='Balancen Scenarie 2030'!AG85-'Balancen BAU 2030'!AG85 -> 0 | AH85: ='Balancen Scenarie 2030'!AH85-'Balancen BAU 2030'!AH85 -> 0 | AI85: ='Balancen Scenarie 2030'!AI85-'Balancen BAU 2030'!AI85 -> 0 | AJ85: ='Balancen Scenarie 2030'!AJ85-'Balancen BAU 2030'!AJ85 -> 0 | AK85: ='Balancen Scenarie 2030'!AK85-'Balancen BAU 2030'!AK85 -> 0 | AL85: ='Balancen Scenarie 2030'!AL85-'Balancen BAU 2030'!AL85 -> 0 | AM85: ='Balancen Scenarie 2030'!AM85-'Balancen BAU 2030'!AM85 -> 0 | AN85: ='Balancen Scenarie 2030'!AN85-'Balancen BAU 2030'!AN85 -> 0 | AO85: ='Balancen Scenarie 2030'!AO85-'Balancen BAU 2030'!AO85 -> 0 | AP85: ='Balancen Scenarie 2030'!AP85-'Balancen BAU 2030'!AP85 -> 0 | AQ85: ='Balancen Scenarie 2030'!AQ85-'Balancen BAU 2030'!AQ85 -> 0 | AR85: ='Balancen Scenarie 2030'!AR85-'Balancen BAU 2030'!AR85 -> 0 | AS85: ='Balancen Scenarie 2030'!AS85-'Balancen BAU 2030'!AS85 -> -5.820766091e-10 | AT85: ='Balancen Scenarie 2030'!AT85-'Balancen BAU 2030'!AT85 -> 0 | AU85: ='Balancen Scenarie 2030'!AU85-'Balancen BAU 2030'!AU85 -> 0
A86: Udledning af CO2e fra Spildevand | B86: ='Balancen Scenarie 2030'!B86-'Balancen BAU 2030'!B86 -> 0 | C86: ='Balancen Scenarie 2030'!C86-'Balancen BAU 2030'!C86 -> 0 | D86: ='Balancen Scenarie 2030'!D86-'Balancen BAU 2030'!D86 -> 0 | E86: ='Balancen Scenarie 2030'!E86-'Balancen BAU 2030'!E86 -> 0 | F86: ='Balancen Scenarie 2030'!F86-'Balancen BAU 2030'!F86 -> 0 | G86: ='Balancen Scenarie 2030'!G86-'Balancen BAU 2030'!G86 -> 0 | H86: ='Balancen Scenarie 2030'!H86-'Balancen BAU 2030'!H86 -> 0 | I86: ='Balancen Scenarie 2030'!I86-'Balancen BAU 2030'!I86 -> 0 | J86: ='Balancen Scenarie 2030'!J86-'Balancen BAU 2030'!J86 -> 0 | K86: ='Balancen Scenarie 2030'!K86-'Balancen BAU 2030'!K86 -> 0 | L86: ='Balancen Scenarie 2030'!L86-'Balancen BAU 2030'!L86 -> 0 | M86: ='Balancen Scenarie 2030'!M86-'Balancen BAU 2030'!M86 -> 0 | N86: ='Balancen Scenarie 2030'!N86-'Balancen BAU 2030'!N86 -> 0 | O86: ='Balancen Scenarie 2030'!O86-'Balancen BAU 2030'!O86 -> 0 | P86: ='Balancen Scenarie 2030'!P86-'Balancen BAU 2030'!P86 -> 0 | Q86: ='Balancen Scenarie 2030'!Q86-'Balancen BAU 2030'!Q86 -> 0 | R86: ='Balancen Scenarie 2030'!R86-'Balancen BAU 2030'!R86 -> 0 | S86: ='Balancen Scenarie 2030'!S86-'Balancen BAU 2030'!S86 -> 0 | T86: ='Balancen Scenarie 2030'!T86-'Balancen BAU 2030'!T86 -> 0 | U86: ='Balancen Scenarie 2030'!U86-'Balancen BAU 2030'!U86 -> 0 | V86: ='Balancen Scenarie 2030'!V86-'Balancen BAU 2030'!V86 -> 0 | W86: ='Balancen Scenarie 2030'!W86-'Balancen BAU 2030'!W86 -> 0 | X86: ='Balancen Scenarie 2030'!X86-'Balancen BAU 2030'!X86 -> 0 | Y86: ='Balancen Scenarie 2030'!Y86-'Balancen BAU 2030'!Y86 -> 0 | Z86: ='Balancen Scenarie 2030'!Z86-'Balancen BAU 2030'!Z86 -> 0 | AA86: ='Balancen Scenarie 2030'!AA86-'Balancen BAU 2030'!AA86 -> 0 | AB86: ='Balancen Scenarie 2030'!AB86-'Balancen BAU 2030'!AB86 -> 0 | AC86: ='Balancen Scenarie 2030'!AC86-'Balancen BAU 2030'!AC86 -> 0 | AD86: ='Balancen Scenarie 2030'!AD86-'Balancen BAU 2030'!AD86 -> 0 | AE86: ='Balancen Scenarie 2030'!AE86-'Balancen BAU 2030'!AE86 -> 0 | AF86: ='Balancen Scenarie 2030'!AF86-'Balancen BAU 2030'!AF86 -> 0 | AG86: ='Balancen Scenarie 2030'!AG86-'Balancen BAU 2030'!AG86 -> 0 | AH86: ='Balancen Scenarie 2030'!AH86-'Balancen BAU 2030'!AH86 -> 0 | AI86: ='Balancen Scenarie 2030'!AI86-'Balancen BAU 2030'!AI86 -> 0 | AJ86: ='Balancen Scenarie 2030'!AJ86-'Balancen BAU 2030'!AJ86 -> 0 | AK86: ='Balancen Scenarie 2030'!AK86-'Balancen BAU 2030'!AK86 -> 0 | AL86: ='Balancen Scenarie 2030'!AL86-'Balancen BAU 2030'!AL86 -> 0 | AM86: ='Balancen Scenarie 2030'!AM86-'Balancen BAU 2030'!AM86 -> 0 | AN86: ='Balancen Scenarie 2030'!AN86-'Balancen BAU 2030'!AN86 -> 0 | AO86: ='Balancen Scenarie 2030'!AO86-'Balancen BAU 2030'!AO86 -> 0 | AP86: ='Balancen Scenarie 2030'!AP86-'Balancen BAU 2030'!AP86 -> 0 | AQ86: ='Balancen Scenarie 2030'!AQ86-'Balancen BAU 2030'!AQ86 -> 0 | AR86: ='Balancen Scenarie 2030'!AR86-'Balancen BAU 2030'!AR86 -> 0 | AS86: ='Balancen Scenarie 2030'!AS86-'Balancen BAU 2030'!AS86 -> 0 | AT86: ='Balancen Scenarie 2030'!AT86-'Balancen BAU 2030'!AT86 -> 0 | AU86: ='Balancen Scenarie 2030'!AU86-'Balancen BAU 2030'!AU86 -> 0
A87: Optagelse ved skovrejsning | B87: ='Balancen Scenarie 2030'!B87-'Balancen BAU 2030'!B87 -> 0 | C87: ='Balancen Scenarie 2030'!C87-'Balancen BAU 2030'!C87 -> 0 | D87: ='Balancen Scenarie 2030'!D87-'Balancen BAU 2030'!D87 -> 0 | E87: ='Balancen Scenarie 2030'!E87-'Balancen BAU 2030'!E87 -> 0 | F87: ='Balancen Scenarie 2030'!F87-'Balancen BAU 2030'!F87 -> 0 | G87: ='Balancen Scenarie 2030'!G87-'Balancen BAU 2030'!G87 -> 0 | H87: ='Balancen Scenarie 2030'!H87-'Balancen BAU 2030'!H87 -> 0 | I87: ='Balancen Scenarie 2030'!I87-'Balancen BAU 2030'!I87 -> 0 | J87: ='Balancen Scenarie 2030'!J87-'Balancen BAU 2030'!J87 -> 0 | K87: ='Balancen Scenarie 2030'!K87-'Balancen BAU 2030'!K87 -> 0 | L87: ='Balancen Scenarie 2030'!L87-'Balancen BAU 2030'!L87 -> 0 | M87: ='Balancen Scenarie 2030'!M87-'Balancen BAU 2030'!M87 -> 0 | N87: ='Balancen Scenarie 2030'!N87-'Balancen BAU 2030'!N87 -> 0 | O87: ='Balancen Scenarie 2030'!O87-'Balancen BAU 2030'!O87 -> 0 | P87: ='Balancen Scenarie 2030'!P87-'Balancen BAU 2030'!P87 -> 0 | Q87: ='Balancen Scenarie 2030'!Q87-'Balancen BAU 2030'!Q87 -> 0 | R87: ='Balancen Scenarie 2030'!R87-'Balancen BAU 2030'!R87 -> 0 | S87: ='Balancen Scenarie 2030'!S87-'Balancen BAU 2030'!S87 -> 0 | T87: ='Balancen Scenarie 2030'!T87-'Balancen BAU 2030'!T87 -> 0 | U87: ='Balancen Scenarie 2030'!U87-'Balancen BAU 2030'!U87 -> 0 | V87: ='Balancen Scenarie 2030'!V87-'Balancen BAU 2030'!V87 -> 0 | W87: ='Balancen Scenarie 2030'!W87-'Balancen BAU 2030'!W87 -> 0 | X87: ='Balancen Scenarie 2030'!X87-'Balancen BAU 2030'!X87 -> 0 | Y87: ='Balancen Scenarie 2030'!Y87-'Balancen BAU 2030'!Y87 -> 0 | Z87: ='Balancen Scenarie 2030'!Z87-'Balancen BAU 2030'!Z87 -> 0 | AA87: ='Balancen Scenarie 2030'!AA87-'Balancen BAU 2030'!AA87 -> 0 | AB87: ='Balancen Scenarie 2030'!AB87-'Balancen BAU 2030'!AB87 -> 0 | AC87: ='Balancen Scenarie 2030'!AC87-'Balancen BAU 2030'!AC87 -> 0 | AD87: ='Balancen Scenarie 2030'!AD87-'Balancen BAU 2030'!AD87 -> 0 | AE87: ='Balancen Scenarie 2030'!AE87-'Balancen BAU 2030'!AE87 -> 0 | AF87: ='Balancen Scenarie 2030'!AF87-'Balancen BAU 2030'!AF87 -> 0 | AG87: ='Balancen Scenarie 2030'!AG87-'Balancen BAU 2030'!AG87 -> 0 | AH87: ='Balancen Scenarie 2030'!AH87-'Balancen BAU 2030'!AH87 -> 0 | AI87: ='Balancen Scenarie 2030'!AI87-'Balancen BAU 2030'!AI87 -> 0 | AJ87: ='Balancen Scenarie 2030'!AJ87-'Balancen BAU 2030'!AJ87 -> 0 | AK87: ='Balancen Scenarie 2030'!AK87-'Balancen BAU 2030'!AK87 -> 0 | AL87: ='Balancen Scenarie 2030'!AL87-'Balancen BAU 2030'!AL87 -> 0 | AM87: ='Balancen Scenarie 2030'!AM87-'Balancen BAU 2030'!AM87 -> 0 | AN87: ='Balancen Scenarie 2030'!AN87-'Balancen BAU 2030'!AN87 -> 0 | AO87: ='Balancen Scenarie 2030'!AO87-'Balancen BAU 2030'!AO87 -> 0 | AP87: ='Balancen Scenarie 2030'!AP87-'Balancen BAU 2030'!AP87 -> 0 | AQ87: ='Balancen Scenarie 2030'!AQ87-'Balancen BAU 2030'!AQ87 -> 0 | AR87: ='Balancen Scenarie 2030'!AR87-'Balancen BAU 2030'!AR87 -> 0 | AS87: ='Balancen Scenarie 2030'!AS87-'Balancen BAU 2030'!AS87 -> 0 | AT87: ='Balancen Scenarie 2030'!AT87-'Balancen BAU 2030'!AT87 -> 0 | AU87: ='Balancen Scenarie 2030'!AU87-'Balancen BAU 2030'!AU87 -> 0
A88: Samlet udledning af CO2e i kommunen [ton CO2e] | B88: ='Balancen Scenarie 2030'!B88-'Balancen BAU 2030'!B88 -> 0 | C88: ='Balancen Scenarie 2030'!C88-'Balancen BAU 2030'!C88 -> 0 | D88: ='Balancen Scenarie 2030'!D88-'Balancen BAU 2030'!D88 -> 0 | E88: ='Balancen Scenarie 2030'!E88-'Balancen BAU 2030'!E88 -> 0 | F88: ='Balancen Scenarie 2030'!F88-'Balancen BAU 2030'!F88 -> 0 | G88: ='Balancen Scenarie 2030'!G88-'Balancen BAU 2030'!G88 -> 0 | H88: ='Balancen Scenarie 2030'!H88-'Balancen BAU 2030'!H88 -> 0 | I88: ='Balancen Scenarie 2030'!I88-'Balancen BAU 2030'!I88 -> 0 | J88: ='Balancen Scenarie 2030'!J88-'Balancen BAU 2030'!J88 -> 0 | K88: ='Balancen Scenarie 2030'!K88-'Balancen BAU 2030'!K88 -> 0 | L88: ='Balancen Scenarie 2030'!L88-'Balancen BAU 2030'!L88 -> 0 | M88: ='Balancen Scenarie 2030'!M88-'Balancen BAU 2030'!M88 -> 0 | N88: ='Balancen Scenarie 2030'!N88-'Balancen BAU 2030'!N88 -> 0 | O88: ='Balancen Scenarie 2030'!O88-'Balancen BAU 2030'!O88 -> 0 | P88: ='Balancen Scenarie 2030'!P88-'Balancen BAU 2030'!P88 -> 0 | Q88: ='Balancen Scenarie 2030'!Q88-'Balancen BAU 2030'!Q88 -> 0 | R88: ='Balancen Scenarie 2030'!R88-'Balancen BAU 2030'!R88 -> 0 | S88: ='Balancen Scenarie 2030'!S88-'Balancen BAU 2030'!S88 -> 0 | T88: ='Balancen Scenarie 2030'!T88-'Balancen BAU 2030'!T88 -> 0 | U88: ='Balancen Scenarie 2030'!U88-'Balancen BAU 2030'!U88 -> 0 | V88: ='Balancen Scenarie 2030'!V88-'Balancen BAU 2030'!V88 -> 0 | W88: ='Balancen Scenarie 2030'!W88-'Balancen BAU 2030'!W88 -> 0 | X88: ='Balancen Scenarie 2030'!X88-'Balancen BAU 2030'!X88 -> 0 | Y88: ='Balancen Scenarie 2030'!Y88-'Balancen BAU 2030'!Y88 -> 0 | Z88: ='Balancen Scenarie 2030'!Z88-'Balancen BAU 2030'!Z88 -> 0 | AA88: ='Balancen Scenarie 2030'!AA88-'Balancen BAU 2030'!AA88 -> 0 | AB88: ='Balancen Scenarie 2030'!AB88-'Balancen BAU 2030'!AB88 -> 0 | AC88: ='Balancen Scenarie 2030'!AC88-'Balancen BAU 2030'!AC88 -> 0 | AD88: ='Balancen Scenarie 2030'!AD88-'Balancen BAU 2030'!AD88 -> 0 | AE88: ='Balancen Scenarie 2030'!AE88-'Balancen BAU 2030'!AE88 -> 0 | AF88: ='Balancen Scenarie 2030'!AF88-'Balancen BAU 2030'!AF88 -> 0 | AG88: ='Balancen Scenarie 2030'!AG88-'Balancen BAU 2030'!AG88 -> 0 | AH88: ='Balancen Scenarie 2030'!AH88-'Balancen BAU 2030'!AH88 -> 0 | AI88: ='Balancen Scenarie 2030'!AI88-'Balancen BAU 2030'!AI88 -> 0 | AJ88: ='Balancen Scenarie 2030'!AJ88-'Balancen BAU 2030'!AJ88 -> 0 | AK88: ='Balancen Scenarie 2030'!AK88-'Balancen BAU 2030'!AK88 -> 0 | AL88: ='Balancen Scenarie 2030'!AL88-'Balancen BAU 2030'!AL88 -> 0 | AM88: ='Balancen Scenarie 2030'!AM88-'Balancen BAU 2030'!AM88 -> 0 | AN88: ='Balancen Scenarie 2030'!AN88-'Balancen BAU 2030'!AN88 -> 0 | AO88: ='Balancen Scenarie 2030'!AO88-'Balancen BAU 2030'!AO88 -> 0 | AP88: ='Balancen Scenarie 2030'!AP88-'Balancen BAU 2030'!AP88 -> 0 | AQ88: ='Balancen Scenarie 2030'!AQ88-'Balancen BAU 2030'!AQ88 -> 0 | AR88: ='Balancen Scenarie 2030'!AR88-'Balancen BAU 2030'!AR88 -> 0 | AS88: ='Balancen Scenarie 2030'!AS88-'Balancen BAU 2030'!AS88 -> 26392.95401 | AT88: ='Balancen Scenarie 2030'!AT88-'Balancen BAU 2030'!AT88 -> 0 | AU88: ='Balancen Scenarie 2030'!AU88-'Balancen BAU 2030'!AU88 -> 0

Sheet Balancen Scenarie 2030 (2)
A1: Energiforsyning og -forbrug i kommunen
A2: Scenarie 2030 | B2: I alt | C2: Kul og Koks | D2: Råolie | E2: Orimulsion | F2: Olieprodukter total | G2: Petrokoks | H2: Fuelolie og Spildolie | I2: Gas-/dieselolie | J2: Petroleum | K2: Benzin og LVN | L2: JP1 og JP4 | M2: LPG | N2: Raffinaderi-gas | O2: Ikke-kategoriseret olieprodukter | P2: Naturgas | Q2: Affald ikke-bionedbrydeligt | R2: Biomasse total | S2: Affald bionedbrydeligt | T2: Halm | U2: Træflis | V2: Træpiller | W2: Træ Øvrigt | X2: Ikke-kategoriseret biomasse | Y2: Biogas | Z2: Bionaturgas | AA2: Biobrændsler og e-brændsler total | AB2: Biodiesel | AC2: Bioethanol | AD2: Bioolie | AE2: Brint | AF2: E-brændsler | AG2: Ikke-kategoriseret biobrændsler | AH2: Solenergi | AI2: Omgivelsesvarme + geotermi | AJ2: Vindenergi | AK2: Anden VE | AL2: Samlet elektricitet | AM2: El til varmepumpe | AN2: El til paneler | AO2: El til proces | AP2: El til andet | AQ2: Fjernvarme | AR2: Bygas | AS2: CO2 Scope 1 [ton CO2e] | AT2: CO2 Scope 2 [ton CO2e] | AU2: CO2 Scope 3 (Kun el og fjernvarme) [ton CO2e]
A3: Indgang for brændsler (bio, kul mv.) | B3: =C3+D3+E3+F3+P3+Q3+R3+Y3+AA3+AH3+AI3+AJ3+AK3+AL3+AQ3+AR3+Z3 ->  | C3: =C4+C5+C6 -> 3534.814033 | D3: 0 | E3: 0 | F3: 0 | G3: =G4+G5+G6 -> 0 | H3: 0 | I3: 0 | J3: 0 | K3: 0 | L3: 0 | M3: 0 | N3: 0 | O3: 0 | P3: 17792.37673 | R3: 128802.8996 | S3: 0 | T3: 0 | U3: 0 | V3: 0 | W3: 0 | X3: 128802.8996 | Y3: 20113.3652 | Z3: =Z4+Z5+Z6 -> 30144.81751 | AA3: 0 | AB3: 0 | AC3: 0 | AD3: 0 | AE3: 0 | AF3: 0 | AG3: 0 | AH3: 0 | AI3: 0 | AJ3: 0 | AK3: 0 | AL3: =SUM(AM3:AP3) -> 0 | AM3: =SUM(AN3:AQ3) -> 0 | AN3: 0 | AO3: 0 | AP3: 0 | AQ3: 0 | AR3: 0 | AS3: 0 | AT3: 0
A4: Statistisk difference | B4: =C4+D4+E4+F4+P4+Q4+R4+Y4+AA4+AH4+AI4+AJ4+AK4+AL4+AQ4+AR4+Z4 ->  | C4: =(C5++C6+C8+C23)*-1 -> 0 | D4: =(D5++D6+D8+D23)*-1 -> 0 | E4: 0 | F4: =SUM(G4:O4) -> 0 | P4: =(P5+P6+P8+P23)*-1 -> 0 | Q4: =(Q5+Q6+Q8+Q23)*-1 ->  | R4: =SUM(S4:X4) -> 0 | S4: =(S5+S6+S8+S23)*-1 -> 0 | T4: =(T5+T6+T8+T23)*-1 -> 0 | U4: 0 | V4: 0 | W4: 0 | X4: 0 | Y4: 0 | AA4: =SUM(AB4:AG4) -> 0 | AL4: =SUM(AM4:AP4) -> 0
A5: Egenudvinding | B5: 0 | F5: =SUM(G5:O5) -> 0 | R5: =SUM(S5:X5) -> 0 | AA5: =SUM(AB5:AG5) -> 0 | AL5: 0
A6: Import/eksport | C6: =(C8+C23)*-1 -> 3534.814033 | D6: =(D8+D23)*-1 -> 0 | E6: 0 | F6: 0 | P6: =(P8+P23)*-1 -> 17792.37673 | Q6: =(Q8+Q23)*-1 ->  | R6: 128802.8996 | S6: =(S8+S23)*-1 -> 0 | T6: =(T8+T23)*-1 -> 0 | U6: 0 | V6: 0 | W6: 0 | X6: 128802.8996 | Y6: 20113.3652 | Z6: 30144.81751 | AA6: =SUM(AB6:AG6) -> 0 | AL6: 0
A7: Indgang nettilsluttet VE | B7: 208517.5522 | R7: 0 | AA7: =SUM(AB7:AG7) -> 0 | AH7: =AH8*-1 -> 43643.53117 | AI7: =AI8*-1 -> 34313.82105 | AJ7: 130498.2 | AK7: 62 | AL7: 0
A8: Konvertering til el, varme og olieprodukter | C8: =SUM(C9:C14,C18:C20) -> 0 | D8: 0 | E8: 0 | F8: 208422.534 | G8: 0 | H8: 1500 | I8: 84538.33105 | J8: 0 | K8: 46189.98757 | L8: 45973.23 | M8: 0 | N8: 0 | O8: 30220.98538 | P8: -1445.641317 | R8: -86118.20407 | S8: 0 | T8: 0 | U8: 0 | V8: 0 | W8: 0 | X8: -86118.20407 | Y8: -17563.24118 | Z8: =SUM(Z9:Z14,Z18:Z20) -> 6055.453164 | AA8: 11856.35923 | AB8: 10875.2985 | AC8: 0 | AD8: 0 | AE8: 0 | AF8: 0 | AG8: 981.0607298 | AH8: =SUM(AH9:AH14,AH18:AH20) -> -43643.53117 | AI8: -34313.82105 | AJ8: -130498.2 | AK8: -62 | AL8: 172145.3064 | AM8: 0 | AN8: 0 | AO8: 0 | AP8: 164780.0319 | AQ8: 136083.7217 | AR8: 564.1092916
A9: Statistisk difference | B9: 0 | F9: =SUM(G9:O9) -> 0 | R9: 0 | AA9: =SUM(AB9:AG9) -> 0 | AL9: 0
A10: Netto import/lager | B10: 229907.4442 | F10: 210337.3737 | G10: =(G9+G11+G12+G23+G20)*-1 -> 0 | H10: =(H9+H11+H12+H23+H20)*-1 -> 1500 | I10: 84538.33105 | J10: 0 | K10: 46189.98757 | L10: 45973.23 | M10: 0 | N10: 0 | O10: 32135.82509 | R10: 0 | AA10: =SUM(AB10:AG10) -> 11640.68676 | AB10: =-(AB9+AB11+AB12+AB23)-AB20 -> 10875.2985 | AD10: =-(AD9+AD11+AD12+AD23)-AD20 -> 0 | AE10: 0 | AF10: 0 | AG10: =((AG9+AG11+AG12+AG23)+AG20)*-1 -> 765.3882583 | AL10: =(AL9+AL11+AL12+AL13+AL14+AL18+AL19+AL20+AL21+AL23)*-1 -> 7365.274483 | AQ10: =(AQ11+AQ12+AQ13+AQ20+AQ21+AQ23)*-1 -> -1.455191523e-11 | AR10: =(AR20+AR23)*-1 -> 564.1092916 | AT10: =AL10*AL70 -> 0
A11: Kombineret el og varmeproduktion | C11: =($AL$11+$AQ$11)/Nøgletal!$H$472*Nøgletal!$H395*-1 -> 0 | F11: -1910.177928 | O11: =($AL$11+$AQ$11)/Nøgletal!$H$472*Nøgletal!$H396*-1 -> -1910.177928 | P11: =($AL$11+$AQ$11)/Nøgletal!$H$472*Nøgletal!$H394*-1 -> -903.7091151 | Q11: =($AL$11+$AQ$11)/Nøgletal!$H$472*Nøgletal!#REF!*-1 ->  | R11: -59807.1043 | X11: =($AL$11+$AQ$11)/Nøgletal!$H$472*Nøgletal!$H399*-1 -> -59807.1043 | Y11: =($AL$11+$AQ$11)/Nøgletal!$H$472*Nøgletal!$H400*-1 -> -7519.704964 | Z11: =($AL$11+$AQ$11)/Nøgletal!$H$472*Nøgletal!$H398*-1 -> -2292.405587 | AA11: =SUM(AB11:AG11) -> 0 | AG11: =($AL$11+$AQ$11)/Nøgletal!$H$472*Nøgletal!$H397*-1 -> 0 | AL11: 8691.972227 | AP11: =AQ11*Nøgletal!H469 -> 8691.972227 | AQ11: =(AQ21+AQ23+AQ20)*Nøgletal!H384*-1 -> 57946.48151 | AS11: =(C11*$C$68+D11*$D$68+E11*$E$68+G11*$G$68+H11*$H$68+I11*$I$68+J11*$J$68+K11*$K$68+L11*$L$68+M11*$M$68+N11*$N$68+O11*$O$68+P11*$P$68+Q11*$Q$68+AR11*$AR$68)*-1*(1-Nøgletal!H442)+Nøgletal!H442*($S$71*S11+$T$71*T11+$U$71*U11+$V$71*V11+$W$71*W11+$X$71*X11+Y11*$Y$71+Z11*$Z$71) -> 
A12: Fjernvarmekedler | C12: =$AQ$12/Nøgletal!$H$473*Nøgletal!H403*-1 -> 0 | F12: -4.661782384 | O12: =$AQ$12/Nøgletal!$H$473*Nøgletal!H404*-1 -> -4.661782384 | P12: =$AQ$12/Nøgletal!$H$473*Nøgletal!H402*-1 -> -541.9322021 | Q12: =$AQ$12/Nøgletal!$H$473*Nøgletal!#REF!*-1 ->  | R12: -26311.09977 | X12: =$AQ$12/Nøgletal!$H$473*Nøgletal!H407*-1 -> -26311.09977 | Y12: =$AQ$12/Nøgletal!$H$473*Nøgletal!H408*-1 -> -8.158119171 | Z12: =$AQ$12/Nøgletal!$H$473*Nøgletal!H406*-1 -> -1376.391249 | AA12: =SUM(AB12:AG12) -> -85.0775285 | AG12: =$AQ$12/Nøgletal!$H$473*Nøgletal!H405*-1 -> -85.0775285 | AL12: 0 | AQ12: =(AQ21+AQ23+AQ20)*Nøgletal!H386*-1 -> 26061.135 | AS12: =(C12*$C$68+D12*$D$68+E12*$E$68+G12*$G$68+H12*$H$68+I12*$I$68+J12*$J$68+K12*$K$68+L12*$L$68+M12*$M$68+N12*$N$68+O12*$O$68+P12*$P$68+Q12*$Q$68+AR12*$AR$68)*-1*(1-Nøgletal!H443)+Nøgletal!H443*($S$71*S12+$T$71*T12+$U$71*U12+$V$71*V12+$W$71*W12+$X$71*X12+Y12*$Y$71+Z12*$Z$71) ->  | AT12: =AL12*AL$69*-1 -> 
A13: Anden varmeproduktion | B13: 7.275957614e-12 | F13: 0 | R13: 0 | AA13: =SUM(AB13:AG13) -> 0 | AH13: =$AQ$13*Nøgletal!$H$410*-1 -> -3934.531168 | AI13: =$AQ$13*Nøgletal!$H$411*-1*(1-1/Nøgletal!H468) -> -34313.82105 | AK13: =AQ13*Nøgletal!H413*-1 -> 0 | AL13: -13725.52842 | AP13: =$AQ$13*(Nøgletal!$H$411/Nøgletal!H468+Nøgletal!H412)*-1 -> -13725.52842 | AQ13: =(AQ21+AQ23+AQ20)*-1*Nøgletal!H388 -> 51973.88064 | AS13: =(C13*$C$68+D13*$D$68+E13*$E$68+G13*$G$68+H13*$H$68+I13*$I$68+J13*$J$68+K13*$K$68+L13*$L$68+M13*$M$68+N13*$N$68+O13*$O$68+P13*$P$68+Q13*$Q$68+AR13*$AR$68)*-1 -> 0 | AT13: =IF(AL13<0,AL13*AL$69)*-1 -> 
A14: Vindmøller | B14: 0 | C14: =SUM(C15:C17) -> 0 | D14: 0 | E14: 0 | F14: 0 | G14: 0 | H14: 0 | I14: 0 | J14: 0 | K14: 0 | L14: 0 | M14: 0 | N14: 0 | O14: 0 | P14: 0 | Q14: 0 | R14: 0 | S14: 0 | T14: 0 | U14: 0 | V14: 0 | W14: 0 | X14: 0 | Y14: 0 | Z14: =SUM(Z15:Z17) -> 0 | AA14: 0 | AB14: 0 | AC14: 0 | AD14: 0 | AE14: 0 | AF14: 0 | AG14: 0 | AH14: 0 | AI14: 0 | AJ14: -130498.2 | AK14: 0 | AL14: 130498.2 | AM14: 0 | AN14: 0 | AO14: 0 | AP14: 130498.2 | AQ14: 0 | AR14: 0 | AS14: 0 | AT14: =SUM(AT15:AT17) -> 0
A15: Kystvindmøller | B15: 0 | F15: 0 | R15: 0 | AA15: =SUM(AB15:AG15) -> 0 | AL15: 0 | AS15: 0
A16: Landvindmøller | B16: 0 | F16: 0 | R16: 0 | AA16: 0 | AL16: 0 | AS16: 0
A17: Ikke-kategoriseret vindmøller | B17: 0 | F17: 0 | R17: 0 | AA17: 0 | AJ17: =-Nøgletal!H434 -> -130498.2 | AL17: 130498.2 | AP17: =Nøgletal!H434 -> 130498.2 | AS17: 0
A18: Solceller | B18: 0 | F18: 0 | R18: 0 | AA18: 0 | AH18: =-Nøgletal!H435 -> -39709 | AL18: 39709 | AP18: =Nøgletal!H435 -> 39709 | AS18: 0
A19: Vandkraft | B19: 0 | F19: 0 | R19: 0 | AA19: 0 | AK19: =AL19*-1 -> -62 | AL19: 62 | AP19: =Nøgletal!H436 -> 62 | AS19: 0
A20: Raffinaderi (herunder PtX, bygas og biogasopgradering) | B20: -363.7654541 | F20: 0 | P20: =Nøgletal!H418*Nøgletal!H422/Nøgletal!H476*-1 -> 0 | R20: 0 | X20: =Nøgletal!H418*Nøgletal!H425/Nøgletal!H474*-1 -> 0 | Y20: =Nøgletal!H418*Nøgletal!H426/Nøgletal!H476*-1 -> -10035.3781 | Z20: =Nøgletal!H418*Nøgletal!H421 -> 9724.25 | AA20: 300.75 | AG20: =Nøgletal!H418*Nøgletal!H420 -> 300.75 | AL20: -455.6118926 | AP20: =Nøgletal!H418*Nøgletal!H427/Nøgletal!H474*-1 -> -455.6118926 | AQ20: =Nøgletal!H418*Nøgletal!H427*(1-Nøgletal!H474) -> 102.2245357 | AR20: =Nøgletal!H418*Nøgletal!H422 -> 0 | AT20: =AL20*AL$69*-1 -> 
A21: Tab ved transport af el, fjernvarme, mv. | B21: -37699.25971 | F21: 0 | R21: 0 | AA21: 0 | AL21: -10482.32307 | AP21: =AL23*Nøgletal!H56 -> -10482.32307 | AQ21: =AQ23*Nøgletal!H70 -> -27216.93664 | AT21: =(AL21*AL$69+AQ21*AQ$69)*-1 -> 
A22: Indgang ikke-nettilsluttet VE | B22: 21455.48132 | F22: 0 | R22: 0 | AA22: 0 | AH22: =AH23*-1 -> 499.5764049 | AI22: =AI23*-1 -> 20955.90492 | AJ22: 0 | AK22: 0 | AL22: 0
A23: Afgang fra energisystemet | B23: -620755.9589 | C23: =C24+C25+C46+C50+C51+C58+C59 -> -3534.814033 | D23: =D24+D25+D46+D50+D51+D58+D59 -> 0 | E23: 0 | F23: -208422.534 | G23: 0 | H23: -1500 | I23: -84538.33105 | J23: 0 | K23: -46189.98757 | L23: -45973.23 | M23: 0 | N23: 0 | O23: -30220.98538 | P23: -16346.73541 | Q23: -3303.735743 | R23: -42684.69551 | S23: 0 | T23: 0 | U23: 0 | V23: 0 | W23: 0 | X23: -42684.69551 | Y23: -2550.124014 | Z23: -36200.27067 | AA23: -15163.69054 | AB23: -10875.2985 | AC23: -3307.331306 | AD23: 0 | AE23: 0 | AF23: 0 | AG23: -981.0607298 | AH23: -499.5764049 | AI23: -20955.90492 | AJ23: 0 | AK23: 0 | AL23: -161662.9833 | AM23: -10477.95246 | AN23: 0 | AO23: -10255.71638 | AP23: -140929.3145 | AQ23: -108866.7851 | AR23: -564.1092916 | AS23: 17070597.08
A24: Netto eksport/lager | B24: 0 | F24: 0 | R24: 0 | AA24: =SUM(AB24:AG24) -> 0 | AL24: =SUM(AM24:AP24) -> 0 | AS24: =(C24*$C$68+D24*$D$68+E24*$E$68+G24*$G$68+H24*$H$68+I24*$I$68+J24*$J$68+K24*$K$68+L24*$L$68+M24*$M$68+N24*$N$68+O24*$O$68+P24*$P$68+Q24*$Q$68)*-1 -> 0
A25: Transport | B25: -204539.8948 | C25: =C26+C33+C41+C42 -> 0 | D25: 0 | E25: 0 | F25: -178201.5486 | G25: 0 | H25: -1500 | I25: -84538.33105 | J25: 0 | K25: -46189.98757 | L25: -45973.23 | M25: 0 | N25: 0 | O25: 0 | P25: -1600 | Q25: 0 | R25: 0 | S25: 0 | T25: 0 | U25: 0 | V25: 0 | W25: 0 | X25: 0 | Y25: 0 | Z25: =Z26+Z33+Z41+Z42 -> -300 | AA25: -14182.62981 | AB25: -10875.2985 | AC25: -3307.331306 | AD25: 0 | AE25: 0 | AF25: 0 | AG25: 0 | AH25: 0 | AI25: 0 | AJ25: 0 | AK25: 0 | AL25: -10255.71638 | AM25: 0 | AN25: 0 | AO25: -10255.71638 | AP25: 0 | AQ25: 0 | AR25: 0 | AS25: 13336852.61
A26: Vejtransport | B26: -146366.6648 | C26: =SUM(C27:C32) -> 0 | D26: 0 | E26: 0 | F26: -124828.3186 | G26: 0 | H26: 0 | I26: -78638.33105 | J26: 0 | K26: -46189.98757 | L26: 0 | M26: 0 | N26: 0 | O26: 0 | P26: -100 | Q26: 0 | R26: 0 | S26: 0 | T26: 0 | U26: 0 | V26: 0 | W26: 0 | X26: 0 | Y26: 0 | Z26: =SUM(Z27:Z32) -> -300 | AA26: -14082.62981 | AB26: -10775.2985 | AC26: -3307.331306 | AD26: 0 | AE26: 0 | AF26: 0 | AG26: 0 | AH26: 0 | AI26: 0 | AJ26: 0 | AK26: 0 | AL26: -7055.716385 | AM26: 0 | AN26: 0 | AO26: -7055.716385 | AP26: 0 | AQ26: 0 | AR26: 0 | AS26: =SUM(AS27:AS32) -> 9304166.733
A27: Personbil | B27: -89220.02577 | F27: =SUM(G27:O27) -> -76384.80303 | I27: =Nøgletal!H307*-1 -> -31615.12288 | K27: =Nøgletal!H302*-1 -> -44769.68015 | P27: =Nøgletal!H308*-1 -> 0 | R27: =SUM(S27:X27) -> 0 | Z27: =Nøgletal!H305*-1 -> 0 | AA27: =SUM(AB27:AG27) -> -7514.31906 | AB27: =Nøgletal!H303*-1 -> -4306.987754 | AC27: =Nøgletal!H304*-1 -> -3207.331306 | AL27: -5320.903678 | AO27: =Nøgletal!H306*-1 -> -5320.903678 | AS27: =(C27*$C$68+D27*$D$68+E27*$E$68+G27*$G$68+H27*$H$68+I27*$I$68+J27*$J$68+K27*$K$68+L27*$L$68+M27*$M$68+N27*$N$68+O27*$O$68+P27*$P$68+Q27*$Q$68+AR27*$AR$68)*-1+((I27+AB27)*Andet!D30+(K27+AC27)*Andet!D31)*-1 -> 5655068.13 | AT27: =(AL27*AL$69+AQ27*AQ$69)*-1 ->  | AU27: =AQ27*$AQ$21*$AQ$69/$AQ$23*-1+AL27/$AL$23*$AL$21*$AL$69*-1+$AT$20*(Z27+AA27+AR27)/($Z$23+$AA$23+$AR$23) -> 
A28: Lastbil | B28: -22995.26479 | F28: -20211.08475 | I28: =Nøgletal!H313*-1 -> -20211.08475 | P28: =Nøgletal!H314*-1 -> 0 | R28: 0 | Z28: =Nøgletal!H312*-1 -> 0 | AA28: -2784.180042 | AB28: =Nøgletal!H311*-1 -> -2784.180042 | AL28: 0 | AO28: =Nøgletal!H315 -> 0 | AS28: =(C28*$C$68+D28*$D$68+E28*$E$68+G28*$G$68+H28*$H$68+I28*$I$68+J28*$J$68+K28*$K$68+L28*$L$68+M28*$M$68+N28*$N$68+O28*$O$68+P28*$P$68+Q28*$Q$68+AR28*$AR$68)*-1+((I28+AB28)*Andet!D33)*-1 -> 1530832.586
A29: Varebil | B29: -26651.37425 | F29: -22432.43083 | I29: =Nøgletal!H322*-1 -> -21712.12342 | K29: =Nøgletal!H318*-1 -> -720.3074121 | P29: =Nøgletal!H323*-1 -> 0 | R29: 0 | Z29: =Nøgletal!H321*-1 -> 0 | AA29: -2984.130707 | AB29: =Nøgletal!H319*-1 -> -2984.130707 | AC29: =Nøgletal!H320 -> 0 | AL29: -1234.812706 | AO29: =Nøgletal!H324*-1 -> -1234.812706 | AS29: =(C29*$C$68+D29*$D$68+E29*$E$68+G29*$G$68+H29*$H$68+I29*$I$68+J29*$J$68+K29*$K$68+L29*$L$68+M29*$M$68+N29*$N$68+O29*$O$68+P29*$P$68+Q29*$Q$68+AR29*$AR$68)*-1+((I29+AB29)*Andet!D34+(K29+AC29)*Andet!D35)*-1 -> 1676715.933
A30: Knallert og motorcykel | B30: -800 | F30: -700 | K30: =Nøgletal!H327*-1 -> -700 | R30: 0 | AA30: -100 | AC30: =Nøgletal!H328*-1 -> -100 | AL30: 0 | AS30: =(C30*$C$68+D30*$D$68+E30*$E$68+G30*$G$68+H30*$H$68+I30*$I$68+J30*$J$68+K30*$K$68+L30*$L$68+M30*$M$68+N30*$N$68+O30*$O$68+P30*$P$68+Q30*$Q$68+AR30*$AR$68)*-1+((K30+AC30)*Andet!D37)*-1 -> 52559.60408
A31: Bus | B31: -6700 | F31: -5100 | I31: =Nøgletal!H333*-1 -> -5100 | P31: =Nøgletal!H334*-1 -> -100 | R31: 0 | Z31: =Nøgletal!H332*-1 -> -300 | AA31: -700 | AB31: =Nøgletal!H331*-1 -> -700 | AE31: =Nøgletal!H335*-1 -> 0 | AL31: -500 | AO31: =Nøgletal!H336*-1 -> -500 | AS31: =(C31*$C$68+D31*$D$68+E31*$E$68+G31*$G$68+H31*$H$68+I31*$I$68+J31*$J$68+K31*$K$68+L31*$L$68+M31*$M$68+N31*$N$68+O31*$O$68+P31*$P$68+Q31*$Q$68+AR31*$AR$68)*-1+((I31+P31+Z31+AB31)*Andet!D38)*-1 -> 388990.4801
A32: Ikke-kategoriseret | B32: 0 | F32: 0 | R32: 0 | AA32: 0 | AL32: 0 | AS32: =(C32*$C$68+D32*$D$68+E32*$E$68+G32*$G$68+H32*$H$68+I32*$I$68+J32*$J$68+K32*$K$68+L32*$L$68+M32*$M$68+N32*$N$68+O32*$O$68+P32*$P$68+Q32*$Q$68+AR32*$AR$68)*-1 -> 0
A33: Jernbanetransport | B33: -4100 | C33: =SUM(C34:C40) -> 0 | D33: 0 | E33: 0 | F33: -800 | G33: 0 | H33: 0 | I33: -800 | J33: 0 | K33: 0 | L33: 0 | M33: 0 | N33: 0 | O33: 0 | P33: 0 | Q33: 0 | R33: 0 | S33: 0 | T33: 0 | U33: 0 | V33: 0 | W33: 0 | X33: 0 | Y33: 0 | Z33: =SUM(Z34:Z40) -> 0 | AA33: -100 | AB33: -100 | AC33: 0 | AD33: 0 | AE33: 0 | AF33: 0 | AG33: 0 | AH33: 0 | AI33: 0 | AJ33: 0 | AK33: 0 | AL33: -3200 | AM33: 0 | AN33: 0 | AO33: -3200 | AP33: 0 | AQ33: 0 | AR33: 0 | AS33: =SUM(AS34:AS40) -> 59280
A34: Regionaltog | B34: 0 | F34: 0 | I34: =Nøgletal!H339*-1 -> 0 | R34: 0 | AA34: =SUM(AB34:AG34) -> 0 | AG34: =Nøgletal!H341*-1 -> 0 | AL34: 0 | AO34: =Nøgletal!H340*-1 -> 0 | AS34: =(C34*$C$68+D34*$D$68+E34*$E$68+G34*$G$68+H34*$H$68+I34*$I$68+J34*$J$68+K34*$K$68+L34*$L$68+M34*$M$68+N34*$N$68+O34*$O$68+P34*$P$68+Q34*$Q$68+AR34*$AR$68)*-1 -> 0 | AT34: =(AL34*AL$69+AQ34*AQ$69)*-1 ->  | AU34: =AQ34*$AQ$21*$AQ$69/$AQ$23*-1+AL34/$AL$23*$AL$21*$AL$69*-1+$AT$20*(Z34+AA34+AR34)/($Z$23+$AA$23+$AR$23) -> 
A35: Intercitytog | B35: 0 | F35: 0 | I35: =Nøgletal!H343*-1 -> 0 | R35: 0 | AA35: 0 | AG35: =Nøgletal!H345*-1 -> 0 | AL35: 0 | AO35: =Nøgletal!H344*-1 -> 0 | AS35: 0
A36: Lyntog | B36: 0 | F36: 0 | I36: =Nøgletal!H347*-1 -> 0 | R36: 0 | AA36: 0 | AG36: =Nøgletal!H349*-1 -> 0 | AL36: 0 | AO36: =Nøgletal!H348*-1 -> 0 | AS36: 0
A37: Lokalbane | B37: 0 | F37: 0 | I37: =Nøgletal!H351*-1 -> 0 | R37: 0 | AA37: 0 | AG37: =Nøgletal!H353*-1 -> 0 | AL37: 0 | AO37: =Nøgletal!H352*-1 -> 0 | AS37: 0
A38: S-tog | B38: 0 | F38: 0 | R38: 0 | AA38: 0 | AL38: 0 | AO38: =Nøgletal!H355*-1 -> 0 | AS38: 0
A39: Metro | B39: 0 | F39: 0 | R39: 0 | AA39: 0 | AL39: 0 | AO39: =Nøgletal!H357*-1 -> 0 | AS39: 0
A40: Ikke-kategoriseret | B40: -4100 | F40: -800 | I40: =Nøgletal!H361*-1 -> -800 | K40: =Nøgletal!H359*-1 -> 0 | R40: 0 | AA40: -100 | AB40: =Nøgletal!H362*-1 -> -100 | AL40: -3200 | AO40: =Nøgletal!H360*-1 -> -3200 | AS40: 59280
A41: Søtransport, indenrigs | B41: -8100 | F41: -6600 | H41: =Nøgletal!H370*-1 -> -1500 | I41: =Nøgletal!H371*-1 -> -5100 | P41: =Nøgletal!H372*-1 -> -1500 | R41: 0 | AA41: 0 | AL41: 0 | AO41: =Nøgletal!H373*-1 -> 0 | AS41: =(C41*$C$68+D41*$D$68+E41*$E$68+G41*$G$68+H41*$H$68+I41*$I$68+J41*$J$68+K41*$K$68+L41*$L$68+M41*$M$68+N41*$N$68+O41*$O$68+P41*$P$68+Q41*$Q$68+AR41*$AR$68)*-1+(I41*Andet!D39)*-1 -> 583128.5337
A42: Lufttransport | B42: -45973.23 | C42: =SUM(C43:C45) -> 0 | D42: 0 | E42: 0 | F42: -45973.23 | G42: 0 | H42: 0 | I42: 0 | J42: 0 | K42: 0 | L42: -45973.23 | M42: 0 | N42: 0 | O42: 0 | P42: 0 | Q42: 0 | R42: 0 | S42: 0 | T42: 0 | U42: 0 | V42: 0 | W42: 0 | X42: 0 | Y42: 0 | Z42: =SUM(Z43:Z45) -> 0 | AA42: 0 | AB42: 0 | AC42: 0 | AD42: 0 | AE42: 0 | AF42: 0 | AG42: 0 | AH42: 0 | AI42: 0 | AJ42: 0 | AK42: 0 | AL42: =SUM(AM42:AP42) -> 0 | AM42: 0 | AN42: 0 | AO42: 0 | AP42: 0 | AQ42: 0 | AR42: 0 | AS42: =SUM(AS43:AS45) -> 3390277.339
A43: Indenrigs | B43: -2200 | F43: -2200 | K43: =Nøgletal!H364*-1 -> 0 | L43: =Nøgletal!H365*-1 -> -2200 | R43: 0 | AA43: =SUM(AB43:AG43) -> 0 | AL43: 0 | AO43: =Nøgletal!H366*-1 -> 0 | AS43: =(C43*$C$68+D43*$D$68+E43*$E$68+G43*$G$68+H43*$H$68+I43*$I$68+J43*$J$68+K43*$K$68+L43*$L$68+M43*$M$68+N43*$N$68+O43*$O$68+P43*$P$68+Q43*$Q$68+AR43*$AR$68)*-1+(L43*Andet!D40)*-1 -> 163237.2913 | AT43: =(AL43*AL$69+AQ43*AQ$69)*-1 ->  | AU43: =AQ43*$AQ$21*$AQ$69/$AQ$23*-1+AL43/$AL$23*$AL$21*$AL$69*-1+$AT$20*(Z43+AA43+AR43)/($Z$23+$AA$23+$AR$23) -> 
A44: Udenrigs | B44: -43773.23 | F44: -43773.23 | L44: =Nøgletal!H368*-1 -> -43773.23 | R44: 0 | AA44: =SUM(AB44:AG44) -> 0 | AL44: 0 | AS44: =(C44*$C$68+D44*$D$68+E44*$E$68+G44*$G$68+H44*$H$68+I44*$I$68+J44*$J$68+K44*$K$68+L44*$L$68+M44*$M$68+N44*$N$68+O44*$O$68+P44*$P$68+Q44*$Q$68+AR44*$AR$68)*-1+(L44*Andet!D41)*-1 -> 3227040.048 | AT44: =(AL44*AL$69+AQ44*AQ$69)*-1 ->  | AU44: =AQ44*$AQ$21*$AQ$69/$AQ$23*-1+AL44/$AL$23*$AL$21*$AL$69*-1+$AT$20*(Z44+AA44+AR44)/($Z$23+$AA$23+$AR$23) -> 
A45: Ikke-kategoriseret | B45: 0 | F45: 0 | R45: 0 | AA45: =SUM(AB45:AG45) -> 0 | AL45: 0 | AS45: =(C45*$C$68+D45*$D$68+E45*$E$68+G45*$G$68+H45*$H$68+I45*$I$68+J45*$J$68+K45*$K$68+L45*$L$68+M45*$M$68+N45*$N$68+O45*$O$68+P45*$P$68+Q45*$Q$68+AR45*$AR$68)*-1 -> 0 | AT45: =(AL45*AL$69+AQ45*AQ$69)*-1 ->  | AU45: =AQ45*$AQ$21*$AQ$69/$AQ$23*-1+AL45/$AL$23*$AL$21*$AL$69*-1+$AT$20*(Z45+AA45+AR45)/($Z$23+$AA$23+$AR$23) -> 
A46: Husholdninger | B46: -186271.2161 | C46: =SUM(C47:C49) -> 0 | D46: 0 | E46: 0 | F46: =SUM(F47:F49) -> -2156.253032 | G46: 0 | H46: 0 | I46: 0 | J46: 0 | K46: 0 | L46: 0 | M46: 0 | N46: 0 | O46: -2156.253032 | P46: -4994.806312 | Q46: 0 | R46: -31316.33526 | S46: 0 | T46: 0 | U46: 0 | V46: 0 | W46: 0 | X46: -31316.33526 | Y46: 0 | Z46: =SUM(Z47:Z49) -> -11018.4744 | AA46: -45.59150047 | AB46: 0 | AC46: 0 | AD46: 0 | AE46: 0 | AF46: 0 | AG46: -45.59150047 | AH46: -239.3722905 | AI46: -12221.35399 | AJ46: 0 | AK46: 0 | AL46: -51469.494 | AM46: -6110.676997 | AN46: 0 | AO46: 0 | AP46: -45358.817 | AQ46: -72466.01513 | AR46: -343.5201798 | AS46: 455983.606
A47: Fritliggende huse | B47: 0 | F47: 0 | R47: 0 | AA47: =SUM(AB47:AG47) -> 0 | AL47: 0 | AS47: =(C47*$C$68+D47*$D$68+E47*$E$68+G47*$G$68+H47*$H$68+I47*$I$68+J47*$J$68+K47*$K$68+L47*$L$68+M47*$M$68+N47*$N$68+O47*$O$68+P47*$P$68+Q47*$Q$68+AR47*$AR$68)*-1 -> 0 | AT47: =(AL47*AL$69+AQ47*AQ$69)*-1 ->  | AU47: =AQ47*$AQ$21*$AQ$69/$AQ$23*-1+AL47/$AL$23*$AL$21*$AL$69*-1+$AT$20*(Z47+AA47+AR47)/($Z$23+$AA$23+$AR$23) -> 
A48: Etageejendomme | B48: 0 | F48: 0 | R48: 0 | AA48: =SUM(AB48:AG48) -> 0 | AL48: 0 | AS48: =(C48*$C$68+D48*$D$68+E48*$E$68+G48*$G$68+H48*$H$68+I48*$I$68+J48*$J$68+K48*$K$68+L48*$L$68+M48*$M$68+N48*$N$68+O48*$O$68+P48*$P$68+Q48*$Q$68+AR48*$AR$68)*-1 -> 0 | AT48: =(AL48*AL$69+AQ48*AQ$69)*-1 ->  | AU48: =AQ48*$AQ$21*$AQ$69/$AQ$23*-1+AL48/$AL$23*$AL$21*$AL$69*-1+$AT$20*(Z48+AA48+AR48)/($Z$23+$AA$23+$AR$23) -> 
A49: Ikke-kategoriseret | B49: -186271.2161 | C49: =Nøgletal!$H$75*Nøgletal!$H85*-1 -> 0 | F49: =SUM(G49:O49) -> -2156.253032 | O49: =Nøgletal!$H$75*Nøgletal!$H86*-1 -> -2156.253032 | P49: =Nøgletal!$H$75*Nøgletal!$H84*-1 -> -4994.806312 | R49: -31316.33526 | X49: =Nøgletal!$H$75*Nøgletal!$H89*-1 -> -31316.33526 | Y49: =Nøgletal!$H$75*Nøgletal!$H90*-1 -> 0 | Z49: =Nøgletal!$H$75*Nøgletal!$H88*-1 -> -11018.4744 | AA49: =SUM(AB49:AG49) -> -45.59150047 | AG49: =Nøgletal!$H$75*Nøgletal!$H87*-1 -> -45.59150047 | AH49: =Nøgletal!$H$75*Nøgletal!$H92*-1 -> -239.3722905 | AI49: =Nøgletal!$H$75*Nøgletal!$H93*-1*(Nøgletal!$H$467-1)/Nøgletal!$H$467 -> -12221.35399 | AL49: -51469.494 | AM49: =Nøgletal!H75*Nøgletal!H93/Nøgletal!H467*-1 -> -6110.676997 | AN49: =Nøgletal!H75*Nøgletal!H94*-1 -> 0 | AP49: =Nøgletal!H47*-1 -> -45358.817 | AQ49: =-Nøgletal!H61 -> -72466.01513 | AR49: =Nøgletal!H75*Nøgletal!H91*-1 -> -343.5201798 | AS49: =(C49*$C$68+D49*$D$68+E49*$E$68+G49*$G$68+H49*$H$68+I49*$I$68+J49*$J$68+K49*$K$68+L49*$L$68+M49*$M$68+N49*$N$68+O49*$O$68+P49*$P$68+Q49*$Q$68+AR49*$AR$68)*-1 -> 455983.606 | AT49: =(AL49*AL$69+AQ49*AQ$69)*-1 ->  | AU49: =AQ49*$AQ$21*$AQ$69/$AQ$23*-1+AL49/$AL$23*$AL$21*$AL$69*-1+$AT$20*(Z49+AA49+AR49)/($Z$23+$AA$23+$AR$23) -> 
A50: Offentlig service | B50: -24250.42773 | C50: =Nøgletal!$H$76*Nøgletal!$H97*-1 -> 0 | F50: -290.9880076 | O50: =Nøgletal!$H$76*Nøgletal!$H98*-1 -> -290.9880076 | P50: =Nøgletal!$H$76*Nøgletal!$H96*-1 -> -321.3224416 | R50: -2119.660304 | X50: =Nøgletal!$H$76*Nøgletal!$H101*-1 -> -2119.660304 | Y50: =Nøgletal!$H$76*Nøgletal!$H102*-1 -> 0 | Z50: =Nøgletal!H76*Nøgletal!H100*-1 -> -937.2507078 | AA50: =SUM(AB50:AG50) -> 0 | AG50: =Nøgletal!$H$76*Nøgletal!$H99*-1 -> 0 | AH50: =Nøgletal!$H$76*Nøgletal!$H104*-1 -> -161.4366484 | AI50: =Nøgletal!$H$76*Nøgletal!$H105*-1*(Nøgletal!$H$467-1)/Nøgletal!$H$467 -> -1823.709543 | AL50: -8797.69247 | AM50: =Nøgletal!H76*Nøgletal!H105/Nøgletal!H467*-1 -> -911.8547717 | AO50: =Nøgletal!H76*Nøgletal!H106*-1 -> 0 | AP50: =Nøgletal!H48*-1 -> -7885.837699 | AQ50: =-Nøgletal!H62 -> -9790.124616 | AR50: =Nøgletal!H76*Nøgletal!H103*-1 -> -8.242991416 | AS50: =(C50*$C$68+D50*$D$68+E50*$E$68+G50*$G$68+H50*$H$68+I50*$I$68+J50*$J$68+K50*$K$68+L50*$L$68+M50*$M$68+N50*$N$68+O50*$O$68+P50*$P$68+Q50*$Q$68+AR50*$AR$68)*-1 -> 39855.39785 | AT50: =(AL50*AL$69+AQ50*AQ$69)*-1 ->  | AU50: =AQ50*$AQ$21*$AQ$69/$AQ$23*-1+AL50/$AL$23*$AL$21*$AL$69*-1+$AT$20*(Z50+AA50+AR50)/($Z$23+$AA$23+$AR$23) -> 
A51: Erhverv ekskl. fremstillingsvirksomhed | B51: -118770.5033 | C51: =SUM(C52:C57) -> -184.1769171 | D51: =SUM(D52:D57) -> 0 | E51: 0 | F51: -19481.29793 | G51: 0 | H51: 0 | I51: 0 | J51: 0 | K51: 0 | L51: 0 | M51: 0 | N51: 0 | O51: -19481.29793 | P51: -1515.760778 | Q51: -385.6408228 | R51: -2620.077115 | S51: 0 | T51: 0 | U51: 0 | V51: 0 | W51: 0 | X51: -2620.077115 | Y51: -1116.481661 | Z51: -3854.132958 | AA51: -929.0423074 | AB51: 0 | AC51: 0 | AD51: 0 | AE51: 0 | AF51: 0 | AG51: -929.0423074 | AH51: -83.15922702 | AI51: -6127.268217 | AJ51: 0 | AK51: 0 | AL51: -59495.13028 | AM51: -3063.634108 | AN51: 0 | AO51: 0 | AP51: -56431.49618 | AQ51: -22971.33393 | AR51: -7.001155765 | AS51: 1581845.346
A52: Privat service | B52: -58568.19016 | C52: =-Nøgletal!$H$77*Nøgletal!$H109 -> 0 | F52: -281.914446 | O52: =-Nøgletal!$H$77*Nøgletal!$H110 -> -281.914446 | P52: =-Nøgletal!$H$77*Nøgletal!$H108 -> -617.5709233 | Q52: =-Nøgletal!$H$77*Nøgletal!$H111 -> -385.6408228 | R52: -461.3982549 | X52: =-Nøgletal!$H$77*Nøgletal!$H114 -> -461.3982549 | Y52: =-Nøgletal!$H$77*Nøgletal!$H115 -> -552.7430698 | Z52: =-Nøgletal!$H$77*Nøgletal!$H113 -> -1568.5309 | AA52: =SUM(AB52:AG52) -> -7.72064672 | AG52: =-Nøgletal!$H$77*Nøgletal!$H112 -> -7.72064672 | AH52: =-Nøgletal!$H$77*Nøgletal!$H117 -> -54.04452704 | AI52: =-Nøgletal!$H$77*Nøgletal!$H118*(Nøgletal!$H$467-1)/Nøgletal!$H$467 -> -3294.221486 | AL52: -37710.06686 | AM52: =Nøgletal!H77*Nøgletal!H118/Nøgletal!H467*-1 -> -1647.110743 | AO52: =Nøgletal!H77*Nøgletal!H119*-1 -> 0 | AP52: =Nøgletal!H49*-1 -> -36062.95611 | AQ52: =-Nøgletal!H63 -> -13627.33707 | AR52: =Nøgletal!H77*Nøgletal!H116*-1 -> -7.001155765 | AS52: =(C52*$C$68+D52*$D$68+E52*$E$68+G52*$G$68+H52*$H$68+I52*$I$68+J52*$J$68+K52*$K$68+L52*$L$68+M52*$M$68+N52*$N$68+O52*$O$68+P52*$P$68+Q52*$Q$68+AR52*$AR$68)*-1 -> 91966.95535 | AT52: =(AL52*AL$69+AQ52*AQ$69)*-1 ->  | AU52: =AQ52*$AQ$21*$AQ$69/$AQ$23*-1+AL52/$AL$23*$AL$21*$AL$69*-1+$AT$20*(Z52+AA52+AR52)/($Z$23+$AA$23+$AR$23) -> 
A53: Engros- og detailhandel | B53: -24527.38834 | C53: =-Nøgletal!$H$78*Nøgletal!$H122 -> 0 | F53: -127.9895561 | O53: =-Nøgletal!$H$78*Nøgletal!$H123 -> -127.9895561 | P53: =-Nøgletal!$H$78*Nøgletal!$H121 -> -419.6759882 | Q53: =-Nøgletal!$H$78*Nøgletal!$H124 -> 0 | R53: -17.4364586 | X53: =-Nøgletal!$H$78*Nøgletal!$H127 -> -17.4364586 | Y53: =-Nøgletal!$H$78*Nøgletal!$H128 -> 0 | Z53: =-Nøgletal!$H$78*Nøgletal!$H126 -> -1068.112952 | AA53: 0 | AG53: =-Nøgletal!$H$78*Nøgletal!$H125 -> 0 | AH53: =-Nøgletal!$H$78*Nøgletal!$H130 -> -27.12338004 | AI53: =-Nøgletal!$H$78*Nøgletal!$H131*(Nøgletal!$H$467-1)/Nøgletal!$H$467 -> -1671.628209 | AL53: -13364.0749 | AM53: =Nøgletal!H78*Nøgletal!H131/Nøgletal!H467*-1 -> -835.8141046 | AO53: =Nøgletal!H78*Nøgletal!H132*-1 -> 0 | AP53: =Nøgletal!H50*-1 -> -12528.2608 | AQ53: =-Nøgletal!H64 -> -7831.34689 | AR53: =Nøgletal!H78*Nøgletal!H129*-1 -> 0 | AS53: 32784.43697
A54: Landbrug, skovbrug og gartneri | B54: -23522.28604 | C54: =-Nøgletal!$H$79*Nøgletal!$H135 -> -184.1769171 | F54: -9588.822694 | O54: =-Nøgletal!$H$79*Nøgletal!$H136 -> -9588.822694 | P54: =-Nøgletal!$H$79*Nøgletal!$H134 -> -349.6933274 | Q54: =-Nøgletal!$H$79*Nøgletal!$H137 -> 0 | R54: -2141.242402 | X54: =-Nøgletal!$H$79*Nøgletal!$H140 -> -2141.242402 | Y54: =-Nøgletal!$H$79*Nøgletal!$H141 -> -563.7385909 | Z54: =-Nøgletal!$H$79*Nøgletal!$H139 -> -888.3890243 | AA54: -397.6045158 | AG54: =-Nøgletal!$H$79*Nøgletal!$H138 -> -397.6045158 | AH54: =-Nøgletal!$H$79*Nøgletal!$H143 -> 0 | AI54: =-Nøgletal!$H$79*Nøgletal!$H144*(Nøgletal!$H$467-1)/Nøgletal!$H$467 -> -1152.711603 | AL54: -6743.256999 | AM54: =Nøgletal!H79*Nøgletal!H144/Nøgletal!H467*-1 -> -576.3558015 | AO54: =Nøgletal!H79*Nøgletal!H145*-1 -> 0 | AP54: =Nøgletal!H51*-1 -> -6166.901197 | AQ54: =-Nøgletal!H65 -> -1512.649969 | AR54: =Nøgletal!H79*Nøgletal!H142*-1 -> 0 | AS54: 747283.3083
A55: Fiskeri | B55: -4318 | C55: =-Nøgletal!$H$80*Nøgletal!$H147 -> 0 | F55: -4318 | O55: =-Nøgletal!$H$80*Nøgletal!$H149 -> -4318 | R55: 0 | AA55: 0 | AG55: =-Nøgletal!$H$80*Nøgletal!$H148 -> 0 | AL55: 0 | AO55: =Nøgletal!H80*Nøgletal!H150*-1 -> 0 | AP55: =Nøgletal!H52*-1 -> 0 | AQ55: =-Nøgletal!H66 -> 0 | AS55: 319963.8
